Workbook

Sheet INTRO
B2: PC Joint Reporting Form v.3.1
B4: The purpose of this template Joint Reporting Form (JRF) - available as an Excel file - is to provide national health authorities and data managers with a standardized tool to address these reporting challenges, facilitate integration and thereby further contribute to improving overall programme management. This template aims to standardize national reporting of programme implementation outcomes, improve availability and coordination of preventive chemotherapy data across the World Health Organization regions. National authorities are requested to complete this form for submission to the World Health Organization any time before 15 August of the current year for reporting data on PC interventions implemented during the previous year.
B6: Structure of the application (worksheets):
B8: INTRO | C8: This worksheet includes guides on how to complete the joint reporting form and information about status of PC for endemic diseases in the country
B9: COUNTRY_INFO | C9: This worksheet includes information about administrative structure of the country, population by age group, status of endemicity for each disease, population requiring PC, planned interventions and interventions implemented
B10: MDA1, MDA2, MDA3, T1, T2 and T3 | C10: These worksheets include information about endemic districts targeted for treatment with specified PC medicines, treatment plan, and number of people who received treatment by age group
B11: DISTRICT | C11: This worksheet includes summary of people treated by disease at the level of implementation. If data by gender is available, it requires to enter.
B12: SUMMARY | C12: This worksheet includes summary of people treated by disease and by PC intervention. Before generating the report (run macros) please select the disease for which you need the report. Follow the same rule to generate various reports. This worksheet should be printed and submitted as a Joint Report (see the instruction for submission in the SUMMARY worksheet).
B14: Instruction for data entry
B16: Most of the cells in the above-mentioned worksheets include formula that are calculated automatically according to the treatment policy recommended by WHO for each disease. See the link http://www.who.int/neglected_diseases/preventive_chemotherapy/pct_manual/en/index.html
B18: Please enter your data into the cells according to their colour code:
C20: White - cell is not protected. Please enter the value of the requested indicator.
C22: Yellow - cell is protected and includes name of indicator. No data entry required.
C24: Orange - cell is not protected and includes a drop-down menu. Please select the value from the drop-down list.
C27: Green - cell is not protected and includes formula. Please change the value only if your data are different from those that are calculated automatically.
C30: Blue - cell is protected and includes formula. No data entry required.
B32: Country data
B34: COUNTRY | E34: Uganda
B36: Year of reporting data | E36: 2018
B38: Is country endemic for lymphatic filariasis (LF)? | E38: Endemic
B40: Is country endemic for onchocerciasis (ONCHO)? | E40: Endemic
B42: Is country endemic for soil-transmitted helminthiases (STH)? | E42: Endemic
B44: Is country endemic for schistosomiasis (SCH)? | E44: Endemic
B46: How many administrative units in the country? | E46: 116
B47: If demographical data at the second administrative level are not available by age group, please enter the proportion (%) of population by age group in the country. If data are available, please leave these cells blank.
B48: 1-4 years age | C48: Preschool-age children (PreSAC) | E48: 0.142
B49: 5-14 years age | C49: School-age children (SAC) | E49: 0.302
B50: 15 years + | C50: Adults | E50: 0.521

Sheet COUNTRY_INFO
A1: COUNTRY INFORMATION
A2: Administrative structure, population by age group, endemicity status, planned interventions and interventions implemented
A4: TOTAL | D4: =SUM(D$9:D$1000) -> 39314952 | E4: =SUM(E$9:E$1000) -> 5582724 | F4: =SUM(F$9:F$1000) -> 11873116 | G4: =SUM(G$9:G$1000) -> 20483092 | L4: =SUM(L$9:L$1000) -> 1975991 | M4: =SUM(M$9:M$1000) -> 2012913 | N4: =SUM(N$9:N$1000) -> 17458752 | O4: =SUM(O$9:O$1000) -> 7298379
A6: Country administrative structure | D6: Population | H6: Endemicity | L6: Population requiring PC | P6: Number of treatment rounds planned for the year | T6: PC implemented | V6: Click to see the recommended strategy
A7: Country | B7: Province/State | C7: District | D7: Total | E7: PreSAC | F7: SAC | G7: Adults | H7: LF | I7: Oncho | J7: STH | K7: SCH | L7: LF | M7: Oncho | N7: STH | O7: SCH | P7: LF | Q7: Oncho | R7: STH | S7: SCH | T7: ROUND 1 | U7: ROUND2 | X7: IU_ID | Y7: IU_NAME
A9: =IF(INTRO!$E$34<>0,INTRO!$E$34,"") -> Uganda | B9: CENTRAL | C9: BUIKWE | D9: 491752 | E9: =IF(INTRO!$E$48="","",ROUND($D9*INTRO!$E$48,0)) -> 69829 | F9: =IF(INTRO!$E$49="","",ROUND($D9*INTRO!$E$49,0)) -> 148509 | G9: =IF(INTRO!$E$50="","",ROUND($D9*INTRO!$E$50,0)) -> 256203 | H9: 0 | I9: 0 | J9: 3 | K9: 2 | L9: =IF(INTRO!$E$38="Endemic", IF($H9>0, IF($H9=4,"Unknown", IF($H9=99,"Stopped", $D9)), 0),"Not required") -> 0 | M9: =IF(INTRO!$E$40="Endemic", IF($I9>0, IF($I9=4,"Unknown",IF($I9=99,"Stopped", $D9)), 0),"Not required") -> 0 | N9: 218338 | O9: 120118 | P9: 0 | Q9: 0 | R9: 2 | S9: 1 | T9: T3 (ALB/MBD) | U9: T2 (PZQ) | V9: T1 | W9: T3 | X9: 49725 | Y9: BUIKWE
A10: =IF(INTRO!$E$34<>0,INTRO!$E$34,"") -> Uganda | B10: CENTRAL | C10: BUKOMANSIMBI | D10: 170233 | E10: =IF(INTRO!$E$48="","",ROUND($D10*INTRO!$E$48,0)) -> 24173 | F10: =IF(INTRO!$E$49="","",ROUND($D10*INTRO!$E$49,0)) -> 51410 | G10: =IF(INTRO!$E$50="","",ROUND($D10*INTRO!$E$50,0)) -> 88691 | H10: 0 | I10: 0 | J10: 3 | K10: 0 | L10: =IF(INTRO!$E$38="Endemic", IF($H10>0, IF($H10=4,"Unknown", IF($H10=99,"Stopped", $D10)), 0),"Not required") -> 0 | M10: =IF(INTRO!$E$40="Endemic", IF($I10>0, IF($I10=4,"Unknown",IF($I10=99,"Stopped", $D10)), 0),"Not required") -> 0 | N10: 75583 | O10: 0 | P10: 0 | Q10: 0 | R10: 2 | S10: 0 | T10: T3 (ALB/MBD) | U10: T3 (ALB/MBD) | V10: T3 | W10: T3 | X10: 49726 | Y10: BUKOMANSIMBI
A11: =IF(INTRO!$E$34<>0,INTRO!$E$34,"") -> Uganda | B11: CENTRAL | C11: BUTAMBALA | D11: 113214 | E11: =IF(INTRO!$E$48="","",ROUND($D11*INTRO!$E$48,0)) -> 16076 | F11: =IF(INTRO!$E$49="","",ROUND($D11*INTRO!$E$49,0)) -> 34191 | G11: =IF(INTRO!$E$50="","",ROUND($D11*INTRO!$E$50,0)) -> 58984 | H11: 0 | I11: 0 | J11: 3 | K11: 0 | L11: =IF(INTRO!$E$38="Endemic", IF($H11>0, IF($H11=4,"Unknown", IF($H11=99,"Stopped", $D11)), 0),"Not required") -> 0 | M11: =IF(INTRO!$E$40="Endemic", IF($I11>0, IF($I11=4,"Unknown",IF($I11=99,"Stopped", $D11)), 0),"Not required") -> 0 | N11: 50267 | O11: 0 | P11: 0 | Q11: 0 | R11: 2 | S11: 0 | T11: T3 (ALB/MBD) | U11: T3 (ALB/MBD) | V11: T3 | W11: T3 | X11: 49730 | Y11: BUTAMBALA
A12: =IF(INTRO!$E$34<>0,INTRO!$E$34,"") -> Uganda | B12: CENTRAL | C12: BUVUMA | D12: 101371 | E12: =IF(INTRO!$E$48="","",ROUND($D12*INTRO!$E$48,0)) -> 14395 | F12: =IF(INTRO!$E$49="","",ROUND($D12*INTRO!$E$49,0)) -> 30614 | G12: =IF(INTRO!$E$50="","",ROUND($D12*INTRO!$E$50,0)) -> 52814 | H12: 0 | I12: 0 | J12: 3 | K12: 3 | L12: =IF(INTRO!$E$38="Endemic", IF($H12>0, IF($H12=4,"Unknown", IF($H12=99,"Stopped", $D12)), 0),"Not required") -> 0 | M12: =IF(INTRO!$E$40="Endemic", IF($I12>0, IF($I12=4,"Unknown",IF($I12=99,"Stopped", $D12)), 0),"Not required") -> 0 | N12: 45009 | O12: 80273 | P12: 0 | Q12: 0 | R12: 2 | S12: 1 | T12: T3 (ALB/MBD) | U12: T2 (PZQ) | V12: T1 | W12: T3 | X12: 49731 | Y12: BUVUMA
A13: =IF(INTRO!$E$34<>0,INTRO!$E$34,"") -> Uganda | B13: CENTRAL | C13: GOMBA | D13: 180375 | E13: =IF(INTRO!$E$48="","",ROUND($D13*INTRO!$E$48,0)) -> 25613 | F13: =IF(INTRO!$E$49="","",ROUND($D13*INTRO!$E$49,0)) -> 54473 | G13: =IF(INTRO!$E$50="","",ROUND($D13*INTRO!$E$50,0)) -> 93975 | H13: 0 | I13: 0 | J13: 3 | K13: 3 | L13: =IF(INTRO!$E$38="Endemic", IF($H13>0, IF($H13=4,"Unknown", IF($H13=99,"Stopped", $D13)), 0),"Not required") -> 0 | M13: =IF(INTRO!$E$40="Endemic", IF($I13>0, IF($I13=4,"Unknown",IF($I13=99,"Stopped", $D13)), 0),"Not required") -> 0 | N13: 80086 | O13: 21263 | P13: 0 | Q13: 0 | R13: 2 | S13: 1 | T13: T3 (ALB/MBD) | U13: T2 (PZQ) | V13: T1 | W13: T3 | X13: 49735 | Y13: GOMBA
A14: =IF(INTRO!$E$34<>0,INTRO!$E$34,"") -> Uganda | B14: CENTRAL | C14: KALANGALA | D14: 60179 | E14: =IF(INTRO!$E$48="","",ROUND($D14*INTRO!$E$48,0)) -> 8545 | F14: =IF(INTRO!$E$49="","",ROUND($D14*INTRO!$E$49,0)) -> 18174 | G14: =IF(INTRO!$E$50="","",ROUND($D14*INTRO!$E$50,0)) -> 31353 | H14: 0 | I14: 0 | J14: 3 | K14: 3 | L14: =IF(INTRO!$E$38="Endemic", IF($H14>0, IF($H14=4,"Unknown", IF($H14=99,"Stopped", $D14)), 0),"Not required") -> 0 | M14: =IF(INTRO!$E$40="Endemic", IF($I14>0, IF($I14=4,"Unknown",IF($I14=99,"Stopped", $D14)), 0),"Not required") -> 0 | N14: 26719 | O14: 37602 | P14: 0 | Q14: 0 | R14: 2 | S14: 1 | T14: T3 (ALB/MBD) | U14: T2 (PZQ) | V14: T1 | W14: T3 | X14: 49745 | Y14: KALANGALA
A15: =IF(INTRO!$E$34<>0,INTRO!$E$34,"") -> Uganda | B15: CENTRAL | C15: KALUNGU | D15: 207484 | E15: =IF(INTRO!$E$48="","",ROUND($D15*INTRO!$E$48,0)) -> 29463 | F15: =IF(INTRO!$E$49="","",ROUND($D15*INTRO!$E$49,0)) -> 62660 | G15: =IF(INTRO!$E$50="","",ROUND($D15*INTRO!$E$50,0)) -> 108099 | H15: 0 | I15: 0 | J15: 3 | K15: 1 | L15: =IF(INTRO!$E$38="Endemic", IF($H15>0, IF($H15=4,"Unknown", IF($H15=99,"Stopped", $D15)), 0),"Not required") -> 0 | M15: =IF(INTRO!$E$40="Endemic", IF($I15>0, IF($I15=4,"Unknown",IF($I15=99,"Stopped", $D15)), 0),"Not required") -> 0 | N15: 92123 | O15: 21546 | P15: 0 | Q15: 0 | R15: 2 | S15: 0 | T15: T3 (ALB/MBD) | U15: T3 (ALB/MBD) | V15: T1 | W15: T3 | X15: 49758 | Y15: KALUNGU
A16: =IF(INTRO!$E$34<>0,INTRO!$E$34,"") -> Uganda | B16: CENTRAL | C16: KAMPALA | D16: 1708497 | E16: =IF(INTRO!$E$48="","",ROUND($D16*INTRO!$E$48,0)) -> 242607 | F16: =IF(INTRO!$E$49="","",ROUND($D16*INTRO!$E$49,0)) -> 515966 | G16: =IF(INTRO!$E$50="","",ROUND($D16*INTRO!$E$50,0)) -> 890127 | H16: 0 | I16: 0 | J16: 3 | K16: 0 | L16: =IF(INTRO!$E$38="Endemic", IF($H16>0, IF($H16=4,"Unknown", IF($H16=99,"Stopped", $D16)), 0),"Not required") -> 0 | M16: =IF(INTRO!$E$40="Endemic", IF($I16>0, IF($I16=4,"Unknown",IF($I16=99,"Stopped", $D16)), 0),"Not required") -> 0 | N16: 758573 | O16: 0 | P16: 0 | Q16: 0 | R16: 2 | S16: 0 | T16: T3 (ALB/MBD) | U16: T3 (ALB/MBD) | V16: T3 | W16: T3 | X16: 49759 | Y16: KAMPALA
A17: =IF(INTRO!$E$34<>0,INTRO!$E$34,"") -> Uganda | B17: CENTRAL | C17: KAYUNGA | D17: 417162 | E17: =IF(INTRO!$E$48="","",ROUND($D17*INTRO!$E$48,0)) -> 59237 | F17: =IF(INTRO!$E$49="","",ROUND($D17*INTRO!$E$49,0)) -> 125983 | G17: =IF(INTRO!$E$50="","",ROUND($D17*INTRO!$E$50,0)) -> 217341 | H17: 0 | I17: 0 | J17: 3 | K17: 3 | L17: =IF(INTRO!$E$38="Endemic", IF($H17>0, IF($H17=4,"Unknown", IF($H17=99,"Stopped", $D17)), 0),"Not required") -> 0 | M17: =IF(INTRO!$E$40="Endemic", IF($I17>0, IF($I17=4,"Unknown",IF($I17=99,"Stopped", $D17)), 0),"Not required") -> 0 | N17: 185220 | O17: 108748 | P17: 0 | Q17: 0 | R17: 2 | S17: 1 | T17: T3 (ALB/MBD) | U17: T2 (PZQ) | V17: T1 | W17: T3 | X17: 49761 | Y17: KAYUNGA
A18: =IF(INTRO!$E$34<>0,INTRO!$E$34,"") -> Uganda | B18: CENTRAL | C18: KIBOGA | D18: 167017 | E18: =IF(INTRO!$E$48="","",ROUND($D18*INTRO!$E$48,0)) -> 23716 | F18: =IF(INTRO!$E$49="","",ROUND($D18*INTRO!$E$49,0)) -> 50439 | G18: =IF(INTRO!$E$50="","",ROUND($D18*INTRO!$E$50,0)) -> 87016 | H18: 0 | I18: 0 | J18: 3 | K18: 0 | L18: =IF(INTRO!$E$38="Endemic", IF($H18>0, IF($H18=4,"Unknown", IF($H18=99,"Stopped", $D18)), 0),"Not required") -> 0 | M18: =IF(INTRO!$E$40="Endemic", IF($I18>0, IF($I18=4,"Unknown",IF($I18=99,"Stopped", $D18)), 0),"Not required") -> 0 | N18: 74155 | O18: 0 | P18: 0 | Q18: 0 | R18: 2 | S18: 0 | T18: T3 (ALB/MBD) | U18: T3 (ALB/MBD) | V18: T3 | W18: T3 | X18: 49762 | Y18: KIBOGA
A19: =IF(INTRO!$E$34<>0,INTRO!$E$34,"") -> Uganda | B19: CENTRAL | C19: KYANKWANZI | D19: 241922 | E19: =IF(INTRO!$E$48="","",ROUND($D19*INTRO!$E$48,0)) -> 34353 | F19: =IF(INTRO!$E$49="","",ROUND($D19*INTRO!$E$49,0)) -> 73060 | G19: =IF(INTRO!$E$50="","",ROUND($D19*INTRO!$E$50,0)) -> 126041 | H19: 0 | I19: 0 | J19: 3 | K19: 0 | L19: =IF(INTRO!$E$38="Endemic", IF($H19>0, IF($H19=4,"Unknown", IF($H19=99,"Stopped", $D19)), 0),"Not required") -> 0 | M19: =IF(INTRO!$E$40="Endemic", IF($I19>0, IF($I19=4,"Unknown",IF($I19=99,"Stopped", $D19)), 0),"Not required") -> 0 | N19: 107413 | O19: 0 | P19: 0 | Q19: 0 | R19: 2 | S19: 0 | T19: T3 (ALB/MBD) | U19: T3 (ALB/MBD) | V19: T3 | W19: T3 | X19: 49769 | Y19: KYANKWANZI
A20: =IF(INTRO!$E$34<>0,INTRO!$E$34,"") -> Uganda | B20: CENTRAL | C20: LUWERO | D20: 514909 | E20: =IF(INTRO!$E$48="","",ROUND($D20*INTRO!$E$48,0)) -> 73117 | F20: =IF(INTRO!$E$49="","",ROUND($D20*INTRO!$E$49,0)) -> 155503 | G20: =IF(INTRO!$E$50="","",ROUND($D20*INTRO!$E$50,0)) -> 268268 | H20: 0 | I20: 0 | J20: 3 | K20: 0 | L20: =IF(INTRO!$E$38="Endemic", IF($H20>0, IF($H20=4,"Unknown", IF($H20=99,"Stopped", $D20)), 0),"Not required") -> 0 | M20: =IF(INTRO!$E$40="Endemic", IF($I20>0, IF($I20=4,"Unknown",IF($I20=99,"Stopped", $D20)), 0),"Not required") -> 0 | N20: 228620 | O20: 0 | P20: 0 | Q20: 0 | R20: 2 | S20: 0 | T20: T3 (ALB/MBD) | U20: T3 (ALB/MBD) | V20: T3 | W20: T3 | X20: 49774 | Y20: LUWERO
A21: =IF(INTRO!$E$34<>0,INTRO!$E$34,"") -> Uganda | B21: CENTRAL | C21: LWENGO | D21: 310384 | E21: =IF(INTRO!$E$48="","",ROUND($D21*INTRO!$E$48,0)) -> 44075 | F21: =IF(INTRO!$E$49="","",ROUND($D21*INTRO!$E$49,0)) -> 93736 | G21: =IF(INTRO!$E$50="","",ROUND($D21*INTRO!$E$50,0)) -> 161710 | H21: 0 | I21: 0 | J21: 3 | K21: 0 | L21: =IF(INTRO!$E$38="Endemic", IF($H21>0, IF($H21=4,"Unknown", IF($H21=99,"Stopped", $D21)), 0),"Not required") -> 0 | M21: =IF(INTRO!$E$40="Endemic", IF($I21>0, IF($I21=4,"Unknown",IF($I21=99,"Stopped", $D21)), 0),"Not required") -> 0 | N21: 137811 | O21: 0 | P21: 0 | Q21: 0 | R21: 2 | S21: 0 | T21: T3 (ALB/MBD) | U21: T3 (ALB/MBD) | V21: T3 | W21: T3 | X21: 49775 | Y21: LWENGO
A22: =IF(INTRO!$E$34<>0,INTRO!$E$34,"") -> Uganda | B22: CENTRAL | C22: LYANTONDE | D22: 106565 | E22: =IF(INTRO!$E$48="","",ROUND($D22*INTRO!$E$48,0)) -> 15132 | F22: =IF(INTRO!$E$49="","",ROUND($D22*INTRO!$E$49,0)) -> 32183 | G22: =IF(INTRO!$E$50="","",ROUND($D22*INTRO!$E$50,0)) -> 55520 | H22: 0 | I22: 0 | J22: 3 | K22: 0 | L22: =IF(INTRO!$E$38="Endemic", IF($H22>0, IF($H22=4,"Unknown", IF($H22=99,"Stopped", $D22)), 0),"Not required") -> 0 | M22: =IF(INTRO!$E$40="Endemic", IF($I22>0, IF($I22=4,"Unknown",IF($I22=99,"Stopped", $D22)), 0),"Not required") -> 0 | N22: 47315 | O22: 0 | P22: 0 | Q22: 0 | R22: 2 | S22: 0 | T22: T3 (ALB/MBD) | U22: T3 (ALB/MBD) | V22: T3 | W22: T3 | X22: 49776 | Y22: LYANTONDE
A23: =IF(INTRO!$E$34<>0,INTRO!$E$34,"") -> Uganda | B23: CENTRAL | C23: MASAKA | D23: 334270 | E23: =IF(INTRO!$E$48="","",ROUND($D23*INTRO!$E$48,0)) -> 47466 | F23: =IF(INTRO!$E$49="","",ROUND($D23*INTRO!$E$49,0)) -> 100950 | G23: =IF(INTRO!$E$50="","",ROUND($D23*INTRO!$E$50,0)) -> 174155 | H23: 0 | I23: 0 | J23: 3 | K23: 3 | L23: =IF(INTRO!$E$38="Endemic", IF($H23>0, IF($H23=4,"Unknown", IF($H23=99,"Stopped", $D23)), 0),"Not required") -> 0 | M23: =IF(INTRO!$E$40="Endemic", IF($I23>0, IF($I23=4,"Unknown",IF($I23=99,"Stopped", $D23)), 0),"Not required") -> 0 | N23: 148416 | O23: 45592 | P23: 0 | Q23: 0 | R23: 2 | S23: 1 | T23: T3 (ALB/MBD) | U23: T2 (PZQ) | V23: T1 | W23: T3 | X23: 49785 | Y23: MASAKA
A24: =IF(INTRO!$E$34<>0,INTRO!$E$34,"") -> Uganda | B24: CENTRAL | C24: MITYANA | D24: 373276 | E24: =IF(INTRO!$E$48="","",ROUND($D24*INTRO!$E$48,0)) -> 53005 | F24: =IF(INTRO!$E$49="","",ROUND($D24*INTRO!$E$49,0)) -> 112729 | G24: =IF(INTRO!$E$50="","",ROUND($D24*INTRO!$E$50,0)) -> 194477 | H24: 0 | I24: 0 | J24: 3 | K24: 3 | L24: =IF(INTRO!$E$38="Endemic", IF($H24>0, IF($H24=4,"Unknown", IF($H24=99,"Stopped", $D24)), 0),"Not required") -> 0 | M24: =IF(INTRO!$E$40="Endemic", IF($I24>0, IF($I24=4,"Unknown",IF($I24=99,"Stopped", $D24)), 0),"Not required") -> 0 | N24: 165734 | O24: 20992 | P24: 0 | Q24: 0 | R24: 2 | S24: 1 | T24: T3 (ALB/MBD) | U24: T2 (PZQ) | V24: T1 | W24: T3 | X24: 49788 | Y24: MITYANA
A25: =IF(INTRO!$E$34<>0,INTRO!$E$34,"") -> Uganda | B25: CENTRAL | C25: MPIGI | D25: 283410 | E25: =IF(INTRO!$E$48="","",ROUND($D25*INTRO!$E$48,0)) -> 40244 | F25: =IF(INTRO!$E$49="","",ROUND($D25*INTRO!$E$49,0)) -> 85590 | G25: =IF(INTRO!$E$50="","",ROUND($D25*INTRO!$E$50,0)) -> 147657 | H25: 0 | I25: 0 | J25: 3 | K25: 2 | L25: =IF(INTRO!$E$38="Endemic", IF($H25>0, IF($H25=4,"Unknown", IF($H25=99,"Stopped", $D25)), 0),"Not required") -> 0 | M25: =IF(INTRO!$E$40="Endemic", IF($I25>0, IF($I25=4,"Unknown",IF($I25=99,"Stopped", $D25)), 0),"Not required") -> 0 | N25: 125834 | O25: 84672 | P25: 0 | Q25: 0 | R25: 2 | S25: 1 | T25: T3 (ALB/MBD) | U25: T2 (PZQ) | V25: T1 | W25: T3 | X25: 49789 | Y25: MPIGI
A26: =IF(INTRO!$E$34<>0,INTRO!$E$34,"") -> Uganda | B26: CENTRAL | C26: MUBENDE | D26: 776176 | E26: =IF(INTRO!$E$48="","",ROUND($D26*INTRO!$E$48,0)) -> 110217 | F26: =IF(INTRO!$E$49="","",ROUND($D26*INTRO!$E$49,0)) -> 234405 | G26: =IF(INTRO!$E$50="","",ROUND($D26*INTRO!$E$50,0)) -> 404388 | H26: 0 | I26: 0 | J26: 3 | K26: 1 | L26: =IF(INTRO!$E$38="Endemic", IF($H26>0, IF($H26=4,"Unknown", IF($H26=99,"Stopped", $D26)), 0),"Not required") -> 0 | M26: =IF(INTRO!$E$40="Endemic", IF($I26>0, IF($I26=4,"Unknown",IF($I26=99,"Stopped", $D26)), 0),"Not required") -> 0 | N26: 344622 | O26: 53605 | P26: 0 | Q26: 0 | R26: 2 | S26: 0 | T26: T3 (ALB/MBD) | U26: T3 (ALB/MBD) | V26: T1 | W26: T3 | X26: 49790 | Y26: MUBENDE
A27: =IF(INTRO!$E$34<>0,INTRO!$E$34,"") -> Uganda | B27: CENTRAL | C27: MUKONO | D27: 675885 | E27: =IF(INTRO!$E$48="","",ROUND($D27*INTRO!$E$48,0)) -> 95976 | F27: =IF(INTRO!$E$49="","",ROUND($D27*INTRO!$E$49,0)) -> 204117 | G27: =IF(INTRO!$E$50="","",ROUND($D27*INTRO!$E$50,0)) -> 352136 | H27: 0 | I27: 0 | J27: 3 | K27: 3 | L27: =IF(INTRO!$E$38="Endemic", IF($H27>0, IF($H27=4,"Unknown", IF($H27=99,"Stopped", $D27)), 0),"Not required") -> 0 | M27: =IF(INTRO!$E$40="Endemic", IF($I27>0, IF($I27=4,"Unknown",IF($I27=99,"Stopped", $D27)), 0),"Not required") -> 0 | N27: 300093 | O27: 44776 | P27: 0 | Q27: 0 | R27: 2 | S27: 1 | T27: T3 (ALB/MBD) | U27: T2 (PZQ) | V27: T1 | W27: T3 | X27: 49783 | Y27: MUKONO
A28: =IF(INTRO!$E$34<>0,INTRO!$E$34,"") -> Uganda | B28: CENTRAL | C28: NAKASEKE | D28: 222779 | E28: =IF(INTRO!$E$48="","",ROUND($D28*INTRO!$E$48,0)) -> 31635 | F28: =IF(INTRO!$E$49="","",ROUND($D28*INTRO!$E$49,0)) -> 67279 | G28: =IF(INTRO!$E$50="","",ROUND($D28*INTRO!$E$50,0)) -> 116068 | H28: 0 | I28: 0 | J28: 3 | K28: 0 | L28: =IF(INTRO!$E$38="Endemic", IF($H28>0, IF($H28=4,"Unknown", IF($H28=99,"Stopped", $D28)), 0),"Not required") -> 0 | M28: =IF(INTRO!$E$40="Endemic", IF($I28>0, IF($I28=4,"Unknown",IF($I28=99,"Stopped", $D28)), 0),"Not required") -> 0 | N28: 98914 | O28: 0 | P28: 0 | Q28: 0 | R28: 2 | S28: 0 | T28: T3 (ALB/MBD) | U28: T3 (ALB/MBD) | V28: T3 | W28: T3 | X28: 49795 | Y28: NAKASEKE
A29: =IF(INTRO!$E$34<>0,INTRO!$E$34,"") -> Uganda | B29: CENTRAL | C29: NAKASONGOLA | D29: 204926 | E29: =IF(INTRO!$E$48="","",ROUND($D29*INTRO!$E$48,0)) -> 29099 | F29: =IF(INTRO!$E$49="","",ROUND($D29*INTRO!$E$49,0)) -> 61888 | G29: =IF(INTRO!$E$50="","",ROUND($D29*INTRO!$E$50,0)) -> 106766 | H29: 0 | I29: 0 | J29: 3 | K29: 1 | L29: =IF(INTRO!$E$38="Endemic", IF($H29>0, IF($H29=4,"Unknown", IF($H29=99,"Stopped", $D29)), 0),"Not required") -> 0 | M29: =IF(INTRO!$E$40="Endemic", IF($I29>0, IF($I29=4,"Unknown",IF($I29=99,"Stopped", $D29)), 0),"Not required") -> 0 | N29: 90987 | O29: 40879 | P29: 0 | Q29: 0 | R29: 2 | S29: 0 | T29: T3 (ALB/MBD) | U29: T3 (ALB/MBD) | V29: T1 | W29: T3 | X29: 49791 | Y29: NAKASONGOLA
A30: =IF(INTRO!$E$34<>0,INTRO!$E$34,"") -> Uganda | B30: CENTRAL | C30: RAKAI | D30: 583709 | E30: =IF(INTRO!$E$48="","",ROUND($D30*INTRO!$E$48,0)) -> 82887 | F30: =IF(INTRO!$E$49="","",ROUND($D30*INTRO!$E$49,0)) -> 176280 | G30: =IF(INTRO!$E$50="","",ROUND($D30*INTRO!$E$50,0)) -> 304112 | H30: 0 | I30: 0 | J30: 3 | K30: 1 | L30: =IF(INTRO!$E$38="Endemic", IF($H30>0, IF($H30=4,"Unknown", IF($H30=99,"Stopped", $D30)), 0),"Not required") -> 0 | M30: =IF(INTRO!$E$40="Endemic", IF($I30>0, IF($I30=4,"Unknown",IF($I30=99,"Stopped", $D30)), 0),"Not required") -> 0 | N30: 259167 | O30: 43077 | P30: 0 | Q30: 0 | R30: 2 | S30: 0 | T30: T3 (ALB/MBD) | U30: T3 (ALB/MBD) | V30: T1 | W30: T3 | X30: 49807 | Y30: RAKAI
A31: =IF(INTRO!$E$34<>0,INTRO!$E$34,"") -> Uganda | B31: CENTRAL | C31: SEMBABULE | D31: 285078 | E31: =IF(INTRO!$E$48="","",ROUND($D31*INTRO!$E$48,0)) -> 40481 | F31: =IF(INTRO!$E$49="","",ROUND($D31*INTRO!$E$49,0)) -> 86094 | G31: =IF(INTRO!$E$50="","",ROUND($D31*INTRO!$E$50,0)) -> 148526 | H31: 0 | I31: 0 | J31: 3 | K31: 0 | L31: =IF(INTRO!$E$38="Endemic", IF($H31>0, IF($H31=4,"Unknown", IF($H31=99,"Stopped", $D31)), 0),"Not required") -> 0 | M31: =IF(INTRO!$E$40="Endemic", IF($I31>0, IF($I31=4,"Unknown",IF($I31=99,"Stopped", $D31)), 0),"Not required") -> 0 | N31: 126575 | O31: 0 | P31: 0 | Q31: 0 | R31: 2 | S31: 0 | T31: T3 (ALB/MBD) | U31: T3 (ALB/MBD) | V31: T3 | W31: T3 | X31: 49811 | Y31: SEMBABULE
A32: =IF(INTRO!$E$34<>0,INTRO!$E$34,"") -> Uganda | B32: CENTRAL | C32: WAKISO | D32: 2262323 | E32: =IF(INTRO!$E$48="","",ROUND($D32*INTRO!$E$48,0)) -> 321250 | F32: =IF(INTRO!$E$49="","",ROUND($D32*INTRO!$E$49,0)) -> 683222 | G32: =IF(INTRO!$E$50="","",ROUND($D32*INTRO!$E$50,0)) -> 1178670 | H32: 0 | I32: 0 | J32: 3 | K32: 2 | L32: =IF(INTRO!$E$38="Endemic", IF($H32>0, IF($H32=4,"Unknown", IF($H32=99,"Stopped", $D32)), 0),"Not required") -> 0 | M32: =IF(INTRO!$E$40="Endemic", IF($I32>0, IF($I32=4,"Unknown",IF($I32=99,"Stopped", $D32)), 0),"Not required") -> 0 | N32: 1004472 | O32: 120314 | P32: 0 | Q32: 0 | R32: 2 | S32: 1 | T32: T3 (ALB/MBD) | U32: T2 (PZQ) | V32: T1 | W32: T3 | X32: 49815 | Y32: WAKISO
A33: =IF(INTRO!$E$34<>0,INTRO!$E$34,"") -> Uganda | B33: EASTERN | C33: AMURIA | D33: 304921 | E33: =IF(INTRO!$E$48="","",ROUND($D33*INTRO!$E$48,0)) -> 43299 | F33: =IF(INTRO!$E$49="","",ROUND($D33*INTRO!$E$49,0)) -> 92086 | G33: =IF(INTRO!$E$50="","",ROUND($D33*INTRO!$E$50,0)) -> 158864 | H33: 99 | I33: 0 | J33: 3 | K33: 0 | L33: =IF(INTRO!$E$38="Endemic", IF($H33>0, IF($H33=4,"Unknown", IF($H33=99,"Stopped", $D33)), 0),"Not required") -> Stopped | M33: =IF(INTRO!$E$40="Endemic", IF($I33>0, IF($I33=4,"Unknown",IF($I33=99,"Stopped", $D33)), 0),"Not required") -> 0 | N33: 135385 | O33: 0 | P33: 0 | Q33: 0 | R33: 2 | S33: 0 | T33: T3 (ALB/MBD) | U33: T3 (ALB/MBD) | V33: T3 | W33: T3 | X33: 49709 | Y33: AMURIA
A34: =IF(INTRO!$E$34<>0,INTRO!$E$34,"") -> Uganda | B34: EASTERN | C34: BUDAKA | D34: 234873 | E34: =IF(INTRO!$E$48="","",ROUND($D34*INTRO!$E$48,0)) -> 33352 | F34: =IF(INTRO!$E$49="","",ROUND($D34*INTRO!$E$49,0)) -> 70932 | G34: =IF(INTRO!$E$50="","",ROUND($D34*INTRO!$E$50,0)) -> 122369 | H34: 99 | I34: 0 | J34: 3 | K34: 1 | L34: =IF(INTRO!$E$38="Endemic", IF($H34>0, IF($H34=4,"Unknown", IF($H34=99,"Stopped", $D34)), 0),"Not required") -> Stopped | M34: =IF(INTRO!$E$40="Endemic", IF($I34>0, IF($I34=4,"Unknown",IF($I34=99,"Stopped", $D34)), 0),"Not required") -> 0 | N34: 104284 | O34: 31501 | P34: 0 | Q34: 0 | R34: 2 | S34: 0 | T34: T3 (ALB/MBD) | U34: T3 (ALB/MBD) | V34: T1 | W34: T3 | X34: 49716 | Y34: BUDAKA
A35: =IF(INTRO!$E$34<>0,INTRO!$E$34,"") -> Uganda | B35: EASTERN | C35: BUDUDA | D35: 238527 | E35: =IF(INTRO!$E$48="","",ROUND($D35*INTRO!$E$48,0)) -> 33871 | F35: =IF(INTRO!$E$49="","",ROUND($D35*INTRO!$E$49,0)) -> 72035 | G35: =IF(INTRO!$E$50="","",ROUND($D35*INTRO!$E$50,0)) -> 124273 | H35: 0 | I35: 99 | J35: 3 | K35: 0 | L35: =IF(INTRO!$E$38="Endemic", IF($H35>0, IF($H35=4,"Unknown", IF($H35=99,"Stopped", $D35)), 0),"Not required") -> 0 | M35: =IF(INTRO!$E$40="Endemic", IF($I35>0, IF($I35=4,"Unknown",IF($I35=99,"Stopped", $D35)), 0),"Not required") -> Stopped | N35: 105906 | O35: 0 | P35: 0 | Q35: 0 | R35: 2 | S35: 0 | T35: T3 (ALB/MBD) | U35: T3 (ALB/MBD) | V35: T3 | W35: T3 | X35: 49717 | Y35: BUDUDA
A36: =IF(INTRO!$E$34<>0,INTRO!$E$34,"") -> Uganda | B36: EASTERN | C36: BUGIRI | D36: 439546 | E36: =IF(INTRO!$E$48="","",ROUND($D36*INTRO!$E$48,0)) -> 62416 | F36: =IF(INTRO!$E$49="","",ROUND($D36*INTRO!$E$49,0)) -> 132743 | G36: =IF(INTRO!$E$50="","",ROUND($D36*INTRO!$E$50,0)) -> 229003 | H36: 99 | I36: 0 | J36: 3 | K36: 2 | L36: =IF(INTRO!$E$38="Endemic", IF($H36>0, IF($H36=4,"Unknown", IF($H36=99,"Stopped", $D36)), 0),"Not required") -> Stopped | M36: =IF(INTRO!$E$40="Endemic", IF($I36>0, IF($I36=4,"Unknown",IF($I36=99,"Stopped", $D36)), 0),"Not required") -> 0 | N36: 195159 | O36: 75133 | P36: 0 | Q36: 0 | R36: 2 | S36: 1 | T36: T3 (ALB/MBD) | U36: T2 (PZQ) | V36: T1 | W36: T3 | X36: 49718 | Y36: BUGIRI
A37: =IF(INTRO!$E$34<>0,INTRO!$E$34,"") -> Uganda | B37: EASTERN | C37: BUKEDEA | D37: 212878 | E37: =IF(INTRO!$E$48="","",ROUND($D37*INTRO!$E$48,0)) -> 30229 | F37: =IF(INTRO!$E$49="","",ROUND($D37*INTRO!$E$49,0)) -> 64289 | G37: =IF(INTRO!$E$50="","",ROUND($D37*INTRO!$E$50,0)) -> 110909 | H37: 99 | I37: 0 | J37: 3 | K37: 1 | L37: =IF(INTRO!$E$38="Endemic", IF($H37>0, IF($H37=4,"Unknown", IF($H37=99,"Stopped", $D37)), 0),"Not required") -> Stopped | M37: =IF(INTRO!$E$40="Endemic", IF($I37>0, IF($I37=4,"Unknown",IF($I37=99,"Stopped", $D37)), 0),"Not required") -> 0 | N37: 94518 | O37: 67969 | P37: 0 | Q37: 0 | R37: 2 | S37: 0 | T37: T3 (ALB/MBD) | U37: T3 (ALB/MBD) | V37: T1 | W37: T3 | X37: 49719 | Y37: BUKEDEA
A38: =IF(INTRO!$E$34<>0,INTRO!$E$34,"") -> Uganda | B38: EASTERN | C38: BUKWO | D38: 100573 | E38: =IF(INTRO!$E$48="","",ROUND($D38*INTRO!$E$48,0)) -> 14281 | F38: =IF(INTRO!$E$49="","",ROUND($D38*INTRO!$E$49,0)) -> 30373 | G38: =IF(INTRO!$E$50="","",ROUND($D38*INTRO!$E$50,0)) -> 52399 | H38: 0 | I38: 0 | J38: 3 | K38: 0 | L38: =IF(INTRO!$E$38="Endemic", IF($H38>0, IF($H38=4,"Unknown", IF($H38=99,"Stopped", $D38)), 0),"Not required") -> 0 | M38: =IF(INTRO!$E$40="Endemic", IF($I38>0, IF($I38=4,"Unknown",IF($I38=99,"Stopped", $D38)), 0),"Not required") -> 0 | N38: 44654 | O38: 0 | P38: 0 | Q38: 0 | R38: 2 | S38: 0 | T38: T3 (ALB/MBD) | U38: T3 (ALB/MBD) | V38: T3 | W38: T3 | X38: 49727 | Y38: BUKWO
A39: =IF(INTRO!$E$34<>0,INTRO!$E$34,"") -> Uganda | B39: EASTERN | C39: BULAMBULI | D39: 199813 | E39: =IF(INTRO!$E$48="","",ROUND($D39*INTRO!$E$48,0)) -> 28373 | F39: =IF(INTRO!$E$49="","",ROUND($D39*INTRO!$E$49,0)) -> 60344 | G39: =IF(INTRO!$E$50="","",ROUND($D39*INTRO!$E$50,0)) -> 104103 | H39: 0 | I39: 0 | J39: 3 | K39: 1 | L39: =IF(INTRO!$E$38="Endemic", IF($H39>0, IF($H39=4,"Unknown", IF($H39=99,"Stopped", $D39)), 0),"Not required") -> 0 | M39: =IF(INTRO!$E$40="Endemic", IF($I39>0, IF($I39=4,"Unknown",IF($I39=99,"Stopped", $D39)), 0),"Not required") -> 0 | N39: 88717 | O39: 8490 | P39: 0 | Q39: 0 | R39: 2 | S39: 0 | T39: T3 (ALB/MBD) | U39: T3 (ALB/MBD) | V39: T1 | W39: T3 | X39: 49728 | Y39: BULAMBULI
A40: =IF(INTRO!$E$34<>0,INTRO!$E$34,"") -> Uganda | B40: EASTERN | C40: BUSIA | D40: 366810 | E40: =IF(INTRO!$E$48="","",ROUND($D40*INTRO!$E$48,0)) -> 52087 | F40: =IF(INTRO!$E$49="","",ROUND($D40*INTRO!$E$49,0)) -> 110777 | G40: =IF(INTRO!$E$50="","",ROUND($D40*INTRO!$E$50,0)) -> 191108 | H40: 0 | I40: 0 | J40: 3 | K40: 3 | L40: =IF(INTRO!$E$38="Endemic", IF($H40>0, IF($H40=4,"Unknown", IF($H40=99,"Stopped", $D40)), 0),"Not required") -> 0 | M40: =IF(INTRO!$E$40="Endemic", IF($I40>0, IF($I40=4,"Unknown",IF($I40=99,"Stopped", $D40)), 0),"Not required") -> 0 | N40: 162864 | O40: 104467 | P40: 0 | Q40: 0 | R40: 2 | S40: 1 | T40: T3 (ALB/MBD) | U40: T2 (PZQ) | V40: T1 | W40: T3 | X40: 49723 | Y40: BUSIA
A41: =IF(INTRO!$E$34<>0,INTRO!$E$34,"") -> Uganda | B41: EASTERN | C41: BUTALEJA | D41: 277059 | E41: =IF(INTRO!$E$48="","",ROUND($D41*INTRO!$E$48,0)) -> 39342 | F41: =IF(INTRO!$E$49="","",ROUND($D41*INTRO!$E$49,0)) -> 83672 | G41: =IF(INTRO!$E$50="","",ROUND($D41*INTRO!$E$50,0)) -> 144348 | H41: 99 | I41: 0 | J41: 3 | K41: 1 | L41: =IF(INTRO!$E$38="Endemic", IF($H41>0, IF($H41=4,"Unknown", IF($H41=99,"Stopped", $D41)), 0),"Not required") -> Stopped | M41: =IF(INTRO!$E$40="Endemic", IF($I41>0, IF($I41=4,"Unknown",IF($I41=99,"Stopped", $D41)), 0),"Not required") -> 0 | N41: 123014 | O41: 23919 | P41: 0 | Q41: 0 | R41: 2 | S41: 0 | T41: T3 (ALB/MBD) | U41: T3 (ALB/MBD) | V41: T1 | W41: T3 | X41: 49729 | Y41: BUTALEJA
A42: =IF(INTRO!$E$34<>0,INTRO!$E$34,"") -> Uganda | B42: EASTERN | C42: BUYENDE | D42: 361108 | E42: =IF(INTRO!$E$48="","",ROUND($D42*INTRO!$E$48,0)) -> 51277 | F42: =IF(INTRO!$E$49="","",ROUND($D42*INTRO!$E$49,0)) -> 109055 | G42: =IF(INTRO!$E$50="","",ROUND($D42*INTRO!$E$50,0)) -> 188137 | H42: 99 | I42: 0 | J42: 3 | K42: 3 | L42: =IF(INTRO!$E$38="Endemic", IF($H42>0, IF($H42=4,"Unknown", IF($H42=99,"Stopped", $D42)), 0),"Not required") -> Stopped | M42: =IF(INTRO!$E$40="Endemic", IF($I42>0, IF($I42=4,"Unknown",IF($I42=99,"Stopped", $D42)), 0),"Not required") -> 0 | N42: 160332 | O42: 202056 | P42: 0 | Q42: 0 | R42: 2 | S42: 1 | T42: T3 (ALB/MBD) | U42: T2 (PZQ) | V42: T1 | W42: T3 | X42: 49732 | Y42: BUYENDE
A43: =IF(INTRO!$E$34<>0,INTRO!$E$34,"") -> Uganda | B43: EASTERN | C43: IGANGA | D43: 570609 | E43: =IF(INTRO!$E$48="","",ROUND($D43*INTRO!$E$48,0)) -> 81026 | F43: =IF(INTRO!$E$49="","",ROUND($D43*INTRO!$E$49,0)) -> 172324 | G43: =IF(INTRO!$E$50="","",ROUND($D43*INTRO!$E$50,0)) -> 297287 | H43: 99 | I43: 0 | J43: 3 | K43: 1 | L43: =IF(INTRO!$E$38="Endemic", IF($H43>0, IF($H43=4,"Unknown", IF($H43=99,"Stopped", $D43)), 0),"Not required") -> Stopped | M43: =IF(INTRO!$E$40="Endemic", IF($I43>0, IF($I43=4,"Unknown",IF($I43=99,"Stopped", $D43)), 0),"Not required") -> 0 | N43: 253350 | O43: 56989 | P43: 0 | Q43: 0 | R43: 2 | S43: 0 | T43: T3 (ALB/MBD) | U43: T3 (ALB/MBD) | V43: T1 | W43: T3 | X43: 49738 | Y43: IGANGA
A44: =IF(INTRO!$E$34<>0,INTRO!$E$34,"") -> Uganda | B44: EASTERN | C44: JINJA | D44: 527644 | E44: =IF(INTRO!$E$48="","",ROUND($D44*INTRO!$E$48,0)) -> 74925 | F44: =IF(INTRO!$E$49="","",ROUND($D44*INTRO!$E$49,0)) -> 159348 | G44: =IF(INTRO!$E$50="","",ROUND($D44*INTRO!$E$50,0)) -> 274903 | H44: 0 | I44: 0 | J44: 3 | K44: 3 | L44: =IF(INTRO!$E$38="Endemic", IF($H44>0, IF($H44=4,"Unknown", IF($H44=99,"Stopped", $D44)), 0),"Not required") -> 0 | M44: =IF(INTRO!$E$40="Endemic", IF($I44>0, IF($I44=4,"Unknown",IF($I44=99,"Stopped", $D44)), 0),"Not required") -> 0 | N44: 234273 | O44: 319339 | P44: 0 | Q44: 0 | R44: 2 | S44: 1 | T44: T3 (ALB/MBD) | U44: T2 (PZQ) | V44: T1 | W44: T3 | X44: 49740 | Y44: JINJA
A45: =IF(INTRO!$E$34<>0,INTRO!$E$34,"") -> Uganda | B45: EASTERN | C45: KABERAMAIDO | D45: 252594 | E45: =IF(INTRO!$E$48="","",ROUND($D45*INTRO!$E$48,0)) -> 35868 | F45: =IF(INTRO!$E$49="","",ROUND($D45*INTRO!$E$49,0)) -> 76283 | G45: =IF(INTRO!$E$50="","",ROUND($D45*INTRO!$E$50,0)) -> 131601 | H45: 99 | I45: 0 | J45: 3 | K45: 3 | L45: =IF(INTRO!$E$38="Endemic", IF($H45>0, IF($H45=4,"Unknown", IF($H45=99,"Stopped", $D45)), 0),"Not required") -> Stopped | M45: =IF(INTRO!$E$40="Endemic", IF($I45>0, IF($I45=4,"Unknown",IF($I45=99,"Stopped", $D45)), 0),"Not required") -> 0 | N45: 112151 | O45: 108838 | P45: 0 | Q45: 0 | R45: 2 | S45: 1 | T45: T3 (ALB/MBD) | U45: T2 (PZQ) | V45: T1 | W45: T3 | X45: 49743 | Y45: KABERAMAIDO
A46: =IF(INTRO!$E$34<>0,INTRO!$E$34,"") -> Uganda | B46: EASTERN | C46: KALIRO | D46: 266975 | E46: =IF(INTRO!$E$48="","",ROUND($D46*INTRO!$E$48,0)) -> 37910 | F46: =IF(INTRO!$E$49="","",ROUND($D46*INTRO!$E$49,0)) -> 80626 | G46: =IF(INTRO!$E$50="","",ROUND($D46*INTRO!$E$50,0)) -> 139094 | H46: 99 | I46: 0 | J46: 3 | K46: 1 | L46: =IF(INTRO!$E$38="Endemic", IF($H46>0, IF($H46=4,"Unknown", IF($H46=99,"Stopped", $D46)), 0),"Not required") -> Stopped | M46: =IF(INTRO!$E$40="Endemic", IF($I46>0, IF($I46=4,"Unknown",IF($I46=99,"Stopped", $D46)), 0),"Not required") -> 0 | N46: 118536 | O46: 71734 | P46: 0 | Q46: 0 | R46: 2 | S46: 0 | T46: T3 (ALB/MBD) | U46: T3 (ALB/MBD) | V46: T1 | W46: T3 | X46: 49746 | Y46: KALIRO
A47: =IF(INTRO!$E$34<>0,INTRO!$E$34,"") -> Uganda | B47: EASTERN | C47: KAMULI | D47: 552427 | E47: =IF(INTRO!$E$48="","",ROUND($D47*INTRO!$E$48,0)) -> 78445 | F47: =IF(INTRO!$E$49="","",ROUND($D47*INTRO!$E$49,0)) -> 166833 | G47: =IF(INTRO!$E$50="","",ROUND($D47*INTRO!$E$50,0)) -> 287814 | H47: 99 | I47: 0 | J47: 3 | K47: 1 | L47: =IF(INTRO!$E$38="Endemic", IF($H47>0, IF($H47=4,"Unknown", IF($H47=99,"Stopped", $D47)), 0),"Not required") -> Stopped | M47: =IF(INTRO!$E$40="Endemic", IF($I47>0, IF($I47=4,"Unknown",IF($I47=99,"Stopped", $D47)), 0),"Not required") -> 0 | N47: 245278 | O47: 97160 | P47: 0 | Q47: 0 | R47: 2 | S47: 0 | T47: T3 (ALB/MBD) | U47: T3 (ALB/MBD) | V47: T1 | W47: T3 | X47: 49747 | Y47: KAMULI
A48: =IF(INTRO!$E$34<>0,INTRO!$E$34,"") -> Uganda | B48: EASTERN | C48: KAPCHORWA | D48: 125709 | E48: =IF(INTRO!$E$48="","",ROUND($D48*INTRO!$E$48,0)) -> 17851 | F48: =IF(INTRO!$E$49="","",ROUND($D48*INTRO!$E$49,0)) -> 37964 | G48: =IF(INTRO!$E$50="","",ROUND($D48*INTRO!$E$50,0)) -> 65494 | H48: 0 | I48: 0 | J48: 3 | K48: 0 | L48: =IF(INTRO!$E$38="Endemic", IF($H48>0, IF($H48=4,"Unknown", IF($H48=99,"Stopped", $D48)), 0),"Not required") -> 0 | M48: =IF(INTRO!$E$40="Endemic", IF($I48>0, IF($I48=4,"Unknown",IF($I48=99,"Stopped", $D48)), 0),"Not required") -> 0 | N48: 55815 | O48: 0 | P48: 0 | Q48: 0 | R48: 2 | S48: 0 | T48: T3 (ALB/MBD) | U48: T3 (ALB/MBD) | V48: T3 | W48: T3 | X48: 49760 | Y48: KAPCHORWA
A49: =IF(INTRO!$E$34<>0,INTRO!$E$34,"") -> Uganda | B49: EASTERN | C49: KATAKWI | D49: 186545 | E49: =IF(INTRO!$E$48="","",ROUND($D49*INTRO!$E$48,0)) -> 26489 | F49: =IF(INTRO!$E$49="","",ROUND($D49*INTRO!$E$49,0)) -> 56337 | G49: =IF(INTRO!$E$50="","",ROUND($D49*INTRO!$E$50,0)) -> 97190 | H49: 99 | I49: 0 | J49: 3 | K49: 1 | L49: =IF(INTRO!$E$38="Endemic", IF($H49>0, IF($H49=4,"Unknown", IF($H49=99,"Stopped", $D49)), 0),"Not required") -> Stopped | M49: =IF(INTRO!$E$40="Endemic", IF($I49>0, IF($I49=4,"Unknown",IF($I49=99,"Stopped", $D49)), 0),"Not required") -> 0 | N49: 82826 | O49: 19369 | P49: 0 | Q49: 0 | R49: 2 | S49: 0 | T49: T3 (ALB/MBD) | U49: T3 (ALB/MBD) | V49: T1 | W49: T3 | X49: 49751 | Y49: KATAKWI
A50: =IF(INTRO!$E$34<>0,INTRO!$E$34,"") -> Uganda | B50: EASTERN | C50: KIBUKU | D50: 228328 | E50: =IF(INTRO!$E$48="","",ROUND($D50*INTRO!$E$48,0)) -> 32423 | F50: =IF(INTRO!$E$49="","",ROUND($D50*INTRO!$E$49,0)) -> 68955 | G50: =IF(INTRO!$E$50="","",ROUND($D50*INTRO!$E$50,0)) -> 118959 | H50: 99 | I50: 0 | J50: 3 | K50: 1 | L50: =IF(INTRO!$E$38="Endemic", IF($H50>0, IF($H50=4,"Unknown", IF($H50=99,"Stopped", $D50)), 0),"Not required") -> Stopped | M50: =IF(INTRO!$E$40="Endemic", IF($I50>0, IF($I50=4,"Unknown",IF($I50=99,"Stopped", $D50)), 0),"Not required") -> 0 | N50: 101378 | O50: 44970 | P50: 0 | Q50: 0 | R50: 2 | S50: 0 | T50: T3 (ALB/MBD) | U50: T3 (ALB/MBD) | V50: T1 | W50: T3 | X50: 49763 | Y50: KIBUKU
A51: =IF(INTRO!$E$34<>0,INTRO!$E$34,"") -> Uganda | B51: EASTERN | C51: KUMI | D51: 290804 | E51: =IF(INTRO!$E$48="","",ROUND($D51*INTRO!$E$48,0)) -> 41294 | F51: =IF(INTRO!$E$49="","",ROUND($D51*INTRO!$E$49,0)) -> 87823 | G51: =IF(INTRO!$E$50="","",ROUND($D51*INTRO!$E$50,0)) -> 151509 | H51: 99 | I51: 0 | J51: 3 | K51: 1 | L51: =IF(INTRO!$E$38="Endemic", IF($H51>0, IF($H51=4,"Unknown", IF($H51=99,"Stopped", $D51)), 0),"Not required") -> Stopped | M51: =IF(INTRO!$E$40="Endemic", IF($I51>0, IF($I51=4,"Unknown",IF($I51=99,"Stopped", $D51)), 0),"Not required") -> 0 | N51: 129117 | O51: 43520 | P51: 0 | Q51: 0 | R51: 2 | S51: 0 | T51: T3 (ALB/MBD) | U51: T3 (ALB/MBD) | V51: T1 | W51: T3 | X51: 49756 | Y51: KUMI
A52: =IF(INTRO!$E$34<>0,INTRO!$E$34,"") -> Uganda | B52: EASTERN | C52: KWEEN | D52: 107749 | E52: =IF(INTRO!$E$48="","",ROUND($D52*INTRO!$E$48,0)) -> 15300 | F52: =IF(INTRO!$E$49="","",ROUND($D52*INTRO!$E$49,0)) -> 32540 | G52: =IF(INTRO!$E$50="","",ROUND($D52*INTRO!$E$50,0)) -> 56137 | H52: 0 | I52: 0 | J52: 3 | K52: 1 | L52: =IF(INTRO!$E$38="Endemic", IF($H52>0, IF($H52=4,"Unknown", IF($H52=99,"Stopped", $D52)), 0),"Not required") -> 0 | M52: =IF(INTRO!$E$40="Endemic", IF($I52>0, IF($I52=4,"Unknown",IF($I52=99,"Stopped", $D52)), 0),"Not required") -> 0 | N52: 47840 | O52: 3157 | P52: 0 | Q52: 0 | R52: 2 | S52: 0 | T52: T3 (ALB/MBD) | U52: T3 (ALB/MBD) | V52: T1 | W52: T3 | X52: 49768 | Y52: KWEEN
A53: =IF(INTRO!$E$34<>0,INTRO!$E$34,"") -> Uganda | B53: EASTERN | C53: LUUKA | D53: 272074 | E53: =IF(INTRO!$E$48="","",ROUND($D53*INTRO!$E$48,0)) -> 38635 | F53: =IF(INTRO!$E$49="","",ROUND($D53*INTRO!$E$49,0)) -> 82166 | G53: =IF(INTRO!$E$50="","",ROUND($D53*INTRO!$E$50,0)) -> 141751 | H53: 99 | I53: 0 | J53: 3 | K53: 1 | L53: =IF(INTRO!$E$38="Endemic", IF($H53>0, IF($H53=4,"Unknown", IF($H53=99,"Stopped", $D53)), 0),"Not required") -> Stopped | M53: =IF(INTRO!$E$40="Endemic", IF($I53>0, IF($I53=4,"Unknown",IF($I53=99,"Stopped", $D53)), 0),"Not required") -> 0 | N53: 120801 | O53: 87948 | P53: 0 | Q53: 0 | R53: 2 | S53: 0 | T53: T3 (ALB/MBD) | U53: T3 (ALB/MBD) | V53: T1 | W53: T3 | X53: 49773 | Y53: LUUKA
A54: =IF(INTRO!$E$34<>0,INTRO!$E$34,"") -> Uganda | B54: EASTERN | C54: MANAFWA | D54: 397618 | E54: =IF(INTRO!$E$48="","",ROUND($D54*INTRO!$E$48,0)) -> 56462 | F54: =IF(INTRO!$E$49="","",ROUND($D54*INTRO!$E$49,0)) -> 120081 | G54: =IF(INTRO!$E$50="","",ROUND($D54*INTRO!$E$50,0)) -> 207159 | H54: 0 | I54: 99 | J54: 3 | K54: 1 | L54: =IF(INTRO!$E$38="Endemic", IF($H54>0, IF($H54=4,"Unknown", IF($H54=99,"Stopped", $D54)), 0),"Not required") -> 0 | M54: =IF(INTRO!$E$40="Endemic", IF($I54>0, IF($I54=4,"Unknown",IF($I54=99,"Stopped", $D54)), 0),"Not required") -> Stopped | N54: 176543 | O54: 14847 | P54: 0 | Q54: 0 | R54: 2 | S54: 0 | T54: T3 (ALB/MBD) | U54: T3 (ALB/MBD) | V54: T1 | W54: T3 | X54: 49777 | Y54: MANAFWA
A55: =IF(INTRO!$E$34<>0,INTRO!$E$34,"") -> Uganda | B55: EASTERN | C55: MAYUGE | D55: 539940 | E55: =IF(INTRO!$E$48="","",ROUND($D55*INTRO!$E$48,0)) -> 76671 | F55: =IF(INTRO!$E$49="","",ROUND($D55*INTRO!$E$49,0)) -> 163062 | G55: =IF(INTRO!$E$50="","",ROUND($D55*INTRO!$E$50,0)) -> 281309 | H55: 99 | I55: 0 | J55: 3 | K55: 3 | L55: =IF(INTRO!$E$38="Endemic", IF($H55>0, IF($H55=4,"Unknown", IF($H55=99,"Stopped", $D55)), 0),"Not required") -> Stopped | M55: =IF(INTRO!$E$40="Endemic", IF($I55>0, IF($I55=4,"Unknown",IF($I55=99,"Stopped", $D55)), 0),"Not required") -> 0 | N55: 239733 | O55: 161249 | P55: 0 | Q55: 0 | R55: 2 | S55: 1 | T55: T3 (ALB/MBD) | U55: T2 (PZQ) | V55: T1 | W55: T3 | X55: 49779 | Y55: MAYUGE
A56: =IF(INTRO!$E$34<>0,INTRO!$E$34,"") -> Uganda | B56: EASTERN | C56: MBALE | D56: 555301 | E56: =IF(INTRO!$E$48="","",ROUND($D56*INTRO!$E$48,0)) -> 78853 | F56: =IF(INTRO!$E$49="","",ROUND($D56*INTRO!$E$49,0)) -> 167701 | G56: =IF(INTRO!$E$50="","",ROUND($D56*INTRO!$E$50,0)) -> 289312 | H56: 0 | I56: 99 | J56: 3 | K56: 1 | L56: =IF(INTRO!$E$38="Endemic", IF($H56>0, IF($H56=4,"Unknown", IF($H56=99,"Stopped", $D56)), 0),"Not required") -> 0 | M56: =IF(INTRO!$E$40="Endemic", IF($I56>0, IF($I56=4,"Unknown",IF($I56=99,"Stopped", $D56)), 0),"Not required") -> Stopped | N56: 246554 | O56: 4251 | P56: 0 | Q56: 0 | R56: 2 | S56: 0 | T56: T3 (ALB/MBD) | U56: T3 (ALB/MBD) | V56: T1 | W56: T3 | X56: 49780 | Y56: MBALE
A57: =IF(INTRO!$E$34<>0,INTRO!$E$34,"") -> Uganda | B57: EASTERN | C57: NAMAYINGO | D57: 251537 | E57: =IF(INTRO!$E$48="","",ROUND($D57*INTRO!$E$48,0)) -> 35718 | F57: =IF(INTRO!$E$49="","",ROUND($D57*INTRO!$E$49,0)) -> 75964 | G57: =IF(INTRO!$E$50="","",ROUND($D57*INTRO!$E$50,0)) -> 131051 | H57: 99 | I57: 0 | J57: 3 | K57: 3 | L57: =IF(INTRO!$E$38="Endemic", IF($H57>0, IF($H57=4,"Unknown", IF($H57=99,"Stopped", $D57)), 0),"Not required") -> Stopped | M57: =IF(INTRO!$E$40="Endemic", IF($I57>0, IF($I57=4,"Unknown",IF($I57=99,"Stopped", $D57)), 0),"Not required") -> 0 | N57: 111682 | O57: 196140 | P57: 0 | Q57: 0 | R57: 2 | S57: 1 | T57: T3 (ALB/MBD) | U57: T2 (PZQ) | V57: T1 | W57: T3 | X57: 49796 | Y57: NAMAYINGO
A58: =IF(INTRO!$E$34<>0,INTRO!$E$34,"") -> Uganda | B58: EASTERN | C58: NAMUTUMBA | D58: 285377 | E58: =IF(INTRO!$E$48="","",ROUND($D58*INTRO!$E$48,0)) -> 40524 | F58: =IF(INTRO!$E$49="","",ROUND($D58*INTRO!$E$49,0)) -> 86184 | G58: =IF(INTRO!$E$50="","",ROUND($D58*INTRO!$E$50,0)) -> 148681 | H58: 99 | I58: 0 | J58: 3 | K58: 1 | L58: =IF(INTRO!$E$38="Endemic", IF($H58>0, IF($H58=4,"Unknown", IF($H58=99,"Stopped", $D58)), 0),"Not required") -> Stopped | M58: =IF(INTRO!$E$40="Endemic", IF($I58>0, IF($I58=4,"Unknown",IF($I58=99,"Stopped", $D58)), 0),"Not required") -> 0 | N58: 126708 | O58: 103448 | P58: 0 | Q58: 0 | R58: 2 | S58: 0 | T58: T3 (ALB/MBD) | U58: T3 (ALB/MBD) | V58: T1 | W58: T3 | X58: 49792 | Y58: NAMUTUMBA
A59: =IF(INTRO!$E$34<>0,INTRO!$E$34,"") -> Uganda | B59: EASTERN | C59: NGORA | D59: 160557 | E59: =IF(INTRO!$E$48="","",ROUND($D59*INTRO!$E$48,0)) -> 22799 | F59: =IF(INTRO!$E$49="","",ROUND($D59*INTRO!$E$49,0)) -> 48488 | G59: =IF(INTRO!$E$50="","",ROUND($D59*INTRO!$E$50,0)) -> 83650 | H59: 99 | I59: 0 | J59: 3 | K59: 1 | L59: =IF(INTRO!$E$38="Endemic", IF($H59>0, IF($H59=4,"Unknown", IF($H59=99,"Stopped", $D59)), 0),"Not required") -> Stopped | M59: =IF(INTRO!$E$40="Endemic", IF($I59>0, IF($I59=4,"Unknown",IF($I59=99,"Stopped", $D59)), 0),"Not required") -> 0 | N59: 71287 | O59: 50678 | P59: 0 | Q59: 0 | R59: 2 | S59: 0 | T59: T3 (ALB/MBD) | U59: T3 (ALB/MBD) | V59: T1 | W59: T3 | X59: 49798 | Y59: NGORA
A60: =IF(INTRO!$E$34<>0,INTRO!$E$34,"") -> Uganda | B60: EASTERN | C60: PALLISA | D60: 435036 | E60: =IF(INTRO!$E$48="","",ROUND($D60*INTRO!$E$48,0)) -> 61775 | F60: =IF(INTRO!$E$49="","",ROUND($D60*INTRO!$E$49,0)) -> 131381 | G60: =IF(INTRO!$E$50="","",ROUND($D60*INTRO!$E$50,0)) -> 226654 | H60: 99 | I60: 0 | J60: 3 | K60: 1 | L60: =IF(INTRO!$E$38="Endemic", IF($H60>0, IF($H60=4,"Unknown", IF($H60=99,"Stopped", $D60)), 0),"Not required") -> Stopped | M60: =IF(INTRO!$E$40="Endemic", IF($I60>0, IF($I60=4,"Unknown",IF($I60=99,"Stopped", $D60)), 0),"Not required") -> 0 | N60: 193156 | O60: 72037 | P60: 0 | Q60: 0 | R60: 2 | S60: 0 | T60: T3 (ALB/MBD) | U60: T3 (ALB/MBD) | V60: T1 | W60: T3 | X60: 49804 | Y60: PALLISA
A61: =IF(INTRO!$E$34<>0,INTRO!$E$34,"") -> Uganda | B61: EASTERN | C61: SERERE | D61: 319601 | E61: =IF(INTRO!$E$48="","",ROUND($D61*INTRO!$E$48,0)) -> 45383 | F61: =IF(INTRO!$E$49="","",ROUND($D61*INTRO!$E$49,0)) -> 96520 | G61: =IF(INTRO!$E$50="","",ROUND($D61*INTRO!$E$50,0)) -> 166512 | H61: 99 | I61: 0 | J61: 3 | K61: 3 | L61: =IF(INTRO!$E$38="Endemic", IF($H61>0, IF($H61=4,"Unknown", IF($H61=99,"Stopped", $D61)), 0),"Not required") -> Stopped | M61: =IF(INTRO!$E$40="Endemic", IF($I61>0, IF($I61=4,"Unknown",IF($I61=99,"Stopped", $D61)), 0),"Not required") -> 0 | N61: 141903 | O61: 89270 | P61: 0 | Q61: 0 | R61: 2 | S61: 1 | T61: T3 (ALB/MBD) | U61: T2 (PZQ) | V61: T1 | W61: T3 | X61: 49812 | Y61: SERERE
A62: =IF(INTRO!$E$34<>0,INTRO!$E$34,"") -> Uganda | B62: EASTERN | C62: SIRONKO | D62: 277918 | E62: =IF(INTRO!$E$48="","",ROUND($D62*INTRO!$E$48,0)) -> 39464 | F62: =IF(INTRO!$E$49="","",ROUND($D62*INTRO!$E$49,0)) -> 83931 | G62: =IF(INTRO!$E$50="","",ROUND($D62*INTRO!$E$50,0)) -> 144795 | H62: 0 | I62: 99 | J62: 3 | K62: 1 | L62: =IF(INTRO!$E$38="Endemic", IF($H62>0, IF($H62=4,"Unknown", IF($H62=99,"Stopped", $D62)), 0),"Not required") -> 0 | M62: =IF(INTRO!$E$40="Endemic", IF($I62>0, IF($I62=4,"Unknown",IF($I62=99,"Stopped", $D62)), 0),"Not required") -> Stopped | N62: 123395 | O62: 9780 | P62: 0 | Q62: 0 | R62: 2 | S62: 0 | T62: T3 (ALB/MBD) | U62: T3 (ALB/MBD) | V62: T1 | W62: T3 | X62: 49809 | Y62: SIRONKO
A63: =IF(INTRO!$E$34<>0,INTRO!$E$34,"") -> Uganda | B63: EASTERN | C63: SOROTI | D63: 334840 | E63: =IF(INTRO!$E$48="","",ROUND($D63*INTRO!$E$48,0)) -> 47547 | F63: =IF(INTRO!$E$49="","",ROUND($D63*INTRO!$E$49,0)) -> 101122 | G63: =IF(INTRO!$E$50="","",ROUND($D63*INTRO!$E$50,0)) -> 174452 | H63: 99 | I63: 0 | J63: 3 | K63: 1 | L63: =IF(INTRO!$E$38="Endemic", IF($H63>0, IF($H63=4,"Unknown", IF($H63=99,"Stopped", $D63)), 0),"Not required") -> Stopped | M63: =IF(INTRO!$E$40="Endemic", IF($I63>0, IF($I63=4,"Unknown",IF($I63=99,"Stopped", $D63)), 0),"Not required") -> 0 | N63: 148669 | O63: 18788 | P63: 0 | Q63: 0 | R63: 2 | S63: 0 | T63: T3 (ALB/MBD) | U63: T3 (ALB/MBD) | V63: T1 | W63: T3 | X63: 49810 | Y63: SOROTI
A64: =IF(INTRO!$E$34<>0,INTRO!$E$34,"") -> Uganda | B64: EASTERN | C64: TORORO | D64: 593138 | E64: =IF(INTRO!$E$48="","",ROUND($D64*INTRO!$E$48,0)) -> 84226 | F64: =IF(INTRO!$E$49="","",ROUND($D64*INTRO!$E$49,0)) -> 179128 | G64: =IF(INTRO!$E$50="","",ROUND($D64*INTRO!$E$50,0)) -> 309025 | H64: 99 | I64: 0 | J64: 3 | K64: 1 | L64: =IF(INTRO!$E$38="Endemic", IF($H64>0, IF($H64=4,"Unknown", IF($H64=99,"Stopped", $D64)), 0),"Not required") -> Stopped | M64: =IF(INTRO!$E$40="Endemic", IF($I64>0, IF($I64=4,"Unknown",IF($I64=99,"Stopped", $D64)), 0),"Not required") -> 0 | N64: 263354 | O64: 109166 | P64: 0 | Q64: 0 | R64: 2 | S64: 0 | T64: T3 (ALB/MBD) | U64: T3 (ALB/MBD) | V64: T1 | W64: T3 | X64: 49814 | Y64: TORORO
A65: =IF(INTRO!$E$34<>0,INTRO!$E$34,"") -> Uganda | B65: NORTHERN | C65: ABIM | D65: 122869 | E65: =IF(INTRO!$E$48="","",ROUND($D65*INTRO!$E$48,0)) -> 17447 | F65: =IF(INTRO!$E$49="","",ROUND($D65*INTRO!$E$49,0)) -> 37106 | G65: =IF(INTRO!$E$50="","",ROUND($D65*INTRO!$E$50,0)) -> 64015 | H65: 99 | I65: 0 | J65: 3 | K65: 0 | L65: =IF(INTRO!$E$38="Endemic", IF($H65>0, IF($H65=4,"Unknown", IF($H65=99,"Stopped", $D65)), 0),"Not required") -> Stopped | M65: =IF(INTRO!$E$40="Endemic", IF($I65>0, IF($I65=4,"Unknown",IF($I65=99,"Stopped", $D65)), 0),"Not required") -> 0 | N65: 54553 | O65: 0 | P65: 0 | Q65: 0 | R65: 2 | S65: 0 | T65: T3 (ALB/MBD) | U65: T3 (ALB/MBD) | V65: T3 | W65: T3 | X65: 49706 | Y65: ABIM
A66: =IF(INTRO!$E$34<>0,INTRO!$E$34,"") -> Uganda | B66: NORTHERN | C66: ADJUMANI | D66: 262338 | E66: =IF(INTRO!$E$48="","",ROUND($D66*INTRO!$E$48,0)) -> 37252 | F66: =IF(INTRO!$E$49="","",ROUND($D66*INTRO!$E$49,0)) -> 79226 | G66: =IF(INTRO!$E$50="","",ROUND($D66*INTRO!$E$50,0)) -> 136678 | H66: 99 | I66: 1 | J66: 3 | K66: 3 | L66: =IF(INTRO!$E$38="Endemic", IF($H66>0, IF($H66=4,"Unknown", IF($H66=99,"Stopped", $D66)), 0),"Not required") -> Stopped | M66: 23540 | N66: 116478 | O66: 19763 | P66: 0 | Q66: 2 | R66: 2 | S66: 1 | T66: MDA3 (IVM) | U66: T2 (PZQ) | V66: MDA 1 | W66: T1 | X66: 49707 | Y66: ADJUMANI
A67: =IF(INTRO!$E$34<>0,INTRO!$E$34,"") -> Uganda | B67: NORTHERN | C67: AGAGO | D67: 256336 | E67: =IF(INTRO!$E$48="","",ROUND($D67*INTRO!$E$48,0)) -> 36400 | F67: =IF(INTRO!$E$49="","",ROUND($D67*INTRO!$E$49,0)) -> 77413 | G67: =IF(INTRO!$E$50="","",ROUND($D67*INTRO!$E$50,0)) -> 133551 | H67: 99 | I67: 0 | J67: 3 | K67: 3 | L67: =IF(INTRO!$E$38="Endemic", IF($H67>0, IF($H67=4,"Unknown", IF($H67=99,"Stopped", $D67)), 0),"Not required") -> Stopped | M67: =IF(INTRO!$E$40="Endemic", IF($I67>0, IF($I67=4,"Unknown",IF($I67=99,"Stopped", $D67)), 0),"Not required") -> 0 | N67: 113813 | O67: 207255 | P67: 0 | Q67: 0 | R67: 2 | S67: 1 | T67: T3 (ALB/MBD) | U67: T2 (PZQ) | V67: T1 | W67: T3 | X67: 49713 | Y67: AGAGO
A68: =IF(INTRO!$E$34<>0,INTRO!$E$34,"") -> Uganda | B68: NORTHERN | C68: ALEBTONG | D68: 253902 | E68: =IF(INTRO!$E$48="","",ROUND($D68*INTRO!$E$48,0)) -> 36054 | F68: =IF(INTRO!$E$49="","",ROUND($D68*INTRO!$E$49,0)) -> 76678 | G68: =IF(INTRO!$E$50="","",ROUND($D68*INTRO!$E$50,0)) -> 132283 | H68: 99 | I68: 0 | J68: 3 | K68: 2 | L68: =IF(INTRO!$E$38="Endemic", IF($H68>0, IF($H68=4,"Unknown", IF($H68=99,"Stopped", $D68)), 0),"Not required") -> Stopped | M68: =IF(INTRO!$E$40="Endemic", IF($I68>0, IF($I68=4,"Unknown",IF($I68=99,"Stopped", $D68)), 0),"Not required") -> 0 | N68: 112732 | O68: 174156 | P68: 0 | Q68: 0 | R68: 2 | S68: 1 | T68: T3 (ALB/MBD) | U68: T2 (PZQ) | V68: T1 | W68: T3 | X68: 49714 | Y68: ALEBTONG
A69: =IF(INTRO!$E$34<>0,INTRO!$E$34,"") -> Uganda | B69: NORTHERN | C69: AMOLATAR | D69: 165535 | E69: =IF(INTRO!$E$48="","",ROUND($D69*INTRO!$E$48,0)) -> 23506 | F69: =IF(INTRO!$E$49="","",ROUND($D69*INTRO!$E$49,0)) -> 49992 | G69: =IF(INTRO!$E$50="","",ROUND($D69*INTRO!$E$50,0)) -> 86244 | H69: 99 | I69: 0 | J69: 3 | K69: 3 | L69: =IF(INTRO!$E$38="Endemic", IF($H69>0, IF($H69=4,"Unknown", IF($H69=99,"Stopped", $D69)), 0),"Not required") -> Stopped | M69: =IF(INTRO!$E$40="Endemic", IF($I69>0, IF($I69=4,"Unknown",IF($I69=99,"Stopped", $D69)), 0),"Not required") -> 0 | N69: 73498 | O69: 136236 | P69: 0 | Q69: 0 | R69: 2 | S69: 1 | T69: T3 (ALB/MBD) | U69: T2 (PZQ) | V69: T1 | W69: T3 | X69: 49708 | Y69: AMOLATAR
A70: =IF(INTRO!$E$34<>0,INTRO!$E$34,"") -> Uganda | B70: NORTHERN | C70: AMUDAT | D70: 125932 | E70: =IF(INTRO!$E$48="","",ROUND($D70*INTRO!$E$48,0)) -> 17882 | F70: =IF(INTRO!$E$49="","",ROUND($D70*INTRO!$E$49,0)) -> 38031 | G70: =IF(INTRO!$E$50="","",ROUND($D70*INTRO!$E$50,0)) -> 65611 | H70: 99 | I70: 0 | J70: 3 | K70: 0 | L70: =IF(INTRO!$E$38="Endemic", IF($H70>0, IF($H70=4,"Unknown", IF($H70=99,"Stopped", $D70)), 0),"Not required") -> Stopped | M70: =IF(INTRO!$E$40="Endemic", IF($I70>0, IF($I70=4,"Unknown",IF($I70=99,"Stopped", $D70)), 0),"Not required") -> 0 | N70: 55913 | O70: 0 | P70: 0 | Q70: 0 | R70: 2 | S70: 0 | T70: T3 (ALB/MBD) | U70: T3 (ALB/MBD) | V70: T3 | W70: T3 | X70: 49715 | Y70: AMUDAT
A71: =IF(INTRO!$E$34<>0,INTRO!$E$34,"") -> Uganda | B71: NORTHERN | C71: AMURU | D71: 231596 | E71: =IF(INTRO!$E$48="","",ROUND($D71*INTRO!$E$48,0)) -> 32887 | F71: =IF(INTRO!$E$49="","",ROUND($D71*INTRO!$E$49,0)) -> 69942 | G71: =IF(INTRO!$E$50="","",ROUND($D71*INTRO!$E$50,0)) -> 120662 | H71: 99 | I71: 1 | J71: 3 | K71: 3 | L71: =IF(INTRO!$E$38="Endemic", IF($H71>0, IF($H71=4,"Unknown", IF($H71=99,"Stopped", $D71)), 0),"Not required") -> Stopped | M71: 189270 | N71: 95316 | O71: 190604 | P71: 0 | Q71: 2 | R71: 2 | S71: 1 | T71: MDA3 (IVM) | U71: T2 (PZQ) | V71: MDA 1 | W71: T1 | X71: 49710 | Y71: AMURU
A72: =IF(INTRO!$E$34<>0,INTRO!$E$34,"") -> Uganda | B72: NORTHERN | C72: APAC | D72: 415558 | E72: =IF(INTRO!$E$48="","",ROUND($D72*INTRO!$E$48,0)) -> 59009 | F72: =IF(INTRO!$E$49="","",ROUND($D72*INTRO!$E$49,0)) -> 125499 | G72: =IF(INTRO!$E$50="","",ROUND($D72*INTRO!$E$50,0)) -> 216506 | H72: 99 | I72: 0 | J72: 3 | K72: 3 | L72: =IF(INTRO!$E$38="Endemic", IF($H72>0, IF($H72=4,"Unknown", IF($H72=99,"Stopped", $D72)), 0),"Not required") -> Stopped | M72: =IF(INTRO!$E$40="Endemic", IF($I72>0, IF($I72=4,"Unknown",IF($I72=99,"Stopped", $D72)), 0),"Not required") -> 0 | N72: 184508 | O72: 226621 | P72: 0 | Q72: 0 | R72: 2 | S72: 1 | T72: T3 (ALB/MBD) | U72: T2 (PZQ) | V72: T1 | W72: T3 | X72: 49711 | Y72: APAC
A73: =IF(INTRO!$E$34<>0,INTRO!$E$34,"") -> Uganda | B73: NORTHERN | C73: ARUA | D73: 973111 | E73: =IF(INTRO!$E$48="","",ROUND($D73*INTRO!$E$48,0)) -> 138182 | F73: =IF(INTRO!$E$49="","",ROUND($D73*INTRO!$E$49,0)) -> 293880 | G73: =IF(INTRO!$E$50="","",ROUND($D73*INTRO!$E$50,0)) -> 506991 | H73: 1 | I73: 1 | J73: 3 | K73: 2 | L73: =IF(INTRO!$E$38="Endemic", IF($H73>0, IF($H73=4,"Unknown", IF($H73=99,"Stopped", $D73)), 0),"Not required") -> 973111 | M73: 160783 | N73: 392835 | O73: 800364 | P73: 1 | Q73: 2 | R73: 2 | S73: 1 | T73: MDA1 (IVM+ALB) | U73: T2 (PZQ) | V73: MDA 1 | W73: T1 | X73: 49712 | Y73: ARUA
A74: =IF(INTRO!$E$34<>0,INTRO!$E$34,"") -> Uganda | B74: NORTHERN | C74: DOKOLO | D74: 205732 | E74: =IF(INTRO!$E$48="","",ROUND($D74*INTRO!$E$48,0)) -> 29214 | F74: =IF(INTRO!$E$49="","",ROUND($D74*INTRO!$E$49,0)) -> 62131 | G74: =IF(INTRO!$E$50="","",ROUND($D74*INTRO!$E$50,0)) -> 107186 | H74: 99 | I74: 0 | J74: 3 | K74: 1 | L74: =IF(INTRO!$E$38="Endemic", IF($H74>0, IF($H74=4,"Unknown", IF($H74=99,"Stopped", $D74)), 0),"Not required") -> Stopped | M74: =IF(INTRO!$E$40="Endemic", IF($I74>0, IF($I74=4,"Unknown",IF($I74=99,"Stopped", $D74)), 0),"Not required") -> 0 | N74: 91345 | O74: 33656 | P74: 0 | Q74: 0 | R74: 2 | S74: 0 | T74: T3 (ALB/MBD) | U74: T3 (ALB/MBD) | V74: T1 | W74: T3 | X74: 49733 | Y74: DOKOLO
A75: =IF(INTRO!$E$34<>0,INTRO!$E$34,"") -> Uganda | B75: NORTHERN | C75: GULU | D75: 227292 | E75: =IF(INTRO!$E$48="","",ROUND($D75*INTRO!$E$48,0)) -> 32275 | F75: =IF(INTRO!$E$49="","",ROUND($D75*INTRO!$E$49,0)) -> 68642 | G75: =IF(INTRO!$E$50="","",ROUND($D75*INTRO!$E$50,0)) -> 118419 | H75: 1 | I75: 1 | J75: 3 | K75: 2 | L75: =IF(INTRO!$E$38="Endemic", IF($H75>0, IF($H75=4,"Unknown", IF($H75=99,"Stopped", $D75)), 0),"Not required") -> 227292 | M75: 116552 | N75: 156650 | O75: 187061 | P75: 1 | Q75: 2 | R75: 2 | S75: 1 | T75: MDA1 (IVM+ALB) | U75: T2 (PZQ) | V75: MDA 1 | W75: T1 | X75: 49734 | Y75: GULU
A76: =IF(INTRO!$E$34<>0,INTRO!$E$34,"") -> Uganda | B76: NORTHERN | C76: KAABONG | D76: 190740 | E76: =IF(INTRO!$E$48="","",ROUND($D76*INTRO!$E$48,0)) -> 27085 | F76: =IF(INTRO!$E$49="","",ROUND($D76*INTRO!$E$49,0)) -> 57603 | G76: =IF(INTRO!$E$50="","",ROUND($D76*INTRO!$E$50,0)) -> 99376 | H76: 99 | I76: 0 | J76: 3 | K76: 0 | L76: =IF(INTRO!$E$38="Endemic", IF($H76>0, IF($H76=4,"Unknown", IF($H76=99,"Stopped", $D76)), 0),"Not required") -> Stopped | M76: =IF(INTRO!$E$40="Endemic", IF($I76>0, IF($I76=4,"Unknown",IF($I76=99,"Stopped", $D76)), 0),"Not required") -> 0 | N76: 84688 | O76: 0 | P76: 0 | Q76: 0 | R76: 2 | S76: 0 | T76: T3 (ALB/MBD) | U76: T3 (ALB/MBD) | V76: T3 | W76: T3 | X76: 49744 | Y76: KAABONG
A77: =IF(INTRO!$E$34<>0,INTRO!$E$34,"") -> Uganda | B77: NORTHERN | C77: KITGUM | D77: 205942 | E77: =IF(INTRO!$E$48="","",ROUND($D77*INTRO!$E$48,0)) -> 29244 | F77: =IF(INTRO!$E$49="","",ROUND($D77*INTRO!$E$49,0)) -> 62194 | G77: =IF(INTRO!$E$50="","",ROUND($D77*INTRO!$E$50,0)) -> 107296 | H77: 1 | I77: 1 | J77: 3 | K77: 3 | L77: =IF(INTRO!$E$38="Endemic", IF($H77>0, IF($H77=4,"Unknown", IF($H77=99,"Stopped", $D77)), 0),"Not required") -> 205942 | M77: 84608 | N77: 102069 | O77: 169490 | P77: 1 | Q77: 2 | R77: 2 | S77: 1 | T77: MDA1 (IVM+ALB) | U77: T2 (PZQ) | V77: MDA 1 | W77: T1 | X77: 49766 | Y77: KITGUM
A78: =IF(INTRO!$E$34<>0,INTRO!$E$34,"") -> Uganda | B78: NORTHERN | C78: KOBOKO | D78: 234563 | E78: =IF(INTRO!$E$48="","",ROUND($D78*INTRO!$E$48,0)) -> 33308 | F78: =IF(INTRO!$E$49="","",ROUND($D78*INTRO!$E$49,0)) -> 70838 | G78: =IF(INTRO!$E$50="","",ROUND($D78*INTRO!$E$50,0)) -> 122207 | H78: 99 | I78: 99 | J78: 3 | K78: 3 | L78: =IF(INTRO!$E$38="Endemic", IF($H78>0, IF($H78=4,"Unknown", IF($H78=99,"Stopped", $D78)), 0),"Not required") -> Stopped | M78: =IF(INTRO!$E$40="Endemic", IF($I78>0, IF($I78=4,"Unknown",IF($I78=99,"Stopped", $D78)), 0),"Not required") -> Stopped | N78: 104146 | O78: 87923 | P78: 0 | Q78: 0 | R78: 2 | S78: 1 | T78: T3 (ALB/MBD) | U78: T2 (PZQ) | V78: T1 | W78: T3 | X78: 49754 | Y78: KOBOKO
A79: =IF(INTRO!$E$34<>0,INTRO!$E$34,"") -> Uganda | B79: NORTHERN | C79: KOLE | D79: 272552 | E79: =IF(INTRO!$E$48="","",ROUND($D79*INTRO!$E$48,0)) -> 38702 | F79: =IF(INTRO!$E$49="","",ROUND($D79*INTRO!$E$49,0)) -> 82311 | G79: =IF(INTRO!$E$50="","",ROUND($D79*INTRO!$E$50,0)) -> 142000 | H79: 99 | I79: 0 | J79: 3 | K79: 0 | L79: =IF(INTRO!$E$38="Endemic", IF($H79>0, IF($H79=4,"Unknown", IF($H79=99,"Stopped", $D79)), 0),"Not required") -> Stopped | M79: =IF(INTRO!$E$40="Endemic", IF($I79>0, IF($I79=4,"Unknown",IF($I79=99,"Stopped", $D79)), 0),"Not required") -> 0 | N79: 121013 | O79: 0 | P79: 0 | Q79: 0 | R79: 2 | S79: 0 | T79: T3 (ALB/MBD) | U79: T3 (ALB/MBD) | V79: T3 | W79: T3 | X79: 49767 | Y79: KOLE
A80: =IF(INTRO!$E$34<>0,INTRO!$E$34,"") -> Uganda | B80: NORTHERN | C80: KOTIDO | D80: 201597 | E80: =IF(INTRO!$E$48="","",ROUND($D80*INTRO!$E$48,0)) -> 28627 | F80: =IF(INTRO!$E$49="","",ROUND($D80*INTRO!$E$49,0)) -> 60882 | G80: =IF(INTRO!$E$50="","",ROUND($D80*INTRO!$E$50,0)) -> 105032 | H80: 99 | I80: 0 | J80: 3 | K80: 0 | L80: =IF(INTRO!$E$38="Endemic", IF($H80>0, IF($H80=4,"Unknown", IF($H80=99,"Stopped", $D80)), 0),"Not required") -> Stopped | M80: =IF(INTRO!$E$40="Endemic", IF($I80>0, IF($I80=4,"Unknown",IF($I80=99,"Stopped", $D80)), 0),"Not required") -> 0 | N80: 89509 | O80: 0 | P80: 0 | Q80: 0 | R80: 2 | S80: 0 | T80: T3 (ALB/MBD) | U80: T3 (ALB/MBD) | V80: T3 | W80: T3 | X80: 49755 | Y80: KOTIDO
A81: =IF(INTRO!$E$34<>0,INTRO!$E$34,"") -> Uganda | B81: NORTHERN | C81: LAMWO | D81: 151049 | E81: =IF(INTRO!$E$48="","",ROUND($D81*INTRO!$E$48,0)) -> 21449 | F81: =IF(INTRO!$E$49="","",ROUND($D81*INTRO!$E$49,0)) -> 45617 | G81: =IF(INTRO!$E$50="","",ROUND($D81*INTRO!$E$50,0)) -> 78697 | H81: 1 | I81: 1 | J81: 3 | K81: 1 | L81: =IF(INTRO!$E$38="Endemic", IF($H81>0, IF($H81=4,"Unknown", IF($H81=99,"Stopped", $D81)), 0),"Not required") -> 151049 | M81: 124555 | N81: 67066 | O81: 41836 | P81: 1 | Q81: 2 | R81: 2 | S81: 0 | T81: MDA1 (IVM+ALB) | U81: T3 (ALB/MBD) | V81: MDA 1 | W81: T1 | X81: 49772 | Y81: LAMWO
A82: =IF(INTRO!$E$34<>0,INTRO!$E$34,"") -> Uganda | B82: NORTHERN | C82: LIRA | D82: 462575 | E82: =IF(INTRO!$E$48="","",ROUND($D82*INTRO!$E$48,0)) -> 65686 | F82: =IF(INTRO!$E$49="","",ROUND($D82*INTRO!$E$49,0)) -> 139698 | G82: =IF(INTRO!$E$50="","",ROUND($D82*INTRO!$E$50,0)) -> 241002 | H82: 99 | I82: 1 | J82: 3 | K82: 2 | L82: =IF(INTRO!$E$38="Endemic", IF($H82>0, IF($H82=4,"Unknown", IF($H82=99,"Stopped", $D82)), 0),"Not required") -> Stopped | M82: 63217 | N82: 205384 | O82: 156569 | P82: 0 | Q82: 2 | R82: 2 | S82: 1 | T82: MDA3 (IVM) | U82: T2 (PZQ) | V82: MDA 1 | W82: T1 | X82: 49771 | Y82: LIRA
A83: =IF(INTRO!$E$34<>0,INTRO!$E$34,"") -> Uganda | B83: NORTHERN | C83: MARACHA | D83: 231948 | E83: =IF(INTRO!$E$48="","",ROUND($D83*INTRO!$E$48,0)) -> 32937 | F83: =IF(INTRO!$E$49="","",ROUND($D83*INTRO!$E$49,0)) -> 70048 | G83: =IF(INTRO!$E$50="","",ROUND($D83*INTRO!$E$50,0)) -> 120845 | H83: 1 | I83: 99 | J83: 3 | K83: 1 | L83: =IF(INTRO!$E$38="Endemic", IF($H83>0, IF($H83=4,"Unknown", IF($H83=99,"Stopped", $D83)), 0),"Not required") -> 231948 | M83: =IF(INTRO!$E$40="Endemic", IF($I83>0, IF($I83=4,"Unknown",IF($I83=99,"Stopped", $D83)), 0),"Not required") -> Stopped | N83: 93145 | O83: 63754 | P83: 1 | Q83: 0 | R83: 2 | S83: 0 | T83: MDA1 (IVM+ALB) | U83: T3 (ALB/MBD) | V83: MDA 1 | W83: T1 | X83: 49784 | Y83: MARACHA
A84: =IF(INTRO!$E$34<>0,INTRO!$E$34,"") -> Uganda | B84: NORTHERN | C84: MOROTO | D84: 117795 | E84: =IF(INTRO!$E$48="","",ROUND($D84*INTRO!$E$48,0)) -> 16727 | F84: =IF(INTRO!$E$49="","",ROUND($D84*INTRO!$E$49,0)) -> 35574 | G84: =IF(INTRO!$E$50="","",ROUND($D84*INTRO!$E$50,0)) -> 61371 | H84: 99 | I84: 0 | J84: 3 | K84: 0 | L84: =IF(INTRO!$E$38="Endemic", IF($H84>0, IF($H84=4,"Unknown", IF($H84=99,"Stopped", $D84)), 0),"Not required") -> Stopped | M84: =IF(INTRO!$E$40="Endemic", IF($I84>0, IF($I84=4,"Unknown",IF($I84=99,"Stopped", $D84)), 0),"Not required") -> 0 | N84: 52301 | O84: 0 | P84: 0 | Q84: 0 | R84: 2 | S84: 0 | T84: T3 (ALB/MBD) | U84: T3 (ALB/MBD) | V84: T3 | W84: T3 | X84: 49781 | Y84: MOROTO
A85: =IF(INTRO!$E$34<>0,INTRO!$E$34,"") -> Uganda | B85: NORTHERN | C85: MOYO | D85: 154926 | E85: =IF(INTRO!$E$48="","",ROUND($D85*INTRO!$E$48,0)) -> 21999 | F85: =IF(INTRO!$E$49="","",ROUND($D85*INTRO!$E$49,0)) -> 46788 | G85: =IF(INTRO!$E$50="","",ROUND($D85*INTRO!$E$50,0)) -> 80716 | H85: 99 | I85: 1 | J85: 3 | K85: 3 | L85: =IF(INTRO!$E$38="Endemic", IF($H85>0, IF($H85=4,"Unknown", IF($H85=99,"Stopped", $D85)), 0),"Not required") -> Stopped | M85: 80488 | N85: 68787 | O85: 121122 | P85: 0 | Q85: 2 | R85: 2 | S85: 1 | T85: MDA3 (IVM) | U85: T2 (PZQ) | V85: MDA 1 | W85: T1 | X85: 49782 | Y85: MOYO
A86: =IF(INTRO!$E$34<>0,INTRO!$E$34,"") -> Uganda | B86: NORTHERN | C86: NAKAPIRIPIRIT | D86: 191214 | E86: =IF(INTRO!$E$48="","",ROUND($D86*INTRO!$E$48,0)) -> 27152 | F86: =IF(INTRO!$E$49="","",ROUND($D86*INTRO!$E$49,0)) -> 57747 | G86: =IF(INTRO!$E$50="","",ROUND($D86*INTRO!$E$50,0)) -> 99622 | H86: 99 | I86: 0 | J86: 3 | K86: 1 | L86: =IF(INTRO!$E$38="Endemic", IF($H86>0, IF($H86=4,"Unknown", IF($H86=99,"Stopped", $D86)), 0),"Not required") -> Stopped | M86: =IF(INTRO!$E$40="Endemic", IF($I86>0, IF($I86=4,"Unknown",IF($I86=99,"Stopped", $D86)), 0),"Not required") -> 0 | N86: 84899 | O86: 8199 | P86: 0 | Q86: 0 | R86: 2 | S86: 0 | T86: T3 (ALB/MBD) | U86: T3 (ALB/MBD) | V86: T1 | W86: T3 | X86: 49794 | Y86: NAKAPIRIPIRIT
A87: =IF(INTRO!$E$34<>0,INTRO!$E$34,"") -> Uganda | B87: NORTHERN | C87: NAPAK | D87: 163638 | E87: =IF(INTRO!$E$48="","",ROUND($D87*INTRO!$E$48,0)) -> 23237 | F87: =IF(INTRO!$E$49="","",ROUND($D87*INTRO!$E$49,0)) -> 49419 | G87: =IF(INTRO!$E$50="","",ROUND($D87*INTRO!$E$50,0)) -> 85255 | H87: 99 | I87: 0 | J87: 3 | K87: 0 | L87: =IF(INTRO!$E$38="Endemic", IF($H87>0, IF($H87=4,"Unknown", IF($H87=99,"Stopped", $D87)), 0),"Not required") -> Stopped | M87: =IF(INTRO!$E$40="Endemic", IF($I87>0, IF($I87=4,"Unknown",IF($I87=99,"Stopped", $D87)), 0),"Not required") -> 0 | N87: 72656 | O87: 0 | P87: 0 | Q87: 0 | R87: 2 | S87: 0 | T87: T3 (ALB/MBD) | U87: T3 (ALB/MBD) | V87: T3 | W87: T3 | X87: 49797 | Y87: NAPAK
A88: =IF(INTRO!$E$34<>0,INTRO!$E$34,"") -> Uganda | B88: NORTHERN | C88: NEBBI | D88: 434074 | E88: =IF(INTRO!$E$48="","",ROUND($D88*INTRO!$E$48,0)) -> 61639 | F88: =IF(INTRO!$E$49="","",ROUND($D88*INTRO!$E$49,0)) -> 131090 | G88: =IF(INTRO!$E$50="","",ROUND($D88*INTRO!$E$50,0)) -> 226153 | H88: 99 | I88: 1 | J88: 3 | K88: 3 | L88: =IF(INTRO!$E$38="Endemic", IF($H88>0, IF($H88=4,"Unknown", IF($H88=99,"Stopped", $D88)), 0),"Not required") -> Stopped | M88: 113597 | N88: 192729 | O88: 152783 | P88: 0 | Q88: 2 | R88: 2 | S88: 1 | T88: MDA3 (IVM) | U88: T2 (PZQ) | V88: MDA 1 | W88: T1 | X88: 49793 | Y88: NEBBI
A89: =IF(INTRO!$E$34<>0,INTRO!$E$34,"") -> Uganda | B89: NORTHERN | C89: NWOYA | D89: 159815 | E89: =IF(INTRO!$E$48="","",ROUND($D89*INTRO!$E$48,0)) -> 22694 | F89: =IF(INTRO!$E$49="","",ROUND($D89*INTRO!$E$49,0)) -> 48264 | G89: =IF(INTRO!$E$50="","",ROUND($D89*INTRO!$E$50,0)) -> 83264 | H89: 99 | I89: 1 | J89: 3 | K89: 2 | L89: =IF(INTRO!$E$38="Endemic", IF($H89>0, IF($H89=4,"Unknown", IF($H89=99,"Stopped", $D89)), 0),"Not required") -> Stopped | M89: 133692 | N89: 64086 | O89: 131528 | P89: 0 | Q89: 2 | R89: 2 | S89: 1 | T89: MDA3 (IVM) | U89: T2 (PZQ) | V89: MDA 1 | W89: T1 | X89: 49801 | Y89: NWOYA
A90: =IF(INTRO!$E$34<>0,INTRO!$E$34,"") -> Uganda | B90: NORTHERN | C90: OMORO | D90: 186649 | E90: =IF(INTRO!$E$48="","",ROUND($D90*INTRO!$E$48,0)) -> 26504 | F90: =IF(INTRO!$E$49="","",ROUND($D90*INTRO!$E$49,0)) -> 56368 | G90: =IF(INTRO!$E$50="","",ROUND($D90*INTRO!$E$50,0)) -> 97244 | H90: 1 | I90: 1 | J90: 3 | K90: 2 | L90: =IF(INTRO!$E$38="Endemic", IF($H90>0, IF($H90=4,"Unknown", IF($H90=99,"Stopped", $D90)), 0),"Not required") -> 186649 | M90: 146947 | N90: 82872 | O90: 153612 | P90: 1 | Q90: 2 | R90: 2 | S90: 1 | T90: MDA1 (IVM+ALB) | U90: T2 (PZQ) | V90: MDA 1 | W90: T1 | X90: 49818 | Y90: OMORO
A91: =IF(INTRO!$E$34<>0,INTRO!$E$34,"") -> Uganda | B91: NORTHERN | C91: OTUKE | D91: 119011 | E91: =IF(INTRO!$E$48="","",ROUND($D91*INTRO!$E$48,0)) -> 16900 | F91: =IF(INTRO!$E$49="","",ROUND($D91*INTRO!$E$49,0)) -> 35941 | G91: =IF(INTRO!$E$50="","",ROUND($D91*INTRO!$E$50,0)) -> 62005 | H91: 99 | I91: 0 | J91: 3 | K91: 0 | L91: =IF(INTRO!$E$38="Endemic", IF($H91>0, IF($H91=4,"Unknown", IF($H91=99,"Stopped", $D91)), 0),"Not required") -> Stopped | M91: =IF(INTRO!$E$40="Endemic", IF($I91>0, IF($I91=4,"Unknown",IF($I91=99,"Stopped", $D91)), 0),"Not required") -> 0 | N91: 52841 | O91: 0 | P91: 0 | Q91: 0 | R91: 2 | S91: 0 | T91: T3 (ALB/MBD) | U91: T3 (ALB/MBD) | V91: T3 | W91: T3 | X91: 49803 | Y91: OTUKE
A92: =IF(INTRO!$E$34<>0,INTRO!$E$34,"") -> Uganda | B92: NORTHERN | C92: OYAM | D92: 437216 | E92: =IF(INTRO!$E$48="","",ROUND($D92*INTRO!$E$48,0)) -> 62085 | F92: =IF(INTRO!$E$49="","",ROUND($D92*INTRO!$E$49,0)) -> 132039 | G92: =IF(INTRO!$E$50="","",ROUND($D92*INTRO!$E$50,0)) -> 227790 | H92: 99 | I92: 1 | J92: 3 | K92: 3 | L92: =IF(INTRO!$E$38="Endemic", IF($H92>0, IF($H92=4,"Unknown", IF($H92=99,"Stopped", $D92)), 0),"Not required") -> Stopped | M92: 21038 | N92: 194124 | O92: 134366 | P92: 0 | Q92: 2 | R92: 2 | S92: 1 | T92: MDA3 (IVM) | U92: T2 (PZQ) | V92: MDA 1 | W92: T1 | X92: 49802 | Y92: OYAM
A93: =IF(INTRO!$E$34<>0,INTRO!$E$34,"") -> Uganda | B93: NORTHERN | C93: PADER | D93: 207027 | E93: =IF(INTRO!$E$48="","",ROUND($D93*INTRO!$E$48,0)) -> 29398 | F93: =IF(INTRO!$E$49="","",ROUND($D93*INTRO!$E$49,0)) -> 62522 | G93: =IF(INTRO!$E$50="","",ROUND($D93*INTRO!$E$50,0)) -> 107861 | H93: 99 | I93: 1 | J93: 3 | K93: 3 | L93: =IF(INTRO!$E$38="Endemic", IF($H93>0, IF($H93=4,"Unknown", IF($H93=99,"Stopped", $D93)), 0),"Not required") -> Stopped | M93: 163727 | N93: 91920 | O93: 166547 | P93: 0 | Q93: 2 | R93: 2 | S93: 1 | T93: MDA3 (IVM) | U93: T2 (PZQ) | V93: MDA 1 | W93: T1 | X93: 49805 | Y93: PADER
A94: =IF(INTRO!$E$34<>0,INTRO!$E$34,"") -> Uganda | B94: NORTHERN | C94: YUMBE | D94: 547161 | E94: =IF(INTRO!$E$48="","",ROUND($D94*INTRO!$E$48,0)) -> 77697 | F94: =IF(INTRO!$E$49="","",ROUND($D94*INTRO!$E$49,0)) -> 165243 | G94: =IF(INTRO!$E$50="","",ROUND($D94*INTRO!$E$50,0)) -> 285071 | H94: 99 | I94: 99 | J94: 3 | K94: 2 | L94: =IF(INTRO!$E$38="Endemic", IF($H94>0, IF($H94=4,"Unknown", IF($H94=99,"Stopped", $D94)), 0),"Not required") -> Stopped | M94: =IF(INTRO!$E$40="Endemic", IF($I94>0, IF($I94=4,"Unknown",IF($I94=99,"Stopped", $D94)), 0),"Not required") -> Stopped | N94: 242940 | O94: 234453 | P94: 0 | Q94: 0 | R94: 2 | S94: 1 | T94: T3 (ALB/MBD) | U94: T2 (PZQ) | V94: T1 | W94: T3 | X94: 49816 | Y94: YUMBE
A95: =IF(INTRO!$E$34<>0,INTRO!$E$34,"") -> Uganda | B95: NORTHERN | C95: ZOMBO | D95: 270855 | E95: =IF(INTRO!$E$48="","",ROUND($D95*INTRO!$E$48,0)) -> 38461 | F95: =IF(INTRO!$E$49="","",ROUND($D95*INTRO!$E$49,0)) -> 81798 | G95: =IF(INTRO!$E$50="","",ROUND($D95*INTRO!$E$50,0)) -> 141115 | H95: 99 | I95: 1 | J95: 3 | K95: 1 | L95: =IF(INTRO!$E$38="Endemic", IF($H95>0, IF($H95=4,"Unknown", IF($H95=99,"Stopped", $D95)), 0),"Not required") -> Stopped | M95: 214414 | N95: 120259 | O95: 31008 | P95: 0 | Q95: 2 | R95: 2 | S95: 0 | T95: MDA3 (IVM) | U95: T3 (ALB/MBD) | V95: MDA 1 | W95: T1 | X95: 49817 | Y95: ZOMBO
A96: =IF(INTRO!$E$34<>0,INTRO!$E$34,"") -> Uganda | B96: WESTERN | C96: BUHWEJU | D96: 139776 | E96: =IF(INTRO!$E$48="","",ROUND($D96*INTRO!$E$48,0)) -> 19848 | F96: =IF(INTRO!$E$49="","",ROUND($D96*INTRO!$E$49,0)) -> 42212 | G96: =IF(INTRO!$E$50="","",ROUND($D96*INTRO!$E$50,0)) -> 72823 | H96: 0 | I96: 0 | J96: 3 | K96: 0 | L96: =IF(INTRO!$E$38="Endemic", IF($H96>0, IF($H96=4,"Unknown", IF($H96=99,"Stopped", $D96)), 0),"Not required") -> 0 | M96: =IF(INTRO!$E$40="Endemic", IF($I96>0, IF($I96=4,"Unknown",IF($I96=99,"Stopped", $D96)), 0),"Not required") -> 0 | N96: 62060 | O96: 0 | P96: 0 | Q96: 0 | R96: 2 | S96: 0 | T96: T3 (ALB/MBD) | U96: T3 (ALB/MBD) | V96: T3 | W96: T3 | X96: 49724 | Y96: BUHWEJU
A97: =IF(INTRO!$E$34<>0,INTRO!$E$34,"") -> Uganda | B97: WESTERN | C97: BULIISA | D97: 127973 | E97: =IF(INTRO!$E$48="","",ROUND($D97*INTRO!$E$48,0)) -> 18172 | F97: =IF(INTRO!$E$49="","",ROUND($D97*INTRO!$E$49,0)) -> 38648 | G97: =IF(INTRO!$E$50="","",ROUND($D97*INTRO!$E$50,0)) -> 66674 | H97: 0 | I97: 1 | J97: 3 | K97: 3 | L97: =IF(INTRO!$E$38="Endemic", IF($H97>0, IF($H97=4,"Unknown", IF($H97=99,"Stopped", $D97)), 0),"Not required") -> 0 | M97: 30607 | N97: 56820 | O97: 95796 | P97: 0 | Q97: 2 | R97: 2 | S97: 1 | T97: MDA3 (IVM) | U97: T2 (PZQ) | V97: MDA 1 | W97: T1 | X97: 49720 | Y97: BULIISA
A98: =IF(INTRO!$E$34<>0,INTRO!$E$34,"") -> Uganda | B98: WESTERN | C98: BUNDIBUGYO | D98: 252568 | E98: =IF(INTRO!$E$48="","",ROUND($D98*INTRO!$E$48,0)) -> 35865 | F98: =IF(INTRO!$E$49="","",ROUND($D98*INTRO!$E$49,0)) -> 76276 | G98: =IF(INTRO!$E$50="","",ROUND($D98*INTRO!$E$50,0)) -> 131588 | H98: 99 | I98: 0 | J98: 3 | K98: 0 | L98: =IF(INTRO!$E$38="Endemic", IF($H98>0, IF($H98=4,"Unknown", IF($H98=99,"Stopped", $D98)), 0),"Not required") -> Stopped | M98: =IF(INTRO!$E$40="Endemic", IF($I98>0, IF($I98=4,"Unknown",IF($I98=99,"Stopped", $D98)), 0),"Not required") -> 0 | N98: 112141 | O98: 0 | P98: 0 | Q98: 0 | R98: 2 | S98: 0 | T98: T3 (ALB/MBD) | U98: T3 (ALB/MBD) | V98: T3 | W98: T3 | X98: 49721 | Y98: BUNDIBUGYO
A99: =IF(INTRO!$E$34<>0,INTRO!$E$34,"") -> Uganda | B99: WESTERN | C99: BUSHENYI | D99: 265502 | E99: =IF(INTRO!$E$48="","",ROUND($D99*INTRO!$E$48,0)) -> 37701 | F99: =IF(INTRO!$E$49="","",ROUND($D99*INTRO!$E$49,0)) -> 80182 | G99: =IF(INTRO!$E$50="","",ROUND($D99*INTRO!$E$50,0)) -> 138327 | H99: 0 | I99: 0 | J99: 3 | K99: 0 | L99: =IF(INTRO!$E$38="Endemic", IF($H99>0, IF($H99=4,"Unknown", IF($H99=99,"Stopped", $D99)), 0),"Not required") -> 0 | M99: =IF(INTRO!$E$40="Endemic", IF($I99>0, IF($I99=4,"Unknown",IF($I99=99,"Stopped", $D99)), 0),"Not required") -> 0 | N99: 117883 | O99: 0 | P99: 0 | Q99: 0 | R99: 2 | S99: 0 | T99: T3 (ALB/MBD) | U99: T3 (ALB/MBD) | V99: T3 | W99: T3 | X99: 49722 | Y99: BUSHENYI
A100: =IF(INTRO!$E$34<>0,INTRO!$E$34,"") -> Uganda | B100: WESTERN | C100: HOIMA | D100: 646688 | E100: =IF(INTRO!$E$48="","",ROUND($D100*INTRO!$E$48,0)) -> 91830 | F100: =IF(INTRO!$E$49="","",ROUND($D100*INTRO!$E$49,0)) -> 195300 | G100: =IF(INTRO!$E$50="","",ROUND($D100*INTRO!$E$50,0)) -> 336924 | H100: 0 | I100: 1 | J100: 3 | K100: 3 | L100: =IF(INTRO!$E$38="Endemic", IF($H100>0, IF($H100=4,"Unknown", IF($H100=99,"Stopped", $D100)), 0),"Not required") -> 0 | M100: 70330 | N100: 287130 | O100: 132223 | P100: 0 | Q100: 2 | R100: 2 | S100: 1 | T100: MDA3 (IVM) | U100: T2 (PZQ) | V100: MDA 1 | W100: T1 | X100: 49736 | Y100: HOIMA
A101: =IF(INTRO!$E$34<>0,INTRO!$E$34,"") -> Uganda | B101: WESTERN | C101: IBANDA | D101: 279547 | E101: =IF(INTRO!$E$48="","",ROUND($D101*INTRO!$E$48,0)) -> 39696 | F101: =IF(INTRO!$E$49="","",ROUND($D101*INTRO!$E$49,0)) -> 84423 | G101: =IF(INTRO!$E$50="","",ROUND($D101*INTRO!$E$50,0)) -> 145644 | H101: 0 | I101: 0 | J101: 3 | K101: 1 | L101: =IF(INTRO!$E$38="Endemic", IF($H101>0, IF($H101=4,"Unknown", IF($H101=99,"Stopped", $D101)), 0),"Not required") -> 0 | M101: =IF(INTRO!$E$40="Endemic", IF($I101>0, IF($I101=4,"Unknown",IF($I101=99,"Stopped", $D101)), 0),"Not required") -> 0 | N101: 124119 | O101: 7158 | P101: 0 | Q101: 0 | R101: 2 | S101: 0 | T101: T3 (ALB/MBD) | U101: T3 (ALB/MBD) | V101: T1 | W101: T3 | X101: 49737 | Y101: IBANDA
A102: =IF(INTRO!$E$34<>0,INTRO!$E$34,"") -> Uganda | B102: WESTERN | C102: ISINGIRO | D102: 554529 | E102: =IF(INTRO!$E$48="","",ROUND($D102*INTRO!$E$48,0)) -> 78743 | F102: =IF(INTRO!$E$49="","",ROUND($D102*INTRO!$E$49,0)) -> 167468 | G102: =IF(INTRO!$E$50="","",ROUND($D102*INTRO!$E$50,0)) -> 288910 | H102: 0 | I102: 0 | J102: 3 | K102: 1 | L102: =IF(INTRO!$E$38="Endemic", IF($H102>0, IF($H102=4,"Unknown", IF($H102=99,"Stopped", $D102)), 0),"Not required") -> 0 | M102: =IF(INTRO!$E$40="Endemic", IF($I102>0, IF($I102=4,"Unknown",IF($I102=99,"Stopped", $D102)), 0),"Not required") -> 0 | N102: 246211 | O102: 21407 | P102: 0 | Q102: 0 | R102: 2 | S102: 0 | T102: T3 (ALB/MBD) | U102: T3 (ALB/MBD) | V102: T1 | W102: T3 | X102: 49739 | Y102: ISINGIRO
A103: =IF(INTRO!$E$34<>0,INTRO!$E$34,"") -> Uganda | B103: WESTERN | C103: KABALE | D103: 376970 | E103: =IF(INTRO!$E$48="","",ROUND($D103*INTRO!$E$48,0)) -> 53530 | F103: =IF(INTRO!$E$49="","",ROUND($D103*INTRO!$E$49,0)) -> 113845 | G103: =IF(INTRO!$E$50="","",ROUND($D103*INTRO!$E$50,0)) -> 196401 | H103: 0 | I103: 0 | J103: 3 | K103: 0 | L103: =IF(INTRO!$E$38="Endemic", IF($H103>0, IF($H103=4,"Unknown", IF($H103=99,"Stopped", $D103)), 0),"Not required") -> 0 | M103: =IF(INTRO!$E$40="Endemic", IF($I103>0, IF($I103=4,"Unknown",IF($I103=99,"Stopped", $D103)), 0),"Not required") -> 0 | N103: 167375 | O103: 0 | P103: 0 | Q103: 0 | R103: 2 | S103: 0 | T103: T3 (ALB/MBD) | U103: T3 (ALB/MBD) | V103: T3 | W103: T3 | X103: 49741 | Y103: KABALE
A104: =IF(INTRO!$E$34<>0,INTRO!$E$34,"") -> Uganda | B104: WESTERN | C104: KABAROLE | D104: 534360 | E104: =IF(INTRO!$E$48="","",ROUND($D104*INTRO!$E$48,0)) -> 75879 | F104: =IF(INTRO!$E$49="","",ROUND($D104*INTRO!$E$49,0)) -> 161377 | G104: =IF(INTRO!$E$50="","",ROUND($D104*INTRO!$E$50,0)) -> 278402 | H104: 0 | I104: 99 | J104: 3 | K104: 3 | L104: =IF(INTRO!$E$38="Endemic", IF($H104>0, IF($H104=4,"Unknown", IF($H104=99,"Stopped", $D104)), 0),"Not required") -> 0 | M104: =IF(INTRO!$E$40="Endemic", IF($I104>0, IF($I104=4,"Unknown",IF($I104=99,"Stopped", $D104)), 0),"Not required") -> Stopped | N104: 237256 | O104: 33567 | P104: 0 | Q104: 0 | R104: 2 | S104: 1 | T104: T3 (ALB/MBD) | U104: T2 (PZQ) | V104: T1 | W104: T3 | X104: 49742 | Y104: KABAROLE
A105: =IF(INTRO!$E$34<>0,INTRO!$E$34,"") -> Uganda | B105: WESTERN | C105: KAGADI | D105: 397560 | E105: =IF(INTRO!$E$48="","",ROUND($D105*INTRO!$E$48,0)) -> 56454 | F105: =IF(INTRO!$E$49="","",ROUND($D105*INTRO!$E$49,0)) -> 120063 | G105: =IF(INTRO!$E$50="","",ROUND($D105*INTRO!$E$50,0)) -> 207129 | H105: 0 | I105: 99 | J105: 3 | K105: 3 | L105: =IF(INTRO!$E$38="Endemic", IF($H105>0, IF($H105=4,"Unknown", IF($H105=99,"Stopped", $D105)), 0),"Not required") -> 0 | M105: =IF(INTRO!$E$40="Endemic", IF($I105>0, IF($I105=4,"Unknown",IF($I105=99,"Stopped", $D105)), 0),"Not required") -> Stopped | N105: 176517 | O105: 182949 | P105: 0 | Q105: 0 | R105: 2 | S105: 1 | T105: T3 (ALB/MBD) | U105: T2 (PZQ) | V105: T1 | W105: T3 | X105: 49752 | Y105: KAGADI
A106: =IF(INTRO!$E$34<>0,INTRO!$E$34,"") -> Uganda | B106: WESTERN | C106: KAKUMIRO | D106: 333962 | E106: =IF(INTRO!$E$48="","",ROUND($D106*INTRO!$E$48,0)) -> 47423 | F106: =IF(INTRO!$E$49="","",ROUND($D106*INTRO!$E$49,0)) -> 100857 | G106: =IF(INTRO!$E$50="","",ROUND($D106*INTRO!$E$50,0)) -> 173994 | H106: 0 | I106: 0 | J106: 3 | K106: 0 | L106: =IF(INTRO!$E$38="Endemic", IF($H106>0, IF($H106=4,"Unknown", IF($H106=99,"Stopped", $D106)), 0),"Not required") -> 0 | M106: =IF(INTRO!$E$40="Endemic", IF($I106>0, IF($I106=4,"Unknown",IF($I106=99,"Stopped", $D106)), 0),"Not required") -> 0 | N106: 148280 | O106: 0 | P106: 0 | Q106: 0 | R106: 2 | S106: 0 | T106: T3 (ALB/MBD) | U106: T3 (ALB/MBD) | V106: T3 | W106: T3 | X106: 49819 | Y106: KAKUMIRO
A107: =IF(INTRO!$E$34<>0,INTRO!$E$34,"") -> Uganda | B107: WESTERN | C107: KAMWENGE | D107: 474923 | E107: =IF(INTRO!$E$48="","",ROUND($D107*INTRO!$E$48,0)) -> 67439 | F107: =IF(INTRO!$E$49="","",ROUND($D107*INTRO!$E$49,0)) -> 143427 | G107: =IF(INTRO!$E$50="","",ROUND($D107*INTRO!$E$50,0)) -> 247435 | H107: 0 | I107: 0 | J107: 3 | K107: 2 | L107: =IF(INTRO!$E$38="Endemic", IF($H107>0, IF($H107=4,"Unknown", IF($H107=99,"Stopped", $D107)), 0),"Not required") -> 0 | M107: =IF(INTRO!$E$40="Endemic", IF($I107>0, IF($I107=4,"Unknown",IF($I107=99,"Stopped", $D107)), 0),"Not required") -> 0 | N107: 210866 | O107: 23007 | P107: 0 | Q107: 0 | R107: 2 | S107: 1 | T107: T3 (ALB/MBD) | U107: T2 (PZQ) | V107: T1 | W107: T3 | X107: 49748 | Y107: KAMWENGE
A108: =IF(INTRO!$E$34<>0,INTRO!$E$34,"") -> Uganda | B108: WESTERN | C108: KANUNGU | D108: 284046 | E108: =IF(INTRO!$E$48="","",ROUND($D108*INTRO!$E$48,0)) -> 40335 | F108: =IF(INTRO!$E$49="","",ROUND($D108*INTRO!$E$49,0)) -> 85782 | G108: =IF(INTRO!$E$50="","",ROUND($D108*INTRO!$E$50,0)) -> 147988 | H108: 0 | I108: 1 | J108: 3 | K108: 0 | L108: =IF(INTRO!$E$38="Endemic", IF($H108>0, IF($H108=4,"Unknown", IF($H108=99,"Stopped", $D108)), 0),"Not required") -> 0 | M108: 51059 | N108: 126117 | O108: 0 | P108: 0 | Q108: 2 | R108: 2 | S108: 0 | T108: MDA3 (IVM) | U108: T3 (ALB/MBD) | V108: MDA 1 | W108: T3 | X108: 49749 | Y108: KANUNGU
A109: =IF(INTRO!$E$34<>0,INTRO!$E$34,"") -> Uganda | B109: WESTERN | C109: KASESE | D109: 791059 | E109: =IF(INTRO!$E$48="","",ROUND($D109*INTRO!$E$48,0)) -> 112330 | F109: =IF(INTRO!$E$49="","",ROUND($D109*INTRO!$E$49,0)) -> 238900 | G109: =IF(INTRO!$E$50="","",ROUND($D109*INTRO!$E$50,0)) -> 412142 | H109: 0 | I109: 1 | J109: 3 | K109: 3 | L109: =IF(INTRO!$E$38="Endemic", IF($H109>0, IF($H109=4,"Unknown", IF($H109=99,"Stopped", $D109)), 0),"Not required") -> 0 | M109: 114272 | N109: 351230 | O109: 12308 | P109: 0 | Q109: 2 | R109: 2 | S109: 1 | T109: MDA3 (IVM) | U109: T2 (PZQ) | V109: MDA 1 | W109: T1 | X109: 49750 | Y109: KASESE
A110: =IF(INTRO!$E$34<>0,INTRO!$E$34,"") -> Uganda | B110: WESTERN | C110: KIBAALE | D110: 157222 | E110: =IF(INTRO!$E$48="","",ROUND($D110*INTRO!$E$48,0)) -> 22326 | F110: =IF(INTRO!$E$49="","",ROUND($D110*INTRO!$E$49,0)) -> 47481 | G110: =IF(INTRO!$E$50="","",ROUND($D110*INTRO!$E$50,0)) -> 81913 | H110: 0 | I110: 99 | J110: 3 | K110: 0 | L110: =IF(INTRO!$E$38="Endemic", IF($H110>0, IF($H110=4,"Unknown", IF($H110=99,"Stopped", $D110)), 0),"Not required") -> 0 | M110: =IF(INTRO!$E$40="Endemic", IF($I110>0, IF($I110=4,"Unknown",IF($I110=99,"Stopped", $D110)), 0),"Not required") -> Stopped | N110: 69807 | O110: 0 | P110: 0 | Q110: 0 | R110: 2 | S110: 0 | T110: T3 (ALB/MBD) | U110: T3 (ALB/MBD) | V110: T3 | W110: T3 | X110: 49820 | Y110: KIBAALE
A111: =IF(INTRO!$E$34<>0,INTRO!$E$34,"") -> Uganda | B111: WESTERN | C111: KIRUHURA | D111: 370208 | E111: =IF(INTRO!$E$48="","",ROUND($D111*INTRO!$E$48,0)) -> 52570 | F111: =IF(INTRO!$E$49="","",ROUND($D111*INTRO!$E$49,0)) -> 111803 | G111: =IF(INTRO!$E$50="","",ROUND($D111*INTRO!$E$50,0)) -> 192878 | H111: 0 | I111: 0 | J111: 3 | K111: 1 | L111: =IF(INTRO!$E$38="Endemic", IF($H111>0, IF($H111=4,"Unknown", IF($H111=99,"Stopped", $D111)), 0),"Not required") -> 0 | M111: =IF(INTRO!$E$40="Endemic", IF($I111>0, IF($I111=4,"Unknown",IF($I111=99,"Stopped", $D111)), 0),"Not required") -> 0 | N111: 164373 | O111: 31911 | P111: 0 | Q111: 0 | R111: 2 | S111: 0 | T111: T3 (ALB/MBD) | U111: T3 (ALB/MBD) | V111: T1 | W111: T3 | X111: 49764 | Y111: KIRUHURA
A112: =IF(INTRO!$E$34<>0,INTRO!$E$34,"") -> Uganda | B112: WESTERN | C112: KIRYANDONGO | D112: 302203 | E112: =IF(INTRO!$E$48="","",ROUND($D112*INTRO!$E$48,0)) -> 42913 | F112: =IF(INTRO!$E$49="","",ROUND($D112*INTRO!$E$49,0)) -> 91265 | G112: =IF(INTRO!$E$50="","",ROUND($D112*INTRO!$E$50,0)) -> 157448 | H112: 0 | I112: 0 | J112: 3 | K112: 3 | L112: =IF(INTRO!$E$38="Endemic", IF($H112>0, IF($H112=4,"Unknown", IF($H112=99,"Stopped", $D112)), 0),"Not required") -> 0 | M112: =IF(INTRO!$E$40="Endemic", IF($I112>0, IF($I112=4,"Unknown",IF($I112=99,"Stopped", $D112)), 0),"Not required") -> 0 | N112: 134178 | O112: 48980 | P112: 0 | Q112: 0 | R112: 2 | S112: 1 | T112: T3 (ALB/MBD) | U112: T2 (PZQ) | V112: T1 | W112: T3 | X112: 49765 | Y112: KIRYANDONGO
A113: =IF(INTRO!$E$34<>0,INTRO!$E$34,"") -> Uganda | B113: WESTERN | C113: KISORO | D113: 323601 | E113: =IF(INTRO!$E$48="","",ROUND($D113*INTRO!$E$48,0)) -> 45951 | F113: =IF(INTRO!$E$49="","",ROUND($D113*INTRO!$E$49,0)) -> 97728 | G113: =IF(INTRO!$E$50="","",ROUND($D113*INTRO!$E$50,0)) -> 168596 | H113: 0 | I113: 1 | J113: 3 | K113: 0 | L113: =IF(INTRO!$E$38="Endemic", IF($H113>0, IF($H113=4,"Unknown", IF($H113=99,"Stopped", $D113)), 0),"Not required") -> 0 | M113: 36359 | N113: 143679 | O113: 0 | P113: 0 | Q113: 2 | R113: 2 | S113: 0 | T113: MDA3 (IVM) | U113: T3 (ALB/MBD) | V113: MDA 1 | W113: T3 | X113: 49753 | Y113: KISORO
A114: =IF(INTRO!$E$34<>0,INTRO!$E$34,"") -> Uganda | B114: WESTERN | C114: KYEGEGWA | D114: 312557 | E114: =IF(INTRO!$E$48="","",ROUND($D114*INTRO!$E$48,0)) -> 44383 | F114: =IF(INTRO!$E$49="","",ROUND($D114*INTRO!$E$49,0)) -> 94392 | G114: =IF(INTRO!$E$50="","",ROUND($D114*INTRO!$E$50,0)) -> 162842 | H114: 0 | I114: 0 | J114: 3 | K114: 0 | L114: =IF(INTRO!$E$38="Endemic", IF($H114>0, IF($H114=4,"Unknown", IF($H114=99,"Stopped", $D114)), 0),"Not required") -> 0 | M114: =IF(INTRO!$E$40="Endemic", IF($I114>0, IF($I114=4,"Unknown",IF($I114=99,"Stopped", $D114)), 0),"Not required") -> 0 | N114: 138775 | O114: 0 | P114: 0 | Q114: 0 | R114: 2 | S114: 0 | T114: T3 (ALB/MBD) | U114: T3 (ALB/MBD) | V114: T3 | W114: T3 | X114: 49770 | Y114: KYEGEGWA
A115: =IF(INTRO!$E$34<>0,INTRO!$E$34,"") -> Uganda | B115: WESTERN | C115: KYENJOJO | D115: 450846 | E115: =IF(INTRO!$E$48="","",ROUND($D115*INTRO!$E$48,0)) -> 64020 | F115: =IF(INTRO!$E$49="","",ROUND($D115*INTRO!$E$49,0)) -> 136155 | G115: =IF(INTRO!$E$50="","",ROUND($D115*INTRO!$E$50,0)) -> 234891 | H115: 0 | I115: 99 | J115: 3 | K115: 0 | L115: =IF(INTRO!$E$38="Endemic", IF($H115>0, IF($H115=4,"Unknown", IF($H115=99,"Stopped", $D115)), 0),"Not required") -> 0 | M115: =IF(INTRO!$E$40="Endemic", IF($I115>0, IF($I115=4,"Unknown",IF($I115=99,"Stopped", $D115)), 0),"Not required") -> Stopped | N115: 200175 | O115: 0 | P115: 0 | Q115: 0 | R115: 2 | S115: 0 | T115: T3 (ALB/MBD) | U115: T3 (ALB/MBD) | V115: T3 | W115: T3 | X115: 49757 | Y115: KYENJOJO
A116: =IF(INTRO!$E$34<>0,INTRO!$E$34,"") -> Uganda | B116: WESTERN | C116: MASINDI | D116: 357017 | E116: =IF(INTRO!$E$48="","",ROUND($D116*INTRO!$E$48,0)) -> 50696 | F116: =IF(INTRO!$E$49="","",ROUND($D116*INTRO!$E$49,0)) -> 107819 | G116: =IF(INTRO!$E$50="","",ROUND($D116*INTRO!$E$50,0)) -> 186006 | H116: 0 | I116: 1 | J116: 3 | K116: 0 | L116: =IF(INTRO!$E$38="Endemic", IF($H116>0, IF($H116=4,"Unknown", IF($H116=99,"Stopped", $D116)), 0),"Not required") -> 0 | M116: 45465 | N116: 158515 | O116: 0 | P116: 0 | Q116: 2 | R116: 2 | S116: 0 | T116: MDA3 (IVM) | U116: T3 (ALB/MBD) | V116: MDA 1 | W116: T3 | X116: 49778 | Y116: MASINDI
A117: =IF(INTRO!$E$34<>0,INTRO!$E$34,"") -> Uganda | B117: WESTERN | C117: MBARARA | D117: 534273 | E117: =IF(INTRO!$E$48="","",ROUND($D117*INTRO!$E$48,0)) -> 75867 | F117: =IF(INTRO!$E$49="","",ROUND($D117*INTRO!$E$49,0)) -> 161350 | G117: =IF(INTRO!$E$50="","",ROUND($D117*INTRO!$E$50,0)) -> 278356 | H117: 0 | I117: 0 | J117: 3 | K117: 0 | L117: =IF(INTRO!$E$38="Endemic", IF($H117>0, IF($H117=4,"Unknown", IF($H117=99,"Stopped", $D117)), 0),"Not required") -> 0 | M117: =IF(INTRO!$E$40="Endemic", IF($I117>0, IF($I117=4,"Unknown",IF($I117=99,"Stopped", $D117)), 0),"Not required") -> 0 | N117: 237217 | O117: 0 | P117: 0 | Q117: 0 | R117: 2 | S117: 0 | T117: T3 (ALB/MBD) | U117: T3 (ALB/MBD) | V117: T3 | W117: T3 | X117: 49786 | Y117: MBARARA
A118: =IF(INTRO!$E$34<>0,INTRO!$E$34,"") -> Uganda | B118: WESTERN | C118: MITOOMA | D118: 209050 | E118: =IF(INTRO!$E$48="","",ROUND($D118*INTRO!$E$48,0)) -> 29685 | F118: =IF(INTRO!$E$49="","",ROUND($D118*INTRO!$E$49,0)) -> 63133 | G118: =IF(INTRO!$E$50="","",ROUND($D118*INTRO!$E$50,0)) -> 108915 | H118: 0 | I118: 99 | J118: 3 | K118: 0 | L118: =IF(INTRO!$E$38="Endemic", IF($H118>0, IF($H118=4,"Unknown", IF($H118=99,"Stopped", $D118)), 0),"Not required") -> 0 | M118: =IF(INTRO!$E$40="Endemic", IF($I118>0, IF($I118=4,"Unknown",IF($I118=99,"Stopped", $D118)), 0),"Not required") -> Stopped | N118: 92818 | O118: 0 | P118: 0 | Q118: 0 | R118: 2 | S118: 0 | T118: T3 (ALB/MBD) | U118: T3 (ALB/MBD) | V118: T3 | W118: T3 | X118: 49787 | Y118: MITOOMA
A119: =IF(INTRO!$E$34<>0,INTRO!$E$34,"") -> Uganda | B119: WESTERN | C119: NTOROKO | D119: 74849 | E119: =IF(INTRO!$E$48="","",ROUND($D119*INTRO!$E$48,0)) -> 10629 | F119: =IF(INTRO!$E$49="","",ROUND($D119*INTRO!$E$49,0)) -> 22604 | G119: =IF(INTRO!$E$50="","",ROUND($D119*INTRO!$E$50,0)) -> 38996 | H119: 99 | I119: 0 | J119: 3 | K119: 3 | L119: =IF(INTRO!$E$38="Endemic", IF($H119>0, IF($H119=4,"Unknown", IF($H119=99,"Stopped", $D119)), 0),"Not required") -> Stopped | M119: =IF(INTRO!$E$40="Endemic", IF($I119>0, IF($I119=4,"Unknown",IF($I119=99,"Stopped", $D119)), 0),"Not required") -> 0 | N119: 33233 | O119: 26311 | P119: 0 | Q119: 0 | R119: 2 | S119: 1 | T119: T3 (ALB/MBD) | U119: T2 (PZQ) | V119: T1 | W119: T3 | X119: 49799 | Y119: NTOROKO
A120: =IF(INTRO!$E$34<>0,INTRO!$E$34,"") -> Uganda | B120: WESTERN | C120: NTUNGAMO | D120: 551381 | E120: =IF(INTRO!$E$48="","",ROUND($D120*INTRO!$E$48,0)) -> 78296 | F120: =IF(INTRO!$E$49="","",ROUND($D120*INTRO!$E$49,0)) -> 166517 | G120: =IF(INTRO!$E$50="","",ROUND($D120*INTRO!$E$50,0)) -> 287270 | H120: 0 | I120: 0 | J120: 3 | K120: 0 | L120: =IF(INTRO!$E$38="Endemic", IF($H120>0, IF($H120=4,"Unknown", IF($H120=99,"Stopped", $D120)), 0),"Not required") -> 0 | M120: =IF(INTRO!$E$40="Endemic", IF($I120>0, IF($I120=4,"Unknown",IF($I120=99,"Stopped", $D120)), 0),"Not required") -> 0 | N120: 244813 | O120: 0 | P120: 0 | Q120: 0 | R120: 2 | S120: 0 | T120: T3 (ALB/MBD) | U120: T3 (ALB/MBD) | V120: T3 | W120: T3 | X120: 49800 | Y120: NTUNGAMO
A121: =IF(INTRO!$E$34<>0,INTRO!$E$34,"") -> Uganda | B121: WESTERN | C121: RUBANDA | D121: 224935 | E121: =IF(INTRO!$E$48="","",ROUND($D121*INTRO!$E$48,0)) -> 31941 | F121: =IF(INTRO!$E$49="","",ROUND($D121*INTRO!$E$49,0)) -> 67930 | G121: =IF(INTRO!$E$50="","",ROUND($D121*INTRO!$E$50,0)) -> 117191 | H121: 0 | I121: 1 | J121: 3 | K121: 0 | L121: =IF(INTRO!$E$38="Endemic", IF($H121>0, IF($H121=4,"Unknown", IF($H121=99,"Stopped", $D121)), 0),"Not required") -> 0 | M121: 28393 | N121: 99871 | O121: 0 | P121: 0 | Q121: 2 | R121: 2 | S121: 0 | T121: MDA3 (IVM) | U121: T3 (ALB/MBD) | V121: MDA 1 | W121: T3 | X121: 49821 | Y121: RUBANDA
A122: =IF(INTRO!$E$34<>0,INTRO!$E$34,"") -> Uganda | B122: WESTERN | C122: RUBIRIZI | D122: 145679 | E122: =IF(INTRO!$E$48="","",ROUND($D122*INTRO!$E$48,0)) -> 20686 | F122: =IF(INTRO!$E$49="","",ROUND($D122*INTRO!$E$49,0)) -> 43995 | G122: =IF(INTRO!$E$50="","",ROUND($D122*INTRO!$E$50,0)) -> 75899 | H122: 0 | I122: 0 | J122: 3 | K122: 3 | L122: =IF(INTRO!$E$38="Endemic", IF($H122>0, IF($H122=4,"Unknown", IF($H122=99,"Stopped", $D122)), 0),"Not required") -> 0 | M122: =IF(INTRO!$E$40="Endemic", IF($I122>0, IF($I122=4,"Unknown",IF($I122=99,"Stopped", $D122)), 0),"Not required") -> 0 | N122: 64681 | O122: 2594 | P122: 0 | Q122: 0 | R122: 2 | S122: 1 | T122: T3 (ALB/MBD) | U122: T2 (PZQ) | V122: T1 | W122: T3 | X122: 49808 | Y122: RUBIRIZI
A123: =IF(INTRO!$E$34<>0,INTRO!$E$34,"") -> Uganda | B123: WESTERN | C123: RUKUNGIRI | D123: 361226 | E123: =IF(INTRO!$E$48="","",ROUND($D123*INTRO!$E$48,0)) -> 51294 | F123: =IF(INTRO!$E$49="","",ROUND($D123*INTRO!$E$49,0)) -> 109090 | G123: =IF(INTRO!$E$50="","",ROUND($D123*INTRO!$E$50,0)) -> 188199 | H123: 0 | I123: 0 | J123: 3 | K123: 1 | L123: =IF(INTRO!$E$38="Endemic", IF($H123>0, IF($H123=4,"Unknown", IF($H123=99,"Stopped", $D123)), 0),"Not required") -> 0 | M123: =IF(INTRO!$E$40="Endemic", IF($I123>0, IF($I123=4,"Unknown",IF($I123=99,"Stopped", $D123)), 0),"Not required") -> 0 | N123: 160384 | O123: 11592 | P123: 0 | Q123: 0 | R123: 2 | S123: 0 | T123: T3 (ALB/MBD) | U123: T3 (ALB/MBD) | V123: T1 | W123: T3 | X123: 49806 | Y123: RUKUNGIRI
A124: =IF(INTRO!$E$34<>0,INTRO!$E$34,"") -> Uganda | B124: WESTERN | C124: SHEEMA | D124: 238569 | E124: =IF(INTRO!$E$48="","",ROUND($D124*INTRO!$E$48,0)) -> 33877 | F124: =IF(INTRO!$E$49="","",ROUND($D124*INTRO!$E$49,0)) -> 72048 | G124: =IF(INTRO!$E$50="","",ROUND($D124*INTRO!$E$50,0)) -> 124294 | H124: 0 | I124: 0 | J124: 3 | K124: 0 | L124: =IF(INTRO!$E$38="Endemic", IF($H124>0, IF($H124=4,"Unknown", IF($H124=99,"Stopped", $D124)), 0),"Not required") -> 0 | M124: =IF(INTRO!$E$40="Endemic", IF($I124>0, IF($I124=4,"Unknown",IF($I124=99,"Stopped", $D124)), 0),"Not required") -> 0 | N124: =IF(INTRO!$E$42="Endemic", IF(AND($J124>1,$J124<5), IF($J124=4, "Unknown", E124+F124), 0),"Not required") -> 105925 | O124: 0 | P124: 0 | Q124: 0 | R124: 2 | S124: 0 | T124: T3 (ALB/MBD) | U124: T3 (ALB/MBD) | V124: T3 | W124: T3 | X124: 49813 | Y124: SHEEMA
A125: =IF(INTRO!$E$34<>0,INTRO!$E$34,"") -> Uganda | E125: =IF(INTRO!$E$48="","",ROUND($D125*INTRO!$E$48,0)) -> 0 | F125: =IF(INTRO!$E$49="","",ROUND($D125*INTRO!$E$49,0)) -> 0 | G125: =IF(INTRO!$E$50="","",ROUND($D125*INTRO!$E$50,0)) -> 0 | L125: =IF(INTRO!$E$38="Endemic", IF($H125>0, IF($H125=4,"Unknown", IF($H125=99,"Stopped", $D125)), 0),"Not required") -> 0 | M125: =IF(INTRO!$E$40="Endemic", IF($I125>0, IF($I125=4,"Unknown",IF($I125=99,"Stopped", $D125)), 0),"Not required") -> 0 | N125: =IF(INTRO!$E$42="Endemic", IF(AND($J125>1,$J125<5), IF($J125=4, "Unknown", E125+F125), 0),"Not required") -> 0 | O125: 0

Sheet MDA1
A1: MDA 1 - Ivermectin (IVM) and Albendazole (ALB) | I1: =I4*3 -> 4824006
A2: Administrative structure, population requiring PC by age group, population treated by age group and coverage
A4: TOTAL | G4: =SUM(G$9:G$1000) -> 590056 | H4: =SUM(H$9:H$1000) -> 1017946 | I4: =SUM(I$9:I$1000) -> 1608002 | K4: =SUM(K$9:K$1000) -> 649949 | L4: =SUM(L$9:L$1000) -> 920478 | M4: =SUM(M$9:M$1000) -> 1570427 | O4: =IF(G4<>0, IF(K4/G4*100=0, "-", K4/G4*100), " ") -> 110.1503925 | P4: =IF(H4<>0, IF(L4/H4*100=0, "-", L4/H4*100), " ") -> 90.42503237 | Q4: =IF(I4<>0, IF(M4/I4*100=0, "-", M4/I4*100), " ") -> 97.66324918
D6: PC implemented | E6: Date | F6: Population targeted for MDA 1 | J6: Population treated | N6: Programme coverage (%)
A7: Country | B7: Province/State | C7: District | F7: PreSAC | G7: SAC | H7: Adults | I7: Total | J7: PreSAC | K7: SAC | L7: Adults | M7: Total | N7: PreSAC | O7: SAC | P7: Adults | Q7: Total
A9: =IF(COUNTRY_INFO!A9=0," ",COUNTRY_INFO!A9) -> Uganda | B9: =IF(COUNTRY_INFO!B9=0," ",COUNTRY_INFO!B9) -> CENTRAL | C9: =IF(COUNTRY_INFO!C9=0," ",COUNTRY_INFO!C9) -> BUIKWE | D9: =IF(COUNTRY_INFO!$T$9:$T$1000="MDA1 (IVM+ALB)", COUNTRY_INFO!$T$9:$T$1000, " ") ->  | I9: =SUM(F9:H9) -> 0 | M9: =SUM(J9:L9) -> 0 | O9: =IF(G9<>0, IF(K9/G9*100=0, "-", K9/G9*100), " ") ->  | P9: =IF(H9<>0, IF(L9/H9*100=0, "-", L9/H9*100), " ") -> 
A10: =IF(COUNTRY_INFO!A10=0," ",COUNTRY_INFO!A10) -> Uganda | B10: =IF(COUNTRY_INFO!B10=0," ",COUNTRY_INFO!B10) -> CENTRAL | C10: =IF(COUNTRY_INFO!C10=0," ",COUNTRY_INFO!C10) -> BUKOMANSIMBI | D10: =IF(COUNTRY_INFO!$T$9:$T$1000="MDA1 (IVM+ALB)", COUNTRY_INFO!$T$9:$T$1000, " ") ->  | I10: =SUM(F10:H10) -> 0 | M10: =SUM(J10:L10) -> 0 | O10: =IF(G10<>0, IF(K10/G10*100=0, "-", K10/G10*100), " ") ->  | P10: =IF(H10<>0, IF(L10/H10*100=0, "-", L10/H10*100), " ") ->  | Q10: =IF(I10<>0, IF(M10/I10*100=0, "-", M10/I10*100), " ") -> 
A11: =IF(COUNTRY_INFO!A11=0," ",COUNTRY_INFO!A11) -> Uganda | B11: =IF(COUNTRY_INFO!B11=0," ",COUNTRY_INFO!B11) -> CENTRAL | C11: =IF(COUNTRY_INFO!C11=0," ",COUNTRY_INFO!C11) -> BUTAMBALA | D11: =IF(COUNTRY_INFO!$T$9:$T$1000="MDA1 (IVM+ALB)", COUNTRY_INFO!$T$9:$T$1000, " ") ->  | I11: 0 | M11: 0
A12: =IF(COUNTRY_INFO!A12=0," ",COUNTRY_INFO!A12) -> Uganda | B12: =IF(COUNTRY_INFO!B12=0," ",COUNTRY_INFO!B12) -> CENTRAL | C12: =IF(COUNTRY_INFO!C12=0," ",COUNTRY_INFO!C12) -> BUVUMA | D12: =IF(COUNTRY_INFO!$T$9:$T$1000="MDA1 (IVM+ALB)", COUNTRY_INFO!$T$9:$T$1000, " ") ->  | I12: 0 | M12: 0
A13: =IF(COUNTRY_INFO!A13=0," ",COUNTRY_INFO!A13) -> Uganda | B13: =IF(COUNTRY_INFO!B13=0," ",COUNTRY_INFO!B13) -> CENTRAL | C13: =IF(COUNTRY_INFO!C13=0," ",COUNTRY_INFO!C13) -> GOMBA | D13: =IF(COUNTRY_INFO!$T$9:$T$1000="MDA1 (IVM+ALB)", COUNTRY_INFO!$T$9:$T$1000, " ") ->  | I13: 0 | M13: 0
A14: =IF(COUNTRY_INFO!A14=0," ",COUNTRY_INFO!A14) -> Uganda | B14: =IF(COUNTRY_INFO!B14=0," ",COUNTRY_INFO!B14) -> CENTRAL | C14: =IF(COUNTRY_INFO!C14=0," ",COUNTRY_INFO!C14) -> KALANGALA | D14: =IF(COUNTRY_INFO!$T$9:$T$1000="MDA1 (IVM+ALB)", COUNTRY_INFO!$T$9:$T$1000, " ") ->  | I14: 0 | M14: 0
A15: =IF(COUNTRY_INFO!A15=0," ",COUNTRY_INFO!A15) -> Uganda | B15: =IF(COUNTRY_INFO!B15=0," ",COUNTRY_INFO!B15) -> CENTRAL | C15: =IF(COUNTRY_INFO!C15=0," ",COUNTRY_INFO!C15) -> KALUNGU | D15: =IF(COUNTRY_INFO!$T$9:$T$1000="MDA1 (IVM+ALB)", COUNTRY_INFO!$T$9:$T$1000, " ") ->  | I15: 0 | M15: 0
A16: =IF(COUNTRY_INFO!A16=0," ",COUNTRY_INFO!A16) -> Uganda | B16: =IF(COUNTRY_INFO!B16=0," ",COUNTRY_INFO!B16) -> CENTRAL | C16: =IF(COUNTRY_INFO!C16=0," ",COUNTRY_INFO!C16) -> KAMPALA | D16: =IF(COUNTRY_INFO!$T$9:$T$1000="MDA1 (IVM+ALB)", COUNTRY_INFO!$T$9:$T$1000, " ") ->  | I16: 0 | M16: 0
A17: =IF(COUNTRY_INFO!A17=0," ",COUNTRY_INFO!A17) -> Uganda | B17: =IF(COUNTRY_INFO!B17=0," ",COUNTRY_INFO!B17) -> CENTRAL | C17: =IF(COUNTRY_INFO!C17=0," ",COUNTRY_INFO!C17) -> KAYUNGA | D17: =IF(COUNTRY_INFO!$T$9:$T$1000="MDA1 (IVM+ALB)", COUNTRY_INFO!$T$9:$T$1000, " ") ->  | I17: 0 | M17: 0
A18: =IF(COUNTRY_INFO!A18=0," ",COUNTRY_INFO!A18) -> Uganda | B18: =IF(COUNTRY_INFO!B18=0," ",COUNTRY_INFO!B18) -> CENTRAL | C18: =IF(COUNTRY_INFO!C18=0," ",COUNTRY_INFO!C18) -> KIBOGA | D18: =IF(COUNTRY_INFO!$T$9:$T$1000="MDA1 (IVM+ALB)", COUNTRY_INFO!$T$9:$T$1000, " ") ->  | I18: 0 | M18: 0
A19: =IF(COUNTRY_INFO!A19=0," ",COUNTRY_INFO!A19) -> Uganda | B19: =IF(COUNTRY_INFO!B19=0," ",COUNTRY_INFO!B19) -> CENTRAL | C19: =IF(COUNTRY_INFO!C19=0," ",COUNTRY_INFO!C19) -> KYANKWANZI | D19: =IF(COUNTRY_INFO!$T$9:$T$1000="MDA1 (IVM+ALB)", COUNTRY_INFO!$T$9:$T$1000, " ") ->  | I19: 0 | M19: 0
A20: =IF(COUNTRY_INFO!A20=0," ",COUNTRY_INFO!A20) -> Uganda | B20: =IF(COUNTRY_INFO!B20=0," ",COUNTRY_INFO!B20) -> CENTRAL | C20: =IF(COUNTRY_INFO!C20=0," ",COUNTRY_INFO!C20) -> LUWERO | D20: =IF(COUNTRY_INFO!$T$9:$T$1000="MDA1 (IVM+ALB)", COUNTRY_INFO!$T$9:$T$1000, " ") ->  | I20: 0 | M20: 0
A21: =IF(COUNTRY_INFO!A21=0," ",COUNTRY_INFO!A21) -> Uganda | B21: =IF(COUNTRY_INFO!B21=0," ",COUNTRY_INFO!B21) -> CENTRAL | C21: =IF(COUNTRY_INFO!C21=0," ",COUNTRY_INFO!C21) -> LWENGO | D21: =IF(COUNTRY_INFO!$T$9:$T$1000="MDA1 (IVM+ALB)", COUNTRY_INFO!$T$9:$T$1000, " ") ->  | I21: 0 | M21: 0
A22: =IF(COUNTRY_INFO!A22=0," ",COUNTRY_INFO!A22) -> Uganda | B22: =IF(COUNTRY_INFO!B22=0," ",COUNTRY_INFO!B22) -> CENTRAL | C22: =IF(COUNTRY_INFO!C22=0," ",COUNTRY_INFO!C22) -> LYANTONDE | D22: =IF(COUNTRY_INFO!$T$9:$T$1000="MDA1 (IVM+ALB)", COUNTRY_INFO!$T$9:$T$1000, " ") ->  | I22: 0 | M22: 0
A23: =IF(COUNTRY_INFO!A23=0," ",COUNTRY_INFO!A23) -> Uganda | B23: =IF(COUNTRY_INFO!B23=0," ",COUNTRY_INFO!B23) -> CENTRAL | C23: =IF(COUNTRY_INFO!C23=0," ",COUNTRY_INFO!C23) -> MASAKA | D23: =IF(COUNTRY_INFO!$T$9:$T$1000="MDA1 (IVM+ALB)", COUNTRY_INFO!$T$9:$T$1000, " ") ->  | I23: 0 | M23: 0
A24: =IF(COUNTRY_INFO!A24=0," ",COUNTRY_INFO!A24) -> Uganda | B24: =IF(COUNTRY_INFO!B24=0," ",COUNTRY_INFO!B24) -> CENTRAL | C24: =IF(COUNTRY_INFO!C24=0," ",COUNTRY_INFO!C24) -> MITYANA | D24: =IF(COUNTRY_INFO!$T$9:$T$1000="MDA1 (IVM+ALB)", COUNTRY_INFO!$T$9:$T$1000, " ") ->  | I24: 0 | M24: 0
A25: =IF(COUNTRY_INFO!A25=0," ",COUNTRY_INFO!A25) -> Uganda | B25: =IF(COUNTRY_INFO!B25=0," ",COUNTRY_INFO!B25) -> CENTRAL | C25: =IF(COUNTRY_INFO!C25=0," ",COUNTRY_INFO!C25) -> MPIGI | D25: =IF(COUNTRY_INFO!$T$9:$T$1000="MDA1 (IVM+ALB)", COUNTRY_INFO!$T$9:$T$1000, " ") ->  | I25: 0 | M25: 0
A26: =IF(COUNTRY_INFO!A26=0," ",COUNTRY_INFO!A26) -> Uganda | B26: =IF(COUNTRY_INFO!B26=0," ",COUNTRY_INFO!B26) -> CENTRAL | C26: =IF(COUNTRY_INFO!C26=0," ",COUNTRY_INFO!C26) -> MUBENDE | D26: =IF(COUNTRY_INFO!$T$9:$T$1000="MDA1 (IVM+ALB)", COUNTRY_INFO!$T$9:$T$1000, " ") ->  | I26: 0 | M26: 0
A27: =IF(COUNTRY_INFO!A27=0," ",COUNTRY_INFO!A27) -> Uganda | B27: =IF(COUNTRY_INFO!B27=0," ",COUNTRY_INFO!B27) -> CENTRAL | C27: =IF(COUNTRY_INFO!C27=0," ",COUNTRY_INFO!C27) -> MUKONO | D27: =IF(COUNTRY_INFO!$T$9:$T$1000="MDA1 (IVM+ALB)", COUNTRY_INFO!$T$9:$T$1000, " ") ->  | I27: 0 | M27: 0
A28: =IF(COUNTRY_INFO!A28=0," ",COUNTRY_INFO!A28) -> Uganda | B28: =IF(COUNTRY_INFO!B28=0," ",COUNTRY_INFO!B28) -> CENTRAL | C28: =IF(COUNTRY_INFO!C28=0," ",COUNTRY_INFO!C28) -> NAKASEKE | D28: =IF(COUNTRY_INFO!$T$9:$T$1000="MDA1 (IVM+ALB)", COUNTRY_INFO!$T$9:$T$1000, " ") ->  | I28: 0 | M28: 0
A29: =IF(COUNTRY_INFO!A29=0," ",COUNTRY_INFO!A29) -> Uganda | B29: =IF(COUNTRY_INFO!B29=0," ",COUNTRY_INFO!B29) -> CENTRAL | C29: =IF(COUNTRY_INFO!C29=0," ",COUNTRY_INFO!C29) -> NAKASONGOLA | D29: =IF(COUNTRY_INFO!$T$9:$T$1000="MDA1 (IVM+ALB)", COUNTRY_INFO!$T$9:$T$1000, " ") ->  | I29: 0 | M29: 0
A30: =IF(COUNTRY_INFO!A30=0," ",COUNTRY_INFO!A30) -> Uganda | B30: =IF(COUNTRY_INFO!B30=0," ",COUNTRY_INFO!B30) -> CENTRAL | C30: =IF(COUNTRY_INFO!C30=0," ",COUNTRY_INFO!C30) -> RAKAI | D30: =IF(COUNTRY_INFO!$T$9:$T$1000="MDA1 (IVM+ALB)", COUNTRY_INFO!$T$9:$T$1000, " ") ->  | I30: 0 | M30: 0
A31: =IF(COUNTRY_INFO!A31=0," ",COUNTRY_INFO!A31) -> Uganda | B31: =IF(COUNTRY_INFO!B31=0," ",COUNTRY_INFO!B31) -> CENTRAL | C31: =IF(COUNTRY_INFO!C31=0," ",COUNTRY_INFO!C31) -> SEMBABULE | D31: =IF(COUNTRY_INFO!$T$9:$T$1000="MDA1 (IVM+ALB)", COUNTRY_INFO!$T$9:$T$1000, " ") ->  | I31: 0 | M31: 0
A32: =IF(COUNTRY_INFO!A32=0," ",COUNTRY_INFO!A32) -> Uganda | B32: =IF(COUNTRY_INFO!B32=0," ",COUNTRY_INFO!B32) -> CENTRAL | C32: =IF(COUNTRY_INFO!C32=0," ",COUNTRY_INFO!C32) -> WAKISO | D32: =IF(COUNTRY_INFO!$T$9:$T$1000="MDA1 (IVM+ALB)", COUNTRY_INFO!$T$9:$T$1000, " ") ->  | I32: 0 | M32: 0
A33: =IF(COUNTRY_INFO!A33=0," ",COUNTRY_INFO!A33) -> Uganda | B33: =IF(COUNTRY_INFO!B33=0," ",COUNTRY_INFO!B33) -> EASTERN | C33: =IF(COUNTRY_INFO!C33=0," ",COUNTRY_INFO!C33) -> AMURIA | D33: =IF(COUNTRY_INFO!$T$9:$T$1000="MDA1 (IVM+ALB)", COUNTRY_INFO!$T$9:$T$1000, " ") ->  | I33: 0 | M33: 0
A34: =IF(COUNTRY_INFO!A34=0," ",COUNTRY_INFO!A34) -> Uganda | B34: =IF(COUNTRY_INFO!B34=0," ",COUNTRY_INFO!B34) -> EASTERN | C34: =IF(COUNTRY_INFO!C34=0," ",COUNTRY_INFO!C34) -> BUDAKA | D34: =IF(COUNTRY_INFO!$T$9:$T$1000="MDA1 (IVM+ALB)", COUNTRY_INFO!$T$9:$T$1000, " ") ->  | I34: 0 | M34: 0
A35: =IF(COUNTRY_INFO!A35=0," ",COUNTRY_INFO!A35) -> Uganda | B35: =IF(COUNTRY_INFO!B35=0," ",COUNTRY_INFO!B35) -> EASTERN | C35: =IF(COUNTRY_INFO!C35=0," ",COUNTRY_INFO!C35) -> BUDUDA | D35: =IF(COUNTRY_INFO!$T$9:$T$1000="MDA1 (IVM+ALB)", COUNTRY_INFO!$T$9:$T$1000, " ") ->  | I35: 0 | M35: 0
A36: =IF(COUNTRY_INFO!A36=0," ",COUNTRY_INFO!A36) -> Uganda | B36: =IF(COUNTRY_INFO!B36=0," ",COUNTRY_INFO!B36) -> EASTERN | C36: =IF(COUNTRY_INFO!C36=0," ",COUNTRY_INFO!C36) -> BUGIRI | D36: =IF(COUNTRY_INFO!$T$9:$T$1000="MDA1 (IVM+ALB)", COUNTRY_INFO!$T$9:$T$1000, " ") ->  | I36: 0 | M36: 0
A37: =IF(COUNTRY_INFO!A37=0," ",COUNTRY_INFO!A37) -> Uganda | B37: =IF(COUNTRY_INFO!B37=0," ",COUNTRY_INFO!B37) -> EASTERN | C37: =IF(COUNTRY_INFO!C37=0," ",COUNTRY_INFO!C37) -> BUKEDEA | D37: =IF(COUNTRY_INFO!$T$9:$T$1000="MDA1 (IVM+ALB)", COUNTRY_INFO!$T$9:$T$1000, " ") ->  | I37: 0 | M37: 0
A38: =IF(COUNTRY_INFO!A38=0," ",COUNTRY_INFO!A38) -> Uganda | B38: =IF(COUNTRY_INFO!B38=0," ",COUNTRY_INFO!B38) -> EASTERN | C38: =IF(COUNTRY_INFO!C38=0," ",COUNTRY_INFO!C38) -> BUKWO | D38: =IF(COUNTRY_INFO!$T$9:$T$1000="MDA1 (IVM+ALB)", COUNTRY_INFO!$T$9:$T$1000, " ") ->  | I38: 0 | M38: 0
A39: =IF(COUNTRY_INFO!A39=0," ",COUNTRY_INFO!A39) -> Uganda | B39: =IF(COUNTRY_INFO!B39=0," ",COUNTRY_INFO!B39) -> EASTERN | C39: =IF(COUNTRY_INFO!C39=0," ",COUNTRY_INFO!C39) -> BULAMBULI | D39: =IF(COUNTRY_INFO!$T$9:$T$1000="MDA1 (IVM+ALB)", COUNTRY_INFO!$T$9:$T$1000, " ") ->  | I39: 0 | M39: 0
A40: =IF(COUNTRY_INFO!A40=0," ",COUNTRY_INFO!A40) -> Uganda | B40: =IF(COUNTRY_INFO!B40=0," ",COUNTRY_INFO!B40) -> EASTERN | C40: =IF(COUNTRY_INFO!C40=0," ",COUNTRY_INFO!C40) -> BUSIA | D40: =IF(COUNTRY_INFO!$T$9:$T$1000="MDA1 (IVM+ALB)", COUNTRY_INFO!$T$9:$T$1000, " ") ->  | I40: 0 | M40: 0
A41: =IF(COUNTRY_INFO!A41=0," ",COUNTRY_INFO!A41) -> Uganda | B41: =IF(COUNTRY_INFO!B41=0," ",COUNTRY_INFO!B41) -> EASTERN | C41: =IF(COUNTRY_INFO!C41=0," ",COUNTRY_INFO!C41) -> BUTALEJA | D41: =IF(COUNTRY_INFO!$T$9:$T$1000="MDA1 (IVM+ALB)", COUNTRY_INFO!$T$9:$T$1000, " ") ->  | I41: 0 | M41: 0
A42: =IF(COUNTRY_INFO!A42=0," ",COUNTRY_INFO!A42) -> Uganda | B42: =IF(COUNTRY_INFO!B42=0," ",COUNTRY_INFO!B42) -> EASTERN | C42: =IF(COUNTRY_INFO!C42=0," ",COUNTRY_INFO!C42) -> BUYENDE | D42: =IF(COUNTRY_INFO!$T$9:$T$1000="MDA1 (IVM+ALB)", COUNTRY_INFO!$T$9:$T$1000, " ") ->  | I42: 0 | M42: 0
A43: =IF(COUNTRY_INFO!A43=0," ",COUNTRY_INFO!A43) -> Uganda | B43: =IF(COUNTRY_INFO!B43=0," ",COUNTRY_INFO!B43) -> EASTERN | C43: =IF(COUNTRY_INFO!C43=0," ",COUNTRY_INFO!C43) -> IGANGA | D43: =IF(COUNTRY_INFO!$T$9:$T$1000="MDA1 (IVM+ALB)", COUNTRY_INFO!$T$9:$T$1000, " ") ->  | I43: 0 | M43: 0
A44: =IF(COUNTRY_INFO!A44=0," ",COUNTRY_INFO!A44) -> Uganda | B44: =IF(COUNTRY_INFO!B44=0," ",COUNTRY_INFO!B44) -> EASTERN | C44: =IF(COUNTRY_INFO!C44=0," ",COUNTRY_INFO!C44) -> JINJA | D44: =IF(COUNTRY_INFO!$T$9:$T$1000="MDA1 (IVM+ALB)", COUNTRY_INFO!$T$9:$T$1000, " ") ->  | I44: 0 | M44: 0
A45: =IF(COUNTRY_INFO!A45=0," ",COUNTRY_INFO!A45) -> Uganda | B45: =IF(COUNTRY_INFO!B45=0," ",COUNTRY_INFO!B45) -> EASTERN | C45: =IF(COUNTRY_INFO!C45=0," ",COUNTRY_INFO!C45) -> KABERAMAIDO | D45: =IF(COUNTRY_INFO!$T$9:$T$1000="MDA1 (IVM+ALB)", COUNTRY_INFO!$T$9:$T$1000, " ") ->  | I45: 0 | M45: 0
A46: =IF(COUNTRY_INFO!A46=0," ",COUNTRY_INFO!A46) -> Uganda | B46: =IF(COUNTRY_INFO!B46=0," ",COUNTRY_INFO!B46) -> EASTERN | C46: =IF(COUNTRY_INFO!C46=0," ",COUNTRY_INFO!C46) -> KALIRO | D46: =IF(COUNTRY_INFO!$T$9:$T$1000="MDA1 (IVM+ALB)", COUNTRY_INFO!$T$9:$T$1000, " ") ->  | I46: 0 | M46: 0
A47: =IF(COUNTRY_INFO!A47=0," ",COUNTRY_INFO!A47) -> Uganda | B47: =IF(COUNTRY_INFO!B47=0," ",COUNTRY_INFO!B47) -> EASTERN | C47: =IF(COUNTRY_INFO!C47=0," ",COUNTRY_INFO!C47) -> KAMULI | D47: =IF(COUNTRY_INFO!$T$9:$T$1000="MDA1 (IVM+ALB)", COUNTRY_INFO!$T$9:$T$1000, " ") ->  | I47: 0 | M47: 0
A48: =IF(COUNTRY_INFO!A48=0," ",COUNTRY_INFO!A48) -> Uganda | B48: =IF(COUNTRY_INFO!B48=0," ",COUNTRY_INFO!B48) -> EASTERN | C48: =IF(COUNTRY_INFO!C48=0," ",COUNTRY_INFO!C48) -> KAPCHORWA | D48: =IF(COUNTRY_INFO!$T$9:$T$1000="MDA1 (IVM+ALB)", COUNTRY_INFO!$T$9:$T$1000, " ") ->  | I48: 0 | M48: 0
A49: =IF(COUNTRY_INFO!A49=0," ",COUNTRY_INFO!A49) -> Uganda | B49: =IF(COUNTRY_INFO!B49=0," ",COUNTRY_INFO!B49) -> EASTERN | C49: =IF(COUNTRY_INFO!C49=0," ",COUNTRY_INFO!C49) -> KATAKWI | D49: =IF(COUNTRY_INFO!$T$9:$T$1000="MDA1 (IVM+ALB)", COUNTRY_INFO!$T$9:$T$1000, " ") ->  | I49: 0 | M49: 0
A50: =IF(COUNTRY_INFO!A50=0," ",COUNTRY_INFO!A50) -> Uganda | B50: =IF(COUNTRY_INFO!B50=0," ",COUNTRY_INFO!B50) -> EASTERN | C50: =IF(COUNTRY_INFO!C50=0," ",COUNTRY_INFO!C50) -> KIBUKU | D50: =IF(COUNTRY_INFO!$T$9:$T$1000="MDA1 (IVM+ALB)", COUNTRY_INFO!$T$9:$T$1000, " ") ->  | I50: 0 | M50: 0
A51: =IF(COUNTRY_INFO!A51=0," ",COUNTRY_INFO!A51) -> Uganda | B51: =IF(COUNTRY_INFO!B51=0," ",COUNTRY_INFO!B51) -> EASTERN | C51: =IF(COUNTRY_INFO!C51=0," ",COUNTRY_INFO!C51) -> KUMI | D51: =IF(COUNTRY_INFO!$T$9:$T$1000="MDA1 (IVM+ALB)", COUNTRY_INFO!$T$9:$T$1000, " ") ->  | I51: 0 | M51: 0
A52: =IF(COUNTRY_INFO!A52=0," ",COUNTRY_INFO!A52) -> Uganda | B52: =IF(COUNTRY_INFO!B52=0," ",COUNTRY_INFO!B52) -> EASTERN | C52: =IF(COUNTRY_INFO!C52=0," ",COUNTRY_INFO!C52) -> KWEEN | D52: =IF(COUNTRY_INFO!$T$9:$T$1000="MDA1 (IVM+ALB)", COUNTRY_INFO!$T$9:$T$1000, " ") ->  | I52: 0 | M52: 0
A53: =IF(COUNTRY_INFO!A53=0," ",COUNTRY_INFO!A53) -> Uganda | B53: =IF(COUNTRY_INFO!B53=0," ",COUNTRY_INFO!B53) -> EASTERN | C53: =IF(COUNTRY_INFO!C53=0," ",COUNTRY_INFO!C53) -> LUUKA | D53: =IF(COUNTRY_INFO!$T$9:$T$1000="MDA1 (IVM+ALB)", COUNTRY_INFO!$T$9:$T$1000, " ") ->  | I53: 0 | M53: 0
A54: =IF(COUNTRY_INFO!A54=0," ",COUNTRY_INFO!A54) -> Uganda | B54: =IF(COUNTRY_INFO!B54=0," ",COUNTRY_INFO!B54) -> EASTERN | C54: =IF(COUNTRY_INFO!C54=0," ",COUNTRY_INFO!C54) -> MANAFWA | D54: =IF(COUNTRY_INFO!$T$9:$T$1000="MDA1 (IVM+ALB)", COUNTRY_INFO!$T$9:$T$1000, " ") ->  | I54: 0 | M54: 0
A55: =IF(COUNTRY_INFO!A55=0," ",COUNTRY_INFO!A55) -> Uganda | B55: =IF(COUNTRY_INFO!B55=0," ",COUNTRY_INFO!B55) -> EASTERN | C55: =IF(COUNTRY_INFO!C55=0," ",COUNTRY_INFO!C55) -> MAYUGE | D55: =IF(COUNTRY_INFO!$T$9:$T$1000="MDA1 (IVM+ALB)", COUNTRY_INFO!$T$9:$T$1000, " ") ->  | I55: 0 | M55: 0
A56: =IF(COUNTRY_INFO!A56=0," ",COUNTRY_INFO!A56) -> Uganda | B56: =IF(COUNTRY_INFO!B56=0," ",COUNTRY_INFO!B56) -> EASTERN | C56: =IF(COUNTRY_INFO!C56=0," ",COUNTRY_INFO!C56) -> MBALE | D56: =IF(COUNTRY_INFO!$T$9:$T$1000="MDA1 (IVM+ALB)", COUNTRY_INFO!$T$9:$T$1000, " ") ->  | I56: 0 | M56: 0
A57: =IF(COUNTRY_INFO!A57=0," ",COUNTRY_INFO!A57) -> Uganda | B57: =IF(COUNTRY_INFO!B57=0," ",COUNTRY_INFO!B57) -> EASTERN | C57: =IF(COUNTRY_INFO!C57=0," ",COUNTRY_INFO!C57) -> NAMAYINGO | D57: =IF(COUNTRY_INFO!$T$9:$T$1000="MDA1 (IVM+ALB)", COUNTRY_INFO!$T$9:$T$1000, " ") ->  | I57: 0 | M57: 0
A58: =IF(COUNTRY_INFO!A58=0," ",COUNTRY_INFO!A58) -> Uganda | B58: =IF(COUNTRY_INFO!B58=0," ",COUNTRY_INFO!B58) -> EASTERN | C58: =IF(COUNTRY_INFO!C58=0," ",COUNTRY_INFO!C58) -> NAMUTUMBA | D58: =IF(COUNTRY_INFO!$T$9:$T$1000="MDA1 (IVM+ALB)", COUNTRY_INFO!$T$9:$T$1000, " ") ->  | I58: 0 | M58: 0
A59: =IF(COUNTRY_INFO!A59=0," ",COUNTRY_INFO!A59) -> Uganda | B59: =IF(COUNTRY_INFO!B59=0," ",COUNTRY_INFO!B59) -> EASTERN | C59: =IF(COUNTRY_INFO!C59=0," ",COUNTRY_INFO!C59) -> NGORA | D59: =IF(COUNTRY_INFO!$T$9:$T$1000="MDA1 (IVM+ALB)", COUNTRY_INFO!$T$9:$T$1000, " ") ->  | I59: 0 | M59: 0
A60: =IF(COUNTRY_INFO!A60=0," ",COUNTRY_INFO!A60) -> Uganda | B60: =IF(COUNTRY_INFO!B60=0," ",COUNTRY_INFO!B60) -> EASTERN | C60: =IF(COUNTRY_INFO!C60=0," ",COUNTRY_INFO!C60) -> PALLISA | D60: =IF(COUNTRY_INFO!$T$9:$T$1000="MDA1 (IVM+ALB)", COUNTRY_INFO!$T$9:$T$1000, " ") ->  | I60: 0 | M60: 0
A61: =IF(COUNTRY_INFO!A61=0," ",COUNTRY_INFO!A61) -> Uganda | B61: =IF(COUNTRY_INFO!B61=0," ",COUNTRY_INFO!B61) -> EASTERN | C61: =IF(COUNTRY_INFO!C61=0," ",COUNTRY_INFO!C61) -> SERERE | D61: =IF(COUNTRY_INFO!$T$9:$T$1000="MDA1 (IVM+ALB)", COUNTRY_INFO!$T$9:$T$1000, " ") ->  | I61: 0 | M61: 0
A62: =IF(COUNTRY_INFO!A62=0," ",COUNTRY_INFO!A62) -> Uganda | B62: =IF(COUNTRY_INFO!B62=0," ",COUNTRY_INFO!B62) -> EASTERN | C62: =IF(COUNTRY_INFO!C62=0," ",COUNTRY_INFO!C62) -> SIRONKO | D62: =IF(COUNTRY_INFO!$T$9:$T$1000="MDA1 (IVM+ALB)", COUNTRY_INFO!$T$9:$T$1000, " ") ->  | I62: 0 | M62: 0
A63: =IF(COUNTRY_INFO!A63=0," ",COUNTRY_INFO!A63) -> Uganda | B63: =IF(COUNTRY_INFO!B63=0," ",COUNTRY_INFO!B63) -> EASTERN | C63: =IF(COUNTRY_INFO!C63=0," ",COUNTRY_INFO!C63) -> SOROTI | D63: =IF(COUNTRY_INFO!$T$9:$T$1000="MDA1 (IVM+ALB)", COUNTRY_INFO!$T$9:$T$1000, " ") ->  | I63: 0 | M63: 0
A64: =IF(COUNTRY_INFO!A64=0," ",COUNTRY_INFO!A64) -> Uganda | B64: =IF(COUNTRY_INFO!B64=0," ",COUNTRY_INFO!B64) -> EASTERN | C64: =IF(COUNTRY_INFO!C64=0," ",COUNTRY_INFO!C64) -> TORORO | D64: =IF(COUNTRY_INFO!$T$9:$T$1000="MDA1 (IVM+ALB)", COUNTRY_INFO!$T$9:$T$1000, " ") ->  | I64: 0 | M64: 0
A65: =IF(COUNTRY_INFO!A65=0," ",COUNTRY_INFO!A65) -> Uganda | B65: =IF(COUNTRY_INFO!B65=0," ",COUNTRY_INFO!B65) -> NORTHERN | C65: =IF(COUNTRY_INFO!C65=0," ",COUNTRY_INFO!C65) -> ABIM | D65: =IF(COUNTRY_INFO!$T$9:$T$1000="MDA1 (IVM+ALB)", COUNTRY_INFO!$T$9:$T$1000, " ") ->  | I65: 0 | M65: 0
A66: =IF(COUNTRY_INFO!A66=0," ",COUNTRY_INFO!A66) -> Uganda | B66: =IF(COUNTRY_INFO!B66=0," ",COUNTRY_INFO!B66) -> NORTHERN | C66: =IF(COUNTRY_INFO!C66=0," ",COUNTRY_INFO!C66) -> ADJUMANI | D66: =IF(COUNTRY_INFO!$T$9:$T$1000="MDA1 (IVM+ALB)", COUNTRY_INFO!$T$9:$T$1000, " ") ->  | I66: 0 | M66: 0
A67: =IF(COUNTRY_INFO!A67=0," ",COUNTRY_INFO!A67) -> Uganda | B67: =IF(COUNTRY_INFO!B67=0," ",COUNTRY_INFO!B67) -> NORTHERN | C67: =IF(COUNTRY_INFO!C67=0," ",COUNTRY_INFO!C67) -> AGAGO | D67: =IF(COUNTRY_INFO!$T$9:$T$1000="MDA1 (IVM+ALB)", COUNTRY_INFO!$T$9:$T$1000, " ") ->  | I67: 0 | M67: 0
A68: =IF(COUNTRY_INFO!A68=0," ",COUNTRY_INFO!A68) -> Uganda | B68: =IF(COUNTRY_INFO!B68=0," ",COUNTRY_INFO!B68) -> NORTHERN | C68: =IF(COUNTRY_INFO!C68=0," ",COUNTRY_INFO!C68) -> ALEBTONG | D68: =IF(COUNTRY_INFO!$T$9:$T$1000="MDA1 (IVM+ALB)", COUNTRY_INFO!$T$9:$T$1000, " ") ->  | I68: 0 | M68: 0
A69: =IF(COUNTRY_INFO!A69=0," ",COUNTRY_INFO!A69) -> Uganda | B69: =IF(COUNTRY_INFO!B69=0," ",COUNTRY_INFO!B69) -> NORTHERN | C69: =IF(COUNTRY_INFO!C69=0," ",COUNTRY_INFO!C69) -> AMOLATAR | D69: =IF(COUNTRY_INFO!$T$9:$T$1000="MDA1 (IVM+ALB)", COUNTRY_INFO!$T$9:$T$1000, " ") ->  | I69: 0 | M69: 0
A70: =IF(COUNTRY_INFO!A70=0," ",COUNTRY_INFO!A70) -> Uganda | B70: =IF(COUNTRY_INFO!B70=0," ",COUNTRY_INFO!B70) -> NORTHERN | C70: =IF(COUNTRY_INFO!C70=0," ",COUNTRY_INFO!C70) -> AMUDAT | D70: =IF(COUNTRY_INFO!$T$9:$T$1000="MDA1 (IVM+ALB)", COUNTRY_INFO!$T$9:$T$1000, " ") ->  | I70: 0 | M70: 0
A71: =IF(COUNTRY_INFO!A71=0," ",COUNTRY_INFO!A71) -> Uganda | B71: =IF(COUNTRY_INFO!B71=0," ",COUNTRY_INFO!B71) -> NORTHERN | C71: =IF(COUNTRY_INFO!C71=0," ",COUNTRY_INFO!C71) -> AMURU | D71: =IF(COUNTRY_INFO!$T$9:$T$1000="MDA1 (IVM+ALB)", COUNTRY_INFO!$T$9:$T$1000, " ") ->  | I71: 0 | M71: 0
A72: =IF(COUNTRY_INFO!A72=0," ",COUNTRY_INFO!A72) -> Uganda | B72: =IF(COUNTRY_INFO!B72=0," ",COUNTRY_INFO!B72) -> NORTHERN | C72: =IF(COUNTRY_INFO!C72=0," ",COUNTRY_INFO!C72) -> APAC | D72: =IF(COUNTRY_INFO!$T$9:$T$1000="MDA1 (IVM+ALB)", COUNTRY_INFO!$T$9:$T$1000, " ") ->  | I72: 0 | M72: 0
A73: =IF(COUNTRY_INFO!A73=0," ",COUNTRY_INFO!A73) -> Uganda | B73: =IF(COUNTRY_INFO!B73=0," ",COUNTRY_INFO!B73) -> NORTHERN | C73: =IF(COUNTRY_INFO!C73=0," ",COUNTRY_INFO!C73) -> ARUA | D73: =IF(COUNTRY_INFO!$T$9:$T$1000="MDA1 (IVM+ALB)", COUNTRY_INFO!$T$9:$T$1000, " ") -> MDA1 (IVM+ALB) | E73: Oct-2018 | G73: 293880 | H73: 506991 | I73: 800871 | K73: 344154 | L73: 464528 | M73: 808682 | O73: 117.1069824 | P73: 91.62450615 | Q73: 100.9753131
A74: =IF(COUNTRY_INFO!A74=0," ",COUNTRY_INFO!A74) -> Uganda | B74: =IF(COUNTRY_INFO!B74=0," ",COUNTRY_INFO!B74) -> NORTHERN | C74: =IF(COUNTRY_INFO!C74=0," ",COUNTRY_INFO!C74) -> DOKOLO | D74: =IF(COUNTRY_INFO!$T$9:$T$1000="MDA1 (IVM+ALB)", COUNTRY_INFO!$T$9:$T$1000, " ") ->  | M74: =SUM(J74:L74) -> 0 | O74: =IF(G74<>0, IF(K74/G74*100=0, "-", K74/G74*100), " ") ->  | P74: =IF(H74<>0, IF(L74/H74*100=0, "-", L74/H74*100), " ") ->  | Q74: =IF(I74<>0, IF(M74/I74*100=0, "-", M74/I74*100), " ") -> 
A75: =IF(COUNTRY_INFO!A75=0," ",COUNTRY_INFO!A75) -> Uganda | B75: =IF(COUNTRY_INFO!B75=0," ",COUNTRY_INFO!B75) -> NORTHERN | C75: =IF(COUNTRY_INFO!C75=0," ",COUNTRY_INFO!C75) -> GULU | D75: =IF(COUNTRY_INFO!$T$9:$T$1000="MDA1 (IVM+ALB)", COUNTRY_INFO!$T$9:$T$1000, " ") -> MDA1 (IVM+ALB) | E75: Oct-2018 | G75: 68642 | H75: 118419 | I75: =SUM(F75:H75) -> 187061 | K75: 62641 | L75: 110640 | M75: 173281 | O75: 91.25753912 | P75: 93.4309528 | Q75: 92.63341905
A76: =IF(COUNTRY_INFO!A76=0," ",COUNTRY_INFO!A76) -> Uganda | B76: =IF(COUNTRY_INFO!B76=0," ",COUNTRY_INFO!B76) -> NORTHERN | C76: =IF(COUNTRY_INFO!C76=0," ",COUNTRY_INFO!C76) -> KAABONG | D76: =IF(COUNTRY_INFO!$T$9:$T$1000="MDA1 (IVM+ALB)", COUNTRY_INFO!$T$9:$T$1000, " ") ->  | M76: 0
A77: =IF(COUNTRY_INFO!A77=0," ",COUNTRY_INFO!A77) -> Uganda | B77: =IF(COUNTRY_INFO!B77=0," ",COUNTRY_INFO!B77) -> NORTHERN | C77: =IF(COUNTRY_INFO!C77=0," ",COUNTRY_INFO!C77) -> KITGUM | D77: =IF(COUNTRY_INFO!$T$9:$T$1000="MDA1 (IVM+ALB)", COUNTRY_INFO!$T$9:$T$1000, " ") -> MDA1 (IVM+ALB) | E77: Oct-2018 | G77: 62194 | H77: 107296 | I77: 169490 | K77: 58541 | L77: 96078 | M77: 154619 | O77: 94.12644307 | P77: 89.54481062 | Q77: 91.22603103
A78: =IF(COUNTRY_INFO!A78=0," ",COUNTRY_INFO!A78) -> Uganda | B78: =IF(COUNTRY_INFO!B78=0," ",COUNTRY_INFO!B78) -> NORTHERN | C78: =IF(COUNTRY_INFO!C78=0," ",COUNTRY_INFO!C78) -> KOBOKO | D78: =IF(COUNTRY_INFO!$T$9:$T$1000="MDA1 (IVM+ALB)", COUNTRY_INFO!$T$9:$T$1000, " ") ->  | I78: 0 | M78: 0
A79: =IF(COUNTRY_INFO!A79=0," ",COUNTRY_INFO!A79) -> Uganda | B79: =IF(COUNTRY_INFO!B79=0," ",COUNTRY_INFO!B79) -> NORTHERN | C79: =IF(COUNTRY_INFO!C79=0," ",COUNTRY_INFO!C79) -> KOLE | D79: =IF(COUNTRY_INFO!$T$9:$T$1000="MDA1 (IVM+ALB)", COUNTRY_INFO!$T$9:$T$1000, " ") ->  | I79: 0 | M79: 0
A80: =IF(COUNTRY_INFO!A80=0," ",COUNTRY_INFO!A80) -> Uganda | B80: =IF(COUNTRY_INFO!B80=0," ",COUNTRY_INFO!B80) -> NORTHERN | C80: =IF(COUNTRY_INFO!C80=0," ",COUNTRY_INFO!C80) -> KOTIDO | D80: =IF(COUNTRY_INFO!$T$9:$T$1000="MDA1 (IVM+ALB)", COUNTRY_INFO!$T$9:$T$1000, " ") ->  | I80: 0 | M80: 0
A81: =IF(COUNTRY_INFO!A81=0," ",COUNTRY_INFO!A81) -> Uganda | B81: =IF(COUNTRY_INFO!B81=0," ",COUNTRY_INFO!B81) -> NORTHERN | C81: =IF(COUNTRY_INFO!C81=0," ",COUNTRY_INFO!C81) -> LAMWO | D81: =IF(COUNTRY_INFO!$T$9:$T$1000="MDA1 (IVM+ALB)", COUNTRY_INFO!$T$9:$T$1000, " ") -> MDA1 (IVM+ALB) | E81: Oct-2018 | G81: 45617 | H81: 78697 | I81: 124314 | K81: 44012 | L81: 65984 | M81: 109996 | O81: 96.48157485 | P81: 83.84563579 | Q81: 88.48239136
A82: =IF(COUNTRY_INFO!A82=0," ",COUNTRY_INFO!A82) -> Uganda | B82: =IF(COUNTRY_INFO!B82=0," ",COUNTRY_INFO!B82) -> NORTHERN | C82: =IF(COUNTRY_INFO!C82=0," ",COUNTRY_INFO!C82) -> LIRA | D82: =IF(COUNTRY_INFO!$T$9:$T$1000="MDA1 (IVM+ALB)", COUNTRY_INFO!$T$9:$T$1000, " ") ->  | I82: 0 | M82: 0
A83: =IF(COUNTRY_INFO!A83=0," ",COUNTRY_INFO!A83) -> Uganda | B83: =IF(COUNTRY_INFO!B83=0," ",COUNTRY_INFO!B83) -> NORTHERN | C83: =IF(COUNTRY_INFO!C83=0," ",COUNTRY_INFO!C83) -> MARACHA | D83: =IF(COUNTRY_INFO!$T$9:$T$1000="MDA1 (IVM+ALB)", COUNTRY_INFO!$T$9:$T$1000, " ") -> MDA1 (IVM+ALB) | E83: Oct-2018 | G83: 63355 | H83: 109299 | I83: 172654 | K83: 89339 | L83: 97467 | M83: 186806 | O83: 141.0133375 | P83: 89.17464936 | Q83: 108.1967403
A84: =IF(COUNTRY_INFO!A84=0," ",COUNTRY_INFO!A84) -> Uganda | B84: =IF(COUNTRY_INFO!B84=0," ",COUNTRY_INFO!B84) -> NORTHERN | C84: =IF(COUNTRY_INFO!C84=0," ",COUNTRY_INFO!C84) -> MOROTO | D84: =IF(COUNTRY_INFO!$T$9:$T$1000="MDA1 (IVM+ALB)", COUNTRY_INFO!$T$9:$T$1000, " ") ->  | I84: 0 | M84: 0
A85: =IF(COUNTRY_INFO!A85=0," ",COUNTRY_INFO!A85) -> Uganda | B85: =IF(COUNTRY_INFO!B85=0," ",COUNTRY_INFO!B85) -> NORTHERN | C85: =IF(COUNTRY_INFO!C85=0," ",COUNTRY_INFO!C85) -> MOYO | D85: =IF(COUNTRY_INFO!$T$9:$T$1000="MDA1 (IVM+ALB)", COUNTRY_INFO!$T$9:$T$1000, " ") ->  | I85: 0 | M85: 0
A86: =IF(COUNTRY_INFO!A86=0," ",COUNTRY_INFO!A86) -> Uganda | B86: =IF(COUNTRY_INFO!B86=0," ",COUNTRY_INFO!B86) -> NORTHERN | C86: =IF(COUNTRY_INFO!C86=0," ",COUNTRY_INFO!C86) -> NAKAPIRIPIRIT | D86: =IF(COUNTRY_INFO!$T$9:$T$1000="MDA1 (IVM+ALB)", COUNTRY_INFO!$T$9:$T$1000, " ") ->  | I86: 0 | M86: 0
A87: =IF(COUNTRY_INFO!A87=0," ",COUNTRY_INFO!A87) -> Uganda | B87: =IF(COUNTRY_INFO!B87=0," ",COUNTRY_INFO!B87) -> NORTHERN | C87: =IF(COUNTRY_INFO!C87=0," ",COUNTRY_INFO!C87) -> NAPAK | D87: =IF(COUNTRY_INFO!$T$9:$T$1000="MDA1 (IVM+ALB)", COUNTRY_INFO!$T$9:$T$1000, " ") ->  | I87: 0 | M87: 0
A88: =IF(COUNTRY_INFO!A88=0," ",COUNTRY_INFO!A88) -> Uganda | B88: =IF(COUNTRY_INFO!B88=0," ",COUNTRY_INFO!B88) -> NORTHERN | C88: =IF(COUNTRY_INFO!C88=0," ",COUNTRY_INFO!C88) -> NEBBI | D88: =IF(COUNTRY_INFO!$T$9:$T$1000="MDA1 (IVM+ALB)", COUNTRY_INFO!$T$9:$T$1000, " ") ->  | I88: 0 | M88: 0
A89: =IF(COUNTRY_INFO!A89=0," ",COUNTRY_INFO!A89) -> Uganda | B89: =IF(COUNTRY_INFO!B89=0," ",COUNTRY_INFO!B89) -> NORTHERN | C89: =IF(COUNTRY_INFO!C89=0," ",COUNTRY_INFO!C89) -> NWOYA | D89: =IF(COUNTRY_INFO!$T$9:$T$1000="MDA1 (IVM+ALB)", COUNTRY_INFO!$T$9:$T$1000, " ") ->  | I89: 0 | M89: 0
A90: =IF(COUNTRY_INFO!A90=0," ",COUNTRY_INFO!A90) -> Uganda | B90: =IF(COUNTRY_INFO!B90=0," ",COUNTRY_INFO!B90) -> NORTHERN | C90: =IF(COUNTRY_INFO!C90=0," ",COUNTRY_INFO!C90) -> OMORO | D90: =IF(COUNTRY_INFO!$T$9:$T$1000="MDA1 (IVM+ALB)", COUNTRY_INFO!$T$9:$T$1000, " ") -> MDA1 (IVM+ALB) | E90: Oct-2018 | G90: 56368 | H90: 97244 | I90: 153612 | K90: 51262 | L90: 85781 | M90: 137043 | O90: 90.94166903 | P90: 88.2121262 | Q90: 89.2137333
A91: =IF(COUNTRY_INFO!A91=0," ",COUNTRY_INFO!A91) -> Uganda | B91: =IF(COUNTRY_INFO!B91=0," ",COUNTRY_INFO!B91) -> NORTHERN | C91: =IF(COUNTRY_INFO!C91=0," ",COUNTRY_INFO!C91) -> OTUKE | D91: =IF(COUNTRY_INFO!$T$9:$T$1000="MDA1 (IVM+ALB)", COUNTRY_INFO!$T$9:$T$1000, " ") ->  | I91: 0 | M91: 0
A92: =IF(COUNTRY_INFO!A92=0," ",COUNTRY_INFO!A92) -> Uganda | B92: =IF(COUNTRY_INFO!B92=0," ",COUNTRY_INFO!B92) -> NORTHERN | C92: =IF(COUNTRY_INFO!C92=0," ",COUNTRY_INFO!C92) -> OYAM | D92: =IF(COUNTRY_INFO!$T$9:$T$1000="MDA1 (IVM+ALB)", COUNTRY_INFO!$T$9:$T$1000, " ") ->  | I92: 0 | M92: 0
A93: =IF(COUNTRY_INFO!A93=0," ",COUNTRY_INFO!A93) -> Uganda | B93: =IF(COUNTRY_INFO!B93=0," ",COUNTRY_INFO!B93) -> NORTHERN | C93: =IF(COUNTRY_INFO!C93=0," ",COUNTRY_INFO!C93) -> PADER | D93: =IF(COUNTRY_INFO!$T$9:$T$1000="MDA1 (IVM+ALB)", COUNTRY_INFO!$T$9:$T$1000, " ") ->  | I93: 0 | M93: 0
A94: =IF(COUNTRY_INFO!A94=0," ",COUNTRY_INFO!A94) -> Uganda | B94: =IF(COUNTRY_INFO!B94=0," ",COUNTRY_INFO!B94) -> NORTHERN | C94: =IF(COUNTRY_INFO!C94=0," ",COUNTRY_INFO!C94) -> YUMBE | D94: =IF(COUNTRY_INFO!$T$9:$T$1000="MDA1 (IVM+ALB)", COUNTRY_INFO!$T$9:$T$1000, " ") ->  | I94: 0 | M94: 0
A95: =IF(COUNTRY_INFO!A95=0," ",COUNTRY_INFO!A95) -> Uganda | B95: =IF(COUNTRY_INFO!B95=0," ",COUNTRY_INFO!B95) -> NORTHERN | C95: =IF(COUNTRY_INFO!C95=0," ",COUNTRY_INFO!C95) -> ZOMBO | D95: =IF(COUNTRY_INFO!$T$9:$T$1000="MDA1 (IVM+ALB)", COUNTRY_INFO!$T$9:$T$1000, " ") ->  | I95: 0 | M95: 0
A96: =IF(COUNTRY_INFO!A96=0," ",COUNTRY_INFO!A96) -> Uganda | B96: =IF(COUNTRY_INFO!B96=0," ",COUNTRY_INFO!B96) -> WESTERN | C96: =IF(COUNTRY_INFO!C96=0," ",COUNTRY_INFO!C96) -> BUHWEJU | D96: =IF(COUNTRY_INFO!$T$9:$T$1000="MDA1 (IVM+ALB)", COUNTRY_INFO!$T$9:$T$1000, " ") ->  | I96: 0 | M96: 0
A97: =IF(COUNTRY_INFO!A97=0," ",COUNTRY_INFO!A97) -> Uganda | B97: =IF(COUNTRY_INFO!B97=0," ",COUNTRY_INFO!B97) -> WESTERN | C97: =IF(COUNTRY_INFO!C97=0," ",COUNTRY_INFO!C97) -> BULIISA | D97: =IF(COUNTRY_INFO!$T$9:$T$1000="MDA1 (IVM+ALB)", COUNTRY_INFO!$T$9:$T$1000, " ") ->  | I97: 0 | M97: 0
A98: =IF(COUNTRY_INFO!A98=0," ",COUNTRY_INFO!A98) -> Uganda | B98: =IF(COUNTRY_INFO!B98=0," ",COUNTRY_INFO!B98) -> WESTERN | C98: =IF(COUNTRY_INFO!C98=0," ",COUNTRY_INFO!C98) -> BUNDIBUGYO | D98: =IF(COUNTRY_INFO!$T$9:$T$1000="MDA1 (IVM+ALB)", COUNTRY_INFO!$T$9:$T$1000, " ") ->  | I98: 0 | M98: 0
A99: =IF(COUNTRY_INFO!A99=0," ",COUNTRY_INFO!A99) -> Uganda | B99: =IF(COUNTRY_INFO!B99=0," ",COUNTRY_INFO!B99) -> WESTERN | C99: =IF(COUNTRY_INFO!C99=0," ",COUNTRY_INFO!C99) -> BUSHENYI | D99: =IF(COUNTRY_INFO!$T$9:$T$1000="MDA1 (IVM+ALB)", COUNTRY_INFO!$T$9:$T$1000, " ") ->  | I99: 0 | M99: 0
A100: =IF(COUNTRY_INFO!A100=0," ",COUNTRY_INFO!A100) -> Uganda | B100: =IF(COUNTRY_INFO!B100=0," ",COUNTRY_INFO!B100) -> WESTERN | C100: =IF(COUNTRY_INFO!C100=0," ",COUNTRY_INFO!C100) -> HOIMA | D100: =IF(COUNTRY_INFO!$T$9:$T$1000="MDA1 (IVM+ALB)", COUNTRY_INFO!$T$9:$T$1000, " ") ->  | I100: 0 | M100: 0
A101: =IF(COUNTRY_INFO!A101=0," ",COUNTRY_INFO!A101) -> Uganda | B101: =IF(COUNTRY_INFO!B101=0," ",COUNTRY_INFO!B101) -> WESTERN | C101: =IF(COUNTRY_INFO!C101=0," ",COUNTRY_INFO!C101) -> IBANDA | D101: =IF(COUNTRY_INFO!$T$9:$T$1000="MDA1 (IVM+ALB)", COUNTRY_INFO!$T$9:$T$1000, " ") ->  | I101: 0 | M101: 0
A102: =IF(COUNTRY_INFO!A102=0," ",COUNTRY_INFO!A102) -> Uganda | B102: =IF(COUNTRY_INFO!B102=0," ",COUNTRY_INFO!B102) -> WESTERN | C102: =IF(COUNTRY_INFO!C102=0," ",COUNTRY_INFO!C102) -> ISINGIRO | D102: =IF(COUNTRY_INFO!$T$9:$T$1000="MDA1 (IVM+ALB)", COUNTRY_INFO!$T$9:$T$1000, " ") ->  | I102: 0 | M102: 0
A103: =IF(COUNTRY_INFO!A103=0," ",COUNTRY_INFO!A103) -> Uganda | B103: =IF(COUNTRY_INFO!B103=0," ",COUNTRY_INFO!B103) -> WESTERN | C103: =IF(COUNTRY_INFO!C103=0," ",COUNTRY_INFO!C103) -> KABALE | D103: =IF(COUNTRY_INFO!$T$9:$T$1000="MDA1 (IVM+ALB)", COUNTRY_INFO!$T$9:$T$1000, " ") ->  | I103: 0 | M103: 0
A104: =IF(COUNTRY_INFO!A104=0," ",COUNTRY_INFO!A104) -> Uganda | B104: =IF(COUNTRY_INFO!B104=0," ",COUNTRY_INFO!B104) -> WESTERN | C104: =IF(COUNTRY_INFO!C104=0," ",COUNTRY_INFO!C104) -> KABAROLE | D104: =IF(COUNTRY_INFO!$T$9:$T$1000="MDA1 (IVM+ALB)", COUNTRY_INFO!$T$9:$T$1000, " ") ->  | I104: 0 | M104: 0
A105: =IF(COUNTRY_INFO!A105=0," ",COUNTRY_INFO!A105) -> Uganda | B105: =IF(COUNTRY_INFO!B105=0," ",COUNTRY_INFO!B105) -> WESTERN | C105: =IF(COUNTRY_INFO!C105=0," ",COUNTRY_INFO!C105) -> KAGADI | D105: =IF(COUNTRY_INFO!$T$9:$T$1000="MDA1 (IVM+ALB)", COUNTRY_INFO!$T$9:$T$1000, " ") ->  | I105: 0 | M105: 0
A106: =IF(COUNTRY_INFO!A106=0," ",COUNTRY_INFO!A106) -> Uganda | B106: =IF(COUNTRY_INFO!B106=0," ",COUNTRY_INFO!B106) -> WESTERN | C106: =IF(COUNTRY_INFO!C106=0," ",COUNTRY_INFO!C106) -> KAKUMIRO | D106: =IF(COUNTRY_INFO!$T$9:$T$1000="MDA1 (IVM+ALB)", COUNTRY_INFO!$T$9:$T$1000, " ") ->  | I106: 0 | M106: 0
A107: =IF(COUNTRY_INFO!A107=0," ",COUNTRY_INFO!A107) -> Uganda | B107: =IF(COUNTRY_INFO!B107=0," ",COUNTRY_INFO!B107) -> WESTERN | C107: =IF(COUNTRY_INFO!C107=0," ",COUNTRY_INFO!C107) -> KAMWENGE | D107: =IF(COUNTRY_INFO!$T$9:$T$1000="MDA1 (IVM+ALB)", COUNTRY_INFO!$T$9:$T$1000, " ") ->  | I107: 0 | M107: 0
A108: =IF(COUNTRY_INFO!A108=0," ",COUNTRY_INFO!A108) -> Uganda | B108: =IF(COUNTRY_INFO!B108=0," ",COUNTRY_INFO!B108) -> WESTERN | C108: =IF(COUNTRY_INFO!C108=0," ",COUNTRY_INFO!C108) -> KANUNGU | D108: =IF(COUNTRY_INFO!$T$9:$T$1000="MDA1 (IVM+ALB)", COUNTRY_INFO!$T$9:$T$1000, " ") ->  | I108: 0 | M108: 0
A109: =IF(COUNTRY_INFO!A109=0," ",COUNTRY_INFO!A109) -> Uganda | B109: =IF(COUNTRY_INFO!B109=0," ",COUNTRY_INFO!B109) -> WESTERN | C109: =IF(COUNTRY_INFO!C109=0," ",COUNTRY_INFO!C109) -> KASESE | D109: =IF(COUNTRY_INFO!$T$9:$T$1000="MDA1 (IVM+ALB)", COUNTRY_INFO!$T$9:$T$1000, " ") ->  | I109: 0 | M109: 0
A110: =IF(COUNTRY_INFO!A110=0," ",COUNTRY_INFO!A110) -> Uganda | B110: =IF(COUNTRY_INFO!B110=0," ",COUNTRY_INFO!B110) -> WESTERN | C110: =IF(COUNTRY_INFO!C110=0," ",COUNTRY_INFO!C110) -> KIBAALE | D110: =IF(COUNTRY_INFO!$T$9:$T$1000="MDA1 (IVM+ALB)", COUNTRY_INFO!$T$9:$T$1000, " ") ->  | I110: 0 | M110: 0
A111: =IF(COUNTRY_INFO!A111=0," ",COUNTRY_INFO!A111) -> Uganda | B111: =IF(COUNTRY_INFO!B111=0," ",COUNTRY_INFO!B111) -> WESTERN | C111: =IF(COUNTRY_INFO!C111=0," ",COUNTRY_INFO!C111) -> KIRUHURA | D111: =IF(COUNTRY_INFO!$T$9:$T$1000="MDA1 (IVM+ALB)", COUNTRY_INFO!$T$9:$T$1000, " ") ->  | I111: 0 | M111: 0
A112: =IF(COUNTRY_INFO!A112=0," ",COUNTRY_INFO!A112) -> Uganda | B112: =IF(COUNTRY_INFO!B112=0," ",COUNTRY_INFO!B112) -> WESTERN | C112: =IF(COUNTRY_INFO!C112=0," ",COUNTRY_INFO!C112) -> KIRYANDONGO | D112: =IF(COUNTRY_INFO!$T$9:$T$1000="MDA1 (IVM+ALB)", COUNTRY_INFO!$T$9:$T$1000, " ") ->  | I112: 0 | M112: 0
A113: =IF(COUNTRY_INFO!A113=0," ",COUNTRY_INFO!A113) -> Uganda | B113: =IF(COUNTRY_INFO!B113=0," ",COUNTRY_INFO!B113) -> WESTERN | C113: =IF(COUNTRY_INFO!C113=0," ",COUNTRY_INFO!C113) -> KISORO | D113: =IF(COUNTRY_INFO!$T$9:$T$1000="MDA1 (IVM+ALB)", COUNTRY_INFO!$T$9:$T$1000, " ") ->  | I113: 0 | M113: 0
A114: =IF(COUNTRY_INFO!A114=0," ",COUNTRY_INFO!A114) -> Uganda | B114: =IF(COUNTRY_INFO!B114=0," ",COUNTRY_INFO!B114) -> WESTERN | C114: =IF(COUNTRY_INFO!C114=0," ",COUNTRY_INFO!C114) -> KYEGEGWA | D114: =IF(COUNTRY_INFO!$T$9:$T$1000="MDA1 (IVM+ALB)", COUNTRY_INFO!$T$9:$T$1000, " ") ->  | I114: 0 | M114: 0
A115: =IF(COUNTRY_INFO!A115=0," ",COUNTRY_INFO!A115) -> Uganda | B115: =IF(COUNTRY_INFO!B115=0," ",COUNTRY_INFO!B115) -> WESTERN | C115: =IF(COUNTRY_INFO!C115=0," ",COUNTRY_INFO!C115) -> KYENJOJO | D115: =IF(COUNTRY_INFO!$T$9:$T$1000="MDA1 (IVM+ALB)", COUNTRY_INFO!$T$9:$T$1000, " ") ->  | I115: 0 | M115: 0
A116: =IF(COUNTRY_INFO!A116=0," ",COUNTRY_INFO!A116) -> Uganda | B116: =IF(COUNTRY_INFO!B116=0," ",COUNTRY_INFO!B116) -> WESTERN | C116: =IF(COUNTRY_INFO!C116=0," ",COUNTRY_INFO!C116) -> MASINDI | D116: =IF(COUNTRY_INFO!$T$9:$T$1000="MDA1 (IVM+ALB)", COUNTRY_INFO!$T$9:$T$1000, " ") ->  | I116: 0 | M116: 0
A117: =IF(COUNTRY_INFO!A117=0," ",COUNTRY_INFO!A117) -> Uganda | B117: =IF(COUNTRY_INFO!B117=0," ",COUNTRY_INFO!B117) -> WESTERN | C117: =IF(COUNTRY_INFO!C117=0," ",COUNTRY_INFO!C117) -> MBARARA | D117: =IF(COUNTRY_INFO!$T$9:$T$1000="MDA1 (IVM+ALB)", COUNTRY_INFO!$T$9:$T$1000, " ") ->  | I117: 0 | M117: 0
A118: =IF(COUNTRY_INFO!A118=0," ",COUNTRY_INFO!A118) -> Uganda | B118: =IF(COUNTRY_INFO!B118=0," ",COUNTRY_INFO!B118) -> WESTERN | C118: =IF(COUNTRY_INFO!C118=0," ",COUNTRY_INFO!C118) -> MITOOMA | D118: =IF(COUNTRY_INFO!$T$9:$T$1000="MDA1 (IVM+ALB)", COUNTRY_INFO!$T$9:$T$1000, " ") ->  | I118: 0 | M118: 0
A119: =IF(COUNTRY_INFO!A119=0," ",COUNTRY_INFO!A119) -> Uganda | B119: =IF(COUNTRY_INFO!B119=0," ",COUNTRY_INFO!B119) -> WESTERN | C119: =IF(COUNTRY_INFO!C119=0," ",COUNTRY_INFO!C119) -> NTOROKO | D119: =IF(COUNTRY_INFO!$T$9:$T$1000="MDA1 (IVM+ALB)", COUNTRY_INFO!$T$9:$T$1000, " ") ->  | I119: 0 | M119: 0
A120: =IF(COUNTRY_INFO!A120=0," ",COUNTRY_INFO!A120) -> Uganda | B120: =IF(COUNTRY_INFO!B120=0," ",COUNTRY_INFO!B120) -> WESTERN | C120: =IF(COUNTRY_INFO!C120=0," ",COUNTRY_INFO!C120) -> NTUNGAMO | D120: =IF(COUNTRY_INFO!$T$9:$T$1000="MDA1 (IVM+ALB)", COUNTRY_INFO!$T$9:$T$1000, " ") ->  | I120: 0 | M120: 0
A121: =IF(COUNTRY_INFO!A121=0," ",COUNTRY_INFO!A121) -> Uganda | B121: =IF(COUNTRY_INFO!B121=0," ",COUNTRY_INFO!B121) -> WESTERN | C121: =IF(COUNTRY_INFO!C121=0," ",COUNTRY_INFO!C121) -> RUBANDA | D121: =IF(COUNTRY_INFO!$T$9:$T$1000="MDA1 (IVM+ALB)", COUNTRY_INFO!$T$9:$T$1000, " ") ->  | I121: 0 | M121: 0
A122: =IF(COUNTRY_INFO!A122=0," ",COUNTRY_INFO!A122) -> Uganda | B122: =IF(COUNTRY_INFO!B122=0," ",COUNTRY_INFO!B122) -> WESTERN | C122: =IF(COUNTRY_INFO!C122=0," ",COUNTRY_INFO!C122) -> RUBIRIZI | D122: =IF(COUNTRY_INFO!$T$9:$T$1000="MDA1 (IVM+ALB)", COUNTRY_INFO!$T$9:$T$1000, " ") ->  | I122: 0 | M122: 0
A123: =IF(COUNTRY_INFO!A123=0," ",COUNTRY_INFO!A123) -> Uganda | B123: =IF(COUNTRY_INFO!B123=0," ",COUNTRY_INFO!B123) -> WESTERN | C123: =IF(COUNTRY_INFO!C123=0," ",COUNTRY_INFO!C123) -> RUKUNGIRI | D123: =IF(COUNTRY_INFO!$T$9:$T$1000="MDA1 (IVM+ALB)", COUNTRY_INFO!$T$9:$T$1000, " ") ->  | I123: 0 | M123: 0
A124: =IF(COUNTRY_INFO!A124=0," ",COUNTRY_INFO!A124) -> Uganda | B124: =IF(COUNTRY_INFO!B124=0," ",COUNTRY_INFO!B124) -> WESTERN | C124: =IF(COUNTRY_INFO!C124=0," ",COUNTRY_INFO!C124) -> SHEEMA | D124: =IF(COUNTRY_INFO!$T$9:$T$1000="MDA1 (IVM+ALB)", COUNTRY_INFO!$T$9:$T$1000, " ") ->  | I124: 0 | M124: 0
A125: =IF(COUNTRY_INFO!A125=0," ",COUNTRY_INFO!A125) -> Uganda | B125: =IF(COUNTRY_INFO!B125=0," ",COUNTRY_INFO!B125) ->  | C125: =IF(COUNTRY_INFO!C125=0," ",COUNTRY_INFO!C125) ->  | D125: =IF(COUNTRY_INFO!$T$9:$T$1000="MDA1 (IVM+ALB)", COUNTRY_INFO!$T$9:$T$1000, " ") ->  | I125: 0 | M125: 0

Sheet MDA2 (hidden)
A1: MDA 2 - Diethylcarbamazine citrate (DEC) + Albendazole (ALB)
A2: Administrative structure, population requiring PC by age group, population treated by age group and coverage
A4: TOTAL | F4: =SUM(F$9:F$1000) -> 0 | G4: =SUM(G$9:G$1000) -> 0 | H4: 0 | I4: 0 | J4: 0 | K4: 0 | L4: 0 | M4: 0 | N4: =IF(F4<>0, IF(J4/F4*100=0, "-", J4/F4*100), " ") ->  | O4: =IF(G4<>0, IF(K4/G4*100=0, "-", K4/G4*100), " ") ->  | P4: =IF(H4<>0, IF(L4/H4*100=0, "-", L4/H4*100), " ") ->  | Q4: =IF(I4<>0, IF(M4/I4*100=0, "-", M4/I4*100), " ") -> 
D6: PC implemented | E6: Date | F6: Population targeted for MDA 2 | J6: Population treated | N6: Programme coverage (%)
A7: Country | B7: Province/State | C7: District | F7: PreSAC | G7: SAC | H7: Adults | I7: Total | J7: PreSAC | K7: SAC | L7: Adults | M7: Total | N7: PreSAC | O7: SAC | P7: Adults | Q7: Total
A9: =IF(COUNTRY_INFO!A9=0," ",COUNTRY_INFO!A9) -> Uganda | B9: =IF(COUNTRY_INFO!B9=0," ",COUNTRY_INFO!B9) -> CENTRAL | C9: =IF(COUNTRY_INFO!C9=0," ",COUNTRY_INFO!C9) -> BUIKWE | D9: =IF(COUNTRY_INFO!$T$9:$T$1000="MDA2 (DEC+ALB)", COUNTRY_INFO!$T$9:$T$1000, " ") ->  | I9: =SUM(F9:H9) -> 0 | M9: =SUM(J9:L9) -> 0 | N9: =IF(F9<>0, IF(J9/F9*100=0, "-", J9/F9*100), " ") -> 
A10: =IF(COUNTRY_INFO!A10=0," ",COUNTRY_INFO!A10) -> Uganda | B10: =IF(COUNTRY_INFO!B10=0," ",COUNTRY_INFO!B10) -> CENTRAL | C10: =IF(COUNTRY_INFO!C10=0," ",COUNTRY_INFO!C10) -> BUKOMANSIMBI | D10: =IF(COUNTRY_INFO!$T$9:$T$1000="MDA2 (DEC+ALB)", COUNTRY_INFO!$T$9:$T$1000, " ") ->  | I10: =SUM(F10:H10) -> 0 | M10: =SUM(J10:L10) -> 0 | N10: =IF(F10<>0, IF(J10/F10*100=0, "-", J10/F10*100), " ") ->  | O10: =IF(G10<>0, IF(K10/G10*100=0, "-", K10/G10*100), " ") ->  | P10: =IF(H10<>0, IF(L10/H10*100=0, "-", L10/H10*100), " ") ->  | Q10: =IF(I10<>0, IF(M10/I10*100=0, "-", M10/I10*100), " ") -> 
A11: =IF(COUNTRY_INFO!A11=0," ",COUNTRY_INFO!A11) -> Uganda | B11: =IF(COUNTRY_INFO!B11=0," ",COUNTRY_INFO!B11) -> CENTRAL | C11: =IF(COUNTRY_INFO!C11=0," ",COUNTRY_INFO!C11) -> BUTAMBALA | D11: =IF(COUNTRY_INFO!$T$9:$T$1000="MDA2 (DEC+ALB)", COUNTRY_INFO!$T$9:$T$1000, " ") ->  | I11: 0 | M11: 0
A12: =IF(COUNTRY_INFO!A12=0," ",COUNTRY_INFO!A12) -> Uganda | B12: =IF(COUNTRY_INFO!B12=0," ",COUNTRY_INFO!B12) -> CENTRAL | C12: =IF(COUNTRY_INFO!C12=0," ",COUNTRY_INFO!C12) -> BUVUMA | D12: =IF(COUNTRY_INFO!$T$9:$T$1000="MDA2 (DEC+ALB)", COUNTRY_INFO!$T$9:$T$1000, " ") ->  | I12: 0 | M12: 0
A13: =IF(COUNTRY_INFO!A13=0," ",COUNTRY_INFO!A13) -> Uganda | B13: =IF(COUNTRY_INFO!B13=0," ",COUNTRY_INFO!B13) -> CENTRAL | C13: =IF(COUNTRY_INFO!C13=0," ",COUNTRY_INFO!C13) -> GOMBA | D13: =IF(COUNTRY_INFO!$T$9:$T$1000="MDA2 (DEC+ALB)", COUNTRY_INFO!$T$9:$T$1000, " ") ->  | I13: 0 | M13: 0
A14: =IF(COUNTRY_INFO!A14=0," ",COUNTRY_INFO!A14) -> Uganda | B14: =IF(COUNTRY_INFO!B14=0," ",COUNTRY_INFO!B14) -> CENTRAL | C14: =IF(COUNTRY_INFO!C14=0," ",COUNTRY_INFO!C14) -> KALANGALA | D14: =IF(COUNTRY_INFO!$T$9:$T$1000="MDA2 (DEC+ALB)", COUNTRY_INFO!$T$9:$T$1000, " ") ->  | I14: 0 | M14: 0
A15: =IF(COUNTRY_INFO!A15=0," ",COUNTRY_INFO!A15) -> Uganda | B15: =IF(COUNTRY_INFO!B15=0," ",COUNTRY_INFO!B15) -> CENTRAL | C15: =IF(COUNTRY_INFO!C15=0," ",COUNTRY_INFO!C15) -> KALUNGU | D15: =IF(COUNTRY_INFO!$T$9:$T$1000="MDA2 (DEC+ALB)", COUNTRY_INFO!$T$9:$T$1000, " ") ->  | I15: 0 | M15: 0
A16: =IF(COUNTRY_INFO!A16=0," ",COUNTRY_INFO!A16) -> Uganda | B16: =IF(COUNTRY_INFO!B16=0," ",COUNTRY_INFO!B16) -> CENTRAL | C16: =IF(COUNTRY_INFO!C16=0," ",COUNTRY_INFO!C16) -> KAMPALA | D16: =IF(COUNTRY_INFO!$T$9:$T$1000="MDA2 (DEC+ALB)", COUNTRY_INFO!$T$9:$T$1000, " ") ->  | I16: 0 | M16: 0
A17: =IF(COUNTRY_INFO!A17=0," ",COUNTRY_INFO!A17) -> Uganda | B17: =IF(COUNTRY_INFO!B17=0," ",COUNTRY_INFO!B17) -> CENTRAL | C17: =IF(COUNTRY_INFO!C17=0," ",COUNTRY_INFO!C17) -> KAYUNGA | D17: =IF(COUNTRY_INFO!$T$9:$T$1000="MDA2 (DEC+ALB)", COUNTRY_INFO!$T$9:$T$1000, " ") ->  | I17: 0 | M17: 0
A18: =IF(COUNTRY_INFO!A18=0," ",COUNTRY_INFO!A18) -> Uganda | B18: =IF(COUNTRY_INFO!B18=0," ",COUNTRY_INFO!B18) -> CENTRAL | C18: =IF(COUNTRY_INFO!C18=0," ",COUNTRY_INFO!C18) -> KIBOGA | D18: =IF(COUNTRY_INFO!$T$9:$T$1000="MDA2 (DEC+ALB)", COUNTRY_INFO!$T$9:$T$1000, " ") ->  | I18: 0 | M18: 0
A19: =IF(COUNTRY_INFO!A19=0," ",COUNTRY_INFO!A19) -> Uganda | B19: =IF(COUNTRY_INFO!B19=0," ",COUNTRY_INFO!B19) -> CENTRAL | C19: =IF(COUNTRY_INFO!C19=0," ",COUNTRY_INFO!C19) -> KYANKWANZI | D19: =IF(COUNTRY_INFO!$T$9:$T$1000="MDA2 (DEC+ALB)", COUNTRY_INFO!$T$9:$T$1000, " ") ->  | I19: 0 | M19: 0
A20: =IF(COUNTRY_INFO!A20=0," ",COUNTRY_INFO!A20) -> Uganda | B20: =IF(COUNTRY_INFO!B20=0," ",COUNTRY_INFO!B20) -> CENTRAL | C20: =IF(COUNTRY_INFO!C20=0," ",COUNTRY_INFO!C20) -> LUWERO | D20: =IF(COUNTRY_INFO!$T$9:$T$1000="MDA2 (DEC+ALB)", COUNTRY_INFO!$T$9:$T$1000, " ") ->  | I20: 0 | M20: 0
A21: =IF(COUNTRY_INFO!A21=0," ",COUNTRY_INFO!A21) -> Uganda | B21: =IF(COUNTRY_INFO!B21=0," ",COUNTRY_INFO!B21) -> CENTRAL | C21: =IF(COUNTRY_INFO!C21=0," ",COUNTRY_INFO!C21) -> LWENGO | D21: =IF(COUNTRY_INFO!$T$9:$T$1000="MDA2 (DEC+ALB)", COUNTRY_INFO!$T$9:$T$1000, " ") ->  | I21: 0 | M21: 0
A22: =IF(COUNTRY_INFO!A22=0," ",COUNTRY_INFO!A22) -> Uganda | B22: =IF(COUNTRY_INFO!B22=0," ",COUNTRY_INFO!B22) -> CENTRAL | C22: =IF(COUNTRY_INFO!C22=0," ",COUNTRY_INFO!C22) -> LYANTONDE | D22: =IF(COUNTRY_INFO!$T$9:$T$1000="MDA2 (DEC+ALB)", COUNTRY_INFO!$T$9:$T$1000, " ") ->  | I22: 0 | M22: 0
A23: =IF(COUNTRY_INFO!A23=0," ",COUNTRY_INFO!A23) -> Uganda | B23: =IF(COUNTRY_INFO!B23=0," ",COUNTRY_INFO!B23) -> CENTRAL | C23: =IF(COUNTRY_INFO!C23=0," ",COUNTRY_INFO!C23) -> MASAKA | D23: =IF(COUNTRY_INFO!$T$9:$T$1000="MDA2 (DEC+ALB)", COUNTRY_INFO!$T$9:$T$1000, " ") ->  | I23: 0 | M23: 0
A24: =IF(COUNTRY_INFO!A24=0," ",COUNTRY_INFO!A24) -> Uganda | B24: =IF(COUNTRY_INFO!B24=0," ",COUNTRY_INFO!B24) -> CENTRAL | C24: =IF(COUNTRY_INFO!C24=0," ",COUNTRY_INFO!C24) -> MITYANA | D24: =IF(COUNTRY_INFO!$T$9:$T$1000="MDA2 (DEC+ALB)", COUNTRY_INFO!$T$9:$T$1000, " ") ->  | I24: 0 | M24: 0
A25: =IF(COUNTRY_INFO!A25=0," ",COUNTRY_INFO!A25) -> Uganda | B25: =IF(COUNTRY_INFO!B25=0," ",COUNTRY_INFO!B25) -> CENTRAL | C25: =IF(COUNTRY_INFO!C25=0," ",COUNTRY_INFO!C25) -> MPIGI | D25: =IF(COUNTRY_INFO!$T$9:$T$1000="MDA2 (DEC+ALB)", COUNTRY_INFO!$T$9:$T$1000, " ") ->  | I25: 0 | M25: 0
A26: =IF(COUNTRY_INFO!A26=0," ",COUNTRY_INFO!A26) -> Uganda | B26: =IF(COUNTRY_INFO!B26=0," ",COUNTRY_INFO!B26) -> CENTRAL | C26: =IF(COUNTRY_INFO!C26=0," ",COUNTRY_INFO!C26) -> MUBENDE | D26: =IF(COUNTRY_INFO!$T$9:$T$1000="MDA2 (DEC+ALB)", COUNTRY_INFO!$T$9:$T$1000, " ") ->  | I26: 0 | M26: 0
A27: =IF(COUNTRY_INFO!A27=0," ",COUNTRY_INFO!A27) -> Uganda | B27: =IF(COUNTRY_INFO!B27=0," ",COUNTRY_INFO!B27) -> CENTRAL | C27: =IF(COUNTRY_INFO!C27=0," ",COUNTRY_INFO!C27) -> MUKONO | D27: =IF(COUNTRY_INFO!$T$9:$T$1000="MDA2 (DEC+ALB)", COUNTRY_INFO!$T$9:$T$1000, " ") ->  | I27: 0 | M27: 0
A28: =IF(COUNTRY_INFO!A28=0," ",COUNTRY_INFO!A28) -> Uganda | B28: =IF(COUNTRY_INFO!B28=0," ",COUNTRY_INFO!B28) -> CENTRAL | C28: =IF(COUNTRY_INFO!C28=0," ",COUNTRY_INFO!C28) -> NAKASEKE | D28: =IF(COUNTRY_INFO!$T$9:$T$1000="MDA2 (DEC+ALB)", COUNTRY_INFO!$T$9:$T$1000, " ") ->  | I28: 0 | M28: 0
A29: =IF(COUNTRY_INFO!A29=0," ",COUNTRY_INFO!A29) -> Uganda | B29: =IF(COUNTRY_INFO!B29=0," ",COUNTRY_INFO!B29) -> CENTRAL | C29: =IF(COUNTRY_INFO!C29=0," ",COUNTRY_INFO!C29) -> NAKASONGOLA | D29: =IF(COUNTRY_INFO!$T$9:$T$1000="MDA2 (DEC+ALB)", COUNTRY_INFO!$T$9:$T$1000, " ") ->  | I29: 0 | M29: 0
A30: =IF(COUNTRY_INFO!A30=0," ",COUNTRY_INFO!A30) -> Uganda | B30: =IF(COUNTRY_INFO!B30=0," ",COUNTRY_INFO!B30) -> CENTRAL | C30: =IF(COUNTRY_INFO!C30=0," ",COUNTRY_INFO!C30) -> RAKAI | D30: =IF(COUNTRY_INFO!$T$9:$T$1000="MDA2 (DEC+ALB)", COUNTRY_INFO!$T$9:$T$1000, " ") ->  | I30: 0 | M30: 0
A31: =IF(COUNTRY_INFO!A31=0," ",COUNTRY_INFO!A31) -> Uganda | B31: =IF(COUNTRY_INFO!B31=0," ",COUNTRY_INFO!B31) -> CENTRAL | C31: =IF(COUNTRY_INFO!C31=0," ",COUNTRY_INFO!C31) -> SEMBABULE | D31: =IF(COUNTRY_INFO!$T$9:$T$1000="MDA2 (DEC+ALB)", COUNTRY_INFO!$T$9:$T$1000, " ") ->  | I31: 0 | M31: 0
A32: =IF(COUNTRY_INFO!A32=0," ",COUNTRY_INFO!A32) -> Uganda | B32: =IF(COUNTRY_INFO!B32=0," ",COUNTRY_INFO!B32) -> CENTRAL | C32: =IF(COUNTRY_INFO!C32=0," ",COUNTRY_INFO!C32) -> WAKISO | D32: =IF(COUNTRY_INFO!$T$9:$T$1000="MDA2 (DEC+ALB)", COUNTRY_INFO!$T$9:$T$1000, " ") ->  | I32: 0 | M32: 0
A33: =IF(COUNTRY_INFO!A33=0," ",COUNTRY_INFO!A33) -> Uganda | B33: =IF(COUNTRY_INFO!B33=0," ",COUNTRY_INFO!B33) -> EASTERN | C33: =IF(COUNTRY_INFO!C33=0," ",COUNTRY_INFO!C33) -> AMURIA | D33: =IF(COUNTRY_INFO!$T$9:$T$1000="MDA2 (DEC+ALB)", COUNTRY_INFO!$T$9:$T$1000, " ") ->  | I33: 0 | M33: 0
A34: =IF(COUNTRY_INFO!A34=0," ",COUNTRY_INFO!A34) -> Uganda | B34: =IF(COUNTRY_INFO!B34=0," ",COUNTRY_INFO!B34) -> EASTERN | C34: =IF(COUNTRY_INFO!C34=0," ",COUNTRY_INFO!C34) -> BUDAKA | D34: =IF(COUNTRY_INFO!$T$9:$T$1000="MDA2 (DEC+ALB)", COUNTRY_INFO!$T$9:$T$1000, " ") ->  | I34: 0 | M34: 0
A35: =IF(COUNTRY_INFO!A35=0," ",COUNTRY_INFO!A35) -> Uganda | B35: =IF(COUNTRY_INFO!B35=0," ",COUNTRY_INFO!B35) -> EASTERN | C35: =IF(COUNTRY_INFO!C35=0," ",COUNTRY_INFO!C35) -> BUDUDA | D35: =IF(COUNTRY_INFO!$T$9:$T$1000="MDA2 (DEC+ALB)", COUNTRY_INFO!$T$9:$T$1000, " ") ->  | I35: 0 | M35: 0
A36: =IF(COUNTRY_INFO!A36=0," ",COUNTRY_INFO!A36) -> Uganda | B36: =IF(COUNTRY_INFO!B36=0," ",COUNTRY_INFO!B36) -> EASTERN | C36: =IF(COUNTRY_INFO!C36=0," ",COUNTRY_INFO!C36) -> BUGIRI | D36: =IF(COUNTRY_INFO!$T$9:$T$1000="MDA2 (DEC+ALB)", COUNTRY_INFO!$T$9:$T$1000, " ") ->  | I36: 0 | M36: 0
A37: =IF(COUNTRY_INFO!A37=0," ",COUNTRY_INFO!A37) -> Uganda | B37: =IF(COUNTRY_INFO!B37=0," ",COUNTRY_INFO!B37) -> EASTERN | C37: =IF(COUNTRY_INFO!C37=0," ",COUNTRY_INFO!C37) -> BUKEDEA | D37: =IF(COUNTRY_INFO!$T$9:$T$1000="MDA2 (DEC+ALB)", COUNTRY_INFO!$T$9:$T$1000, " ") ->  | I37: 0 | M37: 0
A38: =IF(COUNTRY_INFO!A38=0," ",COUNTRY_INFO!A38) -> Uganda | B38: =IF(COUNTRY_INFO!B38=0," ",COUNTRY_INFO!B38) -> EASTERN | C38: =IF(COUNTRY_INFO!C38=0," ",COUNTRY_INFO!C38) -> BUKWO | D38: =IF(COUNTRY_INFO!$T$9:$T$1000="MDA2 (DEC+ALB)", COUNTRY_INFO!$T$9:$T$1000, " ") ->  | I38: 0 | M38: 0
A39: =IF(COUNTRY_INFO!A39=0," ",COUNTRY_INFO!A39) -> Uganda | B39: =IF(COUNTRY_INFO!B39=0," ",COUNTRY_INFO!B39) -> EASTERN | C39: =IF(COUNTRY_INFO!C39=0," ",COUNTRY_INFO!C39) -> BULAMBULI | D39: =IF(COUNTRY_INFO!$T$9:$T$1000="MDA2 (DEC+ALB)", COUNTRY_INFO!$T$9:$T$1000, " ") ->  | I39: 0 | M39: 0
A40: =IF(COUNTRY_INFO!A40=0," ",COUNTRY_INFO!A40) -> Uganda | B40: =IF(COUNTRY_INFO!B40=0," ",COUNTRY_INFO!B40) -> EASTERN | C40: =IF(COUNTRY_INFO!C40=0," ",COUNTRY_INFO!C40) -> BUSIA | D40: =IF(COUNTRY_INFO!$T$9:$T$1000="MDA2 (DEC+ALB)", COUNTRY_INFO!$T$9:$T$1000, " ") ->  | I40: 0 | M40: 0
A41: =IF(COUNTRY_INFO!A41=0," ",COUNTRY_INFO!A41) -> Uganda | B41: =IF(COUNTRY_INFO!B41=0," ",COUNTRY_INFO!B41) -> EASTERN | C41: =IF(COUNTRY_INFO!C41=0," ",COUNTRY_INFO!C41) -> BUTALEJA | D41: =IF(COUNTRY_INFO!$T$9:$T$1000="MDA2 (DEC+ALB)", COUNTRY_INFO!$T$9:$T$1000, " ") ->  | I41: 0 | M41: 0
A42: =IF(COUNTRY_INFO!A42=0," ",COUNTRY_INFO!A42) -> Uganda | B42: =IF(COUNTRY_INFO!B42=0," ",COUNTRY_INFO!B42) -> EASTERN | C42: =IF(COUNTRY_INFO!C42=0," ",COUNTRY_INFO!C42) -> BUYENDE | D42: =IF(COUNTRY_INFO!$T$9:$T$1000="MDA2 (DEC+ALB)", COUNTRY_INFO!$T$9:$T$1000, " ") ->  | I42: 0 | M42: 0
A43: =IF(COUNTRY_INFO!A43=0," ",COUNTRY_INFO!A43) -> Uganda | B43: =IF(COUNTRY_INFO!B43=0," ",COUNTRY_INFO!B43) -> EASTERN | C43: =IF(COUNTRY_INFO!C43=0," ",COUNTRY_INFO!C43) -> IGANGA | D43: =IF(COUNTRY_INFO!$T$9:$T$1000="MDA2 (DEC+ALB)", COUNTRY_INFO!$T$9:$T$1000, " ") ->  | I43: 0 | M43: 0
A44: =IF(COUNTRY_INFO!A44=0," ",COUNTRY_INFO!A44) -> Uganda | B44: =IF(COUNTRY_INFO!B44=0," ",COUNTRY_INFO!B44) -> EASTERN | C44: =IF(COUNTRY_INFO!C44=0," ",COUNTRY_INFO!C44) -> JINJA | D44: =IF(COUNTRY_INFO!$T$9:$T$1000="MDA2 (DEC+ALB)", COUNTRY_INFO!$T$9:$T$1000, " ") ->  | I44: 0 | M44: 0
A45: =IF(COUNTRY_INFO!A45=0," ",COUNTRY_INFO!A45) -> Uganda | B45: =IF(COUNTRY_INFO!B45=0," ",COUNTRY_INFO!B45) -> EASTERN | C45: =IF(COUNTRY_INFO!C45=0," ",COUNTRY_INFO!C45) -> KABERAMAIDO | D45: =IF(COUNTRY_INFO!$T$9:$T$1000="MDA2 (DEC+ALB)", COUNTRY_INFO!$T$9:$T$1000, " ") ->  | I45: 0 | M45: 0
A46: =IF(COUNTRY_INFO!A46=0," ",COUNTRY_INFO!A46) -> Uganda | B46: =IF(COUNTRY_INFO!B46=0," ",COUNTRY_INFO!B46) -> EASTERN | C46: =IF(COUNTRY_INFO!C46=0," ",COUNTRY_INFO!C46) -> KALIRO | D46: =IF(COUNTRY_INFO!$T$9:$T$1000="MDA2 (DEC+ALB)", COUNTRY_INFO!$T$9:$T$1000, " ") ->  | I46: 0 | M46: 0
A47: =IF(COUNTRY_INFO!A47=0," ",COUNTRY_INFO!A47) -> Uganda | B47: =IF(COUNTRY_INFO!B47=0," ",COUNTRY_INFO!B47) -> EASTERN | C47: =IF(COUNTRY_INFO!C47=0," ",COUNTRY_INFO!C47) -> KAMULI | D47: =IF(COUNTRY_INFO!$T$9:$T$1000="MDA2 (DEC+ALB)", COUNTRY_INFO!$T$9:$T$1000, " ") ->  | I47: 0 | M47: 0
A48: =IF(COUNTRY_INFO!A48=0," ",COUNTRY_INFO!A48) -> Uganda | B48: =IF(COUNTRY_INFO!B48=0," ",COUNTRY_INFO!B48) -> EASTERN | C48: =IF(COUNTRY_INFO!C48=0," ",COUNTRY_INFO!C48) -> KAPCHORWA | D48: =IF(COUNTRY_INFO!$T$9:$T$1000="MDA2 (DEC+ALB)", COUNTRY_INFO!$T$9:$T$1000, " ") ->  | I48: 0 | M48: 0
A49: =IF(COUNTRY_INFO!A49=0," ",COUNTRY_INFO!A49) -> Uganda | B49: =IF(COUNTRY_INFO!B49=0," ",COUNTRY_INFO!B49) -> EASTERN | C49: =IF(COUNTRY_INFO!C49=0," ",COUNTRY_INFO!C49) -> KATAKWI | D49: =IF(COUNTRY_INFO!$T$9:$T$1000="MDA2 (DEC+ALB)", COUNTRY_INFO!$T$9:$T$1000, " ") ->  | I49: 0 | M49: 0
A50: =IF(COUNTRY_INFO!A50=0," ",COUNTRY_INFO!A50) -> Uganda | B50: =IF(COUNTRY_INFO!B50=0," ",COUNTRY_INFO!B50) -> EASTERN | C50: =IF(COUNTRY_INFO!C50=0," ",COUNTRY_INFO!C50) -> KIBUKU | D50: =IF(COUNTRY_INFO!$T$9:$T$1000="MDA2 (DEC+ALB)", COUNTRY_INFO!$T$9:$T$1000, " ") ->  | I50: 0 | M50: 0
A51: =IF(COUNTRY_INFO!A51=0," ",COUNTRY_INFO!A51) -> Uganda | B51: =IF(COUNTRY_INFO!B51=0," ",COUNTRY_INFO!B51) -> EASTERN | C51: =IF(COUNTRY_INFO!C51=0," ",COUNTRY_INFO!C51) -> KUMI | D51: =IF(COUNTRY_INFO!$T$9:$T$1000="MDA2 (DEC+ALB)", COUNTRY_INFO!$T$9:$T$1000, " ") ->  | I51: 0 | M51: 0
A52: =IF(COUNTRY_INFO!A52=0," ",COUNTRY_INFO!A52) -> Uganda | B52: =IF(COUNTRY_INFO!B52=0," ",COUNTRY_INFO!B52) -> EASTERN | C52: =IF(COUNTRY_INFO!C52=0," ",COUNTRY_INFO!C52) -> KWEEN | D52: =IF(COUNTRY_INFO!$T$9:$T$1000="MDA2 (DEC+ALB)", COUNTRY_INFO!$T$9:$T$1000, " ") ->  | I52: 0 | M52: 0
A53: =IF(COUNTRY_INFO!A53=0," ",COUNTRY_INFO!A53) -> Uganda | B53: =IF(COUNTRY_INFO!B53=0," ",COUNTRY_INFO!B53) -> EASTERN | C53: =IF(COUNTRY_INFO!C53=0," ",COUNTRY_INFO!C53) -> LUUKA | D53: =IF(COUNTRY_INFO!$T$9:$T$1000="MDA2 (DEC+ALB)", COUNTRY_INFO!$T$9:$T$1000, " ") ->  | I53: 0 | M53: 0
A54: =IF(COUNTRY_INFO!A54=0," ",COUNTRY_INFO!A54) -> Uganda | B54: =IF(COUNTRY_INFO!B54=0," ",COUNTRY_INFO!B54) -> EASTERN | C54: =IF(COUNTRY_INFO!C54=0," ",COUNTRY_INFO!C54) -> MANAFWA | D54: =IF(COUNTRY_INFO!$T$9:$T$1000="MDA2 (DEC+ALB)", COUNTRY_INFO!$T$9:$T$1000, " ") ->  | I54: 0 | M54: 0
A55: =IF(COUNTRY_INFO!A55=0," ",COUNTRY_INFO!A55) -> Uganda | B55: =IF(COUNTRY_INFO!B55=0," ",COUNTRY_INFO!B55) -> EASTERN | C55: =IF(COUNTRY_INFO!C55=0," ",COUNTRY_INFO!C55) -> MAYUGE | D55: =IF(COUNTRY_INFO!$T$9:$T$1000="MDA2 (DEC+ALB)", COUNTRY_INFO!$T$9:$T$1000, " ") ->  | I55: 0 | M55: 0
A56: =IF(COUNTRY_INFO!A56=0," ",COUNTRY_INFO!A56) -> Uganda | B56: =IF(COUNTRY_INFO!B56=0," ",COUNTRY_INFO!B56) -> EASTERN | C56: =IF(COUNTRY_INFO!C56=0," ",COUNTRY_INFO!C56) -> MBALE | D56: =IF(COUNTRY_INFO!$T$9:$T$1000="MDA2 (DEC+ALB)", COUNTRY_INFO!$T$9:$T$1000, " ") ->  | I56: 0 | M56: 0
A57: =IF(COUNTRY_INFO!A57=0," ",COUNTRY_INFO!A57) -> Uganda | B57: =IF(COUNTRY_INFO!B57=0," ",COUNTRY_INFO!B57) -> EASTERN | C57: =IF(COUNTRY_INFO!C57=0," ",COUNTRY_INFO!C57) -> NAMAYINGO | D57: =IF(COUNTRY_INFO!$T$9:$T$1000="MDA2 (DEC+ALB)", COUNTRY_INFO!$T$9:$T$1000, " ") ->  | I57: 0 | M57: 0
A58: =IF(COUNTRY_INFO!A58=0," ",COUNTRY_INFO!A58) -> Uganda | B58: =IF(COUNTRY_INFO!B58=0," ",COUNTRY_INFO!B58) -> EASTERN | C58: =IF(COUNTRY_INFO!C58=0," ",COUNTRY_INFO!C58) -> NAMUTUMBA | D58: =IF(COUNTRY_INFO!$T$9:$T$1000="MDA2 (DEC+ALB)", COUNTRY_INFO!$T$9:$T$1000, " ") ->  | I58: 0 | M58: 0
A59: =IF(COUNTRY_INFO!A59=0," ",COUNTRY_INFO!A59) -> Uganda | B59: =IF(COUNTRY_INFO!B59=0," ",COUNTRY_INFO!B59) -> EASTERN | C59: =IF(COUNTRY_INFO!C59=0," ",COUNTRY_INFO!C59) -> NGORA | D59: =IF(COUNTRY_INFO!$T$9:$T$1000="MDA2 (DEC+ALB)", COUNTRY_INFO!$T$9:$T$1000, " ") ->  | I59: 0 | M59: 0
A60: =IF(COUNTRY_INFO!A60=0," ",COUNTRY_INFO!A60) -> Uganda | B60: =IF(COUNTRY_INFO!B60=0," ",COUNTRY_INFO!B60) -> EASTERN | C60: =IF(COUNTRY_INFO!C60=0," ",COUNTRY_INFO!C60) -> PALLISA | D60: =IF(COUNTRY_INFO!$T$9:$T$1000="MDA2 (DEC+ALB)", COUNTRY_INFO!$T$9:$T$1000, " ") ->  | I60: 0 | M60: 0
A61: =IF(COUNTRY_INFO!A61=0," ",COUNTRY_INFO!A61) -> Uganda | B61: =IF(COUNTRY_INFO!B61=0," ",COUNTRY_INFO!B61) -> EASTERN | C61: =IF(COUNTRY_INFO!C61=0," ",COUNTRY_INFO!C61) -> SERERE | D61: =IF(COUNTRY_INFO!$T$9:$T$1000="MDA2 (DEC+ALB)", COUNTRY_INFO!$T$9:$T$1000, " ") ->  | I61: 0 | M61: 0
A62: =IF(COUNTRY_INFO!A62=0," ",COUNTRY_INFO!A62) -> Uganda | B62: =IF(COUNTRY_INFO!B62=0," ",COUNTRY_INFO!B62) -> EASTERN | C62: =IF(COUNTRY_INFO!C62=0," ",COUNTRY_INFO!C62) -> SIRONKO | D62: =IF(COUNTRY_INFO!$T$9:$T$1000="MDA2 (DEC+ALB)", COUNTRY_INFO!$T$9:$T$1000, " ") ->  | I62: 0 | M62: 0
A63: =IF(COUNTRY_INFO!A63=0," ",COUNTRY_INFO!A63) -> Uganda | B63: =IF(COUNTRY_INFO!B63=0," ",COUNTRY_INFO!B63) -> EASTERN | C63: =IF(COUNTRY_INFO!C63=0," ",COUNTRY_INFO!C63) -> SOROTI | D63: =IF(COUNTRY_INFO!$T$9:$T$1000="MDA2 (DEC+ALB)", COUNTRY_INFO!$T$9:$T$1000, " ") ->  | I63: 0 | M63: 0
A64: =IF(COUNTRY_INFO!A64=0," ",COUNTRY_INFO!A64) -> Uganda | B64: =IF(COUNTRY_INFO!B64=0," ",COUNTRY_INFO!B64) -> EASTERN | C64: =IF(COUNTRY_INFO!C64=0," ",COUNTRY_INFO!C64) -> TORORO | D64: =IF(COUNTRY_INFO!$T$9:$T$1000="MDA2 (DEC+ALB)", COUNTRY_INFO!$T$9:$T$1000, " ") ->  | I64: 0 | M64: 0
A65: =IF(COUNTRY_INFO!A65=0," ",COUNTRY_INFO!A65) -> Uganda | B65: =IF(COUNTRY_INFO!B65=0," ",COUNTRY_INFO!B65) -> NORTHERN | C65: =IF(COUNTRY_INFO!C65=0," ",COUNTRY_INFO!C65) -> ABIM | D65: =IF(COUNTRY_INFO!$T$9:$T$1000="MDA2 (DEC+ALB)", COUNTRY_INFO!$T$9:$T$1000, " ") ->  | I65: 0 | M65: 0
A66: =IF(COUNTRY_INFO!A66=0," ",COUNTRY_INFO!A66) -> Uganda | B66: =IF(COUNTRY_INFO!B66=0," ",COUNTRY_INFO!B66) -> NORTHERN | C66: =IF(COUNTRY_INFO!C66=0," ",COUNTRY_INFO!C66) -> ADJUMANI | D66: =IF(COUNTRY_INFO!$T$9:$T$1000="MDA2 (DEC+ALB)", COUNTRY_INFO!$T$9:$T$1000, " ") ->  | I66: 0 | M66: 0
A67: =IF(COUNTRY_INFO!A67=0," ",COUNTRY_INFO!A67) -> Uganda | B67: =IF(COUNTRY_INFO!B67=0," ",COUNTRY_INFO!B67) -> NORTHERN | C67: =IF(COUNTRY_INFO!C67=0," ",COUNTRY_INFO!C67) -> AGAGO | D67: =IF(COUNTRY_INFO!$T$9:$T$1000="MDA2 (DEC+ALB)", COUNTRY_INFO!$T$9:$T$1000, " ") ->  | I67: 0 | M67: 0
A68: =IF(COUNTRY_INFO!A68=0," ",COUNTRY_INFO!A68) -> Uganda | B68: =IF(COUNTRY_INFO!B68=0," ",COUNTRY_INFO!B68) -> NORTHERN | C68: =IF(COUNTRY_INFO!C68=0," ",COUNTRY_INFO!C68) -> ALEBTONG | D68: =IF(COUNTRY_INFO!$T$9:$T$1000="MDA2 (DEC+ALB)", COUNTRY_INFO!$T$9:$T$1000, " ") ->  | I68: 0 | M68: 0
A69: =IF(COUNTRY_INFO!A69=0," ",COUNTRY_INFO!A69) -> Uganda | B69: =IF(COUNTRY_INFO!B69=0," ",COUNTRY_INFO!B69) -> NORTHERN | C69: =IF(COUNTRY_INFO!C69=0," ",COUNTRY_INFO!C69) -> AMOLATAR | D69: =IF(COUNTRY_INFO!$T$9:$T$1000="MDA2 (DEC+ALB)", COUNTRY_INFO!$T$9:$T$1000, " ") ->  | I69: 0 | M69: 0
A70: =IF(COUNTRY_INFO!A70=0," ",COUNTRY_INFO!A70) -> Uganda | B70: =IF(COUNTRY_INFO!B70=0," ",COUNTRY_INFO!B70) -> NORTHERN | C70: =IF(COUNTRY_INFO!C70=0," ",COUNTRY_INFO!C70) -> AMUDAT | D70: =IF(COUNTRY_INFO!$T$9:$T$1000="MDA2 (DEC+ALB)", COUNTRY_INFO!$T$9:$T$1000, " ") ->  | I70: 0 | M70: 0
A71: =IF(COUNTRY_INFO!A71=0," ",COUNTRY_INFO!A71) -> Uganda | B71: =IF(COUNTRY_INFO!B71=0," ",COUNTRY_INFO!B71) -> NORTHERN | C71: =IF(COUNTRY_INFO!C71=0," ",COUNTRY_INFO!C71) -> AMURU | D71: =IF(COUNTRY_INFO!$T$9:$T$1000="MDA2 (DEC+ALB)", COUNTRY_INFO!$T$9:$T$1000, " ") ->  | I71: 0 | M71: 0
A72: =IF(COUNTRY_INFO!A72=0," ",COUNTRY_INFO!A72) -> Uganda | B72: =IF(COUNTRY_INFO!B72=0," ",COUNTRY_INFO!B72) -> NORTHERN | C72: =IF(COUNTRY_INFO!C72=0," ",COUNTRY_INFO!C72) -> APAC | D72: =IF(COUNTRY_INFO!$T$9:$T$1000="MDA2 (DEC+ALB)", COUNTRY_INFO!$T$9:$T$1000, " ") ->  | I72: 0 | M72: 0
A73: =IF(COUNTRY_INFO!A73=0," ",COUNTRY_INFO!A73) -> Uganda | B73: =IF(COUNTRY_INFO!B73=0," ",COUNTRY_INFO!B73) -> NORTHERN | C73: =IF(COUNTRY_INFO!C73=0," ",COUNTRY_INFO!C73) -> ARUA | D73: =IF(COUNTRY_INFO!$T$9:$T$1000="MDA2 (DEC+ALB)", COUNTRY_INFO!$T$9:$T$1000, " ") ->  | I73: 0 | M73: 0
A74: =IF(COUNTRY_INFO!A74=0," ",COUNTRY_INFO!A74) -> Uganda | B74: =IF(COUNTRY_INFO!B74=0," ",COUNTRY_INFO!B74) -> NORTHERN | C74: =IF(COUNTRY_INFO!C74=0," ",COUNTRY_INFO!C74) -> DOKOLO | D74: =IF(COUNTRY_INFO!$T$9:$T$1000="MDA2 (DEC+ALB)", COUNTRY_INFO!$T$9:$T$1000, " ") ->  | I74: =SUM(F74:H74) -> 0 | M74: =SUM(J74:L74) -> 0 | N74: =IF(F74<>0, IF(J74/F74*100=0, "-", J74/F74*100), " ") ->  | O74: =IF(G74<>0, IF(K74/G74*100=0, "-", K74/G74*100), " ") ->  | P74: =IF(H74<>0, IF(L74/H74*100=0, "-", L74/H74*100), " ") ->  | Q74: =IF(I74<>0, IF(M74/I74*100=0, "-", M74/I74*100), " ") -> 
A75: =IF(COUNTRY_INFO!A75=0," ",COUNTRY_INFO!A75) -> Uganda | B75: =IF(COUNTRY_INFO!B75=0," ",COUNTRY_INFO!B75) -> NORTHERN | C75: =IF(COUNTRY_INFO!C75=0," ",COUNTRY_INFO!C75) -> GULU | D75: =IF(COUNTRY_INFO!$T$9:$T$1000="MDA2 (DEC+ALB)", COUNTRY_INFO!$T$9:$T$1000, " ") ->  | I75: 0 | M75: 0
A76: =IF(COUNTRY_INFO!A76=0," ",COUNTRY_INFO!A76) -> Uganda | B76: =IF(COUNTRY_INFO!B76=0," ",COUNTRY_INFO!B76) -> NORTHERN | C76: =IF(COUNTRY_INFO!C76=0," ",COUNTRY_INFO!C76) -> KAABONG | D76: =IF(COUNTRY_INFO!$T$9:$T$1000="MDA2 (DEC+ALB)", COUNTRY_INFO!$T$9:$T$1000, " ") ->  | I76: 0 | M76: 0
A77: =IF(COUNTRY_INFO!A77=0," ",COUNTRY_INFO!A77) -> Uganda | B77: =IF(COUNTRY_INFO!B77=0," ",COUNTRY_INFO!B77) -> NORTHERN | C77: =IF(COUNTRY_INFO!C77=0," ",COUNTRY_INFO!C77) -> KITGUM | D77: =IF(COUNTRY_INFO!$T$9:$T$1000="MDA2 (DEC+ALB)", COUNTRY_INFO!$T$9:$T$1000, " ") ->  | I77: 0 | M77: 0
A78: =IF(COUNTRY_INFO!A78=0," ",COUNTRY_INFO!A78) -> Uganda | B78: =IF(COUNTRY_INFO!B78=0," ",COUNTRY_INFO!B78) -> NORTHERN | C78: =IF(COUNTRY_INFO!C78=0," ",COUNTRY_INFO!C78) -> KOBOKO | D78: =IF(COUNTRY_INFO!$T$9:$T$1000="MDA2 (DEC+ALB)", COUNTRY_INFO!$T$9:$T$1000, " ") ->  | I78: 0 | M78: 0
A79: =IF(COUNTRY_INFO!A79=0," ",COUNTRY_INFO!A79) -> Uganda | B79: =IF(COUNTRY_INFO!B79=0," ",COUNTRY_INFO!B79) -> NORTHERN | C79: =IF(COUNTRY_INFO!C79=0," ",COUNTRY_INFO!C79) -> KOLE | D79: =IF(COUNTRY_INFO!$T$9:$T$1000="MDA2 (DEC+ALB)", COUNTRY_INFO!$T$9:$T$1000, " ") ->  | I79: 0 | M79: 0
A80: =IF(COUNTRY_INFO!A80=0," ",COUNTRY_INFO!A80) -> Uganda | B80: =IF(COUNTRY_INFO!B80=0," ",COUNTRY_INFO!B80) -> NORTHERN | C80: =IF(COUNTRY_INFO!C80=0," ",COUNTRY_INFO!C80) -> KOTIDO | D80: =IF(COUNTRY_INFO!$T$9:$T$1000="MDA2 (DEC+ALB)", COUNTRY_INFO!$T$9:$T$1000, " ") ->  | I80: 0 | M80: 0
A81: =IF(COUNTRY_INFO!A81=0," ",COUNTRY_INFO!A81) -> Uganda | B81: =IF(COUNTRY_INFO!B81=0," ",COUNTRY_INFO!B81) -> NORTHERN | C81: =IF(COUNTRY_INFO!C81=0," ",COUNTRY_INFO!C81) -> LAMWO | D81: =IF(COUNTRY_INFO!$T$9:$T$1000="MDA2 (DEC+ALB)", COUNTRY_INFO!$T$9:$T$1000, " ") ->  | I81: 0 | M81: 0
A82: =IF(COUNTRY_INFO!A82=0," ",COUNTRY_INFO!A82) -> Uganda | B82: =IF(COUNTRY_INFO!B82=0," ",COUNTRY_INFO!B82) -> NORTHERN | C82: =IF(COUNTRY_INFO!C82=0," ",COUNTRY_INFO!C82) -> LIRA | D82: =IF(COUNTRY_INFO!$T$9:$T$1000="MDA2 (DEC+ALB)", COUNTRY_INFO!$T$9:$T$1000, " ") ->  | I82: 0 | M82: 0
A83: =IF(COUNTRY_INFO!A83=0," ",COUNTRY_INFO!A83) -> Uganda | B83: =IF(COUNTRY_INFO!B83=0," ",COUNTRY_INFO!B83) -> NORTHERN | C83: =IF(COUNTRY_INFO!C83=0," ",COUNTRY_INFO!C83) -> MARACHA | D83: =IF(COUNTRY_INFO!$T$9:$T$1000="MDA2 (DEC+ALB)", COUNTRY_INFO!$T$9:$T$1000, " ") ->  | I83: 0 | M83: 0
A84: =IF(COUNTRY_INFO!A84=0," ",COUNTRY_INFO!A84) -> Uganda | B84: =IF(COUNTRY_INFO!B84=0," ",COUNTRY_INFO!B84) -> NORTHERN | C84: =IF(COUNTRY_INFO!C84=0," ",COUNTRY_INFO!C84) -> MOROTO | D84: =IF(COUNTRY_INFO!$T$9:$T$1000="MDA2 (DEC+ALB)", COUNTRY_INFO!$T$9:$T$1000, " ") ->  | I84: 0 | M84: 0
A85: =IF(COUNTRY_INFO!A85=0," ",COUNTRY_INFO!A85) -> Uganda | B85: =IF(COUNTRY_INFO!B85=0," ",COUNTRY_INFO!B85) -> NORTHERN | C85: =IF(COUNTRY_INFO!C85=0," ",COUNTRY_INFO!C85) -> MOYO | D85: =IF(COUNTRY_INFO!$T$9:$T$1000="MDA2 (DEC+ALB)", COUNTRY_INFO!$T$9:$T$1000, " ") ->  | I85: 0 | M85: 0
A86: =IF(COUNTRY_INFO!A86=0," ",COUNTRY_INFO!A86) -> Uganda | B86: =IF(COUNTRY_INFO!B86=0," ",COUNTRY_INFO!B86) -> NORTHERN | C86: =IF(COUNTRY_INFO!C86=0," ",COUNTRY_INFO!C86) -> NAKAPIRIPIRIT | D86: =IF(COUNTRY_INFO!$T$9:$T$1000="MDA2 (DEC+ALB)", COUNTRY_INFO!$T$9:$T$1000, " ") ->  | I86: 0 | M86: 0
A87: =IF(COUNTRY_INFO!A87=0," ",COUNTRY_INFO!A87) -> Uganda | B87: =IF(COUNTRY_INFO!B87=0," ",COUNTRY_INFO!B87) -> NORTHERN | C87: =IF(COUNTRY_INFO!C87=0," ",COUNTRY_INFO!C87) -> NAPAK | D87: =IF(COUNTRY_INFO!$T$9:$T$1000="MDA2 (DEC+ALB)", COUNTRY_INFO!$T$9:$T$1000, " ") ->  | I87: 0 | M87: 0
A88: =IF(COUNTRY_INFO!A88=0," ",COUNTRY_INFO!A88) -> Uganda | B88: =IF(COUNTRY_INFO!B88=0," ",COUNTRY_INFO!B88) -> NORTHERN | C88: =IF(COUNTRY_INFO!C88=0," ",COUNTRY_INFO!C88) -> NEBBI | D88: =IF(COUNTRY_INFO!$T$9:$T$1000="MDA2 (DEC+ALB)", COUNTRY_INFO!$T$9:$T$1000, " ") ->  | I88: 0 | M88: 0
A89: =IF(COUNTRY_INFO!A89=0," ",COUNTRY_INFO!A89) -> Uganda | B89: =IF(COUNTRY_INFO!B89=0," ",COUNTRY_INFO!B89) -> NORTHERN | C89: =IF(COUNTRY_INFO!C89=0," ",COUNTRY_INFO!C89) -> NWOYA | D89: =IF(COUNTRY_INFO!$T$9:$T$1000="MDA2 (DEC+ALB)", COUNTRY_INFO!$T$9:$T$1000, " ") ->  | I89: 0 | M89: 0
A90: =IF(COUNTRY_INFO!A90=0," ",COUNTRY_INFO!A90) -> Uganda | B90: =IF(COUNTRY_INFO!B90=0," ",COUNTRY_INFO!B90) -> NORTHERN | C90: =IF(COUNTRY_INFO!C90=0," ",COUNTRY_INFO!C90) -> OMORO | D90: =IF(COUNTRY_INFO!$T$9:$T$1000="MDA2 (DEC+ALB)", COUNTRY_INFO!$T$9:$T$1000, " ") ->  | I90: 0 | M90: 0
A91: =IF(COUNTRY_INFO!A91=0," ",COUNTRY_INFO!A91) -> Uganda | B91: =IF(COUNTRY_INFO!B91=0," ",COUNTRY_INFO!B91) -> NORTHERN | C91: =IF(COUNTRY_INFO!C91=0," ",COUNTRY_INFO!C91) -> OTUKE | D91: =IF(COUNTRY_INFO!$T$9:$T$1000="MDA2 (DEC+ALB)", COUNTRY_INFO!$T$9:$T$1000, " ") ->  | I91: 0 | M91: 0
A92: =IF(COUNTRY_INFO!A92=0," ",COUNTRY_INFO!A92) -> Uganda | B92: =IF(COUNTRY_INFO!B92=0," ",COUNTRY_INFO!B92) -> NORTHERN | C92: =IF(COUNTRY_INFO!C92=0," ",COUNTRY_INFO!C92) -> OYAM | D92: =IF(COUNTRY_INFO!$T$9:$T$1000="MDA2 (DEC+ALB)", COUNTRY_INFO!$T$9:$T$1000, " ") ->  | I92: 0 | M92: 0
A93: =IF(COUNTRY_INFO!A93=0," ",COUNTRY_INFO!A93) -> Uganda | B93: =IF(COUNTRY_INFO!B93=0," ",COUNTRY_INFO!B93) -> NORTHERN | C93: =IF(COUNTRY_INFO!C93=0," ",COUNTRY_INFO!C93) -> PADER | D93: =IF(COUNTRY_INFO!$T$9:$T$1000="MDA2 (DEC+ALB)", COUNTRY_INFO!$T$9:$T$1000, " ") ->  | I93: 0 | M93: 0
A94: =IF(COUNTRY_INFO!A94=0," ",COUNTRY_INFO!A94) -> Uganda | B94: =IF(COUNTRY_INFO!B94=0," ",COUNTRY_INFO!B94) -> NORTHERN | C94: =IF(COUNTRY_INFO!C94=0," ",COUNTRY_INFO!C94) -> YUMBE | D94: =IF(COUNTRY_INFO!$T$9:$T$1000="MDA2 (DEC+ALB)", COUNTRY_INFO!$T$9:$T$1000, " ") ->  | I94: 0 | M94: 0
A95: =IF(COUNTRY_INFO!A95=0," ",COUNTRY_INFO!A95) -> Uganda | B95: =IF(COUNTRY_INFO!B95=0," ",COUNTRY_INFO!B95) -> NORTHERN | C95: =IF(COUNTRY_INFO!C95=0," ",COUNTRY_INFO!C95) -> ZOMBO | D95: =IF(COUNTRY_INFO!$T$9:$T$1000="MDA2 (DEC+ALB)", COUNTRY_INFO!$T$9:$T$1000, " ") ->  | I95: 0 | M95: 0
A96: =IF(COUNTRY_INFO!A96=0," ",COUNTRY_INFO!A96) -> Uganda | B96: =IF(COUNTRY_INFO!B96=0," ",COUNTRY_INFO!B96) -> WESTERN | C96: =IF(COUNTRY_INFO!C96=0," ",COUNTRY_INFO!C96) -> BUHWEJU | D96: =IF(COUNTRY_INFO!$T$9:$T$1000="MDA2 (DEC+ALB)", COUNTRY_INFO!$T$9:$T$1000, " ") ->  | I96: 0 | M96: 0
A97: =IF(COUNTRY_INFO!A97=0," ",COUNTRY_INFO!A97) -> Uganda | B97: =IF(COUNTRY_INFO!B97=0," ",COUNTRY_INFO!B97) -> WESTERN | C97: =IF(COUNTRY_INFO!C97=0," ",COUNTRY_INFO!C97) -> BULIISA | D97: =IF(COUNTRY_INFO!$T$9:$T$1000="MDA2 (DEC+ALB)", COUNTRY_INFO!$T$9:$T$1000, " ") ->  | I97: 0 | M97: 0
A98: =IF(COUNTRY_INFO!A98=0," ",COUNTRY_INFO!A98) -> Uganda | B98: =IF(COUNTRY_INFO!B98=0," ",COUNTRY_INFO!B98) -> WESTERN | C98: =IF(COUNTRY_INFO!C98=0," ",COUNTRY_INFO!C98) -> BUNDIBUGYO | D98: =IF(COUNTRY_INFO!$T$9:$T$1000="MDA2 (DEC+ALB)", COUNTRY_INFO!$T$9:$T$1000, " ") ->  | I98: 0 | M98: 0
A99: =IF(COUNTRY_INFO!A99=0," ",COUNTRY_INFO!A99) -> Uganda | B99: =IF(COUNTRY_INFO!B99=0," ",COUNTRY_INFO!B99) -> WESTERN | C99: =IF(COUNTRY_INFO!C99=0," ",COUNTRY_INFO!C99) -> BUSHENYI | D99: =IF(COUNTRY_INFO!$T$9:$T$1000="MDA2 (DEC+ALB)", COUNTRY_INFO!$T$9:$T$1000, " ") ->  | I99: 0 | M99: 0
A100: =IF(COUNTRY_INFO!A100=0," ",COUNTRY_INFO!A100) -> Uganda | B100: =IF(COUNTRY_INFO!B100=0," ",COUNTRY_INFO!B100) -> WESTERN | C100: =IF(COUNTRY_INFO!C100=0," ",COUNTRY_INFO!C100) -> HOIMA | D100: =IF(COUNTRY_INFO!$T$9:$T$1000="MDA2 (DEC+ALB)", COUNTRY_INFO!$T$9:$T$1000, " ") ->  | I100: 0 | M100: 0
A101: =IF(COUNTRY_INFO!A101=0," ",COUNTRY_INFO!A101) -> Uganda | B101: =IF(COUNTRY_INFO!B101=0," ",COUNTRY_INFO!B101) -> WESTERN | C101: =IF(COUNTRY_INFO!C101=0," ",COUNTRY_INFO!C101) -> IBANDA | D101: =IF(COUNTRY_INFO!$T$9:$T$1000="MDA2 (DEC+ALB)", COUNTRY_INFO!$T$9:$T$1000, " ") ->  | I101: 0 | M101: 0
A102: =IF(COUNTRY_INFO!A102=0," ",COUNTRY_INFO!A102) -> Uganda | B102: =IF(COUNTRY_INFO!B102=0," ",COUNTRY_INFO!B102) -> WESTERN | C102: =IF(COUNTRY_INFO!C102=0," ",COUNTRY_INFO!C102) -> ISINGIRO | D102: =IF(COUNTRY_INFO!$T$9:$T$1000="MDA2 (DEC+ALB)", COUNTRY_INFO!$T$9:$T$1000, " ") ->  | I102: 0 | M102: 0
A103: =IF(COUNTRY_INFO!A103=0," ",COUNTRY_INFO!A103) -> Uganda | B103: =IF(COUNTRY_INFO!B103=0," ",COUNTRY_INFO!B103) -> WESTERN | C103: =IF(COUNTRY_INFO!C103=0," ",COUNTRY_INFO!C103) -> KABALE | D103: =IF(COUNTRY_INFO!$T$9:$T$1000="MDA2 (DEC+ALB)", COUNTRY_INFO!$T$9:$T$1000, " ") ->  | I103: 0 | M103: 0
A104: =IF(COUNTRY_INFO!A104=0," ",COUNTRY_INFO!A104) -> Uganda | B104: =IF(COUNTRY_INFO!B104=0," ",COUNTRY_INFO!B104) -> WESTERN | C104: =IF(COUNTRY_INFO!C104=0," ",COUNTRY_INFO!C104) -> KABAROLE | D104: =IF(COUNTRY_INFO!$T$9:$T$1000="MDA2 (DEC+ALB)", COUNTRY_INFO!$T$9:$T$1000, " ") ->  | I104: 0 | M104: 0
A105: =IF(COUNTRY_INFO!A105=0," ",COUNTRY_INFO!A105) -> Uganda | B105: =IF(COUNTRY_INFO!B105=0," ",COUNTRY_INFO!B105) -> WESTERN | C105: =IF(COUNTRY_INFO!C105=0," ",COUNTRY_INFO!C105) -> KAGADI | D105: =IF(COUNTRY_INFO!$T$9:$T$1000="MDA2 (DEC+ALB)", COUNTRY_INFO!$T$9:$T$1000, " ") ->  | I105: 0 | M105: 0
A106: =IF(COUNTRY_INFO!A106=0," ",COUNTRY_INFO!A106) -> Uganda | B106: =IF(COUNTRY_INFO!B106=0," ",COUNTRY_INFO!B106) -> WESTERN | C106: =IF(COUNTRY_INFO!C106=0," ",COUNTRY_INFO!C106) -> KAKUMIRO | D106: =IF(COUNTRY_INFO!$T$9:$T$1000="MDA2 (DEC+ALB)", COUNTRY_INFO!$T$9:$T$1000, " ") ->  | I106: 0 | M106: 0
A107: =IF(COUNTRY_INFO!A107=0," ",COUNTRY_INFO!A107) -> Uganda | B107: =IF(COUNTRY_INFO!B107=0," ",COUNTRY_INFO!B107) -> WESTERN | C107: =IF(COUNTRY_INFO!C107=0," ",COUNTRY_INFO!C107) -> KAMWENGE | D107: =IF(COUNTRY_INFO!$T$9:$T$1000="MDA2 (DEC+ALB)", COUNTRY_INFO!$T$9:$T$1000, " ") ->  | I107: 0 | M107: 0
A108: =IF(COUNTRY_INFO!A108=0," ",COUNTRY_INFO!A108) -> Uganda | B108: =IF(COUNTRY_INFO!B108=0," ",COUNTRY_INFO!B108) -> WESTERN | C108: =IF(COUNTRY_INFO!C108=0," ",COUNTRY_INFO!C108) -> KANUNGU | D108: =IF(COUNTRY_INFO!$T$9:$T$1000="MDA2 (DEC+ALB)", COUNTRY_INFO!$T$9:$T$1000, " ") ->  | I108: 0 | M108: 0
A109: =IF(COUNTRY_INFO!A109=0," ",COUNTRY_INFO!A109) -> Uganda | B109: =IF(COUNTRY_INFO!B109=0," ",COUNTRY_INFO!B109) -> WESTERN | C109: =IF(COUNTRY_INFO!C109=0," ",COUNTRY_INFO!C109) -> KASESE | D109: =IF(COUNTRY_INFO!$T$9:$T$1000="MDA2 (DEC+ALB)", COUNTRY_INFO!$T$9:$T$1000, " ") ->  | I109: 0 | M109: 0
A110: =IF(COUNTRY_INFO!A110=0," ",COUNTRY_INFO!A110) -> Uganda | B110: =IF(COUNTRY_INFO!B110=0," ",COUNTRY_INFO!B110) -> WESTERN | C110: =IF(COUNTRY_INFO!C110=0," ",COUNTRY_INFO!C110) -> KIBAALE | D110: =IF(COUNTRY_INFO!$T$9:$T$1000="MDA2 (DEC+ALB)", COUNTRY_INFO!$T$9:$T$1000, " ") ->  | I110: 0 | M110: 0
A111: =IF(COUNTRY_INFO!A111=0," ",COUNTRY_INFO!A111) -> Uganda | B111: =IF(COUNTRY_INFO!B111=0," ",COUNTRY_INFO!B111) -> WESTERN | C111: =IF(COUNTRY_INFO!C111=0," ",COUNTRY_INFO!C111) -> KIRUHURA | D111: =IF(COUNTRY_INFO!$T$9:$T$1000="MDA2 (DEC+ALB)", COUNTRY_INFO!$T$9:$T$1000, " ") ->  | I111: 0 | M111: 0
A112: =IF(COUNTRY_INFO!A112=0," ",COUNTRY_INFO!A112) -> Uganda | B112: =IF(COUNTRY_INFO!B112=0," ",COUNTRY_INFO!B112) -> WESTERN | C112: =IF(COUNTRY_INFO!C112=0," ",COUNTRY_INFO!C112) -> KIRYANDONGO | D112: =IF(COUNTRY_INFO!$T$9:$T$1000="MDA2 (DEC+ALB)", COUNTRY_INFO!$T$9:$T$1000, " ") ->  | I112: 0 | M112: 0
A113: =IF(COUNTRY_INFO!A113=0," ",COUNTRY_INFO!A113) -> Uganda | B113: =IF(COUNTRY_INFO!B113=0," ",COUNTRY_INFO!B113) -> WESTERN | C113: =IF(COUNTRY_INFO!C113=0," ",COUNTRY_INFO!C113) -> KISORO | D113: =IF(COUNTRY_INFO!$T$9:$T$1000="MDA2 (DEC+ALB)", COUNTRY_INFO!$T$9:$T$1000, " ") ->  | I113: 0 | M113: 0
A114: =IF(COUNTRY_INFO!A114=0," ",COUNTRY_INFO!A114) -> Uganda | B114: =IF(COUNTRY_INFO!B114=0," ",COUNTRY_INFO!B114) -> WESTERN | C114: =IF(COUNTRY_INFO!C114=0," ",COUNTRY_INFO!C114) -> KYEGEGWA | D114: =IF(COUNTRY_INFO!$T$9:$T$1000="MDA2 (DEC+ALB)", COUNTRY_INFO!$T$9:$T$1000, " ") ->  | I114: 0 | M114: 0
A115: =IF(COUNTRY_INFO!A115=0," ",COUNTRY_INFO!A115) -> Uganda | B115: =IF(COUNTRY_INFO!B115=0," ",COUNTRY_INFO!B115) -> WESTERN | C115: =IF(COUNTRY_INFO!C115=0," ",COUNTRY_INFO!C115) -> KYENJOJO | D115: =IF(COUNTRY_INFO!$T$9:$T$1000="MDA2 (DEC+ALB)", COUNTRY_INFO!$T$9:$T$1000, " ") ->  | I115: 0 | M115: 0
A116: =IF(COUNTRY_INFO!A116=0," ",COUNTRY_INFO!A116) -> Uganda | B116: =IF(COUNTRY_INFO!B116=0," ",COUNTRY_INFO!B116) -> WESTERN | C116: =IF(COUNTRY_INFO!C116=0," ",COUNTRY_INFO!C116) -> MASINDI | D116: =IF(COUNTRY_INFO!$T$9:$T$1000="MDA2 (DEC+ALB)", COUNTRY_INFO!$T$9:$T$1000, " ") ->  | I116: 0 | M116: 0
A117: =IF(COUNTRY_INFO!A117=0," ",COUNTRY_INFO!A117) -> Uganda | B117: =IF(COUNTRY_INFO!B117=0," ",COUNTRY_INFO!B117) -> WESTERN | C117: =IF(COUNTRY_INFO!C117=0," ",COUNTRY_INFO!C117) -> MBARARA | D117: =IF(COUNTRY_INFO!$T$9:$T$1000="MDA2 (DEC+ALB)", COUNTRY_INFO!$T$9:$T$1000, " ") ->  | I117: 0 | M117: 0
A118: =IF(COUNTRY_INFO!A118=0," ",COUNTRY_INFO!A118) -> Uganda | B118: =IF(COUNTRY_INFO!B118=0," ",COUNTRY_INFO!B118) -> WESTERN | C118: =IF(COUNTRY_INFO!C118=0," ",COUNTRY_INFO!C118) -> MITOOMA | D118: =IF(COUNTRY_INFO!$T$9:$T$1000="MDA2 (DEC+ALB)", COUNTRY_INFO!$T$9:$T$1000, " ") ->  | I118: 0 | M118: 0
A119: =IF(COUNTRY_INFO!A119=0," ",COUNTRY_INFO!A119) -> Uganda | B119: =IF(COUNTRY_INFO!B119=0," ",COUNTRY_INFO!B119) -> WESTERN | C119: =IF(COUNTRY_INFO!C119=0," ",COUNTRY_INFO!C119) -> NTOROKO | D119: =IF(COUNTRY_INFO!$T$9:$T$1000="MDA2 (DEC+ALB)", COUNTRY_INFO!$T$9:$T$1000, " ") ->  | I119: 0 | M119: 0
A120: =IF(COUNTRY_INFO!A120=0," ",COUNTRY_INFO!A120) -> Uganda | B120: =IF(COUNTRY_INFO!B120=0," ",COUNTRY_INFO!B120) -> WESTERN | C120: =IF(COUNTRY_INFO!C120=0," ",COUNTRY_INFO!C120) -> NTUNGAMO | D120: =IF(COUNTRY_INFO!$T$9:$T$1000="MDA2 (DEC+ALB)", COUNTRY_INFO!$T$9:$T$1000, " ") ->  | I120: 0 | M120: 0
A121: =IF(COUNTRY_INFO!A121=0," ",COUNTRY_INFO!A121) -> Uganda | B121: =IF(COUNTRY_INFO!B121=0," ",COUNTRY_INFO!B121) -> WESTERN | C121: =IF(COUNTRY_INFO!C121=0," ",COUNTRY_INFO!C121) -> RUBANDA | D121: =IF(COUNTRY_INFO!$T$9:$T$1000="MDA2 (DEC+ALB)", COUNTRY_INFO!$T$9:$T$1000, " ") ->  | I121: 0 | M121: 0
A122: =IF(COUNTRY_INFO!A122=0," ",COUNTRY_INFO!A122) -> Uganda | B122: =IF(COUNTRY_INFO!B122=0," ",COUNTRY_INFO!B122) -> WESTERN | C122: =IF(COUNTRY_INFO!C122=0," ",COUNTRY_INFO!C122) -> RUBIRIZI | D122: =IF(COUNTRY_INFO!$T$9:$T$1000="MDA2 (DEC+ALB)", COUNTRY_INFO!$T$9:$T$1000, " ") ->  | I122: 0 | M122: 0
A123: =IF(COUNTRY_INFO!A123=0," ",COUNTRY_INFO!A123) -> Uganda | B123: =IF(COUNTRY_INFO!B123=0," ",COUNTRY_INFO!B123) -> WESTERN | C123: =IF(COUNTRY_INFO!C123=0," ",COUNTRY_INFO!C123) -> RUKUNGIRI | D123: =IF(COUNTRY_INFO!$T$9:$T$1000="MDA2 (DEC+ALB)", COUNTRY_INFO!$T$9:$T$1000, " ") ->  | I123: 0 | M123: 0
A124: =IF(COUNTRY_INFO!A124=0," ",COUNTRY_INFO!A124) -> Uganda | B124: =IF(COUNTRY_INFO!B124=0," ",COUNTRY_INFO!B124) -> WESTERN | C124: =IF(COUNTRY_INFO!C124=0," ",COUNTRY_INFO!C124) -> SHEEMA | D124: =IF(COUNTRY_INFO!$T$9:$T$1000="MDA2 (DEC+ALB)", COUNTRY_INFO!$T$9:$T$1000, " ") ->  | I124: 0 | M124: 0
A125: =IF(COUNTRY_INFO!A125=0," ",COUNTRY_INFO!A125) -> Uganda | B125: =IF(COUNTRY_INFO!B125=0," ",COUNTRY_INFO!B125) ->  | C125: =IF(COUNTRY_INFO!C125=0," ",COUNTRY_INFO!C125) ->  | D125: =IF(COUNTRY_INFO!$T$9:$T$1000="MDA2 (DEC+ALB)", COUNTRY_INFO!$T$9:$T$1000, " ") ->  | I125: 0 | M125: 0

Sheet MDA3
A1: MDA 3 - Ivermectin (IVM) | P1: =(I4+J4)*3 -> 5560614 | Q1: =(N4*3) -> 3972666 | R1: 4824006 | V1: =SUM(P1:R1) -> 14357286
A2: Administrative structure, population requiring PC by age group, population treated by age group and coverage
A4: TOTAL | F4: =SUM(F$9:F$1000) -> 737940 | G4: 1272809 | H4: 2010749 | I4: 680156.1069 | J4: 1173381.893 | K4: 1853538 | L4: 485923.5043 | M4: 838298.4957 | N4: 1324222 | O4: 697641.6501 | P4: 1203547.35 | Q4: 1901189 | R4: =IF(F4<>0, IF(O4/F4*100=0, "-", O4/F4*100), " ") -> 94.539075 | S4: =IF(G4<>0, IF(P4/G4*100=0, "-", P4/G4*100), " ") -> 94.55836264 | T4: =IF(H4<>0, IF(Q4/H4*100=0, "-", Q4/H4*100), " ") -> 94.55128412
D6: PC implemented | E6: Date | F6: Population targeted for MDA 3 | I6: Population treated - 1st round | L6: Population treated - 2nd round | O6: Population treated | R6: Programme coverage (%)
A7: Country | B7: Province/State | C7: District | F7: SAC | G7: Adults | H7: Total | I7: SAC | J7: Adults | K7: Total | L7: SAC | M7: Adults | N7: Total | O7: SAC | P7: Adults | Q7: Total | R7: SAC | S7: Adults | T7: Total
A9: =IF(COUNTRY_INFO!A9=0," ",COUNTRY_INFO!A9) -> Uganda | B9: =IF(COUNTRY_INFO!B9=0," ",COUNTRY_INFO!B9) -> CENTRAL | C9: =IF(COUNTRY_INFO!C9=0," ",COUNTRY_INFO!C9) -> BUIKWE | D9: =IF(COUNTRY_INFO!$T$9:$T$1000="MDA3 (IVM)", COUNTRY_INFO!$T$9:$T$1000, " ") ->  | G9: 0 | H9: =SUM(F9:G9) -> 0 | K9: =SUM(I9:J9) -> 0 | N9: =SUM(L9:M9) -> 0 | O9: =MAX(I9,L9) -> 0 | P9: 0 | Q9: =SUM(O9:P9) -> 0 | R9: =IF(F9<>0, IF(MAX(I9,L9)/F9*100=0, "-", MAX(I9,L9)/F9*100), " ") ->  | T9: =IF(H9<>0, IF((MAX(I9,L9)+MAX(J9,M9))/H9*100=0, "-",(MAX(I9,L9)+MAX(J9,M9))/H9*100), " ") -> 
A10: =IF(COUNTRY_INFO!A10=0," ",COUNTRY_INFO!A10) -> Uganda | B10: =IF(COUNTRY_INFO!B10=0," ",COUNTRY_INFO!B10) -> CENTRAL | C10: =IF(COUNTRY_INFO!C10=0," ",COUNTRY_INFO!C10) -> BUKOMANSIMBI | D10: =IF(COUNTRY_INFO!$T$9:$T$1000="MDA3 (IVM)", COUNTRY_INFO!$T$9:$T$1000, " ") ->  | G10: 0 | H10: =SUM(F10:G10) -> 0 | K10: =SUM(I10:J10) -> 0 | N10: =SUM(L10:M10) -> 0 | O10: =MAX(I10,L10) -> 0 | P10: =MAX(J10,M10) -> 0 | Q10: =SUM(O10:P10) -> 0 | R10: =IF(F10<>0, IF(MAX(I10,L10)/F10*100=0, "-", MAX(I10,L10)/F10*100), " ") ->  | S10: =IF(G10<>0, IF(MAX(J10,M10)/G10*100=0, "-", MAX(J10,M10)/G10*100), " ") ->  | T10: =IF(H10<>0, IF((MAX(I10,L10)+MAX(J10,M10))/H10*100=0, "-",(MAX(I10,L10)+MAX(J10,M10))/H10*100), " ") -> 
A11: =IF(COUNTRY_INFO!A11=0," ",COUNTRY_INFO!A11) -> Uganda | B11: =IF(COUNTRY_INFO!B11=0," ",COUNTRY_INFO!B11) -> CENTRAL | C11: =IF(COUNTRY_INFO!C11=0," ",COUNTRY_INFO!C11) -> BUTAMBALA | D11: =IF(COUNTRY_INFO!$T$9:$T$1000="MDA3 (IVM)", COUNTRY_INFO!$T$9:$T$1000, " ") ->  | G11: 0 | H11: 0 | K11: 0 | N11: 0 | O11: 0 | P11: 0 | Q11: 0
A12: =IF(COUNTRY_INFO!A12=0," ",COUNTRY_INFO!A12) -> Uganda | B12: =IF(COUNTRY_INFO!B12=0," ",COUNTRY_INFO!B12) -> CENTRAL | C12: =IF(COUNTRY_INFO!C12=0," ",COUNTRY_INFO!C12) -> BUVUMA | D12: =IF(COUNTRY_INFO!$T$9:$T$1000="MDA3 (IVM)", COUNTRY_INFO!$T$9:$T$1000, " ") ->  | G12: 0 | H12: 0 | K12: 0 | N12: 0 | O12: 0 | P12: 0 | Q12: 0
A13: =IF(COUNTRY_INFO!A13=0," ",COUNTRY_INFO!A13) -> Uganda | B13: =IF(COUNTRY_INFO!B13=0," ",COUNTRY_INFO!B13) -> CENTRAL | C13: =IF(COUNTRY_INFO!C13=0," ",COUNTRY_INFO!C13) -> GOMBA | D13: =IF(COUNTRY_INFO!$T$9:$T$1000="MDA3 (IVM)", COUNTRY_INFO!$T$9:$T$1000, " ") ->  | G13: 0 | H13: 0 | K13: 0 | N13: 0 | O13: 0 | P13: 0 | Q13: 0
A14: =IF(COUNTRY_INFO!A14=0," ",COUNTRY_INFO!A14) -> Uganda | B14: =IF(COUNTRY_INFO!B14=0," ",COUNTRY_INFO!B14) -> CENTRAL | C14: =IF(COUNTRY_INFO!C14=0," ",COUNTRY_INFO!C14) -> KALANGALA | D14: =IF(COUNTRY_INFO!$T$9:$T$1000="MDA3 (IVM)", COUNTRY_INFO!$T$9:$T$1000, " ") ->  | G14: 0 | H14: 0 | K14: 0 | N14: 0 | O14: 0 | P14: 0 | Q14: 0
A15: =IF(COUNTRY_INFO!A15=0," ",COUNTRY_INFO!A15) -> Uganda | B15: =IF(COUNTRY_INFO!B15=0," ",COUNTRY_INFO!B15) -> CENTRAL | C15: =IF(COUNTRY_INFO!C15=0," ",COUNTRY_INFO!C15) -> KALUNGU | D15: =IF(COUNTRY_INFO!$T$9:$T$1000="MDA3 (IVM)", COUNTRY_INFO!$T$9:$T$1000, " ") ->  | G15: 0 | H15: 0 | K15: 0 | N15: 0 | O15: 0 | P15: 0 | Q15: 0
A16: =IF(COUNTRY_INFO!A16=0," ",COUNTRY_INFO!A16) -> Uganda | B16: =IF(COUNTRY_INFO!B16=0," ",COUNTRY_INFO!B16) -> CENTRAL | C16: =IF(COUNTRY_INFO!C16=0," ",COUNTRY_INFO!C16) -> KAMPALA | D16: =IF(COUNTRY_INFO!$T$9:$T$1000="MDA3 (IVM)", COUNTRY_INFO!$T$9:$T$1000, " ") ->  | G16: 0 | H16: 0 | K16: 0 | N16: 0 | O16: 0 | P16: 0 | Q16: 0
A17: =IF(COUNTRY_INFO!A17=0," ",COUNTRY_INFO!A17) -> Uganda | B17: =IF(COUNTRY_INFO!B17=0," ",COUNTRY_INFO!B17) -> CENTRAL | C17: =IF(COUNTRY_INFO!C17=0," ",COUNTRY_INFO!C17) -> KAYUNGA | D17: =IF(COUNTRY_INFO!$T$9:$T$1000="MDA3 (IVM)", COUNTRY_INFO!$T$9:$T$1000, " ") ->  | G17: 0 | H17: 0 | K17: 0 | N17: 0 | O17: 0 | P17: 0 | Q17: 0
A18: =IF(COUNTRY_INFO!A18=0," ",COUNTRY_INFO!A18) -> Uganda | B18: =IF(COUNTRY_INFO!B18=0," ",COUNTRY_INFO!B18) -> CENTRAL | C18: =IF(COUNTRY_INFO!C18=0," ",COUNTRY_INFO!C18) -> KIBOGA | D18: =IF(COUNTRY_INFO!$T$9:$T$1000="MDA3 (IVM)", COUNTRY_INFO!$T$9:$T$1000, " ") ->  | G18: 0 | H18: 0 | K18: 0 | N18: 0 | O18: 0 | P18: 0 | Q18: 0
A19: =IF(COUNTRY_INFO!A19=0," ",COUNTRY_INFO!A19) -> Uganda | B19: =IF(COUNTRY_INFO!B19=0," ",COUNTRY_INFO!B19) -> CENTRAL | C19: =IF(COUNTRY_INFO!C19=0," ",COUNTRY_INFO!C19) -> KYANKWANZI | D19: =IF(COUNTRY_INFO!$T$9:$T$1000="MDA3 (IVM)", COUNTRY_INFO!$T$9:$T$1000, " ") ->  | G19: 0 | H19: 0 | K19: 0 | N19: 0 | O19: 0 | P19: 0 | Q19: 0
A20: =IF(COUNTRY_INFO!A20=0," ",COUNTRY_INFO!A20) -> Uganda | B20: =IF(COUNTRY_INFO!B20=0," ",COUNTRY_INFO!B20) -> CENTRAL | C20: =IF(COUNTRY_INFO!C20=0," ",COUNTRY_INFO!C20) -> LUWERO | D20: =IF(COUNTRY_INFO!$T$9:$T$1000="MDA3 (IVM)", COUNTRY_INFO!$T$9:$T$1000, " ") ->  | G20: 0 | H20: 0 | K20: 0 | N20: 0 | O20: 0 | P20: 0 | Q20: 0
A21: =IF(COUNTRY_INFO!A21=0," ",COUNTRY_INFO!A21) -> Uganda | B21: =IF(COUNTRY_INFO!B21=0," ",COUNTRY_INFO!B21) -> CENTRAL | C21: =IF(COUNTRY_INFO!C21=0," ",COUNTRY_INFO!C21) -> LWENGO | D21: =IF(COUNTRY_INFO!$T$9:$T$1000="MDA3 (IVM)", COUNTRY_INFO!$T$9:$T$1000, " ") ->  | G21: 0 | H21: 0 | K21: 0 | N21: 0 | O21: 0 | P21: 0 | Q21: 0
A22: =IF(COUNTRY_INFO!A22=0," ",COUNTRY_INFO!A22) -> Uganda | B22: =IF(COUNTRY_INFO!B22=0," ",COUNTRY_INFO!B22) -> CENTRAL | C22: =IF(COUNTRY_INFO!C22=0," ",COUNTRY_INFO!C22) -> LYANTONDE | D22: =IF(COUNTRY_INFO!$T$9:$T$1000="MDA3 (IVM)", COUNTRY_INFO!$T$9:$T$1000, " ") ->  | G22: 0 | H22: 0 | K22: 0 | N22: 0 | O22: 0 | P22: 0 | Q22: 0
A23: =IF(COUNTRY_INFO!A23=0," ",COUNTRY_INFO!A23) -> Uganda | B23: =IF(COUNTRY_INFO!B23=0," ",COUNTRY_INFO!B23) -> CENTRAL | C23: =IF(COUNTRY_INFO!C23=0," ",COUNTRY_INFO!C23) -> MASAKA | D23: =IF(COUNTRY_INFO!$T$9:$T$1000="MDA3 (IVM)", COUNTRY_INFO!$T$9:$T$1000, " ") ->  | G23: 0 | H23: 0 | K23: 0 | N23: 0 | O23: 0 | P23: 0 | Q23: 0
A24: =IF(COUNTRY_INFO!A24=0," ",COUNTRY_INFO!A24) -> Uganda | B24: =IF(COUNTRY_INFO!B24=0," ",COUNTRY_INFO!B24) -> CENTRAL | C24: =IF(COUNTRY_INFO!C24=0," ",COUNTRY_INFO!C24) -> MITYANA | D24: =IF(COUNTRY_INFO!$T$9:$T$1000="MDA3 (IVM)", COUNTRY_INFO!$T$9:$T$1000, " ") ->  | G24: 0 | H24: 0 | K24: 0 | N24: 0 | O24: 0 | P24: 0 | Q24: 0
A25: =IF(COUNTRY_INFO!A25=0," ",COUNTRY_INFO!A25) -> Uganda | B25: =IF(COUNTRY_INFO!B25=0," ",COUNTRY_INFO!B25) -> CENTRAL | C25: =IF(COUNTRY_INFO!C25=0," ",COUNTRY_INFO!C25) -> MPIGI | D25: =IF(COUNTRY_INFO!$T$9:$T$1000="MDA3 (IVM)", COUNTRY_INFO!$T$9:$T$1000, " ") ->  | G25: 0 | H25: 0 | K25: 0 | N25: 0 | O25: 0 | P25: 0 | Q25: 0
A26: =IF(COUNTRY_INFO!A26=0," ",COUNTRY_INFO!A26) -> Uganda | B26: =IF(COUNTRY_INFO!B26=0," ",COUNTRY_INFO!B26) -> CENTRAL | C26: =IF(COUNTRY_INFO!C26=0," ",COUNTRY_INFO!C26) -> MUBENDE | D26: =IF(COUNTRY_INFO!$T$9:$T$1000="MDA3 (IVM)", COUNTRY_INFO!$T$9:$T$1000, " ") ->  | G26: 0 | H26: 0 | K26: 0 | N26: 0 | O26: 0 | P26: 0 | Q26: 0
A27: =IF(COUNTRY_INFO!A27=0," ",COUNTRY_INFO!A27) -> Uganda | B27: =IF(COUNTRY_INFO!B27=0," ",COUNTRY_INFO!B27) -> CENTRAL | C27: =IF(COUNTRY_INFO!C27=0," ",COUNTRY_INFO!C27) -> MUKONO | D27: =IF(COUNTRY_INFO!$T$9:$T$1000="MDA3 (IVM)", COUNTRY_INFO!$T$9:$T$1000, " ") ->  | G27: 0 | H27: 0 | K27: 0 | N27: 0 | O27: 0 | P27: 0 | Q27: 0
A28: =IF(COUNTRY_INFO!A28=0," ",COUNTRY_INFO!A28) -> Uganda | B28: =IF(COUNTRY_INFO!B28=0," ",COUNTRY_INFO!B28) -> CENTRAL | C28: =IF(COUNTRY_INFO!C28=0," ",COUNTRY_INFO!C28) -> NAKASEKE | D28: =IF(COUNTRY_INFO!$T$9:$T$1000="MDA3 (IVM)", COUNTRY_INFO!$T$9:$T$1000, " ") ->  | H28: 0 | K28: 0 | N28: 0 | O28: 0 | P28: 0 | Q28: 0
A29: =IF(COUNTRY_INFO!A29=0," ",COUNTRY_INFO!A29) -> Uganda | B29: =IF(COUNTRY_INFO!B29=0," ",COUNTRY_INFO!B29) -> CENTRAL | C29: =IF(COUNTRY_INFO!C29=0," ",COUNTRY_INFO!C29) -> NAKASONGOLA | D29: =IF(COUNTRY_INFO!$T$9:$T$1000="MDA3 (IVM)", COUNTRY_INFO!$T$9:$T$1000, " ") ->  | H29: 0 | K29: 0 | N29: 0 | O29: 0 | P29: 0 | Q29: 0
A30: =IF(COUNTRY_INFO!A30=0," ",COUNTRY_INFO!A30) -> Uganda | B30: =IF(COUNTRY_INFO!B30=0," ",COUNTRY_INFO!B30) -> CENTRAL | C30: =IF(COUNTRY_INFO!C30=0," ",COUNTRY_INFO!C30) -> RAKAI | D30: =IF(COUNTRY_INFO!$T$9:$T$1000="MDA3 (IVM)", COUNTRY_INFO!$T$9:$T$1000, " ") ->  | H30: 0 | K30: 0 | N30: 0 | O30: 0 | P30: 0 | Q30: 0
A31: =IF(COUNTRY_INFO!A31=0," ",COUNTRY_INFO!A31) -> Uganda | B31: =IF(COUNTRY_INFO!B31=0," ",COUNTRY_INFO!B31) -> CENTRAL | C31: =IF(COUNTRY_INFO!C31=0," ",COUNTRY_INFO!C31) -> SEMBABULE | D31: =IF(COUNTRY_INFO!$T$9:$T$1000="MDA3 (IVM)", COUNTRY_INFO!$T$9:$T$1000, " ") ->  | H31: 0 | K31: 0 | N31: 0 | O31: 0 | P31: 0 | Q31: 0
A32: =IF(COUNTRY_INFO!A32=0," ",COUNTRY_INFO!A32) -> Uganda | B32: =IF(COUNTRY_INFO!B32=0," ",COUNTRY_INFO!B32) -> CENTRAL | C32: =IF(COUNTRY_INFO!C32=0," ",COUNTRY_INFO!C32) -> WAKISO | D32: =IF(COUNTRY_INFO!$T$9:$T$1000="MDA3 (IVM)", COUNTRY_INFO!$T$9:$T$1000, " ") ->  | H32: 0 | K32: 0 | N32: 0 | O32: 0 | P32: 0 | Q32: 0
A33: =IF(COUNTRY_INFO!A33=0," ",COUNTRY_INFO!A33) -> Uganda | B33: =IF(COUNTRY_INFO!B33=0," ",COUNTRY_INFO!B33) -> EASTERN | C33: =IF(COUNTRY_INFO!C33=0," ",COUNTRY_INFO!C33) -> AMURIA | D33: =IF(COUNTRY_INFO!$T$9:$T$1000="MDA3 (IVM)", COUNTRY_INFO!$T$9:$T$1000, " ") ->  | H33: 0 | K33: 0 | N33: 0 | O33: 0 | P33: 0 | Q33: 0
A34: =IF(COUNTRY_INFO!A34=0," ",COUNTRY_INFO!A34) -> Uganda | B34: =IF(COUNTRY_INFO!B34=0," ",COUNTRY_INFO!B34) -> EASTERN | C34: =IF(COUNTRY_INFO!C34=0," ",COUNTRY_INFO!C34) -> BUDAKA | D34: =IF(COUNTRY_INFO!$T$9:$T$1000="MDA3 (IVM)", COUNTRY_INFO!$T$9:$T$1000, " ") ->  | H34: 0 | K34: 0 | N34: 0 | O34: 0 | P34: 0 | Q34: 0
A35: =IF(COUNTRY_INFO!A35=0," ",COUNTRY_INFO!A35) -> Uganda | B35: =IF(COUNTRY_INFO!B35=0," ",COUNTRY_INFO!B35) -> EASTERN | C35: =IF(COUNTRY_INFO!C35=0," ",COUNTRY_INFO!C35) -> BUDUDA | D35: =IF(COUNTRY_INFO!$T$9:$T$1000="MDA3 (IVM)", COUNTRY_INFO!$T$9:$T$1000, " ") ->  | H35: 0 | K35: 0 | N35: 0 | O35: 0 | P35: 0 | Q35: 0
A36: =IF(COUNTRY_INFO!A36=0," ",COUNTRY_INFO!A36) -> Uganda | B36: =IF(COUNTRY_INFO!B36=0," ",COUNTRY_INFO!B36) -> EASTERN | C36: =IF(COUNTRY_INFO!C36=0," ",COUNTRY_INFO!C36) -> BUGIRI | D36: =IF(COUNTRY_INFO!$T$9:$T$1000="MDA3 (IVM)", COUNTRY_INFO!$T$9:$T$1000, " ") ->  | H36: 0 | K36: 0 | N36: 0 | O36: 0 | P36: 0 | Q36: 0
A37: =IF(COUNTRY_INFO!A37=0," ",COUNTRY_INFO!A37) -> Uganda | B37: =IF(COUNTRY_INFO!B37=0," ",COUNTRY_INFO!B37) -> EASTERN | C37: =IF(COUNTRY_INFO!C37=0," ",COUNTRY_INFO!C37) -> BUKEDEA | D37: =IF(COUNTRY_INFO!$T$9:$T$1000="MDA3 (IVM)", COUNTRY_INFO!$T$9:$T$1000, " ") ->  | H37: 0 | K37: 0 | N37: 0 | O37: 0 | P37: 0 | Q37: 0
A38: =IF(COUNTRY_INFO!A38=0," ",COUNTRY_INFO!A38) -> Uganda | B38: =IF(COUNTRY_INFO!B38=0," ",COUNTRY_INFO!B38) -> EASTERN | C38: =IF(COUNTRY_INFO!C38=0," ",COUNTRY_INFO!C38) -> BUKWO | D38: =IF(COUNTRY_INFO!$T$9:$T$1000="MDA3 (IVM)", COUNTRY_INFO!$T$9:$T$1000, " ") ->  | H38: 0 | K38: 0 | N38: 0 | O38: 0 | P38: 0 | Q38: 0
A39: =IF(COUNTRY_INFO!A39=0," ",COUNTRY_INFO!A39) -> Uganda | B39: =IF(COUNTRY_INFO!B39=0," ",COUNTRY_INFO!B39) -> EASTERN | C39: =IF(COUNTRY_INFO!C39=0," ",COUNTRY_INFO!C39) -> BULAMBULI | D39: =IF(COUNTRY_INFO!$T$9:$T$1000="MDA3 (IVM)", COUNTRY_INFO!$T$9:$T$1000, " ") ->  | H39: 0 | K39: 0 | N39: 0 | O39: 0 | P39: 0 | Q39: 0
A40: =IF(COUNTRY_INFO!A40=0," ",COUNTRY_INFO!A40) -> Uganda | B40: =IF(COUNTRY_INFO!B40=0," ",COUNTRY_INFO!B40) -> EASTERN | C40: =IF(COUNTRY_INFO!C40=0," ",COUNTRY_INFO!C40) -> BUSIA | D40: =IF(COUNTRY_INFO!$T$9:$T$1000="MDA3 (IVM)", COUNTRY_INFO!$T$9:$T$1000, " ") ->  | H40: 0 | K40: 0 | N40: 0 | O40: 0 | P40: 0 | Q40: 0
A41: =IF(COUNTRY_INFO!A41=0," ",COUNTRY_INFO!A41) -> Uganda | B41: =IF(COUNTRY_INFO!B41=0," ",COUNTRY_INFO!B41) -> EASTERN | C41: =IF(COUNTRY_INFO!C41=0," ",COUNTRY_INFO!C41) -> BUTALEJA | D41: =IF(COUNTRY_INFO!$T$9:$T$1000="MDA3 (IVM)", COUNTRY_INFO!$T$9:$T$1000, " ") ->  | G41: 0 | H41: 0 | K41: 0 | N41: 0 | O41: 0 | P41: 0 | Q41: 0
A42: =IF(COUNTRY_INFO!A42=0," ",COUNTRY_INFO!A42) -> Uganda | B42: =IF(COUNTRY_INFO!B42=0," ",COUNTRY_INFO!B42) -> EASTERN | C42: =IF(COUNTRY_INFO!C42=0," ",COUNTRY_INFO!C42) -> BUYENDE | D42: =IF(COUNTRY_INFO!$T$9:$T$1000="MDA3 (IVM)", COUNTRY_INFO!$T$9:$T$1000, " ") ->  | G42: 0 | H42: 0 | K42: 0 | N42: 0 | O42: 0 | P42: 0 | Q42: 0
A43: =IF(COUNTRY_INFO!A43=0," ",COUNTRY_INFO!A43) -> Uganda | B43: =IF(COUNTRY_INFO!B43=0," ",COUNTRY_INFO!B43) -> EASTERN | C43: =IF(COUNTRY_INFO!C43=0," ",COUNTRY_INFO!C43) -> IGANGA | D43: =IF(COUNTRY_INFO!$T$9:$T$1000="MDA3 (IVM)", COUNTRY_INFO!$T$9:$T$1000, " ") ->  | G43: 0 | H43: 0 | K43: 0 | N43: 0 | O43: 0 | P43: 0 | Q43: 0
A44: =IF(COUNTRY_INFO!A44=0," ",COUNTRY_INFO!A44) -> Uganda | B44: =IF(COUNTRY_INFO!B44=0," ",COUNTRY_INFO!B44) -> EASTERN | C44: =IF(COUNTRY_INFO!C44=0," ",COUNTRY_INFO!C44) -> JINJA | D44: =IF(COUNTRY_INFO!$T$9:$T$1000="MDA3 (IVM)", COUNTRY_INFO!$T$9:$T$1000, " ") ->  | G44: 0 | H44: 0 | K44: 0 | N44: 0 | O44: 0 | P44: 0 | Q44: 0
A45: =IF(COUNTRY_INFO!A45=0," ",COUNTRY_INFO!A45) -> Uganda | B45: =IF(COUNTRY_INFO!B45=0," ",COUNTRY_INFO!B45) -> EASTERN | C45: =IF(COUNTRY_INFO!C45=0," ",COUNTRY_INFO!C45) -> KABERAMAIDO | D45: =IF(COUNTRY_INFO!$T$9:$T$1000="MDA3 (IVM)", COUNTRY_INFO!$T$9:$T$1000, " ") ->  | G45: 0 | H45: 0 | K45: 0 | N45: 0 | O45: 0 | P45: 0 | Q45: 0
A46: =IF(COUNTRY_INFO!A46=0," ",COUNTRY_INFO!A46) -> Uganda | B46: =IF(COUNTRY_INFO!B46=0," ",COUNTRY_INFO!B46) -> EASTERN | C46: =IF(COUNTRY_INFO!C46=0," ",COUNTRY_INFO!C46) -> KALIRO | D46: =IF(COUNTRY_INFO!$T$9:$T$1000="MDA3 (IVM)", COUNTRY_INFO!$T$9:$T$1000, " ") ->  | G46: 0 | H46: 0 | K46: 0 | N46: 0 | O46: 0 | P46: 0 | Q46: 0
A47: =IF(COUNTRY_INFO!A47=0," ",COUNTRY_INFO!A47) -> Uganda | B47: =IF(COUNTRY_INFO!B47=0," ",COUNTRY_INFO!B47) -> EASTERN | C47: =IF(COUNTRY_INFO!C47=0," ",COUNTRY_INFO!C47) -> KAMULI | D47: =IF(COUNTRY_INFO!$T$9:$T$1000="MDA3 (IVM)", COUNTRY_INFO!$T$9:$T$1000, " ") ->  | G47: 0 | H47: 0 | K47: 0 | N47: 0 | O47: 0 | P47: 0 | Q47: 0
A48: =IF(COUNTRY_INFO!A48=0," ",COUNTRY_INFO!A48) -> Uganda | B48: =IF(COUNTRY_INFO!B48=0," ",COUNTRY_INFO!B48) -> EASTERN | C48: =IF(COUNTRY_INFO!C48=0," ",COUNTRY_INFO!C48) -> KAPCHORWA | D48: =IF(COUNTRY_INFO!$T$9:$T$1000="MDA3 (IVM)", COUNTRY_INFO!$T$9:$T$1000, " ") ->  | G48: 0 | H48: 0 | K48: 0 | N48: 0 | O48: 0 | P48: 0 | Q48: 0
A49: =IF(COUNTRY_INFO!A49=0," ",COUNTRY_INFO!A49) -> Uganda | B49: =IF(COUNTRY_INFO!B49=0," ",COUNTRY_INFO!B49) -> EASTERN | C49: =IF(COUNTRY_INFO!C49=0," ",COUNTRY_INFO!C49) -> KATAKWI | D49: =IF(COUNTRY_INFO!$T$9:$T$1000="MDA3 (IVM)", COUNTRY_INFO!$T$9:$T$1000, " ") ->  | G49: 0 | H49: 0 | K49: 0 | N49: 0 | O49: 0 | P49: 0 | Q49: 0
A50: =IF(COUNTRY_INFO!A50=0," ",COUNTRY_INFO!A50) -> Uganda | B50: =IF(COUNTRY_INFO!B50=0," ",COUNTRY_INFO!B50) -> EASTERN | C50: =IF(COUNTRY_INFO!C50=0," ",COUNTRY_INFO!C50) -> KIBUKU | D50: =IF(COUNTRY_INFO!$T$9:$T$1000="MDA3 (IVM)", COUNTRY_INFO!$T$9:$T$1000, " ") ->  | G50: 0 | H50: 0 | K50: 0 | N50: 0 | O50: 0 | P50: 0 | Q50: 0
A51: =IF(COUNTRY_INFO!A51=0," ",COUNTRY_INFO!A51) -> Uganda | B51: =IF(COUNTRY_INFO!B51=0," ",COUNTRY_INFO!B51) -> EASTERN | C51: =IF(COUNTRY_INFO!C51=0," ",COUNTRY_INFO!C51) -> KUMI | D51: =IF(COUNTRY_INFO!$T$9:$T$1000="MDA3 (IVM)", COUNTRY_INFO!$T$9:$T$1000, " ") ->  | G51: 0 | H51: 0 | K51: 0 | N51: 0 | O51: 0 | P51: 0 | Q51: 0
A52: =IF(COUNTRY_INFO!A52=0," ",COUNTRY_INFO!A52) -> Uganda | B52: =IF(COUNTRY_INFO!B52=0," ",COUNTRY_INFO!B52) -> EASTERN | C52: =IF(COUNTRY_INFO!C52=0," ",COUNTRY_INFO!C52) -> KWEEN | D52: =IF(COUNTRY_INFO!$T$9:$T$1000="MDA3 (IVM)", COUNTRY_INFO!$T$9:$T$1000, " ") ->  | G52: 0 | H52: 0 | K52: 0 | N52: 0 | O52: 0 | P52: 0 | Q52: 0
A53: =IF(COUNTRY_INFO!A53=0," ",COUNTRY_INFO!A53) -> Uganda | B53: =IF(COUNTRY_INFO!B53=0," ",COUNTRY_INFO!B53) -> EASTERN | C53: =IF(COUNTRY_INFO!C53=0," ",COUNTRY_INFO!C53) -> LUUKA | D53: =IF(COUNTRY_INFO!$T$9:$T$1000="MDA3 (IVM)", COUNTRY_INFO!$T$9:$T$1000, " ") ->  | H53: 0 | K53: 0 | N53: 0 | O53: 0 | P53: 0 | Q53: 0
A54: =IF(COUNTRY_INFO!A54=0," ",COUNTRY_INFO!A54) -> Uganda | B54: =IF(COUNTRY_INFO!B54=0," ",COUNTRY_INFO!B54) -> EASTERN | C54: =IF(COUNTRY_INFO!C54=0," ",COUNTRY_INFO!C54) -> MANAFWA | D54: =IF(COUNTRY_INFO!$T$9:$T$1000="MDA3 (IVM)", COUNTRY_INFO!$T$9:$T$1000, " ") ->  | H54: 0 | K54: 0 | N54: 0 | O54: 0 | P54: 0 | Q54: 0
A55: =IF(COUNTRY_INFO!A55=0," ",COUNTRY_INFO!A55) -> Uganda | B55: =IF(COUNTRY_INFO!B55=0," ",COUNTRY_INFO!B55) -> EASTERN | C55: =IF(COUNTRY_INFO!C55=0," ",COUNTRY_INFO!C55) -> MAYUGE | D55: =IF(COUNTRY_INFO!$T$9:$T$1000="MDA3 (IVM)", COUNTRY_INFO!$T$9:$T$1000, " ") ->  | H55: 0 | K55: 0 | N55: 0 | O55: 0 | P55: 0 | Q55: 0
A56: =IF(COUNTRY_INFO!A56=0," ",COUNTRY_INFO!A56) -> Uganda | B56: =IF(COUNTRY_INFO!B56=0," ",COUNTRY_INFO!B56) -> EASTERN | C56: =IF(COUNTRY_INFO!C56=0," ",COUNTRY_INFO!C56) -> MBALE | D56: =IF(COUNTRY_INFO!$T$9:$T$1000="MDA3 (IVM)", COUNTRY_INFO!$T$9:$T$1000, " ") ->  | H56: 0 | K56: 0 | N56: 0 | O56: 0 | P56: 0 | Q56: 0
A57: =IF(COUNTRY_INFO!A57=0," ",COUNTRY_INFO!A57) -> Uganda | B57: =IF(COUNTRY_INFO!B57=0," ",COUNTRY_INFO!B57) -> EASTERN | C57: =IF(COUNTRY_INFO!C57=0," ",COUNTRY_INFO!C57) -> NAMAYINGO | D57: =IF(COUNTRY_INFO!$T$9:$T$1000="MDA3 (IVM)", COUNTRY_INFO!$T$9:$T$1000, " ") ->  | H57: 0 | K57: 0 | N57: 0 | O57: 0 | P57: 0 | Q57: 0
A58: =IF(COUNTRY_INFO!A58=0," ",COUNTRY_INFO!A58) -> Uganda | B58: =IF(COUNTRY_INFO!B58=0," ",COUNTRY_INFO!B58) -> EASTERN | C58: =IF(COUNTRY_INFO!C58=0," ",COUNTRY_INFO!C58) -> NAMUTUMBA | D58: =IF(COUNTRY_INFO!$T$9:$T$1000="MDA3 (IVM)", COUNTRY_INFO!$T$9:$T$1000, " ") ->  | H58: 0 | K58: 0 | N58: 0 | O58: 0 | P58: 0 | Q58: 0
A59: =IF(COUNTRY_INFO!A59=0," ",COUNTRY_INFO!A59) -> Uganda | B59: =IF(COUNTRY_INFO!B59=0," ",COUNTRY_INFO!B59) -> EASTERN | C59: =IF(COUNTRY_INFO!C59=0," ",COUNTRY_INFO!C59) -> NGORA | D59: =IF(COUNTRY_INFO!$T$9:$T$1000="MDA3 (IVM)", COUNTRY_INFO!$T$9:$T$1000, " ") ->  | H59: 0 | K59: 0 | N59: 0 | O59: 0 | P59: 0 | Q59: 0
A60: =IF(COUNTRY_INFO!A60=0," ",COUNTRY_INFO!A60) -> Uganda | B60: =IF(COUNTRY_INFO!B60=0," ",COUNTRY_INFO!B60) -> EASTERN | C60: =IF(COUNTRY_INFO!C60=0," ",COUNTRY_INFO!C60) -> PALLISA | D60: =IF(COUNTRY_INFO!$T$9:$T$1000="MDA3 (IVM)", COUNTRY_INFO!$T$9:$T$1000, " ") ->  | H60: 0 | K60: 0 | N60: 0 | O60: 0 | P60: 0 | Q60: 0
A61: =IF(COUNTRY_INFO!A61=0," ",COUNTRY_INFO!A61) -> Uganda | B61: =IF(COUNTRY_INFO!B61=0," ",COUNTRY_INFO!B61) -> EASTERN | C61: =IF(COUNTRY_INFO!C61=0," ",COUNTRY_INFO!C61) -> SERERE | D61: =IF(COUNTRY_INFO!$T$9:$T$1000="MDA3 (IVM)", COUNTRY_INFO!$T$9:$T$1000, " ") ->  | H61: 0 | K61: 0 | N61: 0 | O61: 0 | P61: 0 | Q61: 0
A62: =IF(COUNTRY_INFO!A62=0," ",COUNTRY_INFO!A62) -> Uganda | B62: =IF(COUNTRY_INFO!B62=0," ",COUNTRY_INFO!B62) -> EASTERN | C62: =IF(COUNTRY_INFO!C62=0," ",COUNTRY_INFO!C62) -> SIRONKO | D62: =IF(COUNTRY_INFO!$T$9:$T$1000="MDA3 (IVM)", COUNTRY_INFO!$T$9:$T$1000, " ") ->  | H62: 0 | K62: 0 | N62: 0 | O62: 0 | P62: 0 | Q62: 0
A63: =IF(COUNTRY_INFO!A63=0," ",COUNTRY_INFO!A63) -> Uganda | B63: =IF(COUNTRY_INFO!B63=0," ",COUNTRY_INFO!B63) -> EASTERN | C63: =IF(COUNTRY_INFO!C63=0," ",COUNTRY_INFO!C63) -> SOROTI | D63: =IF(COUNTRY_INFO!$T$9:$T$1000="MDA3 (IVM)", COUNTRY_INFO!$T$9:$T$1000, " ") ->  | G63: 0 | H63: 0 | K63: 0 | N63: 0 | O63: 0 | P63: 0 | Q63: 0
A64: =IF(COUNTRY_INFO!A64=0," ",COUNTRY_INFO!A64) -> Uganda | B64: =IF(COUNTRY_INFO!B64=0," ",COUNTRY_INFO!B64) -> EASTERN | C64: =IF(COUNTRY_INFO!C64=0," ",COUNTRY_INFO!C64) -> TORORO | D64: =IF(COUNTRY_INFO!$T$9:$T$1000="MDA3 (IVM)", COUNTRY_INFO!$T$9:$T$1000, " ") ->  | G64: 0 | H64: 0 | K64: 0 | N64: 0 | O64: 0 | P64: 0 | Q64: 0
A65: =IF(COUNTRY_INFO!A65=0," ",COUNTRY_INFO!A65) -> Uganda | B65: =IF(COUNTRY_INFO!B65=0," ",COUNTRY_INFO!B65) -> NORTHERN | C65: =IF(COUNTRY_INFO!C65=0," ",COUNTRY_INFO!C65) -> ABIM | D65: =IF(COUNTRY_INFO!$T$9:$T$1000="MDA3 (IVM)", COUNTRY_INFO!$T$9:$T$1000, " ") ->  | G65: 0 | H65: 0 | K65: 0 | N65: 0 | O65: 0 | P65: 0 | Q65: 0
A66: =IF(COUNTRY_INFO!A66=0," ",COUNTRY_INFO!A66) -> Uganda | B66: =IF(COUNTRY_INFO!B66=0," ",COUNTRY_INFO!B66) -> NORTHERN | C66: =IF(COUNTRY_INFO!C66=0," ",COUNTRY_INFO!C66) -> ADJUMANI | D66: =IF(COUNTRY_INFO!$T$9:$T$1000="MDA3 (IVM)", COUNTRY_INFO!$T$9:$T$1000, " ") -> MDA3 (IVM) | E66: Apr & Oct 2018 | F66: 8639 | G66: 14901 | H66: 23540 | I66: 8220.784933 | J66: 14182.21507 | K66: 22403 | L66: 8490.860267 | M66: 14648.13973 | N66: 23139 | O66: 8490.860267 | P66: 14648.13973 | Q66: 23139 | R66: 98.28522129 | S66: 98.30306511 | T66: 98.29651657
A67: =IF(COUNTRY_INFO!A67=0," ",COUNTRY_INFO!A67) -> Uganda | B67: =IF(COUNTRY_INFO!B67=0," ",COUNTRY_INFO!B67) -> NORTHERN | C67: =IF(COUNTRY_INFO!C67=0," ",COUNTRY_INFO!C67) -> AGAGO | D67: =IF(COUNTRY_INFO!$T$9:$T$1000="MDA3 (IVM)", COUNTRY_INFO!$T$9:$T$1000, " ") ->  | G67: 0 | H67: 0 | N67: 0 | O67: 0 | P67: 0 | Q67: 0
A68: =IF(COUNTRY_INFO!A68=0," ",COUNTRY_INFO!A68) -> Uganda | B68: =IF(COUNTRY_INFO!B68=0," ",COUNTRY_INFO!B68) -> NORTHERN | C68: =IF(COUNTRY_INFO!C68=0," ",COUNTRY_INFO!C68) -> ALEBTONG | D68: =IF(COUNTRY_INFO!$T$9:$T$1000="MDA3 (IVM)", COUNTRY_INFO!$T$9:$T$1000, " ") ->  | G68: 0 | H68: 0 | N68: 0 | O68: 0 | P68: 0 | Q68: 0
A69: =IF(COUNTRY_INFO!A69=0," ",COUNTRY_INFO!A69) -> Uganda | B69: =IF(COUNTRY_INFO!B69=0," ",COUNTRY_INFO!B69) -> NORTHERN | C69: =IF(COUNTRY_INFO!C69=0," ",COUNTRY_INFO!C69) -> AMOLATAR | D69: =IF(COUNTRY_INFO!$T$9:$T$1000="MDA3 (IVM)", COUNTRY_INFO!$T$9:$T$1000, " ") ->  | G69: 0 | H69: 0 | N69: 0 | O69: 0 | P69: 0 | Q69: 0
A70: =IF(COUNTRY_INFO!A70=0," ",COUNTRY_INFO!A70) -> Uganda | B70: =IF(COUNTRY_INFO!B70=0," ",COUNTRY_INFO!B70) -> NORTHERN | C70: =IF(COUNTRY_INFO!C70=0," ",COUNTRY_INFO!C70) -> AMUDAT | D70: =IF(COUNTRY_INFO!$T$9:$T$1000="MDA3 (IVM)", COUNTRY_INFO!$T$9:$T$1000, " ") ->  | G70: 0 | H70: 0 | N70: 0 | O70: 0 | P70: 0 | Q70: 0
A71: =IF(COUNTRY_INFO!A71=0," ",COUNTRY_INFO!A71) -> Uganda | B71: =IF(COUNTRY_INFO!B71=0," ",COUNTRY_INFO!B71) -> NORTHERN | C71: =IF(COUNTRY_INFO!C71=0," ",COUNTRY_INFO!C71) -> AMURU | D71: =IF(COUNTRY_INFO!$T$9:$T$1000="MDA3 (IVM)", COUNTRY_INFO!$T$9:$T$1000, " ") -> MDA3 (IVM) | E71: Apr & Oct 2018 | F71: 69462 | G71: 119808 | H71: 189270 | I71: 63475.04253 | J71: 109504.9575 | K71: 172980 | L71: 66951.52855 | M71: 115502.4714 | N71: 182454 | O71: 66951.52855 | P71: 115502.4714 | Q71: 182454 | R71: 96.38583478 | S71: 96.40630963 | T71: 96.39879537
A72: =IF(COUNTRY_INFO!A72=0," ",COUNTRY_INFO!A72) -> Uganda | B72: =IF(COUNTRY_INFO!B72=0," ",COUNTRY_INFO!B72) -> NORTHERN | C72: =IF(COUNTRY_INFO!C72=0," ",COUNTRY_INFO!C72) -> APAC | D72: =IF(COUNTRY_INFO!$T$9:$T$1000="MDA3 (IVM)", COUNTRY_INFO!$T$9:$T$1000, " ") ->  | G72: 0 | H72: 0 | N72: 0 | O72: 0 | P72: 0 | Q72: 0
A73: =IF(COUNTRY_INFO!A73=0," ",COUNTRY_INFO!A73) -> Uganda | B73: =IF(COUNTRY_INFO!B73=0," ",COUNTRY_INFO!B73) -> NORTHERN | C73: =IF(COUNTRY_INFO!C73=0," ",COUNTRY_INFO!C73) -> ARUA | D73: =IF(COUNTRY_INFO!$T$9:$T$1000="MDA3 (IVM)", COUNTRY_INFO!$T$9:$T$1000, " ") ->  | E73: Apr & Oct 2018 | F73: 59007 | G73: 101776 | H73: 160783 | I73: 53217.31713 | J73: 91808.68287 | K73: 145026 | N73: 0 | O73: 53217.31713 | P73: 91808.68287 | Q73: 145026 | R73: 90.18814231 | S73: 90.20661341 | T73: 90.19983456
A74: =IF(COUNTRY_INFO!A74=0," ",COUNTRY_INFO!A74) -> Uganda | B74: =IF(COUNTRY_INFO!B74=0," ",COUNTRY_INFO!B74) -> NORTHERN | C74: =IF(COUNTRY_INFO!C74=0," ",COUNTRY_INFO!C74) -> DOKOLO | D74: =IF(COUNTRY_INFO!$T$9:$T$1000="MDA3 (IVM)", COUNTRY_INFO!$T$9:$T$1000, " ") ->  | G74: 0 | H74: =SUM(F74:G74) -> 0 | N74: =SUM(L74:M74) -> 0 | O74: =MAX(I74,L74) -> 0 | P74: =MAX(J74,M74) -> 0 | Q74: =SUM(O74:P74) -> 0 | R74: =IF(F74<>0, IF(MAX(I74,L74)/F74*100=0, "-", MAX(I74,L74)/F74*100), " ") ->  | S74: =IF(G74<>0, IF(MAX(J74,M74)/G74*100=0, "-", MAX(J74,M74)/G74*100), " ") ->  | T74: =IF(H74<>0, IF((MAX(I74,L74)+MAX(J74,M74))/H74*100=0, "-",(MAX(I74,L74)+MAX(J74,M74))/H74*100), " ") -> 
A75: =IF(COUNTRY_INFO!A75=0," ",COUNTRY_INFO!A75) -> Uganda | B75: =IF(COUNTRY_INFO!B75=0," ",COUNTRY_INFO!B75) -> NORTHERN | C75: =IF(COUNTRY_INFO!C75=0," ",COUNTRY_INFO!C75) -> GULU | D75: =IF(COUNTRY_INFO!$T$9:$T$1000="MDA3 (IVM)", COUNTRY_INFO!$T$9:$T$1000, " ") ->  | E75: Apr & Oct 2018 | F75: 42775 | G75: 73777 | H75: 116552 | I75: 39058.9113 | J75: 67383.0887 | K75: 106442 | N75: 0 | O75: 39058.9113 | P75: 67383.0887 | Q75: 106442 | R75: 91.31247528 | S75: 91.3334626 | T75: 91.32576018
A76: =IF(COUNTRY_INFO!A76=0," ",COUNTRY_INFO!A76) -> Uganda | B76: =IF(COUNTRY_INFO!B76=0," ",COUNTRY_INFO!B76) -> NORTHERN | C76: =IF(COUNTRY_INFO!C76=0," ",COUNTRY_INFO!C76) -> KAABONG | D76: =IF(COUNTRY_INFO!$T$9:$T$1000="MDA3 (IVM)", COUNTRY_INFO!$T$9:$T$1000, " ") ->  | G76: 0 | H76: 0 | N76: 0 | O76: 0 | P76: 0 | Q76: 0
A77: =IF(COUNTRY_INFO!A77=0," ",COUNTRY_INFO!A77) -> Uganda | B77: =IF(COUNTRY_INFO!B77=0," ",COUNTRY_INFO!B77) -> NORTHERN | C77: =IF(COUNTRY_INFO!C77=0," ",COUNTRY_INFO!C77) -> KITGUM | D77: =IF(COUNTRY_INFO!$T$9:$T$1000="MDA3 (IVM)", COUNTRY_INFO!$T$9:$T$1000, " ") ->  | E77: Apr & Oct 2018 | F77: 31051 | G77: 53557 | H77: 84608 | I77: 28593.4921 | J77: 49328.5079 | K77: 77922 | N77: 0 | O77: 28593.4921 | P77: 49328.5079 | Q77: 77922 | R77: 92.08557567 | S77: 92.10468827 | T77: 92.09767398
A78: =IF(COUNTRY_INFO!A78=0," ",COUNTRY_INFO!A78) -> Uganda | B78: =IF(COUNTRY_INFO!B78=0," ",COUNTRY_INFO!B78) -> NORTHERN | C78: =IF(COUNTRY_INFO!C78=0," ",COUNTRY_INFO!C78) -> KOBOKO | D78: =IF(COUNTRY_INFO!$T$9:$T$1000="MDA3 (IVM)", COUNTRY_INFO!$T$9:$T$1000, " ") ->  | H78: 0 | N78: 0 | O78: 0 | P78: 0 | Q78: 0
A79: =IF(COUNTRY_INFO!A79=0," ",COUNTRY_INFO!A79) -> Uganda | B79: =IF(COUNTRY_INFO!B79=0," ",COUNTRY_INFO!B79) -> NORTHERN | C79: =IF(COUNTRY_INFO!C79=0," ",COUNTRY_INFO!C79) -> KOLE | D79: =IF(COUNTRY_INFO!$T$9:$T$1000="MDA3 (IVM)", COUNTRY_INFO!$T$9:$T$1000, " ") ->  | G79: 0 | H79: 0 | N79: 0 | O79: 0 | P79: 0 | Q79: 0
A80: =IF(COUNTRY_INFO!A80=0," ",COUNTRY_INFO!A80) -> Uganda | B80: =IF(COUNTRY_INFO!B80=0," ",COUNTRY_INFO!B80) -> NORTHERN | C80: =IF(COUNTRY_INFO!C80=0," ",COUNTRY_INFO!C80) -> KOTIDO | D80: =IF(COUNTRY_INFO!$T$9:$T$1000="MDA3 (IVM)", COUNTRY_INFO!$T$9:$T$1000, " ") ->  | G80: 0 | H80: 0 | N80: 0 | O80: 0 | P80: 0 | Q80: 0
A81: =IF(COUNTRY_INFO!A81=0," ",COUNTRY_INFO!A81) -> Uganda | B81: =IF(COUNTRY_INFO!B81=0," ",COUNTRY_INFO!B81) -> NORTHERN | C81: =IF(COUNTRY_INFO!C81=0," ",COUNTRY_INFO!C81) -> LAMWO | D81: =IF(COUNTRY_INFO!$T$9:$T$1000="MDA3 (IVM)", COUNTRY_INFO!$T$9:$T$1000, " ") ->  | E81: Apr & Oct 2018 | F81: 45712 | G81: 78843 | H81: 124555 | I81: 41583.8955 | J81: 71739.1045 | K81: 113323 | N81: 0 | O81: 41583.8955 | P81: 71739.1045 | Q81: 113323 | R81: 90.96931988 | S81: 90.9898209 | T81: 90.98229698
A82: =IF(COUNTRY_INFO!A82=0," ",COUNTRY_INFO!A82) -> Uganda | B82: =IF(COUNTRY_INFO!B82=0," ",COUNTRY_INFO!B82) -> NORTHERN | C82: =IF(COUNTRY_INFO!C82=0," ",COUNTRY_INFO!C82) -> LIRA | D82: =IF(COUNTRY_INFO!$T$9:$T$1000="MDA3 (IVM)", COUNTRY_INFO!$T$9:$T$1000, " ") -> MDA3 (IVM) | E82: Apr & Oct 2018 | F82: 23201 | G82: 40016 | H82: 63217 | I82: 21630.24544 | J82: 37315.75456 | K82: 58946 | L82: 22171.86391 | M82: 38250.13609 | N82: 60422 | O82: 22171.86391 | P82: 38250.13609 | Q82: 60422 | R82: 95.56425978 | S82: 95.58710538 | T82: 95.57872091
A83: =IF(COUNTRY_INFO!A83=0," ",COUNTRY_INFO!A83) -> Uganda | B83: =IF(COUNTRY_INFO!B83=0," ",COUNTRY_INFO!B83) -> NORTHERN | C83: =IF(COUNTRY_INFO!C83=0," ",COUNTRY_INFO!C83) -> MARACHA | D83: =IF(COUNTRY_INFO!$T$9:$T$1000="MDA3 (IVM)", COUNTRY_INFO!$T$9:$T$1000, " ") ->  | H83: 0 | N83: 0 | O83: 0 | P83: 0 | Q83: 0
A84: =IF(COUNTRY_INFO!A84=0," ",COUNTRY_INFO!A84) -> Uganda | B84: =IF(COUNTRY_INFO!B84=0," ",COUNTRY_INFO!B84) -> NORTHERN | C84: =IF(COUNTRY_INFO!C84=0," ",COUNTRY_INFO!C84) -> MOROTO | D84: =IF(COUNTRY_INFO!$T$9:$T$1000="MDA3 (IVM)", COUNTRY_INFO!$T$9:$T$1000, " ") ->  | G84: 0 | H84: 0 | N84: 0 | O84: 0 | P84: 0 | Q84: 0
A85: =IF(COUNTRY_INFO!A85=0," ",COUNTRY_INFO!A85) -> Uganda | B85: =IF(COUNTRY_INFO!B85=0," ",COUNTRY_INFO!B85) -> NORTHERN | C85: =IF(COUNTRY_INFO!C85=0," ",COUNTRY_INFO!C85) -> MOYO | D85: =IF(COUNTRY_INFO!$T$9:$T$1000="MDA3 (IVM)", COUNTRY_INFO!$T$9:$T$1000, " ") -> MDA3 (IVM) | E85: Apr & Oct 2018 | F85: 29539 | G85: 50949 | H85: 80488 | I85: 27123.48967 | J85: 46792.51033 | K85: 73916 | L85: 28269.84204 | M85: 48770.15796 | N85: 77040 | O85: 28269.84204 | P85: 48770.15796 | Q85: 77040 | R85: 95.70344982 | S85: 95.72348419 | T85: 95.7161316
A86: =IF(COUNTRY_INFO!A86=0," ",COUNTRY_INFO!A86) -> Uganda | B86: =IF(COUNTRY_INFO!B86=0," ",COUNTRY_INFO!B86) -> NORTHERN | C86: =IF(COUNTRY_INFO!C86=0," ",COUNTRY_INFO!C86) -> NAKAPIRIPIRIT | D86: =IF(COUNTRY_INFO!$T$9:$T$1000="MDA3 (IVM)", COUNTRY_INFO!$T$9:$T$1000, " ") ->  | G86: 0 | H86: 0 | N86: 0 | O86: 0 | P86: 0 | Q86: 0
A87: =IF(COUNTRY_INFO!A87=0," ",COUNTRY_INFO!A87) -> Uganda | B87: =IF(COUNTRY_INFO!B87=0," ",COUNTRY_INFO!B87) -> NORTHERN | C87: =IF(COUNTRY_INFO!C87=0," ",COUNTRY_INFO!C87) -> NAPAK | D87: =IF(COUNTRY_INFO!$T$9:$T$1000="MDA3 (IVM)", COUNTRY_INFO!$T$9:$T$1000, " ") ->  | G87: 0 | H87: 0 | N87: 0 | O87: 0 | P87: 0 | Q87: 0
A88: =IF(COUNTRY_INFO!A88=0," ",COUNTRY_INFO!A88) -> Uganda | B88: =IF(COUNTRY_INFO!B88=0," ",COUNTRY_INFO!B88) -> NORTHERN | C88: =IF(COUNTRY_INFO!C88=0," ",COUNTRY_INFO!C88) -> NEBBI | D88: =IF(COUNTRY_INFO!$T$9:$T$1000="MDA3 (IVM)", COUNTRY_INFO!$T$9:$T$1000, " ") -> MDA3 (IVM) | E88: Apr & Oct 2018 | F88: 41690 | G88: 71907 | H88: 113597 | I88: 38106.30863 | J88: 65739.69137 | K88: 103846 | L88: 40539.92224 | M88: 69938.07776 | N88: 110478 | O88: 40539.92224 | P88: 69938.07776 | Q88: 110478 | R88: 97.24135821 | S88: 97.26184901 | T88: 97.2543289
A89: =IF(COUNTRY_INFO!A89=0," ",COUNTRY_INFO!A89) -> Uganda | B89: =IF(COUNTRY_INFO!B89=0," ",COUNTRY_INFO!B89) -> NORTHERN | C89: =IF(COUNTRY_INFO!C89=0," ",COUNTRY_INFO!C89) -> NWOYA | D89: =IF(COUNTRY_INFO!$T$9:$T$1000="MDA3 (IVM)", COUNTRY_INFO!$T$9:$T$1000, " ") -> MDA3 (IVM) | E89: Apr & Oct 2018 | F89: 48264 | G89: 83264 | H89: 131528 | I89: 44759.84933 | J89: 77218.15067 | K89: 121978 | L89: 47190.52734 | M89: 81411.47266 | N89: 128602 | O89: 47190.52734 | P89: 81411.47266 | Q89: 128602 | R89: 97.77583155 | S89: 97.77511609 | T89: 97.77537863
A90: =IF(COUNTRY_INFO!A90=0," ",COUNTRY_INFO!A90) -> Uganda | B90: =IF(COUNTRY_INFO!B90=0," ",COUNTRY_INFO!B90) -> NORTHERN | C90: =IF(COUNTRY_INFO!C90=0," ",COUNTRY_INFO!C90) -> OMORO | D90: =IF(COUNTRY_INFO!$T$9:$T$1000="MDA3 (IVM)", COUNTRY_INFO!$T$9:$T$1000, " ") ->  | E90: Apr & Oct 2019 | F90: 53930 | G90: 93017 | H90: 146947 | I90: 49242.14581 | J90: 84950.85419 | K90: 134193 | N90: 0 | O90: 49242.14581 | P90: 84950.85419 | Q90: 134193 | R90: 91.3075205 | S90: 91.32831009 | T90: 91.32068025
A91: =IF(COUNTRY_INFO!A91=0," ",COUNTRY_INFO!A91) -> Uganda | B91: =IF(COUNTRY_INFO!B91=0," ",COUNTRY_INFO!B91) -> NORTHERN | C91: =IF(COUNTRY_INFO!C91=0," ",COUNTRY_INFO!C91) -> OTUKE | D91: =IF(COUNTRY_INFO!$T$9:$T$1000="MDA3 (IVM)", COUNTRY_INFO!$T$9:$T$1000, " ") ->  | G91: 0 | H91: 0 | N91: 0 | O91: 0 | P91: 0 | Q91: 0
A92: =IF(COUNTRY_INFO!A92=0," ",COUNTRY_INFO!A92) -> Uganda | B92: =IF(COUNTRY_INFO!B92=0," ",COUNTRY_INFO!B92) -> NORTHERN | C92: =IF(COUNTRY_INFO!C92=0," ",COUNTRY_INFO!C92) -> OYAM | D92: =IF(COUNTRY_INFO!$T$9:$T$1000="MDA3 (IVM)", COUNTRY_INFO!$T$9:$T$1000, " ") -> MDA3 (IVM) | E92: Apr & Oct 2018 | F92: 7721 | G92: 13317 | H92: 21038 | I92: 7316.252734 | J92: 12621.74727 | K92: 19938 | L92: 7594.400972 | M92: 13101.59903 | N92: 20696 | O92: 7594.400972 | P92: 13101.59903 | Q92: 20696 | R92: 98.36032861 | S92: 98.38251129 | T92: 98.37437019
A93: =IF(COUNTRY_INFO!A93=0," ",COUNTRY_INFO!A93) -> Uganda | B93: =IF(COUNTRY_INFO!B93=0," ",COUNTRY_INFO!B93) -> NORTHERN | C93: =IF(COUNTRY_INFO!C93=0," ",COUNTRY_INFO!C93) -> PADER | D93: =IF(COUNTRY_INFO!$T$9:$T$1000="MDA3 (IVM)", COUNTRY_INFO!$T$9:$T$1000, " ") -> MDA3 (IVM) | E93: Apr & Oct 2018 | F93: 60088 | G93: 103639 | H93: 163727 | I93: 55991.09356 | J93: 96593.90644 | K93: 152585 | L93: 57980.69745 | M93: 100026.3026 | N93: 158007 | O93: 57980.69745 | P93: 100026.3026 | Q93: 158007 | R93: 96.49297272 | S93: 96.51415254 | T93: 96.50637952
A94: =IF(COUNTRY_INFO!A94=0," ",COUNTRY_INFO!A94) -> Uganda | B94: =IF(COUNTRY_INFO!B94=0," ",COUNTRY_INFO!B94) -> NORTHERN | C94: =IF(COUNTRY_INFO!C94=0," ",COUNTRY_INFO!C94) -> YUMBE | D94: =IF(COUNTRY_INFO!$T$9:$T$1000="MDA3 (IVM)", COUNTRY_INFO!$T$9:$T$1000, " ") ->  | H94: 0 | N94: 0 | O94: 0 | P94: 0 | Q94: 0
A95: =IF(COUNTRY_INFO!A95=0," ",COUNTRY_INFO!A95) -> Uganda | B95: =IF(COUNTRY_INFO!B95=0," ",COUNTRY_INFO!B95) -> NORTHERN | C95: =IF(COUNTRY_INFO!C95=0," ",COUNTRY_INFO!C95) -> ZOMBO | D95: =IF(COUNTRY_INFO!$T$9:$T$1000="MDA3 (IVM)", COUNTRY_INFO!$T$9:$T$1000, " ") -> MDA3 (IVM) | E95: Apr & Oct 2018 | F95: 78690 | G95: 135724 | H95: 214414 | I95: 71576.2017 | J95: 123480.7983 | K95: 195057 | L95: 74245.39733 | M95: 128085.6027 | N95: 202331 | O95: 74245.39733 | P95: 128085.6027 | Q95: 202331 | R95: 94.35175667 | S95: 94.37211007 | T95: 94.36464037
A96: =IF(COUNTRY_INFO!A96=0," ",COUNTRY_INFO!A96) -> Uganda | B96: =IF(COUNTRY_INFO!B96=0," ",COUNTRY_INFO!B96) -> WESTERN | C96: =IF(COUNTRY_INFO!C96=0," ",COUNTRY_INFO!C96) -> BUHWEJU | D96: =IF(COUNTRY_INFO!$T$9:$T$1000="MDA3 (IVM)", COUNTRY_INFO!$T$9:$T$1000, " ") ->  | G96: 0 | H96: 0 | N96: 0 | O96: 0 | P96: 0 | Q96: 0
A97: =IF(COUNTRY_INFO!A97=0," ",COUNTRY_INFO!A97) -> Uganda | B97: =IF(COUNTRY_INFO!B97=0," ",COUNTRY_INFO!B97) -> WESTERN | C97: =IF(COUNTRY_INFO!C97=0," ",COUNTRY_INFO!C97) -> BULIISA | D97: =IF(COUNTRY_INFO!$T$9:$T$1000="MDA3 (IVM)", COUNTRY_INFO!$T$9:$T$1000, " ") -> MDA3 (IVM) | E97: Apr & Oct 2018 | F97: 11233 | G97: 19374 | H97: 30607 | I97: 10949.42649 | J97: 18889.57351 | K97: 29839 | L97: 11032.35723 | M97: 19032.64277 | N97: 30065 | O97: 11032.35723 | P97: 19032.64277 | Q97: 30065 | R97: 98.21380958 | S97: 98.2380653 | T97: 98.22916326
A98: =IF(COUNTRY_INFO!A98=0," ",COUNTRY_INFO!A98) -> Uganda | B98: =IF(COUNTRY_INFO!B98=0," ",COUNTRY_INFO!B98) -> WESTERN | C98: =IF(COUNTRY_INFO!C98=0," ",COUNTRY_INFO!C98) -> BUNDIBUGYO | D98: =IF(COUNTRY_INFO!$T$9:$T$1000="MDA3 (IVM)", COUNTRY_INFO!$T$9:$T$1000, " ") ->  | G98: 0 | H98: 0 | N98: 0 | O98: 0 | P98: 0 | Q98: 0
A99: =IF(COUNTRY_INFO!A99=0," ",COUNTRY_INFO!A99) -> Uganda | B99: =IF(COUNTRY_INFO!B99=0," ",COUNTRY_INFO!B99) -> WESTERN | C99: =IF(COUNTRY_INFO!C99=0," ",COUNTRY_INFO!C99) -> BUSHENYI | D99: =IF(COUNTRY_INFO!$T$9:$T$1000="MDA3 (IVM)", COUNTRY_INFO!$T$9:$T$1000, " ") ->  | G99: 0 | H99: 0 | N99: 0 | O99: 0 | P99: 0 | Q99: 0
A100: =IF(COUNTRY_INFO!A100=0," ",COUNTRY_INFO!A100) -> Uganda | B100: =IF(COUNTRY_INFO!B100=0," ",COUNTRY_INFO!B100) -> WESTERN | C100: =IF(COUNTRY_INFO!C100=0," ",COUNTRY_INFO!C100) -> HOIMA | D100: =IF(COUNTRY_INFO!$T$9:$T$1000="MDA3 (IVM)", COUNTRY_INFO!$T$9:$T$1000, " ") -> MDA3 (IVM) | E100: Apr & Oct 2018 | F100: 25811 | G100: 44519 | H100: 70330 | I100: 23495.08627 | J100: 40532.91373 | K100: 64028 | L100: 23495.08627 | M100: 40532.91373 | N100: 64028 | O100: 23495.08627 | P100: 40532.91373 | Q100: 64028 | R100: 91.02741571 | S100: 91.04632568 | T100: 91.03938575
A101: =IF(COUNTRY_INFO!A101=0," ",COUNTRY_INFO!A101) -> Uganda | B101: =IF(COUNTRY_INFO!B101=0," ",COUNTRY_INFO!B101) -> WESTERN | C101: =IF(COUNTRY_INFO!C101=0," ",COUNTRY_INFO!C101) -> IBANDA | D101: =IF(COUNTRY_INFO!$T$9:$T$1000="MDA3 (IVM)", COUNTRY_INFO!$T$9:$T$1000, " ") ->  | G101: 0 | H101: 0 | O101: 0 | P101: 0 | Q101: 0
A102: =IF(COUNTRY_INFO!A102=0," ",COUNTRY_INFO!A102) -> Uganda | B102: =IF(COUNTRY_INFO!B102=0," ",COUNTRY_INFO!B102) -> WESTERN | C102: =IF(COUNTRY_INFO!C102=0," ",COUNTRY_INFO!C102) -> ISINGIRO | D102: =IF(COUNTRY_INFO!$T$9:$T$1000="MDA3 (IVM)", COUNTRY_INFO!$T$9:$T$1000, " ") ->  | G102: 0 | H102: 0 | O102: 0 | P102: 0 | Q102: 0
A103: =IF(COUNTRY_INFO!A103=0," ",COUNTRY_INFO!A103) -> Uganda | B103: =IF(COUNTRY_INFO!B103=0," ",COUNTRY_INFO!B103) -> WESTERN | C103: =IF(COUNTRY_INFO!C103=0," ",COUNTRY_INFO!C103) -> KABALE | D103: =IF(COUNTRY_INFO!$T$9:$T$1000="MDA3 (IVM)", COUNTRY_INFO!$T$9:$T$1000, " ") ->  | G103: 0 | H103: 0 | O103: 0 | P103: 0 | Q103: 0
A104: =IF(COUNTRY_INFO!A104=0," ",COUNTRY_INFO!A104) -> Uganda | B104: =IF(COUNTRY_INFO!B104=0," ",COUNTRY_INFO!B104) -> WESTERN | C104: =IF(COUNTRY_INFO!C104=0," ",COUNTRY_INFO!C104) -> KABAROLE | D104: =IF(COUNTRY_INFO!$T$9:$T$1000="MDA3 (IVM)", COUNTRY_INFO!$T$9:$T$1000, " ") ->  | H104: 0 | O104: 0 | P104: 0 | Q104: 0
A105: =IF(COUNTRY_INFO!A105=0," ",COUNTRY_INFO!A105) -> Uganda | B105: =IF(COUNTRY_INFO!B105=0," ",COUNTRY_INFO!B105) -> WESTERN | C105: =IF(COUNTRY_INFO!C105=0," ",COUNTRY_INFO!C105) -> KAGADI | D105: =IF(COUNTRY_INFO!$T$9:$T$1000="MDA3 (IVM)", COUNTRY_INFO!$T$9:$T$1000, " ") ->  | H105: 0 | O105: 0 | P105: 0 | Q105: 0
A106: =IF(COUNTRY_INFO!A106=0," ",COUNTRY_INFO!A106) -> Uganda | B106: =IF(COUNTRY_INFO!B106=0," ",COUNTRY_INFO!B106) -> WESTERN | C106: =IF(COUNTRY_INFO!C106=0," ",COUNTRY_INFO!C106) -> KAKUMIRO | D106: =IF(COUNTRY_INFO!$T$9:$T$1000="MDA3 (IVM)", COUNTRY_INFO!$T$9:$T$1000, " ") ->  | H106: 0 | O106: 0 | P106: 0 | Q106: 0
A107: =IF(COUNTRY_INFO!A107=0," ",COUNTRY_INFO!A107) -> Uganda | B107: =IF(COUNTRY_INFO!B107=0," ",COUNTRY_INFO!B107) -> WESTERN | C107: =IF(COUNTRY_INFO!C107=0," ",COUNTRY_INFO!C107) -> KAMWENGE | D107: =IF(COUNTRY_INFO!$T$9:$T$1000="MDA3 (IVM)", COUNTRY_INFO!$T$9:$T$1000, " ") ->  | G107: 0 | H107: 0 | O107: 0 | P107: 0 | Q107: 0
A108: =IF(COUNTRY_INFO!A108=0," ",COUNTRY_INFO!A108) -> Uganda | B108: =IF(COUNTRY_INFO!B108=0," ",COUNTRY_INFO!B108) -> WESTERN | C108: =IF(COUNTRY_INFO!C108=0," ",COUNTRY_INFO!C108) -> KANUNGU | D108: =IF(COUNTRY_INFO!$T$9:$T$1000="MDA3 (IVM)", COUNTRY_INFO!$T$9:$T$1000, " ") -> MDA3 (IVM) | E108: Apr & Oct 2018 | F108: 18739 | G108: 32320 | H108: 51059 | I108: 17935.79101 | J108: 30942.20899 | K108: 48878 | L108: 18068.99392 | M108: 31172.00608 | N108: 49241 | O108: 18068.99392 | P108: 31172.00608 | Q108: 49241 | R108: 96.42453666 | S108: 96.4480386 | T108: 96.43941323
A109: =IF(COUNTRY_INFO!A109=0," ",COUNTRY_INFO!A109) -> Uganda | B109: =IF(COUNTRY_INFO!B109=0," ",COUNTRY_INFO!B109) -> WESTERN | C109: =IF(COUNTRY_INFO!C109=0," ",COUNTRY_INFO!C109) -> KASESE | D109: =IF(COUNTRY_INFO!$T$9:$T$1000="MDA3 (IVM)", COUNTRY_INFO!$T$9:$T$1000, " ") -> MDA3 (IVM) | E109: Apr & Oct 2018 | F109: 41938 | G109: 72334 | H109: 114272 | I109: 39397.97327 | J109: 67968.02673 | K109: 107366 | L109: 40613.67922 | M109: 70065.32078 | N109: 110679 | O109: 40613.67922 | P109: 70065.32078 | Q109: 110679 | R109: 96.84219377 | S109: 96.86360602 | T109: 96.85574769
A110: =IF(COUNTRY_INFO!A110=0," ",COUNTRY_INFO!A110) -> Uganda | B110: =IF(COUNTRY_INFO!B110=0," ",COUNTRY_INFO!B110) -> WESTERN | C110: =IF(COUNTRY_INFO!C110=0," ",COUNTRY_INFO!C110) -> KIBAALE | D110: =IF(COUNTRY_INFO!$T$9:$T$1000="MDA3 (IVM)", COUNTRY_INFO!$T$9:$T$1000, " ") ->  | H110: 0 | O110: 0 | P110: 0 | Q110: 0
A111: =IF(COUNTRY_INFO!A111=0," ",COUNTRY_INFO!A111) -> Uganda | B111: =IF(COUNTRY_INFO!B111=0," ",COUNTRY_INFO!B111) -> WESTERN | C111: =IF(COUNTRY_INFO!C111=0," ",COUNTRY_INFO!C111) -> KIRUHURA | D111: =IF(COUNTRY_INFO!$T$9:$T$1000="MDA3 (IVM)", COUNTRY_INFO!$T$9:$T$1000, " ") ->  | G111: 0 | H111: 0 | O111: 0 | P111: 0 | Q111: 0
A112: =IF(COUNTRY_INFO!A112=0," ",COUNTRY_INFO!A112) -> Uganda | B112: =IF(COUNTRY_INFO!B112=0," ",COUNTRY_INFO!B112) -> WESTERN | C112: =IF(COUNTRY_INFO!C112=0," ",COUNTRY_INFO!C112) -> KIRYANDONGO | D112: =IF(COUNTRY_INFO!$T$9:$T$1000="MDA3 (IVM)", COUNTRY_INFO!$T$9:$T$1000, " ") ->  | G112: 0 | H112: 0 | O112: 0 | P112: 0 | Q112: 0
A113: =IF(COUNTRY_INFO!A113=0," ",COUNTRY_INFO!A113) -> Uganda | B113: =IF(COUNTRY_INFO!B113=0," ",COUNTRY_INFO!B113) -> WESTERN | C113: =IF(COUNTRY_INFO!C113=0," ",COUNTRY_INFO!C113) -> KISORO | D113: =IF(COUNTRY_INFO!$T$9:$T$1000="MDA3 (IVM)", COUNTRY_INFO!$T$9:$T$1000, " ") -> MDA3 (IVM) | E113: Apr & Oct 2018 | F113: 13344 | G113: 23015 | H113: 36359 | I113: 12188.61725 | J113: 21027.38275 | K113: 33216 | L113: 12788.94775 | M113: 22063.05225 | N113: 34852 | O113: 12788.94775 | P113: 22063.05225 | Q113: 34852 | R113: 95.84043579 | S113: 95.86379426 | T113: 95.85522154
A114: =IF(COUNTRY_INFO!A114=0," ",COUNTRY_INFO!A114) -> Uganda | B114: =IF(COUNTRY_INFO!B114=0," ",COUNTRY_INFO!B114) -> WESTERN | C114: =IF(COUNTRY_INFO!C114=0," ",COUNTRY_INFO!C114) -> KYEGEGWA | D114: =IF(COUNTRY_INFO!$T$9:$T$1000="MDA3 (IVM)", COUNTRY_INFO!$T$9:$T$1000, " ") ->  | G114: 0 | H114: 0 | O114: 0 | P114: 0 | Q114: 0
A115: =IF(COUNTRY_INFO!A115=0," ",COUNTRY_INFO!A115) -> Uganda | B115: =IF(COUNTRY_INFO!B115=0," ",COUNTRY_INFO!B115) -> WESTERN | C115: =IF(COUNTRY_INFO!C115=0," ",COUNTRY_INFO!C115) -> KYENJOJO | D115: =IF(COUNTRY_INFO!$T$9:$T$1000="MDA3 (IVM)", COUNTRY_INFO!$T$9:$T$1000, " ") ->  | H115: 0 | O115: 0 | P115: 0 | Q115: 0
A116: =IF(COUNTRY_INFO!A116=0," ",COUNTRY_INFO!A116) -> Uganda | B116: =IF(COUNTRY_INFO!B116=0," ",COUNTRY_INFO!B116) -> WESTERN | C116: =IF(COUNTRY_INFO!C116=0," ",COUNTRY_INFO!C116) -> MASINDI | D116: =IF(COUNTRY_INFO!$T$9:$T$1000="MDA3 (IVM)", COUNTRY_INFO!$T$9:$T$1000, " ") -> MDA3 (IVM) | E116: Apr & Oct 2018 | F116: 16686 | G116: 28779 | H116: 45465 | I116: 16499.91495 | J116: 28465.08505 | K116: 44965 | L116: 16477.53098 | M116: 28426.46902 | N116: 44904 | O116: 16499.91495 | P116: 28465.08505 | Q116: 44965 | R116: 98.88478332 | S116: 98.90922219 | T116: 98.90025294
A117: =IF(COUNTRY_INFO!A117=0," ",COUNTRY_INFO!A117) -> Uganda | B117: =IF(COUNTRY_INFO!B117=0," ",COUNTRY_INFO!B117) -> WESTERN | C117: =IF(COUNTRY_INFO!C117=0," ",COUNTRY_INFO!C117) -> MBARARA | D117: =IF(COUNTRY_INFO!$T$9:$T$1000="MDA3 (IVM)", COUNTRY_INFO!$T$9:$T$1000, " ") ->  | G117: 0 | H117: 0 | O117: 0 | P117: 0 | Q117: 0
A118: =IF(COUNTRY_INFO!A118=0," ",COUNTRY_INFO!A118) -> Uganda | B118: =IF(COUNTRY_INFO!B118=0," ",COUNTRY_INFO!B118) -> WESTERN | C118: =IF(COUNTRY_INFO!C118=0," ",COUNTRY_INFO!C118) -> MITOOMA | D118: =IF(COUNTRY_INFO!$T$9:$T$1000="MDA3 (IVM)", COUNTRY_INFO!$T$9:$T$1000, " ") ->  | H118: 0 | O118: 0 | P118: 0 | Q118: 0
A119: =IF(COUNTRY_INFO!A119=0," ",COUNTRY_INFO!A119) -> Uganda | B119: =IF(COUNTRY_INFO!B119=0," ",COUNTRY_INFO!B119) -> WESTERN | C119: =IF(COUNTRY_INFO!C119=0," ",COUNTRY_INFO!C119) -> NTOROKO | D119: =IF(COUNTRY_INFO!$T$9:$T$1000="MDA3 (IVM)", COUNTRY_INFO!$T$9:$T$1000, " ") ->  | G119: 0 | H119: 0 | O119: 0 | P119: 0 | Q119: 0
A120: =IF(COUNTRY_INFO!A120=0," ",COUNTRY_INFO!A120) -> Uganda | B120: =IF(COUNTRY_INFO!B120=0," ",COUNTRY_INFO!B120) -> WESTERN | C120: =IF(COUNTRY_INFO!C120=0," ",COUNTRY_INFO!C120) -> NTUNGAMO | D120: =IF(COUNTRY_INFO!$T$9:$T$1000="MDA3 (IVM)", COUNTRY_INFO!$T$9:$T$1000, " ") ->  | G120: 0 | H120: 0 | O120: 0 | P120: 0 | Q120: 0
A121: =IF(COUNTRY_INFO!A121=0," ",COUNTRY_INFO!A121) -> Uganda | B121: =IF(COUNTRY_INFO!B121=0," ",COUNTRY_INFO!B121) -> WESTERN | C121: =IF(COUNTRY_INFO!C121=0," ",COUNTRY_INFO!C121) -> RUBANDA | D121: =IF(COUNTRY_INFO!$T$9:$T$1000="MDA3 (IVM)", COUNTRY_INFO!$T$9:$T$1000, " ") -> MDA3 (IVM) | E121: Apr & Oct 2018 | F121: 10420 | G121: 17973 | H121: 28393 | I121: 9794.267315 | J121: 16896.73269 | K121: 26691 | L121: 10011.86877 | M121: 17272.13123 | N121: 27284 | O121: 10011.86877 | P121: 17272.13123 | Q121: 27284 | R121: 96.0831936 | S121: 96.10043525 | T121: 96.0941077
A122: =IF(COUNTRY_INFO!A122=0," ",COUNTRY_INFO!A122) -> Uganda | B122: =IF(COUNTRY_INFO!B122=0," ",COUNTRY_INFO!B122) -> WESTERN | C122: =IF(COUNTRY_INFO!C122=0," ",COUNTRY_INFO!C122) -> RUBIRIZI | D122: =IF(COUNTRY_INFO!$T$9:$T$1000="MDA3 (IVM)", COUNTRY_INFO!$T$9:$T$1000, " ") ->  | G122: 0 | H122: 0 | O122: 0 | P122: 0 | Q122: 0
A123: =IF(COUNTRY_INFO!A123=0," ",COUNTRY_INFO!A123) -> Uganda | B123: =IF(COUNTRY_INFO!B123=0," ",COUNTRY_INFO!B123) -> WESTERN | C123: =IF(COUNTRY_INFO!C123=0," ",COUNTRY_INFO!C123) -> RUKUNGIRI | D123: =IF(COUNTRY_INFO!$T$9:$T$1000="MDA3 (IVM)", COUNTRY_INFO!$T$9:$T$1000, " ") ->  | G123: 0 | H123: 0 | O123: 0 | P123: 0 | Q123: 0
A124: =IF(COUNTRY_INFO!A124=0," ",COUNTRY_INFO!A124) -> Uganda | B124: =IF(COUNTRY_INFO!B124=0," ",COUNTRY_INFO!B124) -> WESTERN | C124: =IF(COUNTRY_INFO!C124=0," ",COUNTRY_INFO!C124) -> SHEEMA | D124: =IF(COUNTRY_INFO!$T$9:$T$1000="MDA3 (IVM)", COUNTRY_INFO!$T$9:$T$1000, " ") ->  | G124: 0 | H124: 0 | O124: 0 | P124: 0 | Q124: 0
A125: =IF(COUNTRY_INFO!A125=0," ",COUNTRY_INFO!A125) -> Uganda | B125: =IF(COUNTRY_INFO!B125=0," ",COUNTRY_INFO!B125) ->  | C125: =IF(COUNTRY_INFO!C125=0," ",COUNTRY_INFO!C125) ->  | D125: =IF(COUNTRY_INFO!$T$9:$T$1000="MDA3 (IVM)", COUNTRY_INFO!$T$9:$T$1000, " ") ->  | H125: 0 | K125: =SUM(I125:J125) -> 0 | N125: =SUM(L125:M125) -> 0 | O125: 0 | P125: 0 | Q125: 0

Sheet T1
A1: T 1 - Praziquantel (PZQ) and Albendazole (ALB) or Mebendazole (MBD)
A2: Administrative structure, population requiring PC by age group, population treated by age group and coverage
A4: TOTAL | G4: =SUM(G$9:G$1000) -> 0 | H4: 0 | I4: 0 | J4: 0 | K4: =SUM(K$9:K$1000) -> 0 | L4: 0 | M4: 0 | N4: 0 | O4: 0 | P4: =IF(G4<>0, IF(L4/G4*100=0, "-", L4/G4*100), " ") ->  | Q4: =IF(OR(I4<>0,H4<>0), IF(M4/MAX(H4,I4)*100=0, "-", M4/MAX(H4,I4)*100), " ") ->  | R4: =IF(J4<>0, IF(N4/J4*100=0, "-", N4/J4*100), " ") ->  | S4: =IF(K4<>0, IF(O4/K4*100=0, "-", O4/K4*100), " ") -> 
D6: PC implemented | E6: Medicine | F6: Date | G6: Population targeted for T1 | L6: Population treated | P6: Programme coverage (%)
A7: Country | B7: Province/State | C7: District | G7: PreSAC (ALB) | H7: SAC (ALB) | I7: SAC (PZQ) | J7: Adults (PZQ) | K7: Total | L7: PreSAC | M7: SAC | N7: Adults | O7: Total | P7: PreSAC | Q7: SAC | R7: Adults | S7: Total
A9: =IF(COUNTRY_INFO!A9=0," ",COUNTRY_INFO!A9) -> Uganda | B9: =IF(COUNTRY_INFO!B9=0," ",COUNTRY_INFO!B9) -> CENTRAL | C9: =IF(COUNTRY_INFO!C9=0," ",COUNTRY_INFO!C9) -> BUIKWE | D9: =IF(OR(COUNTRY_INFO!$T$9:$T$1000="T1 (PZQ+ALB/MBD)",COUNTRY_INFO!$U$9:$U$1000="T1 (PZQ+ALB/MBD)"), "T1 (PZQ+ALB/MBD)", " ") ->  | K9: =MAX(H9:I9)+G9+J9 -> 0 | O9: =SUM(L9:N9) -> 0 | P9: =IF(G9<>0, IF(L9/G9*100=0, "-", L9/G9*100), " ") ->  | Q9: =IF(OR(I9<>0,H9<>0), IF(M9/MAX(H9,I9)*100=0, "-", M9/MAX(H9,I9)*100), " ") ->  | R9: =IF(J9<>0, IF(N9/J9*100=0, "-", N9/J9*100), " ") -> 
A10: =IF(COUNTRY_INFO!A10=0," ",COUNTRY_INFO!A10) -> Uganda | B10: =IF(COUNTRY_INFO!B10=0," ",COUNTRY_INFO!B10) -> CENTRAL | C10: =IF(COUNTRY_INFO!C10=0," ",COUNTRY_INFO!C10) -> BUKOMANSIMBI | D10: =IF(OR(COUNTRY_INFO!$T$9:$T$1000="T1 (PZQ+ALB/MBD)",COUNTRY_INFO!$U$9:$U$1000="T1 (PZQ+ALB/MBD)"), "T1 (PZQ+ALB/MBD)", " ") ->  | K10: =MAX(H10:I10)+G10+J10 -> 0 | O10: =SUM(L10:N10) -> 0 | P10: =IF(G10<>0, IF(L10/G10*100=0, "-", L10/G10*100), " ") ->  | Q10: =IF(OR(I10<>0,H10<>0), IF(M10/MAX(H10,I10)*100=0, "-", M10/MAX(H10,I10)*100), " ") ->  | R10: =IF(J10<>0, IF(N10/J10*100=0, "-", N10/J10*100), " ") ->  | S10: =IF(K10<>0, IF(O10/K10*100=0, "-", O10/K10*100), " ") -> 
A11: =IF(COUNTRY_INFO!A11=0," ",COUNTRY_INFO!A11) -> Uganda | B11: =IF(COUNTRY_INFO!B11=0," ",COUNTRY_INFO!B11) -> CENTRAL | C11: =IF(COUNTRY_INFO!C11=0," ",COUNTRY_INFO!C11) -> BUTAMBALA | D11: =IF(OR(COUNTRY_INFO!$T$9:$T$1000="T1 (PZQ+ALB/MBD)",COUNTRY_INFO!$U$9:$U$1000="T1 (PZQ+ALB/MBD)"), "T1 (PZQ+ALB/MBD)", " ") ->  | K11: 0 | O11: 0
A12: =IF(COUNTRY_INFO!A12=0," ",COUNTRY_INFO!A12) -> Uganda | B12: =IF(COUNTRY_INFO!B12=0," ",COUNTRY_INFO!B12) -> CENTRAL | C12: =IF(COUNTRY_INFO!C12=0," ",COUNTRY_INFO!C12) -> BUVUMA | D12: =IF(OR(COUNTRY_INFO!$T$9:$T$1000="T1 (PZQ+ALB/MBD)",COUNTRY_INFO!$U$9:$U$1000="T1 (PZQ+ALB/MBD)"), "T1 (PZQ+ALB/MBD)", " ") ->  | K12: 0 | O12: 0
A13: =IF(COUNTRY_INFO!A13=0," ",COUNTRY_INFO!A13) -> Uganda | B13: =IF(COUNTRY_INFO!B13=0," ",COUNTRY_INFO!B13) -> CENTRAL | C13: =IF(COUNTRY_INFO!C13=0," ",COUNTRY_INFO!C13) -> GOMBA | D13: =IF(OR(COUNTRY_INFO!$T$9:$T$1000="T1 (PZQ+ALB/MBD)",COUNTRY_INFO!$U$9:$U$1000="T1 (PZQ+ALB/MBD)"), "T1 (PZQ+ALB/MBD)", " ") ->  | K13: 0 | O13: 0
A14: =IF(COUNTRY_INFO!A14=0," ",COUNTRY_INFO!A14) -> Uganda | B14: =IF(COUNTRY_INFO!B14=0," ",COUNTRY_INFO!B14) -> CENTRAL | C14: =IF(COUNTRY_INFO!C14=0," ",COUNTRY_INFO!C14) -> KALANGALA | D14: =IF(OR(COUNTRY_INFO!$T$9:$T$1000="T1 (PZQ+ALB/MBD)",COUNTRY_INFO!$U$9:$U$1000="T1 (PZQ+ALB/MBD)"), "T1 (PZQ+ALB/MBD)", " ") ->  | K14: 0 | O14: 0
A15: =IF(COUNTRY_INFO!A15=0," ",COUNTRY_INFO!A15) -> Uganda | B15: =IF(COUNTRY_INFO!B15=0," ",COUNTRY_INFO!B15) -> CENTRAL | C15: =IF(COUNTRY_INFO!C15=0," ",COUNTRY_INFO!C15) -> KALUNGU | D15: =IF(OR(COUNTRY_INFO!$T$9:$T$1000="T1 (PZQ+ALB/MBD)",COUNTRY_INFO!$U$9:$U$1000="T1 (PZQ+ALB/MBD)"), "T1 (PZQ+ALB/MBD)", " ") ->  | K15: 0 | O15: 0
A16: =IF(COUNTRY_INFO!A16=0," ",COUNTRY_INFO!A16) -> Uganda | B16: =IF(COUNTRY_INFO!B16=0," ",COUNTRY_INFO!B16) -> CENTRAL | C16: =IF(COUNTRY_INFO!C16=0," ",COUNTRY_INFO!C16) -> KAMPALA | D16: =IF(OR(COUNTRY_INFO!$T$9:$T$1000="T1 (PZQ+ALB/MBD)",COUNTRY_INFO!$U$9:$U$1000="T1 (PZQ+ALB/MBD)"), "T1 (PZQ+ALB/MBD)", " ") ->  | K16: 0 | O16: 0
A17: =IF(COUNTRY_INFO!A17=0," ",COUNTRY_INFO!A17) -> Uganda | B17: =IF(COUNTRY_INFO!B17=0," ",COUNTRY_INFO!B17) -> CENTRAL | C17: =IF(COUNTRY_INFO!C17=0," ",COUNTRY_INFO!C17) -> KAYUNGA | D17: =IF(OR(COUNTRY_INFO!$T$9:$T$1000="T1 (PZQ+ALB/MBD)",COUNTRY_INFO!$U$9:$U$1000="T1 (PZQ+ALB/MBD)"), "T1 (PZQ+ALB/MBD)", " ") ->  | K17: 0 | O17: 0
A18: =IF(COUNTRY_INFO!A18=0," ",COUNTRY_INFO!A18) -> Uganda | B18: =IF(COUNTRY_INFO!B18=0," ",COUNTRY_INFO!B18) -> CENTRAL | C18: =IF(COUNTRY_INFO!C18=0," ",COUNTRY_INFO!C18) -> KIBOGA | D18: =IF(OR(COUNTRY_INFO!$T$9:$T$1000="T1 (PZQ+ALB/MBD)",COUNTRY_INFO!$U$9:$U$1000="T1 (PZQ+ALB/MBD)"), "T1 (PZQ+ALB/MBD)", " ") ->  | K18: 0 | O18: 0
A19: =IF(COUNTRY_INFO!A19=0," ",COUNTRY_INFO!A19) -> Uganda | B19: =IF(COUNTRY_INFO!B19=0," ",COUNTRY_INFO!B19) -> CENTRAL | C19: =IF(COUNTRY_INFO!C19=0," ",COUNTRY_INFO!C19) -> KYANKWANZI | D19: =IF(OR(COUNTRY_INFO!$T$9:$T$1000="T1 (PZQ+ALB/MBD)",COUNTRY_INFO!$U$9:$U$1000="T1 (PZQ+ALB/MBD)"), "T1 (PZQ+ALB/MBD)", " ") ->  | K19: 0 | O19: 0
A20: =IF(COUNTRY_INFO!A20=0," ",COUNTRY_INFO!A20) -> Uganda | B20: =IF(COUNTRY_INFO!B20=0," ",COUNTRY_INFO!B20) -> CENTRAL | C20: =IF(COUNTRY_INFO!C20=0," ",COUNTRY_INFO!C20) -> LUWERO | D20: =IF(OR(COUNTRY_INFO!$T$9:$T$1000="T1 (PZQ+ALB/MBD)",COUNTRY_INFO!$U$9:$U$1000="T1 (PZQ+ALB/MBD)"), "T1 (PZQ+ALB/MBD)", " ") ->  | K20: 0 | O20: 0
A21: =IF(COUNTRY_INFO!A21=0," ",COUNTRY_INFO!A21) -> Uganda | B21: =IF(COUNTRY_INFO!B21=0," ",COUNTRY_INFO!B21) -> CENTRAL | C21: =IF(COUNTRY_INFO!C21=0," ",COUNTRY_INFO!C21) -> LWENGO | D21: =IF(OR(COUNTRY_INFO!$T$9:$T$1000="T1 (PZQ+ALB/MBD)",COUNTRY_INFO!$U$9:$U$1000="T1 (PZQ+ALB/MBD)"), "T1 (PZQ+ALB/MBD)", " ") ->  | K21: 0 | O21: 0
A22: =IF(COUNTRY_INFO!A22=0," ",COUNTRY_INFO!A22) -> Uganda | B22: =IF(COUNTRY_INFO!B22=0," ",COUNTRY_INFO!B22) -> CENTRAL | C22: =IF(COUNTRY_INFO!C22=0," ",COUNTRY_INFO!C22) -> LYANTONDE | D22: =IF(OR(COUNTRY_INFO!$T$9:$T$1000="T1 (PZQ+ALB/MBD)",COUNTRY_INFO!$U$9:$U$1000="T1 (PZQ+ALB/MBD)"), "T1 (PZQ+ALB/MBD)", " ") ->  | K22: 0 | O22: 0
A23: =IF(COUNTRY_INFO!A23=0," ",COUNTRY_INFO!A23) -> Uganda | B23: =IF(COUNTRY_INFO!B23=0," ",COUNTRY_INFO!B23) -> CENTRAL | C23: =IF(COUNTRY_INFO!C23=0," ",COUNTRY_INFO!C23) -> MASAKA | D23: =IF(OR(COUNTRY_INFO!$T$9:$T$1000="T1 (PZQ+ALB/MBD)",COUNTRY_INFO!$U$9:$U$1000="T1 (PZQ+ALB/MBD)"), "T1 (PZQ+ALB/MBD)", " ") ->  | K23: 0 | O23: 0
A24: =IF(COUNTRY_INFO!A24=0," ",COUNTRY_INFO!A24) -> Uganda | B24: =IF(COUNTRY_INFO!B24=0," ",COUNTRY_INFO!B24) -> CENTRAL | C24: =IF(COUNTRY_INFO!C24=0," ",COUNTRY_INFO!C24) -> MITYANA | D24: =IF(OR(COUNTRY_INFO!$T$9:$T$1000="T1 (PZQ+ALB/MBD)",COUNTRY_INFO!$U$9:$U$1000="T1 (PZQ+ALB/MBD)"), "T1 (PZQ+ALB/MBD)", " ") ->  | K24: 0 | O24: 0
A25: =IF(COUNTRY_INFO!A25=0," ",COUNTRY_INFO!A25) -> Uganda | B25: =IF(COUNTRY_INFO!B25=0," ",COUNTRY_INFO!B25) -> CENTRAL | C25: =IF(COUNTRY_INFO!C25=0," ",COUNTRY_INFO!C25) -> MPIGI | D25: =IF(OR(COUNTRY_INFO!$T$9:$T$1000="T1 (PZQ+ALB/MBD)",COUNTRY_INFO!$U$9:$U$1000="T1 (PZQ+ALB/MBD)"), "T1 (PZQ+ALB/MBD)", " ") ->  | K25: 0 | O25: 0
A26: =IF(COUNTRY_INFO!A26=0," ",COUNTRY_INFO!A26) -> Uganda | B26: =IF(COUNTRY_INFO!B26=0," ",COUNTRY_INFO!B26) -> CENTRAL | C26: =IF(COUNTRY_INFO!C26=0," ",COUNTRY_INFO!C26) -> MUBENDE | D26: =IF(OR(COUNTRY_INFO!$T$9:$T$1000="T1 (PZQ+ALB/MBD)",COUNTRY_INFO!$U$9:$U$1000="T1 (PZQ+ALB/MBD)"), "T1 (PZQ+ALB/MBD)", " ") ->  | K26: 0 | O26: 0
A27: =IF(COUNTRY_INFO!A27=0," ",COUNTRY_INFO!A27) -> Uganda | B27: =IF(COUNTRY_INFO!B27=0," ",COUNTRY_INFO!B27) -> CENTRAL | C27: =IF(COUNTRY_INFO!C27=0," ",COUNTRY_INFO!C27) -> MUKONO | D27: =IF(OR(COUNTRY_INFO!$T$9:$T$1000="T1 (PZQ+ALB/MBD)",COUNTRY_INFO!$U$9:$U$1000="T1 (PZQ+ALB/MBD)"), "T1 (PZQ+ALB/MBD)", " ") ->  | K27: 0 | O27: 0
A28: =IF(COUNTRY_INFO!A28=0," ",COUNTRY_INFO!A28) -> Uganda | B28: =IF(COUNTRY_INFO!B28=0," ",COUNTRY_INFO!B28) -> CENTRAL | C28: =IF(COUNTRY_INFO!C28=0," ",COUNTRY_INFO!C28) -> NAKASEKE | D28: =IF(OR(COUNTRY_INFO!$T$9:$T$1000="T1 (PZQ+ALB/MBD)",COUNTRY_INFO!$U$9:$U$1000="T1 (PZQ+ALB/MBD)"), "T1 (PZQ+ALB/MBD)", " ") ->  | K28: 0 | O28: 0
A29: =IF(COUNTRY_INFO!A29=0," ",COUNTRY_INFO!A29) -> Uganda | B29: =IF(COUNTRY_INFO!B29=0," ",COUNTRY_INFO!B29) -> CENTRAL | C29: =IF(COUNTRY_INFO!C29=0," ",COUNTRY_INFO!C29) -> NAKASONGOLA | D29: =IF(OR(COUNTRY_INFO!$T$9:$T$1000="T1 (PZQ+ALB/MBD)",COUNTRY_INFO!$U$9:$U$1000="T1 (PZQ+ALB/MBD)"), "T1 (PZQ+ALB/MBD)", " ") ->  | K29: 0 | O29: 0
A30: =IF(COUNTRY_INFO!A30=0," ",COUNTRY_INFO!A30) -> Uganda | B30: =IF(COUNTRY_INFO!B30=0," ",COUNTRY_INFO!B30) -> CENTRAL | C30: =IF(COUNTRY_INFO!C30=0," ",COUNTRY_INFO!C30) -> RAKAI | D30: =IF(OR(COUNTRY_INFO!$T$9:$T$1000="T1 (PZQ+ALB/MBD)",COUNTRY_INFO!$U$9:$U$1000="T1 (PZQ+ALB/MBD)"), "T1 (PZQ+ALB/MBD)", " ") ->  | K30: 0 | O30: 0
A31: =IF(COUNTRY_INFO!A31=0," ",COUNTRY_INFO!A31) -> Uganda | B31: =IF(COUNTRY_INFO!B31=0," ",COUNTRY_INFO!B31) -> CENTRAL | C31: =IF(COUNTRY_INFO!C31=0," ",COUNTRY_INFO!C31) -> SEMBABULE | D31: =IF(OR(COUNTRY_INFO!$T$9:$T$1000="T1 (PZQ+ALB/MBD)",COUNTRY_INFO!$U$9:$U$1000="T1 (PZQ+ALB/MBD)"), "T1 (PZQ+ALB/MBD)", " ") ->  | K31: 0 | O31: 0
A32: =IF(COUNTRY_INFO!A32=0," ",COUNTRY_INFO!A32) -> Uganda | B32: =IF(COUNTRY_INFO!B32=0," ",COUNTRY_INFO!B32) -> CENTRAL | C32: =IF(COUNTRY_INFO!C32=0," ",COUNTRY_INFO!C32) -> WAKISO | D32: =IF(OR(COUNTRY_INFO!$T$9:$T$1000="T1 (PZQ+ALB/MBD)",COUNTRY_INFO!$U$9:$U$1000="T1 (PZQ+ALB/MBD)"), "T1 (PZQ+ALB/MBD)", " ") ->  | K32: 0 | O32: 0
A33: =IF(COUNTRY_INFO!A33=0," ",COUNTRY_INFO!A33) -> Uganda | B33: =IF(COUNTRY_INFO!B33=0," ",COUNTRY_INFO!B33) -> EASTERN | C33: =IF(COUNTRY_INFO!C33=0," ",COUNTRY_INFO!C33) -> AMURIA | D33: =IF(OR(COUNTRY_INFO!$T$9:$T$1000="T1 (PZQ+ALB/MBD)",COUNTRY_INFO!$U$9:$U$1000="T1 (PZQ+ALB/MBD)"), "T1 (PZQ+ALB/MBD)", " ") ->  | K33: 0 | O33: 0
A34: =IF(COUNTRY_INFO!A34=0," ",COUNTRY_INFO!A34) -> Uganda | B34: =IF(COUNTRY_INFO!B34=0," ",COUNTRY_INFO!B34) -> EASTERN | C34: =IF(COUNTRY_INFO!C34=0," ",COUNTRY_INFO!C34) -> BUDAKA | D34: =IF(OR(COUNTRY_INFO!$T$9:$T$1000="T1 (PZQ+ALB/MBD)",COUNTRY_INFO!$U$9:$U$1000="T1 (PZQ+ALB/MBD)"), "T1 (PZQ+ALB/MBD)", " ") ->  | K34: 0 | O34: 0
A35: =IF(COUNTRY_INFO!A35=0," ",COUNTRY_INFO!A35) -> Uganda | B35: =IF(COUNTRY_INFO!B35=0," ",COUNTRY_INFO!B35) -> EASTERN | C35: =IF(COUNTRY_INFO!C35=0," ",COUNTRY_INFO!C35) -> BUDUDA | D35: =IF(OR(COUNTRY_INFO!$T$9:$T$1000="T1 (PZQ+ALB/MBD)",COUNTRY_INFO!$U$9:$U$1000="T1 (PZQ+ALB/MBD)"), "T1 (PZQ+ALB/MBD)", " ") ->  | K35: 0 | O35: 0
A36: =IF(COUNTRY_INFO!A36=0," ",COUNTRY_INFO!A36) -> Uganda | B36: =IF(COUNTRY_INFO!B36=0," ",COUNTRY_INFO!B36) -> EASTERN | C36: =IF(COUNTRY_INFO!C36=0," ",COUNTRY_INFO!C36) -> BUGIRI | D36: =IF(OR(COUNTRY_INFO!$T$9:$T$1000="T1 (PZQ+ALB/MBD)",COUNTRY_INFO!$U$9:$U$1000="T1 (PZQ+ALB/MBD)"), "T1 (PZQ+ALB/MBD)", " ") ->  | K36: 0 | O36: 0
A37: =IF(COUNTRY_INFO!A37=0," ",COUNTRY_INFO!A37) -> Uganda | B37: =IF(COUNTRY_INFO!B37=0," ",COUNTRY_INFO!B37) -> EASTERN | C37: =IF(COUNTRY_INFO!C37=0," ",COUNTRY_INFO!C37) -> BUKEDEA | D37: =IF(OR(COUNTRY_INFO!$T$9:$T$1000="T1 (PZQ+ALB/MBD)",COUNTRY_INFO!$U$9:$U$1000="T1 (PZQ+ALB/MBD)"), "T1 (PZQ+ALB/MBD)", " ") ->  | K37: 0 | O37: 0
A38: =IF(COUNTRY_INFO!A38=0," ",COUNTRY_INFO!A38) -> Uganda | B38: =IF(COUNTRY_INFO!B38=0," ",COUNTRY_INFO!B38) -> EASTERN | C38: =IF(COUNTRY_INFO!C38=0," ",COUNTRY_INFO!C38) -> BUKWO | D38: =IF(OR(COUNTRY_INFO!$T$9:$T$1000="T1 (PZQ+ALB/MBD)",COUNTRY_INFO!$U$9:$U$1000="T1 (PZQ+ALB/MBD)"), "T1 (PZQ+ALB/MBD)", " ") ->  | K38: 0 | O38: 0
A39: =IF(COUNTRY_INFO!A39=0," ",COUNTRY_INFO!A39) -> Uganda | B39: =IF(COUNTRY_INFO!B39=0," ",COUNTRY_INFO!B39) -> EASTERN | C39: =IF(COUNTRY_INFO!C39=0," ",COUNTRY_INFO!C39) -> BULAMBULI | D39: =IF(OR(COUNTRY_INFO!$T$9:$T$1000="T1 (PZQ+ALB/MBD)",COUNTRY_INFO!$U$9:$U$1000="T1 (PZQ+ALB/MBD)"), "T1 (PZQ+ALB/MBD)", " ") ->  | K39: 0 | O39: 0
A40: =IF(COUNTRY_INFO!A40=0," ",COUNTRY_INFO!A40) -> Uganda | B40: =IF(COUNTRY_INFO!B40=0," ",COUNTRY_INFO!B40) -> EASTERN | C40: =IF(COUNTRY_INFO!C40=0," ",COUNTRY_INFO!C40) -> BUSIA | D40: =IF(OR(COUNTRY_INFO!$T$9:$T$1000="T1 (PZQ+ALB/MBD)",COUNTRY_INFO!$U$9:$U$1000="T1 (PZQ+ALB/MBD)"), "T1 (PZQ+ALB/MBD)", " ") ->  | K40: 0 | O40: 0
A41: =IF(COUNTRY_INFO!A41=0," ",COUNTRY_INFO!A41) -> Uganda | B41: =IF(COUNTRY_INFO!B41=0," ",COUNTRY_INFO!B41) -> EASTERN | C41: =IF(COUNTRY_INFO!C41=0," ",COUNTRY_INFO!C41) -> BUTALEJA | D41: =IF(OR(COUNTRY_INFO!$T$9:$T$1000="T1 (PZQ+ALB/MBD)",COUNTRY_INFO!$U$9:$U$1000="T1 (PZQ+ALB/MBD)"), "T1 (PZQ+ALB/MBD)", " ") ->  | K41: 0 | O41: 0
A42: =IF(COUNTRY_INFO!A42=0," ",COUNTRY_INFO!A42) -> Uganda | B42: =IF(COUNTRY_INFO!B42=0," ",COUNTRY_INFO!B42) -> EASTERN | C42: =IF(COUNTRY_INFO!C42=0," ",COUNTRY_INFO!C42) -> BUYENDE | D42: =IF(OR(COUNTRY_INFO!$T$9:$T$1000="T1 (PZQ+ALB/MBD)",COUNTRY_INFO!$U$9:$U$1000="T1 (PZQ+ALB/MBD)"), "T1 (PZQ+ALB/MBD)", " ") ->  | K42: 0 | O42: 0
A43: =IF(COUNTRY_INFO!A43=0," ",COUNTRY_INFO!A43) -> Uganda | B43: =IF(COUNTRY_INFO!B43=0," ",COUNTRY_INFO!B43) -> EASTERN | C43: =IF(COUNTRY_INFO!C43=0," ",COUNTRY_INFO!C43) -> IGANGA | D43: =IF(OR(COUNTRY_INFO!$T$9:$T$1000="T1 (PZQ+ALB/MBD)",COUNTRY_INFO!$U$9:$U$1000="T1 (PZQ+ALB/MBD)"), "T1 (PZQ+ALB/MBD)", " ") ->  | K43: 0 | O43: 0
A44: =IF(COUNTRY_INFO!A44=0," ",COUNTRY_INFO!A44) -> Uganda | B44: =IF(COUNTRY_INFO!B44=0," ",COUNTRY_INFO!B44) -> EASTERN | C44: =IF(COUNTRY_INFO!C44=0," ",COUNTRY_INFO!C44) -> JINJA | D44: =IF(OR(COUNTRY_INFO!$T$9:$T$1000="T1 (PZQ+ALB/MBD)",COUNTRY_INFO!$U$9:$U$1000="T1 (PZQ+ALB/MBD)"), "T1 (PZQ+ALB/MBD)", " ") ->  | K44: 0 | O44: 0
A45: =IF(COUNTRY_INFO!A45=0," ",COUNTRY_INFO!A45) -> Uganda | B45: =IF(COUNTRY_INFO!B45=0," ",COUNTRY_INFO!B45) -> EASTERN | C45: =IF(COUNTRY_INFO!C45=0," ",COUNTRY_INFO!C45) -> KABERAMAIDO | D45: =IF(OR(COUNTRY_INFO!$T$9:$T$1000="T1 (PZQ+ALB/MBD)",COUNTRY_INFO!$U$9:$U$1000="T1 (PZQ+ALB/MBD)"), "T1 (PZQ+ALB/MBD)", " ") ->  | K45: 0 | O45: 0
A46: =IF(COUNTRY_INFO!A46=0," ",COUNTRY_INFO!A46) -> Uganda | B46: =IF(COUNTRY_INFO!B46=0," ",COUNTRY_INFO!B46) -> EASTERN | C46: =IF(COUNTRY_INFO!C46=0," ",COUNTRY_INFO!C46) -> KALIRO | D46: =IF(OR(COUNTRY_INFO!$T$9:$T$1000="T1 (PZQ+ALB/MBD)",COUNTRY_INFO!$U$9:$U$1000="T1 (PZQ+ALB/MBD)"), "T1 (PZQ+ALB/MBD)", " ") ->  | K46: 0 | O46: 0
A47: =IF(COUNTRY_INFO!A47=0," ",COUNTRY_INFO!A47) -> Uganda | B47: =IF(COUNTRY_INFO!B47=0," ",COUNTRY_INFO!B47) -> EASTERN | C47: =IF(COUNTRY_INFO!C47=0," ",COUNTRY_INFO!C47) -> KAMULI | D47: =IF(OR(COUNTRY_INFO!$T$9:$T$1000="T1 (PZQ+ALB/MBD)",COUNTRY_INFO!$U$9:$U$1000="T1 (PZQ+ALB/MBD)"), "T1 (PZQ+ALB/MBD)", " ") ->  | K47: 0 | O47: 0
A48: =IF(COUNTRY_INFO!A48=0," ",COUNTRY_INFO!A48) -> Uganda | B48: =IF(COUNTRY_INFO!B48=0," ",COUNTRY_INFO!B48) -> EASTERN | C48: =IF(COUNTRY_INFO!C48=0," ",COUNTRY_INFO!C48) -> KAPCHORWA | D48: =IF(OR(COUNTRY_INFO!$T$9:$T$1000="T1 (PZQ+ALB/MBD)",COUNTRY_INFO!$U$9:$U$1000="T1 (PZQ+ALB/MBD)"), "T1 (PZQ+ALB/MBD)", " ") ->  | K48: 0 | O48: 0
A49: =IF(COUNTRY_INFO!A49=0," ",COUNTRY_INFO!A49) -> Uganda | B49: =IF(COUNTRY_INFO!B49=0," ",COUNTRY_INFO!B49) -> EASTERN | C49: =IF(COUNTRY_INFO!C49=0," ",COUNTRY_INFO!C49) -> KATAKWI | D49: =IF(OR(COUNTRY_INFO!$T$9:$T$1000="T1 (PZQ+ALB/MBD)",COUNTRY_INFO!$U$9:$U$1000="T1 (PZQ+ALB/MBD)"), "T1 (PZQ+ALB/MBD)", " ") ->  | K49: 0 | O49: 0
A50: =IF(COUNTRY_INFO!A50=0," ",COUNTRY_INFO!A50) -> Uganda | B50: =IF(COUNTRY_INFO!B50=0," ",COUNTRY_INFO!B50) -> EASTERN | C50: =IF(COUNTRY_INFO!C50=0," ",COUNTRY_INFO!C50) -> KIBUKU | D50: =IF(OR(COUNTRY_INFO!$T$9:$T$1000="T1 (PZQ+ALB/MBD)",COUNTRY_INFO!$U$9:$U$1000="T1 (PZQ+ALB/MBD)"), "T1 (PZQ+ALB/MBD)", " ") ->  | K50: 0 | O50: 0
A51: =IF(COUNTRY_INFO!A51=0," ",COUNTRY_INFO!A51) -> Uganda | B51: =IF(COUNTRY_INFO!B51=0," ",COUNTRY_INFO!B51) -> EASTERN | C51: =IF(COUNTRY_INFO!C51=0," ",COUNTRY_INFO!C51) -> KUMI | D51: =IF(OR(COUNTRY_INFO!$T$9:$T$1000="T1 (PZQ+ALB/MBD)",COUNTRY_INFO!$U$9:$U$1000="T1 (PZQ+ALB/MBD)"), "T1 (PZQ+ALB/MBD)", " ") ->  | K51: 0 | O51: 0
A52: =IF(COUNTRY_INFO!A52=0," ",COUNTRY_INFO!A52) -> Uganda | B52: =IF(COUNTRY_INFO!B52=0," ",COUNTRY_INFO!B52) -> EASTERN | C52: =IF(COUNTRY_INFO!C52=0," ",COUNTRY_INFO!C52) -> KWEEN | D52: =IF(OR(COUNTRY_INFO!$T$9:$T$1000="T1 (PZQ+ALB/MBD)",COUNTRY_INFO!$U$9:$U$1000="T1 (PZQ+ALB/MBD)"), "T1 (PZQ+ALB/MBD)", " ") ->  | K52: 0 | O52: 0
A53: =IF(COUNTRY_INFO!A53=0," ",COUNTRY_INFO!A53) -> Uganda | B53: =IF(COUNTRY_INFO!B53=0," ",COUNTRY_INFO!B53) -> EASTERN | C53: =IF(COUNTRY_INFO!C53=0," ",COUNTRY_INFO!C53) -> LUUKA | D53: =IF(OR(COUNTRY_INFO!$T$9:$T$1000="T1 (PZQ+ALB/MBD)",COUNTRY_INFO!$U$9:$U$1000="T1 (PZQ+ALB/MBD)"), "T1 (PZQ+ALB/MBD)", " ") ->  | K53: 0 | O53: 0
A54: =IF(COUNTRY_INFO!A54=0," ",COUNTRY_INFO!A54) -> Uganda | B54: =IF(COUNTRY_INFO!B54=0," ",COUNTRY_INFO!B54) -> EASTERN | C54: =IF(COUNTRY_INFO!C54=0," ",COUNTRY_INFO!C54) -> MANAFWA | D54: =IF(OR(COUNTRY_INFO!$T$9:$T$1000="T1 (PZQ+ALB/MBD)",COUNTRY_INFO!$U$9:$U$1000="T1 (PZQ+ALB/MBD)"), "T1 (PZQ+ALB/MBD)", " ") ->  | K54: 0 | O54: 0
A55: =IF(COUNTRY_INFO!A55=0," ",COUNTRY_INFO!A55) -> Uganda | B55: =IF(COUNTRY_INFO!B55=0," ",COUNTRY_INFO!B55) -> EASTERN | C55: =IF(COUNTRY_INFO!C55=0," ",COUNTRY_INFO!C55) -> MAYUGE | D55: =IF(OR(COUNTRY_INFO!$T$9:$T$1000="T1 (PZQ+ALB/MBD)",COUNTRY_INFO!$U$9:$U$1000="T1 (PZQ+ALB/MBD)"), "T1 (PZQ+ALB/MBD)", " ") ->  | K55: 0 | O55: 0
A56: =IF(COUNTRY_INFO!A56=0," ",COUNTRY_INFO!A56) -> Uganda | B56: =IF(COUNTRY_INFO!B56=0," ",COUNTRY_INFO!B56) -> EASTERN | C56: =IF(COUNTRY_INFO!C56=0," ",COUNTRY_INFO!C56) -> MBALE | D56: =IF(OR(COUNTRY_INFO!$T$9:$T$1000="T1 (PZQ+ALB/MBD)",COUNTRY_INFO!$U$9:$U$1000="T1 (PZQ+ALB/MBD)"), "T1 (PZQ+ALB/MBD)", " ") ->  | K56: 0 | O56: 0
A57: =IF(COUNTRY_INFO!A57=0," ",COUNTRY_INFO!A57) -> Uganda | B57: =IF(COUNTRY_INFO!B57=0," ",COUNTRY_INFO!B57) -> EASTERN | C57: =IF(COUNTRY_INFO!C57=0," ",COUNTRY_INFO!C57) -> NAMAYINGO | D57: =IF(OR(COUNTRY_INFO!$T$9:$T$1000="T1 (PZQ+ALB/MBD)",COUNTRY_INFO!$U$9:$U$1000="T1 (PZQ+ALB/MBD)"), "T1 (PZQ+ALB/MBD)", " ") ->  | K57: 0 | O57: 0
A58: =IF(COUNTRY_INFO!A58=0," ",COUNTRY_INFO!A58) -> Uganda | B58: =IF(COUNTRY_INFO!B58=0," ",COUNTRY_INFO!B58) -> EASTERN | C58: =IF(COUNTRY_INFO!C58=0," ",COUNTRY_INFO!C58) -> NAMUTUMBA | D58: =IF(OR(COUNTRY_INFO!$T$9:$T$1000="T1 (PZQ+ALB/MBD)",COUNTRY_INFO!$U$9:$U$1000="T1 (PZQ+ALB/MBD)"), "T1 (PZQ+ALB/MBD)", " ") ->  | K58: 0 | O58: 0
A59: =IF(COUNTRY_INFO!A59=0," ",COUNTRY_INFO!A59) -> Uganda | B59: =IF(COUNTRY_INFO!B59=0," ",COUNTRY_INFO!B59) -> EASTERN | C59: =IF(COUNTRY_INFO!C59=0," ",COUNTRY_INFO!C59) -> NGORA | D59: =IF(OR(COUNTRY_INFO!$T$9:$T$1000="T1 (PZQ+ALB/MBD)",COUNTRY_INFO!$U$9:$U$1000="T1 (PZQ+ALB/MBD)"), "T1 (PZQ+ALB/MBD)", " ") ->  | K59: 0 | O59: 0
A60: =IF(COUNTRY_INFO!A60=0," ",COUNTRY_INFO!A60) -> Uganda | B60: =IF(COUNTRY_INFO!B60=0," ",COUNTRY_INFO!B60) -> EASTERN | C60: =IF(COUNTRY_INFO!C60=0," ",COUNTRY_INFO!C60) -> PALLISA | D60: =IF(OR(COUNTRY_INFO!$T$9:$T$1000="T1 (PZQ+ALB/MBD)",COUNTRY_INFO!$U$9:$U$1000="T1 (PZQ+ALB/MBD)"), "T1 (PZQ+ALB/MBD)", " ") ->  | K60: 0 | O60: 0
A61: =IF(COUNTRY_INFO!A61=0," ",COUNTRY_INFO!A61) -> Uganda | B61: =IF(COUNTRY_INFO!B61=0," ",COUNTRY_INFO!B61) -> EASTERN | C61: =IF(COUNTRY_INFO!C61=0," ",COUNTRY_INFO!C61) -> SERERE | D61: =IF(OR(COUNTRY_INFO!$T$9:$T$1000="T1 (PZQ+ALB/MBD)",COUNTRY_INFO!$U$9:$U$1000="T1 (PZQ+ALB/MBD)"), "T1 (PZQ+ALB/MBD)", " ") ->  | K61: 0 | O61: 0
A62: =IF(COUNTRY_INFO!A62=0," ",COUNTRY_INFO!A62) -> Uganda | B62: =IF(COUNTRY_INFO!B62=0," ",COUNTRY_INFO!B62) -> EASTERN | C62: =IF(COUNTRY_INFO!C62=0," ",COUNTRY_INFO!C62) -> SIRONKO | D62: =IF(OR(COUNTRY_INFO!$T$9:$T$1000="T1 (PZQ+ALB/MBD)",COUNTRY_INFO!$U$9:$U$1000="T1 (PZQ+ALB/MBD)"), "T1 (PZQ+ALB/MBD)", " ") ->  | K62: 0 | O62: 0
A63: =IF(COUNTRY_INFO!A63=0," ",COUNTRY_INFO!A63) -> Uganda | B63: =IF(COUNTRY_INFO!B63=0," ",COUNTRY_INFO!B63) -> EASTERN | C63: =IF(COUNTRY_INFO!C63=0," ",COUNTRY_INFO!C63) -> SOROTI | D63: =IF(OR(COUNTRY_INFO!$T$9:$T$1000="T1 (PZQ+ALB/MBD)",COUNTRY_INFO!$U$9:$U$1000="T1 (PZQ+ALB/MBD)"), "T1 (PZQ+ALB/MBD)", " ") ->  | K63: 0 | O63: 0
A64: =IF(COUNTRY_INFO!A64=0," ",COUNTRY_INFO!A64) -> Uganda | B64: =IF(COUNTRY_INFO!B64=0," ",COUNTRY_INFO!B64) -> EASTERN | C64: =IF(COUNTRY_INFO!C64=0," ",COUNTRY_INFO!C64) -> TORORO | D64: =IF(OR(COUNTRY_INFO!$T$9:$T$1000="T1 (PZQ+ALB/MBD)",COUNTRY_INFO!$U$9:$U$1000="T1 (PZQ+ALB/MBD)"), "T1 (PZQ+ALB/MBD)", " ") ->  | K64: 0 | O64: 0
A65: =IF(COUNTRY_INFO!A65=0," ",COUNTRY_INFO!A65) -> Uganda | B65: =IF(COUNTRY_INFO!B65=0," ",COUNTRY_INFO!B65) -> NORTHERN | C65: =IF(COUNTRY_INFO!C65=0," ",COUNTRY_INFO!C65) -> ABIM | D65: =IF(OR(COUNTRY_INFO!$T$9:$T$1000="T1 (PZQ+ALB/MBD)",COUNTRY_INFO!$U$9:$U$1000="T1 (PZQ+ALB/MBD)"), "T1 (PZQ+ALB/MBD)", " ") ->  | K65: 0 | O65: 0
A66: =IF(COUNTRY_INFO!A66=0," ",COUNTRY_INFO!A66) -> Uganda | B66: =IF(COUNTRY_INFO!B66=0," ",COUNTRY_INFO!B66) -> NORTHERN | C66: =IF(COUNTRY_INFO!C66=0," ",COUNTRY_INFO!C66) -> ADJUMANI | D66: =IF(OR(COUNTRY_INFO!$T$9:$T$1000="T1 (PZQ+ALB/MBD)",COUNTRY_INFO!$U$9:$U$1000="T1 (PZQ+ALB/MBD)"), "T1 (PZQ+ALB/MBD)", " ") ->  | K66: 0 | O66: 0
A67: =IF(COUNTRY_INFO!A67=0," ",COUNTRY_INFO!A67) -> Uganda | B67: =IF(COUNTRY_INFO!B67=0," ",COUNTRY_INFO!B67) -> NORTHERN | C67: =IF(COUNTRY_INFO!C67=0," ",COUNTRY_INFO!C67) -> AGAGO | D67: =IF(OR(COUNTRY_INFO!$T$9:$T$1000="T1 (PZQ+ALB/MBD)",COUNTRY_INFO!$U$9:$U$1000="T1 (PZQ+ALB/MBD)"), "T1 (PZQ+ALB/MBD)", " ") ->  | K67: 0 | O67: 0
A68: =IF(COUNTRY_INFO!A68=0," ",COUNTRY_INFO!A68) -> Uganda | B68: =IF(COUNTRY_INFO!B68=0," ",COUNTRY_INFO!B68) -> NORTHERN | C68: =IF(COUNTRY_INFO!C68=0," ",COUNTRY_INFO!C68) -> ALEBTONG | D68: =IF(OR(COUNTRY_INFO!$T$9:$T$1000="T1 (PZQ+ALB/MBD)",COUNTRY_INFO!$U$9:$U$1000="T1 (PZQ+ALB/MBD)"), "T1 (PZQ+ALB/MBD)", " ") ->  | K68: 0 | O68: 0
A69: =IF(COUNTRY_INFO!A69=0," ",COUNTRY_INFO!A69) -> Uganda | B69: =IF(COUNTRY_INFO!B69=0," ",COUNTRY_INFO!B69) -> NORTHERN | C69: =IF(COUNTRY_INFO!C69=0," ",COUNTRY_INFO!C69) -> AMOLATAR | D69: =IF(OR(COUNTRY_INFO!$T$9:$T$1000="T1 (PZQ+ALB/MBD)",COUNTRY_INFO!$U$9:$U$1000="T1 (PZQ+ALB/MBD)"), "T1 (PZQ+ALB/MBD)", " ") ->  | K69: 0 | O69: 0
A70: =IF(COUNTRY_INFO!A70=0," ",COUNTRY_INFO!A70) -> Uganda | B70: =IF(COUNTRY_INFO!B70=0," ",COUNTRY_INFO!B70) -> NORTHERN | C70: =IF(COUNTRY_INFO!C70=0," ",COUNTRY_INFO!C70) -> AMUDAT | D70: =IF(OR(COUNTRY_INFO!$T$9:$T$1000="T1 (PZQ+ALB/MBD)",COUNTRY_INFO!$U$9:$U$1000="T1 (PZQ+ALB/MBD)"), "T1 (PZQ+ALB/MBD)", " ") ->  | K70: 0 | O70: 0
A71: =IF(COUNTRY_INFO!A71=0," ",COUNTRY_INFO!A71) -> Uganda | B71: =IF(COUNTRY_INFO!B71=0," ",COUNTRY_INFO!B71) -> NORTHERN | C71: =IF(COUNTRY_INFO!C71=0," ",COUNTRY_INFO!C71) -> AMURU | D71: =IF(OR(COUNTRY_INFO!$T$9:$T$1000="T1 (PZQ+ALB/MBD)",COUNTRY_INFO!$U$9:$U$1000="T1 (PZQ+ALB/MBD)"), "T1 (PZQ+ALB/MBD)", " ") ->  | K71: 0 | O71: 0
A72: =IF(COUNTRY_INFO!A72=0," ",COUNTRY_INFO!A72) -> Uganda | B72: =IF(COUNTRY_INFO!B72=0," ",COUNTRY_INFO!B72) -> NORTHERN | C72: =IF(COUNTRY_INFO!C72=0," ",COUNTRY_INFO!C72) -> APAC | D72: =IF(OR(COUNTRY_INFO!$T$9:$T$1000="T1 (PZQ+ALB/MBD)",COUNTRY_INFO!$U$9:$U$1000="T1 (PZQ+ALB/MBD)"), "T1 (PZQ+ALB/MBD)", " ") ->  | K72: 0 | O72: 0
A73: =IF(COUNTRY_INFO!A73=0," ",COUNTRY_INFO!A73) -> Uganda | B73: =IF(COUNTRY_INFO!B73=0," ",COUNTRY_INFO!B73) -> NORTHERN | C73: =IF(COUNTRY_INFO!C73=0," ",COUNTRY_INFO!C73) -> ARUA | D73: =IF(OR(COUNTRY_INFO!$T$9:$T$1000="T1 (PZQ+ALB/MBD)",COUNTRY_INFO!$U$9:$U$1000="T1 (PZQ+ALB/MBD)"), "T1 (PZQ+ALB/MBD)", " ") ->  | K73: 0 | O73: 0
A74: =IF(COUNTRY_INFO!A74=0," ",COUNTRY_INFO!A74) -> Uganda | B74: =IF(COUNTRY_INFO!B74=0," ",COUNTRY_INFO!B74) -> NORTHERN | C74: =IF(COUNTRY_INFO!C74=0," ",COUNTRY_INFO!C74) -> DOKOLO | D74: =IF(OR(COUNTRY_INFO!$T$9:$T$1000="T1 (PZQ+ALB/MBD)",COUNTRY_INFO!$U$9:$U$1000="T1 (PZQ+ALB/MBD)"), "T1 (PZQ+ALB/MBD)", " ") ->  | K74: =MAX(H74:I74)+G74+J74 -> 0 | O74: =SUM(L74:N74) -> 0 | P74: =IF(G74<>0, IF(L74/G74*100=0, "-", L74/G74*100), " ") ->  | Q74: =IF(OR(I74<>0,H74<>0), IF(M74/MAX(H74,I74)*100=0, "-", M74/MAX(H74,I74)*100), " ") ->  | R74: =IF(J74<>0, IF(N74/J74*100=0, "-", N74/J74*100), " ") ->  | S74: =IF(K74<>0, IF(O74/K74*100=0, "-", O74/K74*100), " ") -> 
A75: =IF(COUNTRY_INFO!A75=0," ",COUNTRY_INFO!A75) -> Uganda | B75: =IF(COUNTRY_INFO!B75=0," ",COUNTRY_INFO!B75) -> NORTHERN | C75: =IF(COUNTRY_INFO!C75=0," ",COUNTRY_INFO!C75) -> GULU | D75: =IF(OR(COUNTRY_INFO!$T$9:$T$1000="T1 (PZQ+ALB/MBD)",COUNTRY_INFO!$U$9:$U$1000="T1 (PZQ+ALB/MBD)"), "T1 (PZQ+ALB/MBD)", " ") ->  | K75: 0 | O75: 0
A76: =IF(COUNTRY_INFO!A76=0," ",COUNTRY_INFO!A76) -> Uganda | B76: =IF(COUNTRY_INFO!B76=0," ",COUNTRY_INFO!B76) -> NORTHERN | C76: =IF(COUNTRY_INFO!C76=0," ",COUNTRY_INFO!C76) -> KAABONG | D76: =IF(OR(COUNTRY_INFO!$T$9:$T$1000="T1 (PZQ+ALB/MBD)",COUNTRY_INFO!$U$9:$U$1000="T1 (PZQ+ALB/MBD)"), "T1 (PZQ+ALB/MBD)", " ") ->  | K76: 0 | O76: 0
A77: =IF(COUNTRY_INFO!A77=0," ",COUNTRY_INFO!A77) -> Uganda | B77: =IF(COUNTRY_INFO!B77=0," ",COUNTRY_INFO!B77) -> NORTHERN | C77: =IF(COUNTRY_INFO!C77=0," ",COUNTRY_INFO!C77) -> KITGUM | D77: =IF(OR(COUNTRY_INFO!$T$9:$T$1000="T1 (PZQ+ALB/MBD)",COUNTRY_INFO!$U$9:$U$1000="T1 (PZQ+ALB/MBD)"), "T1 (PZQ+ALB/MBD)", " ") ->  | K77: 0 | O77: 0
A78: =IF(COUNTRY_INFO!A78=0," ",COUNTRY_INFO!A78) -> Uganda | B78: =IF(COUNTRY_INFO!B78=0," ",COUNTRY_INFO!B78) -> NORTHERN | C78: =IF(COUNTRY_INFO!C78=0," ",COUNTRY_INFO!C78) -> KOBOKO | D78: =IF(OR(COUNTRY_INFO!$T$9:$T$1000="T1 (PZQ+ALB/MBD)",COUNTRY_INFO!$U$9:$U$1000="T1 (PZQ+ALB/MBD)"), "T1 (PZQ+ALB/MBD)", " ") ->  | K78: 0 | O78: 0
A79: =IF(COUNTRY_INFO!A79=0," ",COUNTRY_INFO!A79) -> Uganda | B79: =IF(COUNTRY_INFO!B79=0," ",COUNTRY_INFO!B79) -> NORTHERN | C79: =IF(COUNTRY_INFO!C79=0," ",COUNTRY_INFO!C79) -> KOLE | D79: =IF(OR(COUNTRY_INFO!$T$9:$T$1000="T1 (PZQ+ALB/MBD)",COUNTRY_INFO!$U$9:$U$1000="T1 (PZQ+ALB/MBD)"), "T1 (PZQ+ALB/MBD)", " ") ->  | K79: 0 | O79: 0
A80: =IF(COUNTRY_INFO!A80=0," ",COUNTRY_INFO!A80) -> Uganda | B80: =IF(COUNTRY_INFO!B80=0," ",COUNTRY_INFO!B80) -> NORTHERN | C80: =IF(COUNTRY_INFO!C80=0," ",COUNTRY_INFO!C80) -> KOTIDO | D80: =IF(OR(COUNTRY_INFO!$T$9:$T$1000="T1 (PZQ+ALB/MBD)",COUNTRY_INFO!$U$9:$U$1000="T1 (PZQ+ALB/MBD)"), "T1 (PZQ+ALB/MBD)", " ") ->  | K80: 0 | O80: 0
A81: =IF(COUNTRY_INFO!A81=0," ",COUNTRY_INFO!A81) -> Uganda | B81: =IF(COUNTRY_INFO!B81=0," ",COUNTRY_INFO!B81) -> NORTHERN | C81: =IF(COUNTRY_INFO!C81=0," ",COUNTRY_INFO!C81) -> LAMWO | D81: =IF(OR(COUNTRY_INFO!$T$9:$T$1000="T1 (PZQ+ALB/MBD)",COUNTRY_INFO!$U$9:$U$1000="T1 (PZQ+ALB/MBD)"), "T1 (PZQ+ALB/MBD)", " ") ->  | K81: 0 | O81: 0
A82: =IF(COUNTRY_INFO!A82=0," ",COUNTRY_INFO!A82) -> Uganda | B82: =IF(COUNTRY_INFO!B82=0," ",COUNTRY_INFO!B82) -> NORTHERN | C82: =IF(COUNTRY_INFO!C82=0," ",COUNTRY_INFO!C82) -> LIRA | D82: =IF(OR(COUNTRY_INFO!$T$9:$T$1000="T1 (PZQ+ALB/MBD)",COUNTRY_INFO!$U$9:$U$1000="T1 (PZQ+ALB/MBD)"), "T1 (PZQ+ALB/MBD)", " ") ->  | K82: 0 | O82: 0
A83: =IF(COUNTRY_INFO!A83=0," ",COUNTRY_INFO!A83) -> Uganda | B83: =IF(COUNTRY_INFO!B83=0," ",COUNTRY_INFO!B83) -> NORTHERN | C83: =IF(COUNTRY_INFO!C83=0," ",COUNTRY_INFO!C83) -> MARACHA | D83: =IF(OR(COUNTRY_INFO!$T$9:$T$1000="T1 (PZQ+ALB/MBD)",COUNTRY_INFO!$U$9:$U$1000="T1 (PZQ+ALB/MBD)"), "T1 (PZQ+ALB/MBD)", " ") ->  | K83: 0 | O83: 0
A84: =IF(COUNTRY_INFO!A84=0," ",COUNTRY_INFO!A84) -> Uganda | B84: =IF(COUNTRY_INFO!B84=0," ",COUNTRY_INFO!B84) -> NORTHERN | C84: =IF(COUNTRY_INFO!C84=0," ",COUNTRY_INFO!C84) -> MOROTO | D84: =IF(OR(COUNTRY_INFO!$T$9:$T$1000="T1 (PZQ+ALB/MBD)",COUNTRY_INFO!$U$9:$U$1000="T1 (PZQ+ALB/MBD)"), "T1 (PZQ+ALB/MBD)", " ") ->  | K84: 0 | O84: 0
A85: =IF(COUNTRY_INFO!A85=0," ",COUNTRY_INFO!A85) -> Uganda | B85: =IF(COUNTRY_INFO!B85=0," ",COUNTRY_INFO!B85) -> NORTHERN | C85: =IF(COUNTRY_INFO!C85=0," ",COUNTRY_INFO!C85) -> MOYO | D85: =IF(OR(COUNTRY_INFO!$T$9:$T$1000="T1 (PZQ+ALB/MBD)",COUNTRY_INFO!$U$9:$U$1000="T1 (PZQ+ALB/MBD)"), "T1 (PZQ+ALB/MBD)", " ") ->  | K85: 0 | O85: 0
A86: =IF(COUNTRY_INFO!A86=0," ",COUNTRY_INFO!A86) -> Uganda | B86: =IF(COUNTRY_INFO!B86=0," ",COUNTRY_INFO!B86) -> NORTHERN | C86: =IF(COUNTRY_INFO!C86=0," ",COUNTRY_INFO!C86) -> NAKAPIRIPIRIT | D86: =IF(OR(COUNTRY_INFO!$T$9:$T$1000="T1 (PZQ+ALB/MBD)",COUNTRY_INFO!$U$9:$U$1000="T1 (PZQ+ALB/MBD)"), "T1 (PZQ+ALB/MBD)", " ") ->  | K86: 0 | O86: 0
A87: =IF(COUNTRY_INFO!A87=0," ",COUNTRY_INFO!A87) -> Uganda | B87: =IF(COUNTRY_INFO!B87=0," ",COUNTRY_INFO!B87) -> NORTHERN | C87: =IF(COUNTRY_INFO!C87=0," ",COUNTRY_INFO!C87) -> NAPAK | D87: =IF(OR(COUNTRY_INFO!$T$9:$T$1000="T1 (PZQ+ALB/MBD)",COUNTRY_INFO!$U$9:$U$1000="T1 (PZQ+ALB/MBD)"), "T1 (PZQ+ALB/MBD)", " ") ->  | K87: 0 | O87: 0
A88: =IF(COUNTRY_INFO!A88=0," ",COUNTRY_INFO!A88) -> Uganda | B88: =IF(COUNTRY_INFO!B88=0," ",COUNTRY_INFO!B88) -> NORTHERN | C88: =IF(COUNTRY_INFO!C88=0," ",COUNTRY_INFO!C88) -> NEBBI | D88: =IF(OR(COUNTRY_INFO!$T$9:$T$1000="T1 (PZQ+ALB/MBD)",COUNTRY_INFO!$U$9:$U$1000="T1 (PZQ+ALB/MBD)"), "T1 (PZQ+ALB/MBD)", " ") ->  | K88: 0 | O88: 0
A89: =IF(COUNTRY_INFO!A89=0," ",COUNTRY_INFO!A89) -> Uganda | B89: =IF(COUNTRY_INFO!B89=0," ",COUNTRY_INFO!B89) -> NORTHERN | C89: =IF(COUNTRY_INFO!C89=0," ",COUNTRY_INFO!C89) -> NWOYA | D89: =IF(OR(COUNTRY_INFO!$T$9:$T$1000="T1 (PZQ+ALB/MBD)",COUNTRY_INFO!$U$9:$U$1000="T1 (PZQ+ALB/MBD)"), "T1 (PZQ+ALB/MBD)", " ") ->  | K89: 0 | O89: 0
A90: =IF(COUNTRY_INFO!A90=0," ",COUNTRY_INFO!A90) -> Uganda | B90: =IF(COUNTRY_INFO!B90=0," ",COUNTRY_INFO!B90) -> NORTHERN | C90: =IF(COUNTRY_INFO!C90=0," ",COUNTRY_INFO!C90) -> OMORO | D90: =IF(OR(COUNTRY_INFO!$T$9:$T$1000="T1 (PZQ+ALB/MBD)",COUNTRY_INFO!$U$9:$U$1000="T1 (PZQ+ALB/MBD)"), "T1 (PZQ+ALB/MBD)", " ") ->  | K90: 0 | O90: 0
A91: =IF(COUNTRY_INFO!A91=0," ",COUNTRY_INFO!A91) -> Uganda | B91: =IF(COUNTRY_INFO!B91=0," ",COUNTRY_INFO!B91) -> NORTHERN | C91: =IF(COUNTRY_INFO!C91=0," ",COUNTRY_INFO!C91) -> OTUKE | D91: =IF(OR(COUNTRY_INFO!$T$9:$T$1000="T1 (PZQ+ALB/MBD)",COUNTRY_INFO!$U$9:$U$1000="T1 (PZQ+ALB/MBD)"), "T1 (PZQ+ALB/MBD)", " ") ->  | K91: 0 | O91: 0
A92: =IF(COUNTRY_INFO!A92=0," ",COUNTRY_INFO!A92) -> Uganda | B92: =IF(COUNTRY_INFO!B92=0," ",COUNTRY_INFO!B92) -> NORTHERN | C92: =IF(COUNTRY_INFO!C92=0," ",COUNTRY_INFO!C92) -> OYAM | D92: =IF(OR(COUNTRY_INFO!$T$9:$T$1000="T1 (PZQ+ALB/MBD)",COUNTRY_INFO!$U$9:$U$1000="T1 (PZQ+ALB/MBD)"), "T1 (PZQ+ALB/MBD)", " ") ->  | K92: 0 | O92: 0
A93: =IF(COUNTRY_INFO!A93=0," ",COUNTRY_INFO!A93) -> Uganda | B93: =IF(COUNTRY_INFO!B93=0," ",COUNTRY_INFO!B93) -> NORTHERN | C93: =IF(COUNTRY_INFO!C93=0," ",COUNTRY_INFO!C93) -> PADER | D93: =IF(OR(COUNTRY_INFO!$T$9:$T$1000="T1 (PZQ+ALB/MBD)",COUNTRY_INFO!$U$9:$U$1000="T1 (PZQ+ALB/MBD)"), "T1 (PZQ+ALB/MBD)", " ") ->  | K93: 0 | O93: 0
A94: =IF(COUNTRY_INFO!A94=0," ",COUNTRY_INFO!A94) -> Uganda | B94: =IF(COUNTRY_INFO!B94=0," ",COUNTRY_INFO!B94) -> NORTHERN | C94: =IF(COUNTRY_INFO!C94=0," ",COUNTRY_INFO!C94) -> YUMBE | D94: =IF(OR(COUNTRY_INFO!$T$9:$T$1000="T1 (PZQ+ALB/MBD)",COUNTRY_INFO!$U$9:$U$1000="T1 (PZQ+ALB/MBD)"), "T1 (PZQ+ALB/MBD)", " ") ->  | K94: 0 | O94: 0
A95: =IF(COUNTRY_INFO!A95=0," ",COUNTRY_INFO!A95) -> Uganda | B95: =IF(COUNTRY_INFO!B95=0," ",COUNTRY_INFO!B95) -> NORTHERN | C95: =IF(COUNTRY_INFO!C95=0," ",COUNTRY_INFO!C95) -> ZOMBO | D95: =IF(OR(COUNTRY_INFO!$T$9:$T$1000="T1 (PZQ+ALB/MBD)",COUNTRY_INFO!$U$9:$U$1000="T1 (PZQ+ALB/MBD)"), "T1 (PZQ+ALB/MBD)", " ") ->  | K95: 0 | O95: 0
A96: =IF(COUNTRY_INFO!A96=0," ",COUNTRY_INFO!A96) -> Uganda | B96: =IF(COUNTRY_INFO!B96=0," ",COUNTRY_INFO!B96) -> WESTERN | C96: =IF(COUNTRY_INFO!C96=0," ",COUNTRY_INFO!C96) -> BUHWEJU | D96: =IF(OR(COUNTRY_INFO!$T$9:$T$1000="T1 (PZQ+ALB/MBD)",COUNTRY_INFO!$U$9:$U$1000="T1 (PZQ+ALB/MBD)"), "T1 (PZQ+ALB/MBD)", " ") ->  | K96: 0 | O96: 0
A97: =IF(COUNTRY_INFO!A97=0," ",COUNTRY_INFO!A97) -> Uganda | B97: =IF(COUNTRY_INFO!B97=0," ",COUNTRY_INFO!B97) -> WESTERN | C97: =IF(COUNTRY_INFO!C97=0," ",COUNTRY_INFO!C97) -> BULIISA | D97: =IF(OR(COUNTRY_INFO!$T$9:$T$1000="T1 (PZQ+ALB/MBD)",COUNTRY_INFO!$U$9:$U$1000="T1 (PZQ+ALB/MBD)"), "T1 (PZQ+ALB/MBD)", " ") ->  | K97: 0 | O97: 0
A98: =IF(COUNTRY_INFO!A98=0," ",COUNTRY_INFO!A98) -> Uganda | B98: =IF(COUNTRY_INFO!B98=0," ",COUNTRY_INFO!B98) -> WESTERN | C98: =IF(COUNTRY_INFO!C98=0," ",COUNTRY_INFO!C98) -> BUNDIBUGYO | D98: =IF(OR(COUNTRY_INFO!$T$9:$T$1000="T1 (PZQ+ALB/MBD)",COUNTRY_INFO!$U$9:$U$1000="T1 (PZQ+ALB/MBD)"), "T1 (PZQ+ALB/MBD)", " ") ->  | K98: 0 | O98: 0
A99: =IF(COUNTRY_INFO!A99=0," ",COUNTRY_INFO!A99) -> Uganda | B99: =IF(COUNTRY_INFO!B99=0," ",COUNTRY_INFO!B99) -> WESTERN | C99: =IF(COUNTRY_INFO!C99=0," ",COUNTRY_INFO!C99) -> BUSHENYI | D99: =IF(OR(COUNTRY_INFO!$T$9:$T$1000="T1 (PZQ+ALB/MBD)",COUNTRY_INFO!$U$9:$U$1000="T1 (PZQ+ALB/MBD)"), "T1 (PZQ+ALB/MBD)", " ") ->  | K99: 0 | O99: 0
A100: =IF(COUNTRY_INFO!A100=0," ",COUNTRY_INFO!A100) -> Uganda | B100: =IF(COUNTRY_INFO!B100=0," ",COUNTRY_INFO!B100) -> WESTERN | C100: =IF(COUNTRY_INFO!C100=0," ",COUNTRY_INFO!C100) -> HOIMA | D100: =IF(OR(COUNTRY_INFO!$T$9:$T$1000="T1 (PZQ+ALB/MBD)",COUNTRY_INFO!$U$9:$U$1000="T1 (PZQ+ALB/MBD)"), "T1 (PZQ+ALB/MBD)", " ") ->  | K100: 0 | O100: 0
A101: =IF(COUNTRY_INFO!A101=0," ",COUNTRY_INFO!A101) -> Uganda | B101: =IF(COUNTRY_INFO!B101=0," ",COUNTRY_INFO!B101) -> WESTERN | C101: =IF(COUNTRY_INFO!C101=0," ",COUNTRY_INFO!C101) -> IBANDA | D101: =IF(OR(COUNTRY_INFO!$T$9:$T$1000="T1 (PZQ+ALB/MBD)",COUNTRY_INFO!$U$9:$U$1000="T1 (PZQ+ALB/MBD)"), "T1 (PZQ+ALB/MBD)", " ") ->  | K101: 0 | O101: 0
A102: =IF(COUNTRY_INFO!A102=0," ",COUNTRY_INFO!A102) -> Uganda | B102: =IF(COUNTRY_INFO!B102=0," ",COUNTRY_INFO!B102) -> WESTERN | C102: =IF(COUNTRY_INFO!C102=0," ",COUNTRY_INFO!C102) -> ISINGIRO | D102: =IF(OR(COUNTRY_INFO!$T$9:$T$1000="T1 (PZQ+ALB/MBD)",COUNTRY_INFO!$U$9:$U$1000="T1 (PZQ+ALB/MBD)"), "T1 (PZQ+ALB/MBD)", " ") ->  | K102: 0 | O102: 0
A103: =IF(COUNTRY_INFO!A103=0," ",COUNTRY_INFO!A103) -> Uganda | B103: =IF(COUNTRY_INFO!B103=0," ",COUNTRY_INFO!B103) -> WESTERN | C103: =IF(COUNTRY_INFO!C103=0," ",COUNTRY_INFO!C103) -> KABALE | D103: =IF(OR(COUNTRY_INFO!$T$9:$T$1000="T1 (PZQ+ALB/MBD)",COUNTRY_INFO!$U$9:$U$1000="T1 (PZQ+ALB/MBD)"), "T1 (PZQ+ALB/MBD)", " ") ->  | K103: 0 | O103: 0
A104: =IF(COUNTRY_INFO!A104=0," ",COUNTRY_INFO!A104) -> Uganda | B104: =IF(COUNTRY_INFO!B104=0," ",COUNTRY_INFO!B104) -> WESTERN | C104: =IF(COUNTRY_INFO!C104=0," ",COUNTRY_INFO!C104) -> KABAROLE | D104: =IF(OR(COUNTRY_INFO!$T$9:$T$1000="T1 (PZQ+ALB/MBD)",COUNTRY_INFO!$U$9:$U$1000="T1 (PZQ+ALB/MBD)"), "T1 (PZQ+ALB/MBD)", " ") ->  | K104: 0 | O104: 0
A105: =IF(COUNTRY_INFO!A105=0," ",COUNTRY_INFO!A105) -> Uganda | B105: =IF(COUNTRY_INFO!B105=0," ",COUNTRY_INFO!B105) -> WESTERN | C105: =IF(COUNTRY_INFO!C105=0," ",COUNTRY_INFO!C105) -> KAGADI | D105: =IF(OR(COUNTRY_INFO!$T$9:$T$1000="T1 (PZQ+ALB/MBD)",COUNTRY_INFO!$U$9:$U$1000="T1 (PZQ+ALB/MBD)"), "T1 (PZQ+ALB/MBD)", " ") ->  | K105: 0 | O105: 0
A106: =IF(COUNTRY_INFO!A106=0," ",COUNTRY_INFO!A106) -> Uganda | B106: =IF(COUNTRY_INFO!B106=0," ",COUNTRY_INFO!B106) -> WESTERN | C106: =IF(COUNTRY_INFO!C106=0," ",COUNTRY_INFO!C106) -> KAKUMIRO | D106: =IF(OR(COUNTRY_INFO!$T$9:$T$1000="T1 (PZQ+ALB/MBD)",COUNTRY_INFO!$U$9:$U$1000="T1 (PZQ+ALB/MBD)"), "T1 (PZQ+ALB/MBD)", " ") ->  | K106: 0 | O106: 0
A107: =IF(COUNTRY_INFO!A107=0," ",COUNTRY_INFO!A107) -> Uganda | B107: =IF(COUNTRY_INFO!B107=0," ",COUNTRY_INFO!B107) -> WESTERN | C107: =IF(COUNTRY_INFO!C107=0," ",COUNTRY_INFO!C107) -> KAMWENGE | D107: =IF(OR(COUNTRY_INFO!$T$9:$T$1000="T1 (PZQ+ALB/MBD)",COUNTRY_INFO!$U$9:$U$1000="T1 (PZQ+ALB/MBD)"), "T1 (PZQ+ALB/MBD)", " ") ->  | K107: 0 | O107: 0
A108: =IF(COUNTRY_INFO!A108=0," ",COUNTRY_INFO!A108) -> Uganda | B108: =IF(COUNTRY_INFO!B108=0," ",COUNTRY_INFO!B108) -> WESTERN | C108: =IF(COUNTRY_INFO!C108=0," ",COUNTRY_INFO!C108) -> KANUNGU | D108: =IF(OR(COUNTRY_INFO!$T$9:$T$1000="T1 (PZQ+ALB/MBD)",COUNTRY_INFO!$U$9:$U$1000="T1 (PZQ+ALB/MBD)"), "T1 (PZQ+ALB/MBD)", " ") ->  | K108: 0 | O108: 0
A109: =IF(COUNTRY_INFO!A109=0," ",COUNTRY_INFO!A109) -> Uganda | B109: =IF(COUNTRY_INFO!B109=0," ",COUNTRY_INFO!B109) -> WESTERN | C109: =IF(COUNTRY_INFO!C109=0," ",COUNTRY_INFO!C109) -> KASESE | D109: =IF(OR(COUNTRY_INFO!$T$9:$T$1000="T1 (PZQ+ALB/MBD)",COUNTRY_INFO!$U$9:$U$1000="T1 (PZQ+ALB/MBD)"), "T1 (PZQ+ALB/MBD)", " ") ->  | K109: 0 | O109: 0
A110: =IF(COUNTRY_INFO!A110=0," ",COUNTRY_INFO!A110) -> Uganda | B110: =IF(COUNTRY_INFO!B110=0," ",COUNTRY_INFO!B110) -> WESTERN | C110: =IF(COUNTRY_INFO!C110=0," ",COUNTRY_INFO!C110) -> KIBAALE | D110: =IF(OR(COUNTRY_INFO!$T$9:$T$1000="T1 (PZQ+ALB/MBD)",COUNTRY_INFO!$U$9:$U$1000="T1 (PZQ+ALB/MBD)"), "T1 (PZQ+ALB/MBD)", " ") ->  | K110: 0 | O110: 0
A111: =IF(COUNTRY_INFO!A111=0," ",COUNTRY_INFO!A111) -> Uganda | B111: =IF(COUNTRY_INFO!B111=0," ",COUNTRY_INFO!B111) -> WESTERN | C111: =IF(COUNTRY_INFO!C111=0," ",COUNTRY_INFO!C111) -> KIRUHURA | D111: =IF(OR(COUNTRY_INFO!$T$9:$T$1000="T1 (PZQ+ALB/MBD)",COUNTRY_INFO!$U$9:$U$1000="T1 (PZQ+ALB/MBD)"), "T1 (PZQ+ALB/MBD)", " ") ->  | K111: 0 | O111: 0
A112: =IF(COUNTRY_INFO!A112=0," ",COUNTRY_INFO!A112) -> Uganda | B112: =IF(COUNTRY_INFO!B112=0," ",COUNTRY_INFO!B112) -> WESTERN | C112: =IF(COUNTRY_INFO!C112=0," ",COUNTRY_INFO!C112) -> KIRYANDONGO | D112: =IF(OR(COUNTRY_INFO!$T$9:$T$1000="T1 (PZQ+ALB/MBD)",COUNTRY_INFO!$U$9:$U$1000="T1 (PZQ+ALB/MBD)"), "T1 (PZQ+ALB/MBD)", " ") ->  | K112: 0 | O112: 0
A113: =IF(COUNTRY_INFO!A113=0," ",COUNTRY_INFO!A113) -> Uganda | B113: =IF(COUNTRY_INFO!B113=0," ",COUNTRY_INFO!B113) -> WESTERN | C113: =IF(COUNTRY_INFO!C113=0," ",COUNTRY_INFO!C113) -> KISORO | D113: =IF(OR(COUNTRY_INFO!$T$9:$T$1000="T1 (PZQ+ALB/MBD)",COUNTRY_INFO!$U$9:$U$1000="T1 (PZQ+ALB/MBD)"), "T1 (PZQ+ALB/MBD)", " ") ->  | K113: 0 | O113: 0
A114: =IF(COUNTRY_INFO!A114=0," ",COUNTRY_INFO!A114) -> Uganda | B114: =IF(COUNTRY_INFO!B114=0," ",COUNTRY_INFO!B114) -> WESTERN | C114: =IF(COUNTRY_INFO!C114=0," ",COUNTRY_INFO!C114) -> KYEGEGWA | D114: =IF(OR(COUNTRY_INFO!$T$9:$T$1000="T1 (PZQ+ALB/MBD)",COUNTRY_INFO!$U$9:$U$1000="T1 (PZQ+ALB/MBD)"), "T1 (PZQ+ALB/MBD)", " ") ->  | K114: 0 | O114: 0
A115: =IF(COUNTRY_INFO!A115=0," ",COUNTRY_INFO!A115) -> Uganda | B115: =IF(COUNTRY_INFO!B115=0," ",COUNTRY_INFO!B115) -> WESTERN | C115: =IF(COUNTRY_INFO!C115=0," ",COUNTRY_INFO!C115) -> KYENJOJO | D115: =IF(OR(COUNTRY_INFO!$T$9:$T$1000="T1 (PZQ+ALB/MBD)",COUNTRY_INFO!$U$9:$U$1000="T1 (PZQ+ALB/MBD)"), "T1 (PZQ+ALB/MBD)", " ") ->  | K115: 0 | O115: 0
A116: =IF(COUNTRY_INFO!A116=0," ",COUNTRY_INFO!A116) -> Uganda | B116: =IF(COUNTRY_INFO!B116=0," ",COUNTRY_INFO!B116) -> WESTERN | C116: =IF(COUNTRY_INFO!C116=0," ",COUNTRY_INFO!C116) -> MASINDI | D116: =IF(OR(COUNTRY_INFO!$T$9:$T$1000="T1 (PZQ+ALB/MBD)",COUNTRY_INFO!$U$9:$U$1000="T1 (PZQ+ALB/MBD)"), "T1 (PZQ+ALB/MBD)", " ") ->  | K116: 0 | O116: 0
A117: =IF(COUNTRY_INFO!A117=0," ",COUNTRY_INFO!A117) -> Uganda | B117: =IF(COUNTRY_INFO!B117=0," ",COUNTRY_INFO!B117) -> WESTERN | C117: =IF(COUNTRY_INFO!C117=0," ",COUNTRY_INFO!C117) -> MBARARA | D117: =IF(OR(COUNTRY_INFO!$T$9:$T$1000="T1 (PZQ+ALB/MBD)",COUNTRY_INFO!$U$9:$U$1000="T1 (PZQ+ALB/MBD)"), "T1 (PZQ+ALB/MBD)", " ") ->  | K117: 0 | O117: 0
A118: =IF(COUNTRY_INFO!A118=0," ",COUNTRY_INFO!A118) -> Uganda | B118: =IF(COUNTRY_INFO!B118=0," ",COUNTRY_INFO!B118) -> WESTERN | C118: =IF(COUNTRY_INFO!C118=0," ",COUNTRY_INFO!C118) -> MITOOMA | D118: =IF(OR(COUNTRY_INFO!$T$9:$T$1000="T1 (PZQ+ALB/MBD)",COUNTRY_INFO!$U$9:$U$1000="T1 (PZQ+ALB/MBD)"), "T1 (PZQ+ALB/MBD)", " ") ->  | K118: 0 | O118: 0
A119: =IF(COUNTRY_INFO!A119=0," ",COUNTRY_INFO!A119) -> Uganda | B119: =IF(COUNTRY_INFO!B119=0," ",COUNTRY_INFO!B119) -> WESTERN | C119: =IF(COUNTRY_INFO!C119=0," ",COUNTRY_INFO!C119) -> NTOROKO | D119: =IF(OR(COUNTRY_INFO!$T$9:$T$1000="T1 (PZQ+ALB/MBD)",COUNTRY_INFO!$U$9:$U$1000="T1 (PZQ+ALB/MBD)"), "T1 (PZQ+ALB/MBD)", " ") ->  | K119: 0 | O119: 0
A120: =IF(COUNTRY_INFO!A120=0," ",COUNTRY_INFO!A120) -> Uganda | B120: =IF(COUNTRY_INFO!B120=0," ",COUNTRY_INFO!B120) -> WESTERN | C120: =IF(COUNTRY_INFO!C120=0," ",COUNTRY_INFO!C120) -> NTUNGAMO | D120: =IF(OR(COUNTRY_INFO!$T$9:$T$1000="T1 (PZQ+ALB/MBD)",COUNTRY_INFO!$U$9:$U$1000="T1 (PZQ+ALB/MBD)"), "T1 (PZQ+ALB/MBD)", " ") ->  | K120: 0 | O120: 0
A121: =IF(COUNTRY_INFO!A121=0," ",COUNTRY_INFO!A121) -> Uganda | B121: =IF(COUNTRY_INFO!B121=0," ",COUNTRY_INFO!B121) -> WESTERN | C121: =IF(COUNTRY_INFO!C121=0," ",COUNTRY_INFO!C121) -> RUBANDA | D121: =IF(OR(COUNTRY_INFO!$T$9:$T$1000="T1 (PZQ+ALB/MBD)",COUNTRY_INFO!$U$9:$U$1000="T1 (PZQ+ALB/MBD)"), "T1 (PZQ+ALB/MBD)", " ") ->  | K121: 0 | O121: 0
A122: =IF(COUNTRY_INFO!A122=0," ",COUNTRY_INFO!A122) -> Uganda | B122: =IF(COUNTRY_INFO!B122=0," ",COUNTRY_INFO!B122) -> WESTERN | C122: =IF(COUNTRY_INFO!C122=0," ",COUNTRY_INFO!C122) -> RUBIRIZI | D122: =IF(OR(COUNTRY_INFO!$T$9:$T$1000="T1 (PZQ+ALB/MBD)",COUNTRY_INFO!$U$9:$U$1000="T1 (PZQ+ALB/MBD)"), "T1 (PZQ+ALB/MBD)", " ") ->  | K122: 0 | O122: 0
A123: =IF(COUNTRY_INFO!A123=0," ",COUNTRY_INFO!A123) -> Uganda | B123: =IF(COUNTRY_INFO!B123=0," ",COUNTRY_INFO!B123) -> WESTERN | C123: =IF(COUNTRY_INFO!C123=0," ",COUNTRY_INFO!C123) -> RUKUNGIRI | D123: =IF(OR(COUNTRY_INFO!$T$9:$T$1000="T1 (PZQ+ALB/MBD)",COUNTRY_INFO!$U$9:$U$1000="T1 (PZQ+ALB/MBD)"), "T1 (PZQ+ALB/MBD)", " ") ->  | K123: 0 | O123: 0
A124: =IF(COUNTRY_INFO!A124=0," ",COUNTRY_INFO!A124) -> Uganda | B124: =IF(COUNTRY_INFO!B124=0," ",COUNTRY_INFO!B124) -> WESTERN | C124: =IF(COUNTRY_INFO!C124=0," ",COUNTRY_INFO!C124) -> SHEEMA | D124: =IF(OR(COUNTRY_INFO!$T$9:$T$1000="T1 (PZQ+ALB/MBD)",COUNTRY_INFO!$U$9:$U$1000="T1 (PZQ+ALB/MBD)"), "T1 (PZQ+ALB/MBD)", " ") ->  | K124: 0 | O124: 0
A125: =IF(COUNTRY_INFO!A125=0," ",COUNTRY_INFO!A125) -> Uganda | B125: =IF(COUNTRY_INFO!B125=0," ",COUNTRY_INFO!B125) ->  | C125: =IF(COUNTRY_INFO!C125=0," ",COUNTRY_INFO!C125) ->  | D125: =IF(OR(COUNTRY_INFO!$T$9:$T$1000="T1 (PZQ+ALB/MBD)",COUNTRY_INFO!$U$9:$U$1000="T1 (PZQ+ALB/MBD)"), "T1 (PZQ+ALB/MBD)", " ") ->  | K125: 0 | O125: 0

Sheet T2
A1: T 2 - Praziquantel (PZQ)
A2: Administrative structure, population requiring PC by age group, population treated by age group and coverage
A4: TOTAL | F4: =SUM(F$9:F$996) -> 0 | G4: 2324967 | H4: 2391826 | I4: 4716793 | J4: 0 | K4: 2074132 | L4: 1977244 | M4: 4051376 | N4: =IF(F4<>0, IF(J4/F4*100=0, "-", J4/F4*100), " ") ->  | O4: =IF(G4<>0, IF(K4/G4*100=0, "-", K4/G4*100), " ") -> 89.21124472 | P4: =IF(H4<>0, IF(L4/H4*100=0, "-", L4/H4*100), " ") -> 82.66671572 | Q4: =IF(I4<>0, IF(M4/I4*100=0, "-", M4/I4*100), " ") -> 85.89259694
D6: PC implemented | E6: Date | F6: Population targeted for T2 | J6: Population treated | N6: Programme coverage (%)
A7: Country | B7: Province/State | C7: District | F7: PreSAC | G7: SAC | H7: Adults | I7: Total | J7: PreSAC | K7: SAC | L7: Adults | M7: Total | N7: PreSAC | O7: SAC | P7: Adults | Q7: Total
A9: =IF(COUNTRY_INFO!A9=0," ",COUNTRY_INFO!A9) -> Uganda | B9: =IF(COUNTRY_INFO!B9=0," ",COUNTRY_INFO!B9) -> CENTRAL | C9: =IF(COUNTRY_INFO!C9=0," ",COUNTRY_INFO!C9) -> BUIKWE | D9: =IF(OR(COUNTRY_INFO!$T$9:$T$1000="T2 (PZQ)",COUNTRY_INFO!$U$9:$U$1000="T2 (PZQ)"), "T2 (PZQ)", " ") -> T2 (PZQ) | E9: 10/01/2018 | G9: 47521 | H9: 72597 | I9: =SUM(F9:H9) -> 120118 | K9: 42653 | L9: 64065 | M9: =SUM(J9:L9) -> 106718 | N9: =IF(F9<>0, IF(J9/F9*100=0, "-", J9/F9*100), " ") ->  | O9: 89.75610783 | P9: 88.24744824 | Q9: 88.8443031
A10: =IF(COUNTRY_INFO!A10=0," ",COUNTRY_INFO!A10) -> Uganda | B10: =IF(COUNTRY_INFO!B10=0," ",COUNTRY_INFO!B10) -> CENTRAL | C10: =IF(COUNTRY_INFO!C10=0," ",COUNTRY_INFO!C10) -> BUKOMANSIMBI | D10: =IF(OR(COUNTRY_INFO!$T$9:$T$1000="T2 (PZQ)",COUNTRY_INFO!$U$9:$U$1000="T2 (PZQ)"), "T2 (PZQ)", " ") ->  | I10: =SUM(F10:H10) -> 0 | M10: =SUM(J10:L10) -> 0 | N10: =IF(F10<>0, IF(J10/F10*100=0, "-", J10/F10*100), " ") ->  | O10: =IF(G10<>0, IF(K10/G10*100=0, "-", K10/G10*100), " ") ->  | P10: =IF(H10<>0, IF(L10/H10*100=0, "-", L10/H10*100), " ") ->  | Q10: =IF(I10<>0, IF(M10/I10*100=0, "-", M10/I10*100), " ") -> 
A11: =IF(COUNTRY_INFO!A11=0," ",COUNTRY_INFO!A11) -> Uganda | B11: =IF(COUNTRY_INFO!B11=0," ",COUNTRY_INFO!B11) -> CENTRAL | C11: =IF(COUNTRY_INFO!C11=0," ",COUNTRY_INFO!C11) -> BUTAMBALA | D11: =IF(OR(COUNTRY_INFO!$T$9:$T$1000="T2 (PZQ)",COUNTRY_INFO!$U$9:$U$1000="T2 (PZQ)"), "T2 (PZQ)", " ") ->  | I11: 0 | M11: 0
A12: =IF(COUNTRY_INFO!A12=0," ",COUNTRY_INFO!A12) -> Uganda | B12: =IF(COUNTRY_INFO!B12=0," ",COUNTRY_INFO!B12) -> CENTRAL | C12: =IF(COUNTRY_INFO!C12=0," ",COUNTRY_INFO!C12) -> BUVUMA | D12: =IF(OR(COUNTRY_INFO!$T$9:$T$1000="T2 (PZQ)",COUNTRY_INFO!$U$9:$U$1000="T2 (PZQ)"), "T2 (PZQ)", " ") -> T2 (PZQ) | E12: 10/01/2018 | G12: 28211 | H12: 52062 | I12: 80273 | K12: 23462 | L12: 43875 | M12: 67337 | O12: 83.16614087 | P12: 84.27451884 | Q12: 83.88499246
A13: =IF(COUNTRY_INFO!A13=0," ",COUNTRY_INFO!A13) -> Uganda | B13: =IF(COUNTRY_INFO!B13=0," ",COUNTRY_INFO!B13) -> CENTRAL | C13: =IF(COUNTRY_INFO!C13=0," ",COUNTRY_INFO!C13) -> GOMBA | D13: =IF(OR(COUNTRY_INFO!$T$9:$T$1000="T2 (PZQ)",COUNTRY_INFO!$U$9:$U$1000="T2 (PZQ)"), "T2 (PZQ)", " ") -> T2 (PZQ) | E13: 10/01/2018 | G13: 7956 | H13: 13307 | I13: 21263 | K13: 6413 | L13: 7515 | M13: 13928 | O13: 80.60583208 | P13: 56.47403622 | Q13: 65.50345671
A14: =IF(COUNTRY_INFO!A14=0," ",COUNTRY_INFO!A14) -> Uganda | B14: =IF(COUNTRY_INFO!B14=0," ",COUNTRY_INFO!B14) -> CENTRAL | C14: =IF(COUNTRY_INFO!C14=0," ",COUNTRY_INFO!C14) -> KALANGALA | D14: =IF(OR(COUNTRY_INFO!$T$9:$T$1000="T2 (PZQ)",COUNTRY_INFO!$U$9:$U$1000="T2 (PZQ)"), "T2 (PZQ)", " ") -> T2 (PZQ) | E14: 10/01/2018 | G14: 7444 | H14: 30158 | I14: 37602 | K14: 5358 | L14: 19214 | M14: 24572 | O14: 71.97743149 | P14: 63.71112143 | Q14: 65.34758789
A15: =IF(COUNTRY_INFO!A15=0," ",COUNTRY_INFO!A15) -> Uganda | B15: =IF(COUNTRY_INFO!B15=0," ",COUNTRY_INFO!B15) -> CENTRAL | C15: =IF(COUNTRY_INFO!C15=0," ",COUNTRY_INFO!C15) -> KALUNGU | D15: =IF(OR(COUNTRY_INFO!$T$9:$T$1000="T2 (PZQ)",COUNTRY_INFO!$U$9:$U$1000="T2 (PZQ)"), "T2 (PZQ)", " ") ->  | I15: 0 | M15: 0
A16: =IF(COUNTRY_INFO!A16=0," ",COUNTRY_INFO!A16) -> Uganda | B16: =IF(COUNTRY_INFO!B16=0," ",COUNTRY_INFO!B16) -> CENTRAL | C16: =IF(COUNTRY_INFO!C16=0," ",COUNTRY_INFO!C16) -> KAMPALA | D16: =IF(OR(COUNTRY_INFO!$T$9:$T$1000="T2 (PZQ)",COUNTRY_INFO!$U$9:$U$1000="T2 (PZQ)"), "T2 (PZQ)", " ") ->  | I16: 0 | M16: 0
A17: =IF(COUNTRY_INFO!A17=0," ",COUNTRY_INFO!A17) -> Uganda | B17: =IF(COUNTRY_INFO!B17=0," ",COUNTRY_INFO!B17) -> CENTRAL | C17: =IF(COUNTRY_INFO!C17=0," ",COUNTRY_INFO!C17) -> KAYUNGA | D17: =IF(OR(COUNTRY_INFO!$T$9:$T$1000="T2 (PZQ)",COUNTRY_INFO!$U$9:$U$1000="T2 (PZQ)"), "T2 (PZQ)", " ") -> T2 (PZQ) | E17: 10/01/2018 | G17: 46878 | H17: 61870 | I17: 108748 | K17: 43907 | L17: 61879 | M17: 105786 | O17: 93.66227228 | P17: 100.0145466 | Q17: 97.27627175
A18: =IF(COUNTRY_INFO!A18=0," ",COUNTRY_INFO!A18) -> Uganda | B18: =IF(COUNTRY_INFO!B18=0," ",COUNTRY_INFO!B18) -> CENTRAL | C18: =IF(COUNTRY_INFO!C18=0," ",COUNTRY_INFO!C18) -> KIBOGA | D18: =IF(OR(COUNTRY_INFO!$T$9:$T$1000="T2 (PZQ)",COUNTRY_INFO!$U$9:$U$1000="T2 (PZQ)"), "T2 (PZQ)", " ") ->  | I18: 0 | M18: 0
A19: =IF(COUNTRY_INFO!A19=0," ",COUNTRY_INFO!A19) -> Uganda | B19: =IF(COUNTRY_INFO!B19=0," ",COUNTRY_INFO!B19) -> CENTRAL | C19: =IF(COUNTRY_INFO!C19=0," ",COUNTRY_INFO!C19) -> KYANKWANZI | D19: =IF(OR(COUNTRY_INFO!$T$9:$T$1000="T2 (PZQ)",COUNTRY_INFO!$U$9:$U$1000="T2 (PZQ)"), "T2 (PZQ)", " ") ->  | I19: 0 | M19: 0
A20: =IF(COUNTRY_INFO!A20=0," ",COUNTRY_INFO!A20) -> Uganda | B20: =IF(COUNTRY_INFO!B20=0," ",COUNTRY_INFO!B20) -> CENTRAL | C20: =IF(COUNTRY_INFO!C20=0," ",COUNTRY_INFO!C20) -> LUWERO | D20: =IF(OR(COUNTRY_INFO!$T$9:$T$1000="T2 (PZQ)",COUNTRY_INFO!$U$9:$U$1000="T2 (PZQ)"), "T2 (PZQ)", " ") ->  | I20: 0 | M20: 0
A21: =IF(COUNTRY_INFO!A21=0," ",COUNTRY_INFO!A21) -> Uganda | B21: =IF(COUNTRY_INFO!B21=0," ",COUNTRY_INFO!B21) -> CENTRAL | C21: =IF(COUNTRY_INFO!C21=0," ",COUNTRY_INFO!C21) -> LWENGO | D21: =IF(OR(COUNTRY_INFO!$T$9:$T$1000="T2 (PZQ)",COUNTRY_INFO!$U$9:$U$1000="T2 (PZQ)"), "T2 (PZQ)", " ") ->  | I21: 0 | M21: 0
A22: =IF(COUNTRY_INFO!A22=0," ",COUNTRY_INFO!A22) -> Uganda | B22: =IF(COUNTRY_INFO!B22=0," ",COUNTRY_INFO!B22) -> CENTRAL | C22: =IF(COUNTRY_INFO!C22=0," ",COUNTRY_INFO!C22) -> LYANTONDE | D22: =IF(OR(COUNTRY_INFO!$T$9:$T$1000="T2 (PZQ)",COUNTRY_INFO!$U$9:$U$1000="T2 (PZQ)"), "T2 (PZQ)", " ") ->  | I22: 0 | M22: 0
A23: =IF(COUNTRY_INFO!A23=0," ",COUNTRY_INFO!A23) -> Uganda | B23: =IF(COUNTRY_INFO!B23=0," ",COUNTRY_INFO!B23) -> CENTRAL | C23: =IF(COUNTRY_INFO!C23=0," ",COUNTRY_INFO!C23) -> MASAKA | D23: =IF(OR(COUNTRY_INFO!$T$9:$T$1000="T2 (PZQ)",COUNTRY_INFO!$U$9:$U$1000="T2 (PZQ)"), "T2 (PZQ)", " ") -> T2 (PZQ) | E23: 10/01/2018 | G23: 18345 | H23: 27247 | I23: 45592 | K23: 6988 | L23: 15823 | M23: 22811 | O23: 38.09212319 | P23: 58.07244834 | Q23: 50.03290051
A24: =IF(COUNTRY_INFO!A24=0," ",COUNTRY_INFO!A24) -> Uganda | B24: =IF(COUNTRY_INFO!B24=0," ",COUNTRY_INFO!B24) -> CENTRAL | C24: =IF(COUNTRY_INFO!C24=0," ",COUNTRY_INFO!C24) -> MITYANA | D24: =IF(OR(COUNTRY_INFO!$T$9:$T$1000="T2 (PZQ)",COUNTRY_INFO!$U$9:$U$1000="T2 (PZQ)"), "T2 (PZQ)", " ") -> T2 (PZQ) | E24: 10/01/2018 | G24: 8657 | H24: 12335 | I24: 20992 | K24: 7118 | L24: 9247 | M24: 16365 | O24: 82.22247892 | P24: 74.9655452 | Q24: 77.95826982
A25: =IF(COUNTRY_INFO!A25=0," ",COUNTRY_INFO!A25) -> Uganda | B25: =IF(COUNTRY_INFO!B25=0," ",COUNTRY_INFO!B25) -> CENTRAL | C25: =IF(COUNTRY_INFO!C25=0," ",COUNTRY_INFO!C25) -> MPIGI | D25: =IF(OR(COUNTRY_INFO!$T$9:$T$1000="T2 (PZQ)",COUNTRY_INFO!$U$9:$U$1000="T2 (PZQ)"), "T2 (PZQ)", " ") -> T2 (PZQ) | E25: 10/01/2018 | G25: 41785 | H25: 42887 | I25: 84672 | K25: 40457 | L25: 42923 | M25: 83380 | O25: 96.82182601 | P25: 100.0839415 | Q25: 98.47411187
A26: =IF(COUNTRY_INFO!A26=0," ",COUNTRY_INFO!A26) -> Uganda | B26: =IF(COUNTRY_INFO!B26=0," ",COUNTRY_INFO!B26) -> CENTRAL | C26: =IF(COUNTRY_INFO!C26=0," ",COUNTRY_INFO!C26) -> MUBENDE | D26: =IF(OR(COUNTRY_INFO!$T$9:$T$1000="T2 (PZQ)",COUNTRY_INFO!$U$9:$U$1000="T2 (PZQ)"), "T2 (PZQ)", " ") ->  | I26: 0 | M26: 0
A27: =IF(COUNTRY_INFO!A27=0," ",COUNTRY_INFO!A27) -> Uganda | B27: =IF(COUNTRY_INFO!B27=0," ",COUNTRY_INFO!B27) -> CENTRAL | C27: =IF(COUNTRY_INFO!C27=0," ",COUNTRY_INFO!C27) -> MUKONO | D27: =IF(OR(COUNTRY_INFO!$T$9:$T$1000="T2 (PZQ)",COUNTRY_INFO!$U$9:$U$1000="T2 (PZQ)"), "T2 (PZQ)", " ") -> T2 (PZQ) | E27: 10/01/2018 | G27: 14533 | H27: 30243 | I27: 44776 | K27: 10744 | L27: 24550 | M27: 35294 | O27: 73.92830111 | P27: 81.17580928 | Q27: 78.82347686
A28: =IF(COUNTRY_INFO!A28=0," ",COUNTRY_INFO!A28) -> Uganda | B28: =IF(COUNTRY_INFO!B28=0," ",COUNTRY_INFO!B28) -> CENTRAL | C28: =IF(COUNTRY_INFO!C28=0," ",COUNTRY_INFO!C28) -> NAKASEKE | D28: =IF(OR(COUNTRY_INFO!$T$9:$T$1000="T2 (PZQ)",COUNTRY_INFO!$U$9:$U$1000="T2 (PZQ)"), "T2 (PZQ)", " ") ->  | I28: 0 | M28: 0
A29: =IF(COUNTRY_INFO!A29=0," ",COUNTRY_INFO!A29) -> Uganda | B29: =IF(COUNTRY_INFO!B29=0," ",COUNTRY_INFO!B29) -> CENTRAL | C29: =IF(COUNTRY_INFO!C29=0," ",COUNTRY_INFO!C29) -> NAKASONGOLA | D29: =IF(OR(COUNTRY_INFO!$T$9:$T$1000="T2 (PZQ)",COUNTRY_INFO!$U$9:$U$1000="T2 (PZQ)"), "T2 (PZQ)", " ") ->  | I29: 0 | M29: 0
A30: =IF(COUNTRY_INFO!A30=0," ",COUNTRY_INFO!A30) -> Uganda | B30: =IF(COUNTRY_INFO!B30=0," ",COUNTRY_INFO!B30) -> CENTRAL | C30: =IF(COUNTRY_INFO!C30=0," ",COUNTRY_INFO!C30) -> RAKAI | D30: =IF(OR(COUNTRY_INFO!$T$9:$T$1000="T2 (PZQ)",COUNTRY_INFO!$U$9:$U$1000="T2 (PZQ)"), "T2 (PZQ)", " ") ->  | I30: 0 | M30: 0
A31: =IF(COUNTRY_INFO!A31=0," ",COUNTRY_INFO!A31) -> Uganda | B31: =IF(COUNTRY_INFO!B31=0," ",COUNTRY_INFO!B31) -> CENTRAL | C31: =IF(COUNTRY_INFO!C31=0," ",COUNTRY_INFO!C31) -> SEMBABULE | D31: =IF(OR(COUNTRY_INFO!$T$9:$T$1000="T2 (PZQ)",COUNTRY_INFO!$U$9:$U$1000="T2 (PZQ)"), "T2 (PZQ)", " ") ->  | I31: 0 | M31: 0
A32: =IF(COUNTRY_INFO!A32=0," ",COUNTRY_INFO!A32) -> Uganda | B32: =IF(COUNTRY_INFO!B32=0," ",COUNTRY_INFO!B32) -> CENTRAL | C32: =IF(COUNTRY_INFO!C32=0," ",COUNTRY_INFO!C32) -> WAKISO | D32: =IF(OR(COUNTRY_INFO!$T$9:$T$1000="T2 (PZQ)",COUNTRY_INFO!$U$9:$U$1000="T2 (PZQ)"), "T2 (PZQ)", " ") -> T2 (PZQ) | E32: 10/01/2018 | G32: 44795 | H32: 75519 | I32: 120314 | K32: 41126 | L32: 73710 | M32: 114836 | O32: 91.80935372 | P32: 97.60457633 | Q32: 95.44691391
A33: =IF(COUNTRY_INFO!A33=0," ",COUNTRY_INFO!A33) -> Uganda | B33: =IF(COUNTRY_INFO!B33=0," ",COUNTRY_INFO!B33) -> EASTERN | C33: =IF(COUNTRY_INFO!C33=0," ",COUNTRY_INFO!C33) -> AMURIA | D33: =IF(OR(COUNTRY_INFO!$T$9:$T$1000="T2 (PZQ)",COUNTRY_INFO!$U$9:$U$1000="T2 (PZQ)"), "T2 (PZQ)", " ") ->  | I33: 0 | M33: 0
A34: =IF(COUNTRY_INFO!A34=0," ",COUNTRY_INFO!A34) -> Uganda | B34: =IF(COUNTRY_INFO!B34=0," ",COUNTRY_INFO!B34) -> EASTERN | C34: =IF(COUNTRY_INFO!C34=0," ",COUNTRY_INFO!C34) -> BUDAKA | D34: =IF(OR(COUNTRY_INFO!$T$9:$T$1000="T2 (PZQ)",COUNTRY_INFO!$U$9:$U$1000="T2 (PZQ)"), "T2 (PZQ)", " ") ->  | I34: 0 | M34: 0
A35: =IF(COUNTRY_INFO!A35=0," ",COUNTRY_INFO!A35) -> Uganda | B35: =IF(COUNTRY_INFO!B35=0," ",COUNTRY_INFO!B35) -> EASTERN | C35: =IF(COUNTRY_INFO!C35=0," ",COUNTRY_INFO!C35) -> BUDUDA | D35: =IF(OR(COUNTRY_INFO!$T$9:$T$1000="T2 (PZQ)",COUNTRY_INFO!$U$9:$U$1000="T2 (PZQ)"), "T2 (PZQ)", " ") ->  | I35: 0 | M35: 0
A36: =IF(COUNTRY_INFO!A36=0," ",COUNTRY_INFO!A36) -> Uganda | B36: =IF(COUNTRY_INFO!B36=0," ",COUNTRY_INFO!B36) -> EASTERN | C36: =IF(COUNTRY_INFO!C36=0," ",COUNTRY_INFO!C36) -> BUGIRI | D36: =IF(OR(COUNTRY_INFO!$T$9:$T$1000="T2 (PZQ)",COUNTRY_INFO!$U$9:$U$1000="T2 (PZQ)"), "T2 (PZQ)", " ") -> T2 (PZQ) | E36: 10/01/2018 | G36: 32340 | H36: 42793 | I36: 75133 | K36: 25888 | L36: 33814 | M36: 59702 | O36: 80.04947434 | P36: 79.01759634 | Q36: 79.46175449
A37: =IF(COUNTRY_INFO!A37=0," ",COUNTRY_INFO!A37) -> Uganda | B37: =IF(COUNTRY_INFO!B37=0," ",COUNTRY_INFO!B37) -> EASTERN | C37: =IF(COUNTRY_INFO!C37=0," ",COUNTRY_INFO!C37) -> BUKEDEA | D37: =IF(OR(COUNTRY_INFO!$T$9:$T$1000="T2 (PZQ)",COUNTRY_INFO!$U$9:$U$1000="T2 (PZQ)"), "T2 (PZQ)", " ") ->  | I37: 0 | M37: 0
A38: =IF(COUNTRY_INFO!A38=0," ",COUNTRY_INFO!A38) -> Uganda | B38: =IF(COUNTRY_INFO!B38=0," ",COUNTRY_INFO!B38) -> EASTERN | C38: =IF(COUNTRY_INFO!C38=0," ",COUNTRY_INFO!C38) -> BUKWO | D38: =IF(OR(COUNTRY_INFO!$T$9:$T$1000="T2 (PZQ)",COUNTRY_INFO!$U$9:$U$1000="T2 (PZQ)"), "T2 (PZQ)", " ") ->  | I38: 0 | M38: 0
A39: =IF(COUNTRY_INFO!A39=0," ",COUNTRY_INFO!A39) -> Uganda | B39: =IF(COUNTRY_INFO!B39=0," ",COUNTRY_INFO!B39) -> EASTERN | C39: =IF(COUNTRY_INFO!C39=0," ",COUNTRY_INFO!C39) -> BULAMBULI | D39: =IF(OR(COUNTRY_INFO!$T$9:$T$1000="T2 (PZQ)",COUNTRY_INFO!$U$9:$U$1000="T2 (PZQ)"), "T2 (PZQ)", " ") ->  | I39: 0 | M39: 0
A40: =IF(COUNTRY_INFO!A40=0," ",COUNTRY_INFO!A40) -> Uganda | B40: =IF(COUNTRY_INFO!B40=0," ",COUNTRY_INFO!B40) -> EASTERN | C40: =IF(COUNTRY_INFO!C40=0," ",COUNTRY_INFO!C40) -> BUSIA | D40: =IF(OR(COUNTRY_INFO!$T$9:$T$1000="T2 (PZQ)",COUNTRY_INFO!$U$9:$U$1000="T2 (PZQ)"), "T2 (PZQ)", " ") -> T2 (PZQ) | E40: 10/01/2018 | G40: 39576 | H40: 64891 | I40: 104467 | K40: 33719 | L40: 56023 | M40: 89742 | O40: 85.20062664 | P40: 86.33400626 | Q40: 85.90463974
A41: =IF(COUNTRY_INFO!A41=0," ",COUNTRY_INFO!A41) -> Uganda | B41: =IF(COUNTRY_INFO!B41=0," ",COUNTRY_INFO!B41) -> EASTERN | C41: =IF(COUNTRY_INFO!C41=0," ",COUNTRY_INFO!C41) -> BUTALEJA | D41: =IF(OR(COUNTRY_INFO!$T$9:$T$1000="T2 (PZQ)",COUNTRY_INFO!$U$9:$U$1000="T2 (PZQ)"), "T2 (PZQ)", " ") ->  | I41: 0 | M41: 0
A42: =IF(COUNTRY_INFO!A42=0," ",COUNTRY_INFO!A42) -> Uganda | B42: =IF(COUNTRY_INFO!B42=0," ",COUNTRY_INFO!B42) -> EASTERN | C42: =IF(COUNTRY_INFO!C42=0," ",COUNTRY_INFO!C42) -> BUYENDE | D42: =IF(OR(COUNTRY_INFO!$T$9:$T$1000="T2 (PZQ)",COUNTRY_INFO!$U$9:$U$1000="T2 (PZQ)"), "T2 (PZQ)", " ") -> T2 (PZQ) | E42: 10/01/2018 | G42: 87658 | H42: 114398 | I42: 202056 | K42: 78536 | L42: 90755 | M42: 169291 | O42: 89.59364804 | P42: 79.33268064 | Q42: 83.78419844
A43: =IF(COUNTRY_INFO!A43=0," ",COUNTRY_INFO!A43) -> Uganda | B43: =IF(COUNTRY_INFO!B43=0," ",COUNTRY_INFO!B43) -> EASTERN | C43: =IF(COUNTRY_INFO!C43=0," ",COUNTRY_INFO!C43) -> IGANGA | D43: =IF(OR(COUNTRY_INFO!$T$9:$T$1000="T2 (PZQ)",COUNTRY_INFO!$U$9:$U$1000="T2 (PZQ)"), "T2 (PZQ)", " ") ->  | I43: 0 | M43: 0
A44: =IF(COUNTRY_INFO!A44=0," ",COUNTRY_INFO!A44) -> Uganda | B44: =IF(COUNTRY_INFO!B44=0," ",COUNTRY_INFO!B44) -> EASTERN | C44: =IF(COUNTRY_INFO!C44=0," ",COUNTRY_INFO!C44) -> JINJA | D44: =IF(OR(COUNTRY_INFO!$T$9:$T$1000="T2 (PZQ)",COUNTRY_INFO!$U$9:$U$1000="T2 (PZQ)"), "T2 (PZQ)", " ") -> T2 (PZQ) | E44: 10/01/2018 | G44: 130238 | H44: 189101 | I44: 319339 | K44: 120441 | L44: 176529 | M44: 296970 | O44: 92.4776179 | P44: 93.35170094 | Q44: 92.99521825
A45: =IF(COUNTRY_INFO!A45=0," ",COUNTRY_INFO!A45) -> Uganda | B45: =IF(COUNTRY_INFO!B45=0," ",COUNTRY_INFO!B45) -> EASTERN | C45: =IF(COUNTRY_INFO!C45=0," ",COUNTRY_INFO!C45) -> KABERAMAIDO | D45: =IF(OR(COUNTRY_INFO!$T$9:$T$1000="T2 (PZQ)",COUNTRY_INFO!$U$9:$U$1000="T2 (PZQ)"), "T2 (PZQ)", " ") -> T2 (PZQ) | E45: 10/01/2018 | G45: 41746 | H45: 67092 | I45: 108838 | K45: 33546 | L45: 51442 | M45: 84988 | O45: 80.35739951 | P45: 76.67382102 | Q45: 78.08669766
A46: =IF(COUNTRY_INFO!A46=0," ",COUNTRY_INFO!A46) -> Uganda | B46: =IF(COUNTRY_INFO!B46=0," ",COUNTRY_INFO!B46) -> EASTERN | C46: =IF(COUNTRY_INFO!C46=0," ",COUNTRY_INFO!C46) -> KALIRO | D46: =IF(OR(COUNTRY_INFO!$T$9:$T$1000="T2 (PZQ)",COUNTRY_INFO!$U$9:$U$1000="T2 (PZQ)"), "T2 (PZQ)", " ") ->  | I46: 0 | M46: 0
A47: =IF(COUNTRY_INFO!A47=0," ",COUNTRY_INFO!A47) -> Uganda | B47: =IF(COUNTRY_INFO!B47=0," ",COUNTRY_INFO!B47) -> EASTERN | C47: =IF(COUNTRY_INFO!C47=0," ",COUNTRY_INFO!C47) -> KAMULI | D47: =IF(OR(COUNTRY_INFO!$T$9:$T$1000="T2 (PZQ)",COUNTRY_INFO!$U$9:$U$1000="T2 (PZQ)"), "T2 (PZQ)", " ") ->  | I47: 0 | M47: 0
A48: =IF(COUNTRY_INFO!A48=0," ",COUNTRY_INFO!A48) -> Uganda | B48: =IF(COUNTRY_INFO!B48=0," ",COUNTRY_INFO!B48) -> EASTERN | C48: =IF(COUNTRY_INFO!C48=0," ",COUNTRY_INFO!C48) -> KAPCHORWA | D48: =IF(OR(COUNTRY_INFO!$T$9:$T$1000="T2 (PZQ)",COUNTRY_INFO!$U$9:$U$1000="T2 (PZQ)"), "T2 (PZQ)", " ") ->  | I48: 0 | M48: 0
A49: =IF(COUNTRY_INFO!A49=0," ",COUNTRY_INFO!A49) -> Uganda | B49: =IF(COUNTRY_INFO!B49=0," ",COUNTRY_INFO!B49) -> EASTERN | C49: =IF(COUNTRY_INFO!C49=0," ",COUNTRY_INFO!C49) -> KATAKWI | D49: =IF(OR(COUNTRY_INFO!$T$9:$T$1000="T2 (PZQ)",COUNTRY_INFO!$U$9:$U$1000="T2 (PZQ)"), "T2 (PZQ)", " ") ->  | I49: 0 | M49: 0
A50: =IF(COUNTRY_INFO!A50=0," ",COUNTRY_INFO!A50) -> Uganda | B50: =IF(COUNTRY_INFO!B50=0," ",COUNTRY_INFO!B50) -> EASTERN | C50: =IF(COUNTRY_INFO!C50=0," ",COUNTRY_INFO!C50) -> KIBUKU | D50: =IF(OR(COUNTRY_INFO!$T$9:$T$1000="T2 (PZQ)",COUNTRY_INFO!$U$9:$U$1000="T2 (PZQ)"), "T2 (PZQ)", " ") ->  | I50: 0 | M50: 0
A51: =IF(COUNTRY_INFO!A51=0," ",COUNTRY_INFO!A51) -> Uganda | B51: =IF(COUNTRY_INFO!B51=0," ",COUNTRY_INFO!B51) -> EASTERN | C51: =IF(COUNTRY_INFO!C51=0," ",COUNTRY_INFO!C51) -> KUMI | D51: =IF(OR(COUNTRY_INFO!$T$9:$T$1000="T2 (PZQ)",COUNTRY_INFO!$U$9:$U$1000="T2 (PZQ)"), "T2 (PZQ)", " ") ->  | I51: 0 | M51: 0
A52: =IF(COUNTRY_INFO!A52=0," ",COUNTRY_INFO!A52) -> Uganda | B52: =IF(COUNTRY_INFO!B52=0," ",COUNTRY_INFO!B52) -> EASTERN | C52: =IF(COUNTRY_INFO!C52=0," ",COUNTRY_INFO!C52) -> KWEEN | D52: =IF(OR(COUNTRY_INFO!$T$9:$T$1000="T2 (PZQ)",COUNTRY_INFO!$U$9:$U$1000="T2 (PZQ)"), "T2 (PZQ)", " ") ->  | I52: 0 | M52: 0
A53: =IF(COUNTRY_INFO!A53=0," ",COUNTRY_INFO!A53) -> Uganda | B53: =IF(COUNTRY_INFO!B53=0," ",COUNTRY_INFO!B53) -> EASTERN | C53: =IF(COUNTRY_INFO!C53=0," ",COUNTRY_INFO!C53) -> LUUKA | D53: =IF(OR(COUNTRY_INFO!$T$9:$T$1000="T2 (PZQ)",COUNTRY_INFO!$U$9:$U$1000="T2 (PZQ)"), "T2 (PZQ)", " ") ->  | I53: 0 | M53: 0
A54: =IF(COUNTRY_INFO!A54=0," ",COUNTRY_INFO!A54) -> Uganda | B54: =IF(COUNTRY_INFO!B54=0," ",COUNTRY_INFO!B54) -> EASTERN | C54: =IF(COUNTRY_INFO!C54=0," ",COUNTRY_INFO!C54) -> MANAFWA | D54: =IF(OR(COUNTRY_INFO!$T$9:$T$1000="T2 (PZQ)",COUNTRY_INFO!$U$9:$U$1000="T2 (PZQ)"), "T2 (PZQ)", " ") ->  | I54: 0 | M54: 0
A55: =IF(COUNTRY_INFO!A55=0," ",COUNTRY_INFO!A55) -> Uganda | B55: =IF(COUNTRY_INFO!B55=0," ",COUNTRY_INFO!B55) -> EASTERN | C55: =IF(COUNTRY_INFO!C55=0," ",COUNTRY_INFO!C55) -> MAYUGE | D55: =IF(OR(COUNTRY_INFO!$T$9:$T$1000="T2 (PZQ)",COUNTRY_INFO!$U$9:$U$1000="T2 (PZQ)"), "T2 (PZQ)", " ") -> T2 (PZQ) | E55: 10/01/2018 | G55: 66718 | H55: 94531 | I55: 161249 | K55: 57334 | L55: 83377 | M55: 140711 | O55: 85.93483018 | P55: 88.20069607 | Q55: 87.26317683
A56: =IF(COUNTRY_INFO!A56=0," ",COUNTRY_INFO!A56) -> Uganda | B56: =IF(COUNTRY_INFO!B56=0," ",COUNTRY_INFO!B56) -> EASTERN | C56: =IF(COUNTRY_INFO!C56=0," ",COUNTRY_INFO!C56) -> MBALE | D56: =IF(OR(COUNTRY_INFO!$T$9:$T$1000="T2 (PZQ)",COUNTRY_INFO!$U$9:$U$1000="T2 (PZQ)"), "T2 (PZQ)", " ") ->  | I56: 0 | M56: 0
A57: =IF(COUNTRY_INFO!A57=0," ",COUNTRY_INFO!A57) -> Uganda | B57: =IF(COUNTRY_INFO!B57=0," ",COUNTRY_INFO!B57) -> EASTERN | C57: =IF(COUNTRY_INFO!C57=0," ",COUNTRY_INFO!C57) -> NAMAYINGO | D57: =IF(OR(COUNTRY_INFO!$T$9:$T$1000="T2 (PZQ)",COUNTRY_INFO!$U$9:$U$1000="T2 (PZQ)"), "T2 (PZQ)", " ") -> T2 (PZQ) | E57: 10/01/2018 | G57: 75964 | H57: 120176 | I57: 196140 | K57: 65896 | L57: 97824 | M57: 163720 | O57: 86.74635354 | P57: 81.40061244 | Q57: 83.47099011
A58: =IF(COUNTRY_INFO!A58=0," ",COUNTRY_INFO!A58) -> Uganda | B58: =IF(COUNTRY_INFO!B58=0," ",COUNTRY_INFO!B58) -> EASTERN | C58: =IF(COUNTRY_INFO!C58=0," ",COUNTRY_INFO!C58) -> NAMUTUMBA | D58: =IF(OR(COUNTRY_INFO!$T$9:$T$1000="T2 (PZQ)",COUNTRY_INFO!$U$9:$U$1000="T2 (PZQ)"), "T2 (PZQ)", " ") ->  | I58: 0 | M58: 0
A59: =IF(COUNTRY_INFO!A59=0," ",COUNTRY_INFO!A59) -> Uganda | B59: =IF(COUNTRY_INFO!B59=0," ",COUNTRY_INFO!B59) -> EASTERN | C59: =IF(COUNTRY_INFO!C59=0," ",COUNTRY_INFO!C59) -> NGORA | D59: =IF(OR(COUNTRY_INFO!$T$9:$T$1000="T2 (PZQ)",COUNTRY_INFO!$U$9:$U$1000="T2 (PZQ)"), "T2 (PZQ)", " ") ->  | I59: 0 | M59: 0
A60: =IF(COUNTRY_INFO!A60=0," ",COUNTRY_INFO!A60) -> Uganda | B60: =IF(COUNTRY_INFO!B60=0," ",COUNTRY_INFO!B60) -> EASTERN | C60: =IF(COUNTRY_INFO!C60=0," ",COUNTRY_INFO!C60) -> PALLISA | D60: =IF(OR(COUNTRY_INFO!$T$9:$T$1000="T2 (PZQ)",COUNTRY_INFO!$U$9:$U$1000="T2 (PZQ)"), "T2 (PZQ)", " ") ->  | I60: 0 | M60: 0
A61: =IF(COUNTRY_INFO!A61=0," ",COUNTRY_INFO!A61) -> Uganda | B61: =IF(COUNTRY_INFO!B61=0," ",COUNTRY_INFO!B61) -> EASTERN | C61: =IF(COUNTRY_INFO!C61=0," ",COUNTRY_INFO!C61) -> SERERE | D61: =IF(OR(COUNTRY_INFO!$T$9:$T$1000="T2 (PZQ)",COUNTRY_INFO!$U$9:$U$1000="T2 (PZQ)"), "T2 (PZQ)", " ") -> T2 (PZQ) | E61: 10/01/2018 | G61: 37954 | H61: 51316 | I61: 89270 | K61: 31732 | L61: 41017 | M61: 72749 | O61: 83.60647099 | P61: 79.93023618 | Q61: 81.49322281
A62: =IF(COUNTRY_INFO!A62=0," ",COUNTRY_INFO!A62) -> Uganda | B62: =IF(COUNTRY_INFO!B62=0," ",COUNTRY_INFO!B62) -> EASTERN | C62: =IF(COUNTRY_INFO!C62=0," ",COUNTRY_INFO!C62) -> SIRONKO | D62: =IF(OR(COUNTRY_INFO!$T$9:$T$1000="T2 (PZQ)",COUNTRY_INFO!$U$9:$U$1000="T2 (PZQ)"), "T2 (PZQ)", " ") ->  | I62: 0 | M62: 0
A63: =IF(COUNTRY_INFO!A63=0," ",COUNTRY_INFO!A63) -> Uganda | B63: =IF(COUNTRY_INFO!B63=0," ",COUNTRY_INFO!B63) -> EASTERN | C63: =IF(COUNTRY_INFO!C63=0," ",COUNTRY_INFO!C63) -> SOROTI | D63: =IF(OR(COUNTRY_INFO!$T$9:$T$1000="T2 (PZQ)",COUNTRY_INFO!$U$9:$U$1000="T2 (PZQ)"), "T2 (PZQ)", " ") ->  | I63: 0 | M63: 0
A64: =IF(COUNTRY_INFO!A64=0," ",COUNTRY_INFO!A64) -> Uganda | B64: =IF(COUNTRY_INFO!B64=0," ",COUNTRY_INFO!B64) -> EASTERN | C64: =IF(COUNTRY_INFO!C64=0," ",COUNTRY_INFO!C64) -> TORORO | D64: =IF(OR(COUNTRY_INFO!$T$9:$T$1000="T2 (PZQ)",COUNTRY_INFO!$U$9:$U$1000="T2 (PZQ)"), "T2 (PZQ)", " ") ->  | I64: 0 | M64: 0
A65: =IF(COUNTRY_INFO!A65=0," ",COUNTRY_INFO!A65) -> Uganda | B65: =IF(COUNTRY_INFO!B65=0," ",COUNTRY_INFO!B65) -> NORTHERN | C65: =IF(COUNTRY_INFO!C65=0," ",COUNTRY_INFO!C65) -> ABIM | D65: =IF(OR(COUNTRY_INFO!$T$9:$T$1000="T2 (PZQ)",COUNTRY_INFO!$U$9:$U$1000="T2 (PZQ)"), "T2 (PZQ)", " ") ->  | I65: 0 | M65: 0
A66: =IF(COUNTRY_INFO!A66=0," ",COUNTRY_INFO!A66) -> Uganda | B66: =IF(COUNTRY_INFO!B66=0," ",COUNTRY_INFO!B66) -> NORTHERN | C66: =IF(COUNTRY_INFO!C66=0," ",COUNTRY_INFO!C66) -> ADJUMANI | D66: =IF(OR(COUNTRY_INFO!$T$9:$T$1000="T2 (PZQ)",COUNTRY_INFO!$U$9:$U$1000="T2 (PZQ)"), "T2 (PZQ)", " ") -> T2 (PZQ) | E66: 10/01/2018 | G66: 15494 | H66: 4269 | I66: 19763 | K66: 14268 | L66: 3909 | M66: 18177 | O66: 92.08725958 | P66: 91.56711174 | Q66: 91.9749026
A67: =IF(COUNTRY_INFO!A67=0," ",COUNTRY_INFO!A67) -> Uganda | B67: =IF(COUNTRY_INFO!B67=0," ",COUNTRY_INFO!B67) -> NORTHERN | C67: =IF(COUNTRY_INFO!C67=0," ",COUNTRY_INFO!C67) -> AGAGO | D67: =IF(OR(COUNTRY_INFO!$T$9:$T$1000="T2 (PZQ)",COUNTRY_INFO!$U$9:$U$1000="T2 (PZQ)"), "T2 (PZQ)", " ") -> T2 (PZQ) | E67: 10/01/2018 | G67: 77413 | H67: 129842 | I67: 207255 | K67: 70898 | L67: 103153 | M67: 174051 | O67: 91.58410086 | P67: 79.44501779 | Q67: 83.97915611
A68: =IF(COUNTRY_INFO!A68=0," ",COUNTRY_INFO!A68) -> Uganda | B68: =IF(COUNTRY_INFO!B68=0," ",COUNTRY_INFO!B68) -> NORTHERN | C68: =IF(COUNTRY_INFO!C68=0," ",COUNTRY_INFO!C68) -> ALEBTONG | D68: =IF(OR(COUNTRY_INFO!$T$9:$T$1000="T2 (PZQ)",COUNTRY_INFO!$U$9:$U$1000="T2 (PZQ)"), "T2 (PZQ)", " ") -> T2 (PZQ) | E68: 10/01/2018 | G68: 63996 | H68: 110160 | I68: 174156 | K68: 62166 | L68: 101554 | M68: 163720 | O68: 97.14044628 | P68: 92.18772694 | Q68: 94.00767128
A69: =IF(COUNTRY_INFO!A69=0," ",COUNTRY_INFO!A69) -> Uganda | B69: =IF(COUNTRY_INFO!B69=0," ",COUNTRY_INFO!B69) -> NORTHERN | C69: =IF(COUNTRY_INFO!C69=0," ",COUNTRY_INFO!C69) -> AMOLATAR | D69: =IF(OR(COUNTRY_INFO!$T$9:$T$1000="T2 (PZQ)",COUNTRY_INFO!$U$9:$U$1000="T2 (PZQ)"), "T2 (PZQ)", " ") -> T2 (PZQ) | E69: 10/01/2018 | G69: 49992 | H69: 86244 | I69: 136236 | K69: 47235 | L69: 71988 | M69: 119223 | O69: 94.48511762 | P69: 83.47015445 | Q69: 87.51211134
A70: =IF(COUNTRY_INFO!A70=0," ",COUNTRY_INFO!A70) -> Uganda | B70: =IF(COUNTRY_INFO!B70=0," ",COUNTRY_INFO!B70) -> NORTHERN | C70: =IF(COUNTRY_INFO!C70=0," ",COUNTRY_INFO!C70) -> AMUDAT | D70: =IF(OR(COUNTRY_INFO!$T$9:$T$1000="T2 (PZQ)",COUNTRY_INFO!$U$9:$U$1000="T2 (PZQ)"), "T2 (PZQ)", " ") ->  | I70: 0 | M70: 0
A71: =IF(COUNTRY_INFO!A71=0," ",COUNTRY_INFO!A71) -> Uganda | B71: =IF(COUNTRY_INFO!B71=0," ",COUNTRY_INFO!B71) -> NORTHERN | C71: =IF(COUNTRY_INFO!C71=0," ",COUNTRY_INFO!C71) -> AMURU | D71: =IF(OR(COUNTRY_INFO!$T$9:$T$1000="T2 (PZQ)",COUNTRY_INFO!$U$9:$U$1000="T2 (PZQ)"), "T2 (PZQ)", " ") -> T2 (PZQ) | E71: 10/01/2018 | G71: 64832 | I71: 64832 | K71: 45114 | M71: 45114 | O71: 69.58600691 | Q71: 69.58600691
A72: =IF(COUNTRY_INFO!A72=0," ",COUNTRY_INFO!A72) -> Uganda | B72: =IF(COUNTRY_INFO!B72=0," ",COUNTRY_INFO!B72) -> NORTHERN | C72: =IF(COUNTRY_INFO!C72=0," ",COUNTRY_INFO!C72) -> APAC | D72: =IF(OR(COUNTRY_INFO!$T$9:$T$1000="T2 (PZQ)",COUNTRY_INFO!$U$9:$U$1000="T2 (PZQ)"), "T2 (PZQ)", " ") -> T2 (PZQ) | E72: 10/01/2018 | G72: 88810 | H72: 137811 | I72: 226621 | K72: 69070 | L72: 107781 | M72: 176851 | O72: 77.77277334 | P72: 78.20928663 | Q72: 78.03822241
A73: =IF(COUNTRY_INFO!A73=0," ",COUNTRY_INFO!A73) -> Uganda | B73: =IF(COUNTRY_INFO!B73=0," ",COUNTRY_INFO!B73) -> NORTHERN | C73: =IF(COUNTRY_INFO!C73=0," ",COUNTRY_INFO!C73) -> ARUA | D73: =IF(OR(COUNTRY_INFO!$T$9:$T$1000="T2 (PZQ)",COUNTRY_INFO!$U$9:$U$1000="T2 (PZQ)"), "T2 (PZQ)", " ") -> T2 (PZQ) | E73: 10/01/2018 | G73: 293373 | I73: 293373 | K73: 277150 | M73: 277150 | O73: 94.4701796 | Q73: 94.4701796
A74: =IF(COUNTRY_INFO!A74=0," ",COUNTRY_INFO!A74) -> Uganda | B74: =IF(COUNTRY_INFO!B74=0," ",COUNTRY_INFO!B74) -> NORTHERN | C74: =IF(COUNTRY_INFO!C74=0," ",COUNTRY_INFO!C74) -> DOKOLO | D74: =IF(OR(COUNTRY_INFO!$T$9:$T$1000="T2 (PZQ)",COUNTRY_INFO!$U$9:$U$1000="T2 (PZQ)"), "T2 (PZQ)", " ") ->  | I74: =SUM(F74:H74) -> 0 | M74: =SUM(J74:L74) -> 0 | N74: =IF(F74<>0, IF(J74/F74*100=0, "-", J74/F74*100), " ") ->  | O74: =IF(G74<>0, IF(K74/G74*100=0, "-", K74/G74*100), " ") ->  | P74: =IF(H74<>0, IF(L74/H74*100=0, "-", L74/H74*100), " ") ->  | Q74: =IF(I74<>0, IF(M74/I74*100=0, "-", M74/I74*100), " ") -> 
A75: =IF(COUNTRY_INFO!A75=0," ",COUNTRY_INFO!A75) -> Uganda | B75: =IF(COUNTRY_INFO!B75=0," ",COUNTRY_INFO!B75) -> NORTHERN | C75: =IF(COUNTRY_INFO!C75=0," ",COUNTRY_INFO!C75) -> GULU | D75: =IF(OR(COUNTRY_INFO!$T$9:$T$1000="T2 (PZQ)",COUNTRY_INFO!$U$9:$U$1000="T2 (PZQ)"), "T2 (PZQ)", " ") -> T2 (PZQ) | E75: 10/01/2018 | G75: 68642 | I75: 68642 | K75: 81675 | M75: 81675 | O75: 118.9869176 | Q75: 118.9869176
A76: =IF(COUNTRY_INFO!A76=0," ",COUNTRY_INFO!A76) -> Uganda | B76: =IF(COUNTRY_INFO!B76=0," ",COUNTRY_INFO!B76) -> NORTHERN | C76: =IF(COUNTRY_INFO!C76=0," ",COUNTRY_INFO!C76) -> KAABONG | D76: =IF(OR(COUNTRY_INFO!$T$9:$T$1000="T2 (PZQ)",COUNTRY_INFO!$U$9:$U$1000="T2 (PZQ)"), "T2 (PZQ)", " ") ->  | I76: 0 | M76: 0
A77: =IF(COUNTRY_INFO!A77=0," ",COUNTRY_INFO!A77) -> Uganda | B77: =IF(COUNTRY_INFO!B77=0," ",COUNTRY_INFO!B77) -> NORTHERN | C77: =IF(COUNTRY_INFO!C77=0," ",COUNTRY_INFO!C77) -> KITGUM | D77: =IF(OR(COUNTRY_INFO!$T$9:$T$1000="T2 (PZQ)",COUNTRY_INFO!$U$9:$U$1000="T2 (PZQ)"), "T2 (PZQ)", " ") -> T2 (PZQ) | E77: 10/01/2018 | G77: 62194 | I77: 62194 | K77: 44238 | M77: 44238 | O77: 71.12904782 | Q77: 71.12904782
A78: =IF(COUNTRY_INFO!A78=0," ",COUNTRY_INFO!A78) -> Uganda | B78: =IF(COUNTRY_INFO!B78=0," ",COUNTRY_INFO!B78) -> NORTHERN | C78: =IF(COUNTRY_INFO!C78=0," ",COUNTRY_INFO!C78) -> KOBOKO | D78: =IF(OR(COUNTRY_INFO!$T$9:$T$1000="T2 (PZQ)",COUNTRY_INFO!$U$9:$U$1000="T2 (PZQ)"), "T2 (PZQ)", " ") -> T2 (PZQ) | E78: 10/01/2018 | G78: 63483 | H78: 24440 | I78: 87923 | K78: 61263 | L78: 22995 | M78: 84258 | O78: 96.5030008 | P78: 94.08756137 | Q78: 95.83157991
A79: =IF(COUNTRY_INFO!A79=0," ",COUNTRY_INFO!A79) -> Uganda | B79: =IF(COUNTRY_INFO!B79=0," ",COUNTRY_INFO!B79) -> NORTHERN | C79: =IF(COUNTRY_INFO!C79=0," ",COUNTRY_INFO!C79) -> KOLE | D79: =IF(OR(COUNTRY_INFO!$T$9:$T$1000="T2 (PZQ)",COUNTRY_INFO!$U$9:$U$1000="T2 (PZQ)"), "T2 (PZQ)", " ") ->  | I79: 0 | M79: 0
A80: =IF(COUNTRY_INFO!A80=0," ",COUNTRY_INFO!A80) -> Uganda | B80: =IF(COUNTRY_INFO!B80=0," ",COUNTRY_INFO!B80) -> NORTHERN | C80: =IF(COUNTRY_INFO!C80=0," ",COUNTRY_INFO!C80) -> KOTIDO | D80: =IF(OR(COUNTRY_INFO!$T$9:$T$1000="T2 (PZQ)",COUNTRY_INFO!$U$9:$U$1000="T2 (PZQ)"), "T2 (PZQ)", " ") ->  | I80: 0 | M80: 0
A81: =IF(COUNTRY_INFO!A81=0," ",COUNTRY_INFO!A81) -> Uganda | B81: =IF(COUNTRY_INFO!B81=0," ",COUNTRY_INFO!B81) -> NORTHERN | C81: =IF(COUNTRY_INFO!C81=0," ",COUNTRY_INFO!C81) -> LAMWO | D81: =IF(OR(COUNTRY_INFO!$T$9:$T$1000="T2 (PZQ)",COUNTRY_INFO!$U$9:$U$1000="T2 (PZQ)"), "T2 (PZQ)", " ") ->  | I81: 0 | M81: 0
A82: =IF(COUNTRY_INFO!A82=0," ",COUNTRY_INFO!A82) -> Uganda | B82: =IF(COUNTRY_INFO!B82=0," ",COUNTRY_INFO!B82) -> NORTHERN | C82: =IF(COUNTRY_INFO!C82=0," ",COUNTRY_INFO!C82) -> LIRA | D82: =IF(OR(COUNTRY_INFO!$T$9:$T$1000="T2 (PZQ)",COUNTRY_INFO!$U$9:$U$1000="T2 (PZQ)"), "T2 (PZQ)", " ") -> T2 (PZQ) | E82: 10/01/2018 | G82: 60099 | H82: 96470 | I82: 156569 | K82: 55654 | L82: 79346 | M82: 135000 | O82: 92.60387028 | P82: 82.24940396 | Q82: 86.22396515
A83: =IF(COUNTRY_INFO!A83=0," ",COUNTRY_INFO!A83) -> Uganda | B83: =IF(COUNTRY_INFO!B83=0," ",COUNTRY_INFO!B83) -> NORTHERN | C83: =IF(COUNTRY_INFO!C83=0," ",COUNTRY_INFO!C83) -> MARACHA | D83: =IF(OR(COUNTRY_INFO!$T$9:$T$1000="T2 (PZQ)",COUNTRY_INFO!$U$9:$U$1000="T2 (PZQ)"), "T2 (PZQ)", " ") ->  | I83: 0 | M83: 0
A84: =IF(COUNTRY_INFO!A84=0," ",COUNTRY_INFO!A84) -> Uganda | B84: =IF(COUNTRY_INFO!B84=0," ",COUNTRY_INFO!B84) -> NORTHERN | C84: =IF(COUNTRY_INFO!C84=0," ",COUNTRY_INFO!C84) -> MOROTO | D84: =IF(OR(COUNTRY_INFO!$T$9:$T$1000="T2 (PZQ)",COUNTRY_INFO!$U$9:$U$1000="T2 (PZQ)"), "T2 (PZQ)", " ") ->  | I84: 0 | M84: 0
A85: =IF(COUNTRY_INFO!A85=0," ",COUNTRY_INFO!A85) -> Uganda | B85: =IF(COUNTRY_INFO!B85=0," ",COUNTRY_INFO!B85) -> NORTHERN | C85: =IF(COUNTRY_INFO!C85=0," ",COUNTRY_INFO!C85) -> MOYO | D85: =IF(OR(COUNTRY_INFO!$T$9:$T$1000="T2 (PZQ)",COUNTRY_INFO!$U$9:$U$1000="T2 (PZQ)"), "T2 (PZQ)", " ") -> T2 (PZQ) | E85: 10/01/2018 | G85: 40406 | I85: 40406 | K85: 38694 | M85: 38694 | O85: 95.76300549 | Q85: 95.76300549
A86: =IF(COUNTRY_INFO!A86=0," ",COUNTRY_INFO!A86) -> Uganda | B86: =IF(COUNTRY_INFO!B86=0," ",COUNTRY_INFO!B86) -> NORTHERN | C86: =IF(COUNTRY_INFO!C86=0," ",COUNTRY_INFO!C86) -> NAKAPIRIPIRIT | D86: =IF(OR(COUNTRY_INFO!$T$9:$T$1000="T2 (PZQ)",COUNTRY_INFO!$U$9:$U$1000="T2 (PZQ)"), "T2 (PZQ)", " ") ->  | I86: 0 | M86: 0
A87: =IF(COUNTRY_INFO!A87=0," ",COUNTRY_INFO!A87) -> Uganda | B87: =IF(COUNTRY_INFO!B87=0," ",COUNTRY_INFO!B87) -> NORTHERN | C87: =IF(COUNTRY_INFO!C87=0," ",COUNTRY_INFO!C87) -> NAPAK | D87: =IF(OR(COUNTRY_INFO!$T$9:$T$1000="T2 (PZQ)",COUNTRY_INFO!$U$9:$U$1000="T2 (PZQ)"), "T2 (PZQ)", " ") ->  | I87: 0 | M87: 0
A88: =IF(COUNTRY_INFO!A88=0," ",COUNTRY_INFO!A88) -> Uganda | B88: =IF(COUNTRY_INFO!B88=0," ",COUNTRY_INFO!B88) -> NORTHERN | C88: =IF(COUNTRY_INFO!C88=0," ",COUNTRY_INFO!C88) -> NEBBI | D88: =IF(OR(COUNTRY_INFO!$T$9:$T$1000="T2 (PZQ)",COUNTRY_INFO!$U$9:$U$1000="T2 (PZQ)"), "T2 (PZQ)", " ") -> T2 (PZQ) | E88: 10/01/2018 | G88: 57039 | H88: 95744 | I88: 152783 | K88: 50787 | L88: 77064 | M88: 127851 | O88: 89.03907853 | P88: 80.48963904 | Q88: 83.68143053
A89: =IF(COUNTRY_INFO!A89=0," ",COUNTRY_INFO!A89) -> Uganda | B89: =IF(COUNTRY_INFO!B89=0," ",COUNTRY_INFO!B89) -> NORTHERN | C89: =IF(COUNTRY_INFO!C89=0," ",COUNTRY_INFO!C89) -> NWOYA | D89: =IF(OR(COUNTRY_INFO!$T$9:$T$1000="T2 (PZQ)",COUNTRY_INFO!$U$9:$U$1000="T2 (PZQ)"), "T2 (PZQ)", " ") -> T2 (PZQ) | E89: 10/01/2018 | G89: 43590 | I89: 43590 | K89: 40729 | L89: 0 | M89: 40729 | O89: 93.43656802 | Q89: 93.43656802
A90: =IF(COUNTRY_INFO!A90=0," ",COUNTRY_INFO!A90) -> Uganda | B90: =IF(COUNTRY_INFO!B90=0," ",COUNTRY_INFO!B90) -> NORTHERN | C90: =IF(COUNTRY_INFO!C90=0," ",COUNTRY_INFO!C90) -> OMORO | D90: =IF(OR(COUNTRY_INFO!$T$9:$T$1000="T2 (PZQ)",COUNTRY_INFO!$U$9:$U$1000="T2 (PZQ)"), "T2 (PZQ)", " ") -> T2 (PZQ) | E90: 10/01/2018 | G90: 56368 | I90: 56368 | K90: 50912 | M90: 50912 | O90: 90.32074936 | Q90: 90.32074936
A91: =IF(COUNTRY_INFO!A91=0," ",COUNTRY_INFO!A91) -> Uganda | B91: =IF(COUNTRY_INFO!B91=0," ",COUNTRY_INFO!B91) -> NORTHERN | C91: =IF(COUNTRY_INFO!C91=0," ",COUNTRY_INFO!C91) -> OTUKE | D91: =IF(OR(COUNTRY_INFO!$T$9:$T$1000="T2 (PZQ)",COUNTRY_INFO!$U$9:$U$1000="T2 (PZQ)"), "T2 (PZQ)", " ") ->  | I91: 0 | M91: 0
A92: =IF(COUNTRY_INFO!A92=0," ",COUNTRY_INFO!A92) -> Uganda | B92: =IF(COUNTRY_INFO!B92=0," ",COUNTRY_INFO!B92) -> NORTHERN | C92: =IF(COUNTRY_INFO!C92=0," ",COUNTRY_INFO!C92) -> OYAM | D92: =IF(OR(COUNTRY_INFO!$T$9:$T$1000="T2 (PZQ)",COUNTRY_INFO!$U$9:$U$1000="T2 (PZQ)"), "T2 (PZQ)", " ") -> T2 (PZQ) | E92: 10/01/2018 | G92: 66964 | H92: 67402 | I92: 134366 | K92: 61904 | L92: 5753 | M92: 67657 | O92: 92.44370109 | P92: 8.535355034 | Q92: 50.35276781
A93: =IF(COUNTRY_INFO!A93=0," ",COUNTRY_INFO!A93) -> Uganda | B93: =IF(COUNTRY_INFO!B93=0," ",COUNTRY_INFO!B93) -> NORTHERN | C93: =IF(COUNTRY_INFO!C93=0," ",COUNTRY_INFO!C93) -> PADER | D93: =IF(OR(COUNTRY_INFO!$T$9:$T$1000="T2 (PZQ)",COUNTRY_INFO!$U$9:$U$1000="T2 (PZQ)"), "T2 (PZQ)", " ") -> T2 (PZQ) | E93: 10/01/2018 | G93: 58686 | I93: 58686 | K93: 43927 | M93: 43927 | O93: 74.85090141 | Q93: 74.85090141
A94: =IF(COUNTRY_INFO!A94=0," ",COUNTRY_INFO!A94) -> Uganda | B94: =IF(COUNTRY_INFO!B94=0," ",COUNTRY_INFO!B94) -> NORTHERN | C94: =IF(COUNTRY_INFO!C94=0," ",COUNTRY_INFO!C94) -> YUMBE | D94: =IF(OR(COUNTRY_INFO!$T$9:$T$1000="T2 (PZQ)",COUNTRY_INFO!$U$9:$U$1000="T2 (PZQ)"), "T2 (PZQ)", " ") -> T2 (PZQ) | E94: 10/01/2018 | G94: 94996 | H94: 139457 | I94: 234453 | K94: 79386 | L94: 110643 | M94: 190029 | O94: 83.56772917 | P94: 79.33843407 | Q94: 81.05206587
A95: =IF(COUNTRY_INFO!A95=0," ",COUNTRY_INFO!A95) -> Uganda | B95: =IF(COUNTRY_INFO!B95=0," ",COUNTRY_INFO!B95) -> NORTHERN | C95: =IF(COUNTRY_INFO!C95=0," ",COUNTRY_INFO!C95) -> ZOMBO | D95: =IF(OR(COUNTRY_INFO!$T$9:$T$1000="T2 (PZQ)",COUNTRY_INFO!$U$9:$U$1000="T2 (PZQ)"), "T2 (PZQ)", " ") ->  | I95: 0 | M95: 0
A96: =IF(COUNTRY_INFO!A96=0," ",COUNTRY_INFO!A96) -> Uganda | B96: =IF(COUNTRY_INFO!B96=0," ",COUNTRY_INFO!B96) -> WESTERN | C96: =IF(COUNTRY_INFO!C96=0," ",COUNTRY_INFO!C96) -> BUHWEJU | D96: =IF(OR(COUNTRY_INFO!$T$9:$T$1000="T2 (PZQ)",COUNTRY_INFO!$U$9:$U$1000="T2 (PZQ)"), "T2 (PZQ)", " ") ->  | I96: 0 | M96: 0
A97: =IF(COUNTRY_INFO!A97=0," ",COUNTRY_INFO!A97) -> Uganda | B97: =IF(COUNTRY_INFO!B97=0," ",COUNTRY_INFO!B97) -> WESTERN | C97: =IF(COUNTRY_INFO!C97=0," ",COUNTRY_INFO!C97) -> BULIISA | D97: =IF(OR(COUNTRY_INFO!$T$9:$T$1000="T2 (PZQ)",COUNTRY_INFO!$U$9:$U$1000="T2 (PZQ)"), "T2 (PZQ)", " ") -> T2 (PZQ) | E97: 10/01/2018 | G97: 36002 | H97: 59794 | I97: 95796 | K97: 36647 | L97: 56658 | M97: 93305 | O97: 101.7915671 | P97: 94.75532662 | Q97: 97.39968266
A98: =IF(COUNTRY_INFO!A98=0," ",COUNTRY_INFO!A98) -> Uganda | B98: =IF(COUNTRY_INFO!B98=0," ",COUNTRY_INFO!B98) -> WESTERN | C98: =IF(COUNTRY_INFO!C98=0," ",COUNTRY_INFO!C98) -> BUNDIBUGYO | D98: =IF(OR(COUNTRY_INFO!$T$9:$T$1000="T2 (PZQ)",COUNTRY_INFO!$U$9:$U$1000="T2 (PZQ)"), "T2 (PZQ)", " ") ->  | I98: 0 | M98: 0
A99: =IF(COUNTRY_INFO!A99=0," ",COUNTRY_INFO!A99) -> Uganda | B99: =IF(COUNTRY_INFO!B99=0," ",COUNTRY_INFO!B99) -> WESTERN | C99: =IF(COUNTRY_INFO!C99=0," ",COUNTRY_INFO!C99) -> BUSHENYI | D99: =IF(OR(COUNTRY_INFO!$T$9:$T$1000="T2 (PZQ)",COUNTRY_INFO!$U$9:$U$1000="T2 (PZQ)"), "T2 (PZQ)", " ") ->  | I99: 0 | M99: 0
A100: =IF(COUNTRY_INFO!A100=0," ",COUNTRY_INFO!A100) -> Uganda | B100: =IF(COUNTRY_INFO!B100=0," ",COUNTRY_INFO!B100) -> WESTERN | C100: =IF(COUNTRY_INFO!C100=0," ",COUNTRY_INFO!C100) -> HOIMA | D100: =IF(OR(COUNTRY_INFO!$T$9:$T$1000="T2 (PZQ)",COUNTRY_INFO!$U$9:$U$1000="T2 (PZQ)"), "T2 (PZQ)", " ") -> T2 (PZQ) | E100: 10/01/2018 | G100: 50540 | H100: 81683 | I100: 132223 | K100: 44718 | L100: 82875 | M100: 127593 | O100: 88.48041156 | P100: 101.4593 | Q100: 96.49833993
A101: =IF(COUNTRY_INFO!A101=0," ",COUNTRY_INFO!A101) -> Uganda | B101: =IF(COUNTRY_INFO!B101=0," ",COUNTRY_INFO!B101) -> WESTERN | C101: =IF(COUNTRY_INFO!C101=0," ",COUNTRY_INFO!C101) -> IBANDA | D101: =IF(OR(COUNTRY_INFO!$T$9:$T$1000="T2 (PZQ)",COUNTRY_INFO!$U$9:$U$1000="T2 (PZQ)"), "T2 (PZQ)", " ") ->  | I101: 0 | M101: 0
A102: =IF(COUNTRY_INFO!A102=0," ",COUNTRY_INFO!A102) -> Uganda | B102: =IF(COUNTRY_INFO!B102=0," ",COUNTRY_INFO!B102) -> WESTERN | C102: =IF(COUNTRY_INFO!C102=0," ",COUNTRY_INFO!C102) -> ISINGIRO | D102: =IF(OR(COUNTRY_INFO!$T$9:$T$1000="T2 (PZQ)",COUNTRY_INFO!$U$9:$U$1000="T2 (PZQ)"), "T2 (PZQ)", " ") ->  | I102: 0 | M102: 0
A103: =IF(COUNTRY_INFO!A103=0," ",COUNTRY_INFO!A103) -> Uganda | B103: =IF(COUNTRY_INFO!B103=0," ",COUNTRY_INFO!B103) -> WESTERN | C103: =IF(COUNTRY_INFO!C103=0," ",COUNTRY_INFO!C103) -> KABALE | D103: =IF(OR(COUNTRY_INFO!$T$9:$T$1000="T2 (PZQ)",COUNTRY_INFO!$U$9:$U$1000="T2 (PZQ)"), "T2 (PZQ)", " ") ->  | I103: 0 | M103: 0
A104: =IF(COUNTRY_INFO!A104=0," ",COUNTRY_INFO!A104) -> Uganda | B104: =IF(COUNTRY_INFO!B104=0," ",COUNTRY_INFO!B104) -> WESTERN | C104: =IF(COUNTRY_INFO!C104=0," ",COUNTRY_INFO!C104) -> KABAROLE | D104: =IF(OR(COUNTRY_INFO!$T$9:$T$1000="T2 (PZQ)",COUNTRY_INFO!$U$9:$U$1000="T2 (PZQ)"), "T2 (PZQ)", " ") -> T2 (PZQ) | E104: 10/01/2018 | G104: 16153 | H104: 17414 | I104: 33567 | K104: 12445 | L104: 10267 | M104: 22712 | O104: 77.04451186 | P104: 58.95830941 | Q104: 67.66169154
A105: =IF(COUNTRY_INFO!A105=0," ",COUNTRY_INFO!A105) -> Uganda | B105: =IF(COUNTRY_INFO!B105=0," ",COUNTRY_INFO!B105) -> WESTERN | C105: =IF(COUNTRY_INFO!C105=0," ",COUNTRY_INFO!C105) -> KAGADI | D105: =IF(OR(COUNTRY_INFO!$T$9:$T$1000="T2 (PZQ)",COUNTRY_INFO!$U$9:$U$1000="T2 (PZQ)"), "T2 (PZQ)", " ") -> T2 (PZQ) | E105: 10/01/2018 | G105: 74492 | H105: 108457 | I105: 182949 | K105: 72440 | L105: 93912 | M105: 166352 | O105: 97.24534178 | P105: 86.58915515 | Q105: 90.92807285
A106: =IF(COUNTRY_INFO!A106=0," ",COUNTRY_INFO!A106) -> Uganda | B106: =IF(COUNTRY_INFO!B106=0," ",COUNTRY_INFO!B106) -> WESTERN | C106: =IF(COUNTRY_INFO!C106=0," ",COUNTRY_INFO!C106) -> KAKUMIRO | D106: =IF(OR(COUNTRY_INFO!$T$9:$T$1000="T2 (PZQ)",COUNTRY_INFO!$U$9:$U$1000="T2 (PZQ)"), "T2 (PZQ)", " ") ->  | I106: 0 | M106: 0
A107: =IF(COUNTRY_INFO!A107=0," ",COUNTRY_INFO!A107) -> Uganda | B107: =IF(COUNTRY_INFO!B107=0," ",COUNTRY_INFO!B107) -> WESTERN | C107: =IF(COUNTRY_INFO!C107=0," ",COUNTRY_INFO!C107) -> KAMWENGE | D107: =IF(OR(COUNTRY_INFO!$T$9:$T$1000="T2 (PZQ)",COUNTRY_INFO!$U$9:$U$1000="T2 (PZQ)"), "T2 (PZQ)", " ") -> T2 (PZQ) | E107: 10/01/2018 | G107: 9055 | H107: 13952 | I107: 23007 | K107: 7690 | L107: 11573 | M107: 19263 | O107: 84.92545555 | P107: 82.94868119 | Q107: 83.72669188
A108: =IF(COUNTRY_INFO!A108=0," ",COUNTRY_INFO!A108) -> Uganda | B108: =IF(COUNTRY_INFO!B108=0," ",COUNTRY_INFO!B108) -> WESTERN | C108: =IF(COUNTRY_INFO!C108=0," ",COUNTRY_INFO!C108) -> KANUNGU | D108: =IF(OR(COUNTRY_INFO!$T$9:$T$1000="T2 (PZQ)",COUNTRY_INFO!$U$9:$U$1000="T2 (PZQ)"), "T2 (PZQ)", " ") ->  | I108: 0 | M108: 0
A109: =IF(COUNTRY_INFO!A109=0," ",COUNTRY_INFO!A109) -> Uganda | B109: =IF(COUNTRY_INFO!B109=0," ",COUNTRY_INFO!B109) -> WESTERN | C109: =IF(COUNTRY_INFO!C109=0," ",COUNTRY_INFO!C109) -> KASESE | D109: =IF(OR(COUNTRY_INFO!$T$9:$T$1000="T2 (PZQ)",COUNTRY_INFO!$U$9:$U$1000="T2 (PZQ)"), "T2 (PZQ)", " ") -> T2 (PZQ) | E109: 10/01/2018 | G109: 3232 | H109: 9076 | I109: 12308 | K109: 3324 | L109: 5950 | M109: 9274 | O109: 102.8465347 | P109: 65.55751432 | Q109: 75.34936627
A110: =IF(COUNTRY_INFO!A110=0," ",COUNTRY_INFO!A110) -> Uganda | B110: =IF(COUNTRY_INFO!B110=0," ",COUNTRY_INFO!B110) -> WESTERN | C110: =IF(COUNTRY_INFO!C110=0," ",COUNTRY_INFO!C110) -> KIBAALE | D110: =IF(OR(COUNTRY_INFO!$T$9:$T$1000="T2 (PZQ)",COUNTRY_INFO!$U$9:$U$1000="T2 (PZQ)"), "T2 (PZQ)", " ") ->  | I110: 0 | M110: 0
A111: =IF(COUNTRY_INFO!A111=0," ",COUNTRY_INFO!A111) -> Uganda | B111: =IF(COUNTRY_INFO!B111=0," ",COUNTRY_INFO!B111) -> WESTERN | C111: =IF(COUNTRY_INFO!C111=0," ",COUNTRY_INFO!C111) -> KIRUHURA | D111: =IF(OR(COUNTRY_INFO!$T$9:$T$1000="T2 (PZQ)",COUNTRY_INFO!$U$9:$U$1000="T2 (PZQ)"), "T2 (PZQ)", " ") ->  | I111: 0 | M111: 0
A112: =IF(COUNTRY_INFO!A112=0," ",COUNTRY_INFO!A112) -> Uganda | B112: =IF(COUNTRY_INFO!B112=0," ",COUNTRY_INFO!B112) -> WESTERN | C112: =IF(COUNTRY_INFO!C112=0," ",COUNTRY_INFO!C112) -> KIRYANDONGO | D112: =IF(OR(COUNTRY_INFO!$T$9:$T$1000="T2 (PZQ)",COUNTRY_INFO!$U$9:$U$1000="T2 (PZQ)"), "T2 (PZQ)", " ") -> T2 (PZQ) | E112: 10/01/2018 | G112: 20222 | H112: 28758 | I112: 48980 | K112: 18240 | L112: 25248 | M112: 43488 | O112: 90.19879339 | P112: 87.79470061 | Q112: 88.78726011
A113: =IF(COUNTRY_INFO!A113=0," ",COUNTRY_INFO!A113) -> Uganda | B113: =IF(COUNTRY_INFO!B113=0," ",COUNTRY_INFO!B113) -> WESTERN | C113: =IF(COUNTRY_INFO!C113=0," ",COUNTRY_INFO!C113) -> KISORO | D113: =IF(OR(COUNTRY_INFO!$T$9:$T$1000="T2 (PZQ)",COUNTRY_INFO!$U$9:$U$1000="T2 (PZQ)"), "T2 (PZQ)", " ") ->  | I113: 0 | M113: 0
A114: =IF(COUNTRY_INFO!A114=0," ",COUNTRY_INFO!A114) -> Uganda | B114: =IF(COUNTRY_INFO!B114=0," ",COUNTRY_INFO!B114) -> WESTERN | C114: =IF(COUNTRY_INFO!C114=0," ",COUNTRY_INFO!C114) -> KYEGEGWA | D114: =IF(OR(COUNTRY_INFO!$T$9:$T$1000="T2 (PZQ)",COUNTRY_INFO!$U$9:$U$1000="T2 (PZQ)"), "T2 (PZQ)", " ") ->  | I114: 0 | M114: 0
A115: =IF(COUNTRY_INFO!A115=0," ",COUNTRY_INFO!A115) -> Uganda | B115: =IF(COUNTRY_INFO!B115=0," ",COUNTRY_INFO!B115) -> WESTERN | C115: =IF(COUNTRY_INFO!C115=0," ",COUNTRY_INFO!C115) -> KYENJOJO | D115: =IF(OR(COUNTRY_INFO!$T$9:$T$1000="T2 (PZQ)",COUNTRY_INFO!$U$9:$U$1000="T2 (PZQ)"), "T2 (PZQ)", " ") ->  | I115: 0 | M115: 0
A116: =IF(COUNTRY_INFO!A116=0," ",COUNTRY_INFO!A116) -> Uganda | B116: =IF(COUNTRY_INFO!B116=0," ",COUNTRY_INFO!B116) -> WESTERN | C116: =IF(COUNTRY_INFO!C116=0," ",COUNTRY_INFO!C116) -> MASINDI | D116: =IF(OR(COUNTRY_INFO!$T$9:$T$1000="T2 (PZQ)",COUNTRY_INFO!$U$9:$U$1000="T2 (PZQ)"), "T2 (PZQ)", " ") ->  | I116: 0 | M116: 0
A117: =IF(COUNTRY_INFO!A117=0," ",COUNTRY_INFO!A117) -> Uganda | B117: =IF(COUNTRY_INFO!B117=0," ",COUNTRY_INFO!B117) -> WESTERN | C117: =IF(COUNTRY_INFO!C117=0," ",COUNTRY_INFO!C117) -> MBARARA | D117: =IF(OR(COUNTRY_INFO!$T$9:$T$1000="T2 (PZQ)",COUNTRY_INFO!$U$9:$U$1000="T2 (PZQ)"), "T2 (PZQ)", " ") ->  | I117: 0 | M117: 0
A118: =IF(COUNTRY_INFO!A118=0," ",COUNTRY_INFO!A118) -> Uganda | B118: =IF(COUNTRY_INFO!B118=0," ",COUNTRY_INFO!B118) -> WESTERN | C118: =IF(COUNTRY_INFO!C118=0," ",COUNTRY_INFO!C118) -> MITOOMA | D118: =IF(OR(COUNTRY_INFO!$T$9:$T$1000="T2 (PZQ)",COUNTRY_INFO!$U$9:$U$1000="T2 (PZQ)"), "T2 (PZQ)", " ") ->  | I118: 0 | M118: 0
A119: =IF(COUNTRY_INFO!A119=0," ",COUNTRY_INFO!A119) -> Uganda | B119: =IF(COUNTRY_INFO!B119=0," ",COUNTRY_INFO!B119) -> WESTERN | C119: =IF(COUNTRY_INFO!C119=0," ",COUNTRY_INFO!C119) -> NTOROKO | D119: =IF(OR(COUNTRY_INFO!$T$9:$T$1000="T2 (PZQ)",COUNTRY_INFO!$U$9:$U$1000="T2 (PZQ)"), "T2 (PZQ)", " ") -> T2 (PZQ) | E119: 10/01/2018 | G119: 9965 | H119: 16346 | I119: 26311 | K119: 7780 | L119: 11364 | M119: 19144 | O119: 78.0732564 | P119: 69.5215955 | Q119: 72.7604424
A120: =IF(COUNTRY_INFO!A120=0," ",COUNTRY_INFO!A120) -> Uganda | B120: =IF(COUNTRY_INFO!B120=0," ",COUNTRY_INFO!B120) -> WESTERN | C120: =IF(COUNTRY_INFO!C120=0," ",COUNTRY_INFO!C120) -> NTUNGAMO | D120: =IF(OR(COUNTRY_INFO!$T$9:$T$1000="T2 (PZQ)",COUNTRY_INFO!$U$9:$U$1000="T2 (PZQ)"), "T2 (PZQ)", " ") ->  | I120: 0 | M120: 0
A121: =IF(COUNTRY_INFO!A121=0," ",COUNTRY_INFO!A121) -> Uganda | B121: =IF(COUNTRY_INFO!B121=0," ",COUNTRY_INFO!B121) -> WESTERN | C121: =IF(COUNTRY_INFO!C121=0," ",COUNTRY_INFO!C121) -> RUBANDA | D121: =IF(OR(COUNTRY_INFO!$T$9:$T$1000="T2 (PZQ)",COUNTRY_INFO!$U$9:$U$1000="T2 (PZQ)"), "T2 (PZQ)", " ") ->  | I121: 0 | M121: 0
A122: =IF(COUNTRY_INFO!A122=0," ",COUNTRY_INFO!A122) -> Uganda | B122: =IF(COUNTRY_INFO!B122=0," ",COUNTRY_INFO!B122) -> WESTERN | C122: =IF(COUNTRY_INFO!C122=0," ",COUNTRY_INFO!C122) -> RUBIRIZI | D122: =IF(OR(COUNTRY_INFO!$T$9:$T$1000="T2 (PZQ)",COUNTRY_INFO!$U$9:$U$1000="T2 (PZQ)"), "T2 (PZQ)", " ") -> T2 (PZQ) | E122: 10/01/2018 | G122: 610 | H122: 1984 | I122: 2594 | K122: 460 | L122: 1629 | M122: 2089 | O122: 75.40983607 | P122: 82.10685484 | Q122: 80.53199692
A123: =IF(COUNTRY_INFO!A123=0," ",COUNTRY_INFO!A123) -> Uganda | B123: =IF(COUNTRY_INFO!B123=0," ",COUNTRY_INFO!B123) -> WESTERN | C123: =IF(COUNTRY_INFO!C123=0," ",COUNTRY_INFO!C123) -> RUKUNGIRI | D123: =IF(OR(COUNTRY_INFO!$T$9:$T$1000="T2 (PZQ)",COUNTRY_INFO!$U$9:$U$1000="T2 (PZQ)"), "T2 (PZQ)", " ") ->  | I123: 0 | M123: 0
A124: =IF(COUNTRY_INFO!A124=0," ",COUNTRY_INFO!A124) -> Uganda | B124: =IF(COUNTRY_INFO!B124=0," ",COUNTRY_INFO!B124) -> WESTERN | C124: =IF(COUNTRY_INFO!C124=0," ",COUNTRY_INFO!C124) -> SHEEMA | D124: =IF(OR(COUNTRY_INFO!$T$9:$T$1000="T2 (PZQ)",COUNTRY_INFO!$U$9:$U$1000="T2 (PZQ)"), "T2 (PZQ)", " ") ->  | I124: 0 | M124: 0
A125: =IF(COUNTRY_INFO!A125=0," ",COUNTRY_INFO!A125) -> Uganda | B125: =IF(COUNTRY_INFO!B125=0," ",COUNTRY_INFO!B125) ->  | C125: =IF(COUNTRY_INFO!C125=0," ",COUNTRY_INFO!C125) ->  | D125: =IF(OR(COUNTRY_INFO!$T$9:$T$1000="T2 (PZQ)",COUNTRY_INFO!$U$9:$U$1000="T2 (PZQ)"), "T2 (PZQ)", " ") ->  | I125: 0 | M125: 0

Sheet T3_R1
A1: T 3 - Albendazole (ALB) or Mebendazole (MBD) - Round 1
A2: Administrative structure, population requiring PC by age group, population treated by age group and coverage
A4: TOTAL | G4: =SUM(G$9:G$1000) -> 5582724 | H4: 11873116 | I4: 204690 | J4: 17660530 | K4: 2584641 | L4: 10457777 | M4: 0 | N4: 13042418 | O4: =IF(G4<>0, IF(K4/G4*100=0, "-", K4/G4*100), " ") -> 46.29713022 | P4: =IF(H4<>0, IF(L4/H4*100=0, "-", L4/H4*100), " ") -> 88.07946457 | Q4: =IF(I4<>0, IF(M4/I4*100=0, "-", M4/I4*100), " ") -> - | R4: =IF(J4<>0, IF(N4/J4*100=0, "-", N4/J4*100), " ") -> 73.8506602
D6: PC implemented | E6: Medicine | F6: Date | G6: Population targeted for T3 | K6: Population treated | O6: Programme coverage (%)
A7: Country | B7: Province/State | C7: District | G7: PreSAC | H7: SAC | I7: Adults | J7: Total | K7: PreSAC | L7: SAC | M7: Adults | N7: Total | O7: PreSAC | P7: SAC | Q7: Adults | R7: Total
A9: =IF(COUNTRY_INFO!A9=0," ",COUNTRY_INFO!A9) -> Uganda | B9: =IF(COUNTRY_INFO!B9=0," ",COUNTRY_INFO!B9) -> CENTRAL | C9: =IF(COUNTRY_INFO!C9=0," ",COUNTRY_INFO!C9) -> BUIKWE | D9: =IF(OR(COUNTRY_INFO!$T$9:$T$1000="T3 (ALB/MBD)",COUNTRY_INFO!$U$9:$U$1000="T3 (ALB/MBD)"), "T3 (ALB/MBD)", " ") -> T3 (ALB/MBD) | E9: MBD | F9: April 2018 | G9: =COUNTRY_INFO!E9 -> 69829 | H9: =COUNTRY_INFO!F9 -> 148509 | J9: =SUM(G9:I9) -> 218338 | K9: 0 | L9: 53501 | N9: =SUM(K9:L9) -> 53501 | O9: =IF(G9<>0, IF(K9/G9*100=0, "-", K9/G9*100), " ") -> - | P9: 36.02542607 | R9: 24.50375106
A10: =IF(COUNTRY_INFO!A10=0," ",COUNTRY_INFO!A10) -> Uganda | B10: =IF(COUNTRY_INFO!B10=0," ",COUNTRY_INFO!B10) -> CENTRAL | C10: =IF(COUNTRY_INFO!C10=0," ",COUNTRY_INFO!C10) -> BUKOMANSIMBI | D10: =IF(OR(COUNTRY_INFO!$T$9:$T$1000="T3 (ALB/MBD)",COUNTRY_INFO!$U$9:$U$1000="T3 (ALB/MBD)"), "T3 (ALB/MBD)", " ") -> T3 (ALB/MBD) | E10: MBD | F10: April 2018 | G10: =COUNTRY_INFO!E10 -> 24173 | H10: =COUNTRY_INFO!F10 -> 51410 | J10: =SUM(G10:I10) -> 75583 | K10: 413 | L10: 9155 | N10: =SUM(K10:L10) -> 9568 | O10: =IF(G10<>0, IF(K10/G10*100=0, "-", K10/G10*100), " ") -> 1.708517768 | P10: =IF(H10<>0, IF(L10/H10*100=0, "-", L10/H10*100), " ") -> 17.80781949 | Q10: =IF(I10<>0, IF(M10/I10*100=0, "-", M10/I10*100), " ") ->  | R10: =IF(J10<>0, IF(N10/J10*100=0, "-", N10/J10*100), " ") -> 12.65893124
A11: =IF(COUNTRY_INFO!A11=0," ",COUNTRY_INFO!A11) -> Uganda | B11: =IF(COUNTRY_INFO!B11=0," ",COUNTRY_INFO!B11) -> CENTRAL | C11: =IF(COUNTRY_INFO!C11=0," ",COUNTRY_INFO!C11) -> BUTAMBALA | D11: =IF(OR(COUNTRY_INFO!$T$9:$T$1000="T3 (ALB/MBD)",COUNTRY_INFO!$U$9:$U$1000="T3 (ALB/MBD)"), "T3 (ALB/MBD)", " ") -> T3 (ALB/MBD) | E11: MBD | F11: April 2018 | G11: =COUNTRY_INFO!E11 -> 16076 | H11: =COUNTRY_INFO!F11 -> 34191 | J11: 50267 | K11: 1122 | L11: 17916 | N11: 19038 | O11: 6.979348097 | P11: 52.39975432 | R11: 37.87375415
A12: =IF(COUNTRY_INFO!A12=0," ",COUNTRY_INFO!A12) -> Uganda | B12: =IF(COUNTRY_INFO!B12=0," ",COUNTRY_INFO!B12) -> CENTRAL | C12: =IF(COUNTRY_INFO!C12=0," ",COUNTRY_INFO!C12) -> BUVUMA | D12: =IF(OR(COUNTRY_INFO!$T$9:$T$1000="T3 (ALB/MBD)",COUNTRY_INFO!$U$9:$U$1000="T3 (ALB/MBD)"), "T3 (ALB/MBD)", " ") -> T3 (ALB/MBD) | E12: MBD | F12: April 2018 | G12: =COUNTRY_INFO!E12 -> 14395 | H12: =COUNTRY_INFO!F12 -> 30614 | J12: 45009 | K12: 0 | L12: 9517 | N12: 9517 | O12: - | P12: 31.08708434 | R12: 21.14465996
A13: =IF(COUNTRY_INFO!A13=0," ",COUNTRY_INFO!A13) -> Uganda | B13: =IF(COUNTRY_INFO!B13=0," ",COUNTRY_INFO!B13) -> CENTRAL | C13: =IF(COUNTRY_INFO!C13=0," ",COUNTRY_INFO!C13) -> GOMBA | D13: =IF(OR(COUNTRY_INFO!$T$9:$T$1000="T3 (ALB/MBD)",COUNTRY_INFO!$U$9:$U$1000="T3 (ALB/MBD)"), "T3 (ALB/MBD)", " ") -> T3 (ALB/MBD) | E13: MBD | F13: April 2018 | G13: =COUNTRY_INFO!E13 -> 25613 | H13: =COUNTRY_INFO!F13 -> 54473 | J13: 80086 | K13: 16078 | L13: 38420 | N13: 54498 | O13: 62.77281068 | P13: 70.53035449 | R13: 68.04934695
A14: =IF(COUNTRY_INFO!A14=0," ",COUNTRY_INFO!A14) -> Uganda | B14: =IF(COUNTRY_INFO!B14=0," ",COUNTRY_INFO!B14) -> CENTRAL | C14: =IF(COUNTRY_INFO!C14=0," ",COUNTRY_INFO!C14) -> KALANGALA | D14: =IF(OR(COUNTRY_INFO!$T$9:$T$1000="T3 (ALB/MBD)",COUNTRY_INFO!$U$9:$U$1000="T3 (ALB/MBD)"), "T3 (ALB/MBD)", " ") -> T3 (ALB/MBD) | E14: MBD | F14: April 2018 | G14: =COUNTRY_INFO!E14 -> 8545 | H14: =COUNTRY_INFO!F14 -> 18174 | J14: 26719 | K14: 0 | L14: 12051 | N14: 12051 | O14: - | P14: 66.30901288 | R14: 45.10273588
A15: =IF(COUNTRY_INFO!A15=0," ",COUNTRY_INFO!A15) -> Uganda | B15: =IF(COUNTRY_INFO!B15=0," ",COUNTRY_INFO!B15) -> CENTRAL | C15: =IF(COUNTRY_INFO!C15=0," ",COUNTRY_INFO!C15) -> KALUNGU | D15: =IF(OR(COUNTRY_INFO!$T$9:$T$1000="T3 (ALB/MBD)",COUNTRY_INFO!$U$9:$U$1000="T3 (ALB/MBD)"), "T3 (ALB/MBD)", " ") -> T3 (ALB/MBD) | E15: MBD | F15: April 2018 | G15: =COUNTRY_INFO!E15 -> 29463 | H15: =COUNTRY_INFO!F15 -> 62660 | J15: 92123 | K15: 1916 | L15: 45898 | N15: 47814 | O15: 6.503071649 | P15: 73.24928184 | R15: 51.90234795
A16: =IF(COUNTRY_INFO!A16=0," ",COUNTRY_INFO!A16) -> Uganda | B16: =IF(COUNTRY_INFO!B16=0," ",COUNTRY_INFO!B16) -> CENTRAL | C16: =IF(COUNTRY_INFO!C16=0," ",COUNTRY_INFO!C16) -> KAMPALA | D16: =IF(OR(COUNTRY_INFO!$T$9:$T$1000="T3 (ALB/MBD)",COUNTRY_INFO!$U$9:$U$1000="T3 (ALB/MBD)"), "T3 (ALB/MBD)", " ") -> T3 (ALB/MBD) | E16: MBD | F16: April 2018 | G16: =COUNTRY_INFO!E16 -> 242607 | H16: =COUNTRY_INFO!F16 -> 515966 | J16: 758573 | K16: 2800 | L16: 209783 | N16: 212583 | O16: 1.15412993 | P16: 40.65829919 | R16: 28.02406624
A17: =IF(COUNTRY_INFO!A17=0," ",COUNTRY_INFO!A17) -> Uganda | B17: =IF(COUNTRY_INFO!B17=0," ",COUNTRY_INFO!B17) -> CENTRAL | C17: =IF(COUNTRY_INFO!C17=0," ",COUNTRY_INFO!C17) -> KAYUNGA | D17: =IF(OR(COUNTRY_INFO!$T$9:$T$1000="T3 (ALB/MBD)",COUNTRY_INFO!$U$9:$U$1000="T3 (ALB/MBD)"), "T3 (ALB/MBD)", " ") -> T3 (ALB/MBD) | E17: MBD | F17: April 2018 | G17: =COUNTRY_INFO!E17 -> 59237 | H17: =COUNTRY_INFO!F17 -> 125983 | J17: 185220 | K17: 0 | L17: 67833 | N17: 67833 | O17: - | P17: 53.84297881 | R17: 36.62293489
A18: =IF(COUNTRY_INFO!A18=0," ",COUNTRY_INFO!A18) -> Uganda | B18: =IF(COUNTRY_INFO!B18=0," ",COUNTRY_INFO!B18) -> CENTRAL | C18: =IF(COUNTRY_INFO!C18=0," ",COUNTRY_INFO!C18) -> KIBOGA | D18: =IF(OR(COUNTRY_INFO!$T$9:$T$1000="T3 (ALB/MBD)",COUNTRY_INFO!$U$9:$U$1000="T3 (ALB/MBD)"), "T3 (ALB/MBD)", " ") -> T3 (ALB/MBD) | E18: MBD | F18: April 2018 | G18: =COUNTRY_INFO!E18 -> 23716 | H18: =COUNTRY_INFO!F18 -> 50439 | J18: 74155 | K18: 758 | L18: 46969 | N18: 47727 | O18: 3.196154495 | P18: 93.12040286 | R18: 64.36113546
A19: =IF(COUNTRY_INFO!A19=0," ",COUNTRY_INFO!A19) -> Uganda | B19: =IF(COUNTRY_INFO!B19=0," ",COUNTRY_INFO!B19) -> CENTRAL | C19: =IF(COUNTRY_INFO!C19=0," ",COUNTRY_INFO!C19) -> KYANKWANZI | D19: =IF(OR(COUNTRY_INFO!$T$9:$T$1000="T3 (ALB/MBD)",COUNTRY_INFO!$U$9:$U$1000="T3 (ALB/MBD)"), "T3 (ALB/MBD)", " ") -> T3 (ALB/MBD) | E19: MBD | F19: April 2018 | G19: =COUNTRY_INFO!E19 -> 34353 | H19: =COUNTRY_INFO!F19 -> 73060 | J19: 107413 | K19: 9786 | L19: 63856 | N19: 73642 | O19: 28.48659506 | P19: 87.40213523 | R19: 68.55967155
